Workbook

Sheet Protocol Coverage
A1: Number of requirements by Cradle to Cradle Certified™ level covered by each protocol
A2: C2C_Level | B2: SMETA | C2: SA8000 | D2: SLCP | E2: total # of C2C requirements
A3: Bronze | B3: =COUNTIFS(Requirements!$B:$B,"*"&$A3&"*",Requirements!M:M,"Y",Requirements!K:K,0) -> 21 | C3: =COUNTIFS(Requirements!$B:$B,"*"&$A3&"*",Requirements!N:N,"Y",Requirements!K:K,0) -> 63 | D3: =COUNTIFS(Requirements!$B:$B,"*"&$A3&"*",Requirements!O:O,"Y",Requirements!K:K,0) -> 38 | E3: =COUNTIFS(Requirements!B:B,"*"&A3&"*",Requirements!K:K,0) -> 84
A4: Silver | B4: =COUNTIFS(Requirements!$B:$B,"*"&$A4&"*",Requirements!M:M,"Y",Requirements!K:K,0) -> 24 | C4: =COUNTIFS(Requirements!$B:$B,"*"&$A4&"*",Requirements!N:N,"Y",Requirements!K:K,0) -> 31 | D4: =COUNTIFS(Requirements!$B:$B,"*"&$A4&"*",Requirements!O:O,"Y",Requirements!K:K,0) -> 31 | E4: =COUNTIFS(Requirements!B:B,"*"&A4&"*",Requirements!K:K,0) -> 63
A5: Gold | B5: =COUNTIFS(Requirements!$B:$B,"*"&$A5&"*",Requirements!M:M,"Y",Requirements!K:K,0) -> 17 | C5: =COUNTIFS(Requirements!$B:$B,"*"&$A5&"*",Requirements!N:N,"Y",Requirements!K:K,0) -> 25 | D5: =COUNTIFS(Requirements!$B:$B,"*"&$A5&"*",Requirements!O:O,"Y",Requirements!K:K,0) -> 16 | E5: =COUNTIFS(Requirements!B:B,"*"&A5&"*",Requirements!K:K,0) -> 43
A6: Platinum | B6: =COUNTIFS(Requirements!$B:$B,"*"&$A6&"*",Requirements!M:M,"Y",Requirements!K:K,0) -> 0 | C6: =COUNTIFS(Requirements!$B:$B,"*"&$A6&"*",Requirements!N:N,"Y",Requirements!K:K,0) -> 5 | D6: =COUNTIFS(Requirements!$B:$B,"*"&$A6&"*",Requirements!O:O,"Y",Requirements!K:K,0) -> 11 | E6: =COUNTIFS(Requirements!B:B,"*"&A6&"*",Requirements!K:K,0) -> 23
A7: Total | B7: =SUBTOTAL(109,Table4[SMETA]) -> 62 | C7: =SUBTOTAL(109,Table4[SA8000]) -> 124 | D7: =SUBTOTAL(109,Table4[SLCP]) -> 96 | E7: =SUBTOTAL(109,Table4[total '# of C2C requirements]) -> 213
A10: Percentage of Cradle to Cradle Certified requirements covered by facility level protocols (percentages are additive)
A13: % Completed shows additive expectations per level | B13: % of C2C Requirements covered by Protocol
A14: C2C_Level | B14: SMETA % Completed
A15: Bronze | B15: =SUM($B$3:B3)/SUM($E$3:E3) -> 25%
A16: Silver | B16: =SUM($B$3:B4)/SUM($E$3:E4) -> 31%
A17: Gold | B17: =SUM($B$3:B5)/SUM($E$3:E5) -> 33%
A18: Platinum | B18: =SUM($B$3:B6)/SUM($E$3:E6) -> 29%
A20: C2C_Level | B20: SA8000 % Completed
A21: Bronze | B21: =SUM($C$3:C3)/SUM($E$3:E3) -> 75%
A22: Silver | B22: =SUM($C$3:C4)/SUM($E$3:E4) -> 64%
A23: Gold | B23: =SUM($C$3:C5)/SUM($E$3:E5) -> 63%
A24: Platinum | B24: =SUM($C$3:C6)/SUM($E$3:E6) -> 58%
A26: C2C_Level | B26: SLCP % Completed
A27: Bronze | B27: =SUM($D$3:D3)/SUM($E$3:E3) -> 45%
A28: Silver | B28: =SUM($D$3:D4)/SUM($E$3:E4) -> 47%
A29: Gold | B29: =SUM($D$3:D5)/SUM($E$3:E5) -> 45%
A30: Platinum | B30: =SUM($D$3:D6)/SUM($E$3:E6) -> 45%
A35: Percent Completed of FAC Protocols for Individual C2CPII Certification Levels
A36: % Completed shows individual expectations per level | B36: % of C2C Requirements covered by SMETA | C36: % of C2C Requirements NOT covered by SMETA
A37: C2C_Level | B37: SMETA % Completed | C37: SMETA % Not Completed
A38: Basic | B38: 41% | C38: 59%
A39: Bronze | B39: 7% | C39: 93%
A40: Silver | B40: 46% | C40: 54%
A41: Gold | B41: 29% | C41: 71%
A42: Platinum | B42: 0% | C42: 100%
A44: C2C_Level | B44: SA8000 % Completed | C44: SA8000 % Not Completed
A45: Basic | B45: 84% | C45: 16%
A46: Bronze | B46: 81% | C46: 19%
A47: Silver | B47: 62% | C47: 38%
A48: Gold | B48: 51% | C48: 49%
A49: Platinum | B49: 25% | C49: 75%
A51: C2C_Level | B51: SLCP % Completed | C51: SLCP % Not Completed
A52: Basic | B52: 63% | C52: 37%
A53: Bronze | B53: 26% | C53: 74%
A54: Silver | B54: 68% | C54: 32%
A55: Gold | B55: 31% | C55: 69%
A56: Platinum | B56: 46% | C56: 54%

Sheet Certification Preparation
A1: Certification Preparation
A2: Where an Applicant has already completed one of the protocols listed below in the last 12 months, this tool is used to identify the additional requirements needed to meet different levels of Cradle to Cradle Certified. The Applicant will submit their audit report from the protocol used, which will be counted as "requirements met" for Cradle to Cradle certification requirements (with the exception of non-compliances, see below). The tool will show the Applicant remaining Cradle to Cradle Certified requirements for the Applicant to complete, by protocol and certification level.
G3: Calc | H3: Level
G5: 1 | H5: Bronze
G6: 2 | H6: Silver
G7: 3 | H7: Gold
G8: 4 | H8: Platinum
A9: Many of the Cradle to Cradle Certified Social Fairness requirements apply to the applicant at the company level, while the protocols in this tool are relevant to manufacturing facilities. If an applicant company has implemented one of the protocols included in this tool (i.e. SA8000, SLCP, or SMETA) at a single facility out of several that the company owns, then any company level requirements will still have to be met separately. For scenarios where the applicant uses only contract manufacturing, the applicant will in all cases need to meet the company level requirements, even if those requirements have been met by the final manufacturing facility(ies) as indicated by this tool.
G10: =INDEX(G:G,MATCH(H10,H:H,0))+1 -> 5 | H10: =B24 -> Platinum
A16: Instructions for use
A17: 1. Select the achievement level that the Applicant company is pursuing.
A18: 2. Indicate which Protocol(s) has been completed (within 12 months).
A19: 3. For non-compliance issues identified in one of the protocols listed below, reference those items in the sheet below. It is recommended that the Applicant match the issue in their audit report with the master id # as listed in the protocol worksheets in this document (see individual tabs in this document). The Applicant is required to provide additional information for any issue identified below in their Self-Assessment (see separate tool).
A21: 4. Click on the button 'Click Here to See Requirements" and move to the "Requirements" tab. This will show the remaining requirements (highlighted in red font) that the Applicant needs to complete in the Self Assessment, by protocol. This listing will self-populate and is based on Protocol Coverage.
A24: Achievement Level: | B24: Platinum
A26: Protocols | B26: Master ID #
A27: SMETA 6.1: | B27: No
A28: SA8000: | B28: No
A29: SLCP 1.3: | B29: No
A31: Issues Identified | B31: Master ID #
A32: 1
A33: 2
A34: 3
A35: 4
A36: 5
A37: 6
A38: 7
A39: 8
A40: 9
A41: 10
A42: 11
A43: 12
A44: 13
A45: 14
A46: 15
A47: 16
A48: 17
A49: 18
A50: 19
A51: 20
A52: 21
A53: 22
A54: 23
A55: 24
A56: 25
A57: 26
A58: 27
A59: 28
A60: 29
A61: 30
A62: 31
A63: 32
A64: 33
A65: 34
A66: 35
A67: 36
A68: 37
A69: 38
A70: 39
A71: 40
A72: 41
A73: 42
A74: 43
A75: 44
A76: 45
A77: 46
A78: 47
A79: 48
A80: 49
A81: 50
A82: 51
A83: 52
A84: 53
A85: 54
A86: 55
A87: 56
A88: 57
A89: 58
A90: 59
A91: 60
A92: 61
A93: 62
A94: 63
A95: 64
A96: 65
A97: 66
A98: 67
A99: 68
A100: 69
A101: 70
A102: 71
A103: 72
A104: 73
A105: 74
A106: 75
A107: 76
A108: 77
A109: 78
A110: 79
A111: 80
A112: 81
A113: 82
A114: 83
A115: 84
A116: 85
A117: 86
A118: 87
A119: 88
A120: 89
A121: 90
A122: 91
A123: 92
A124: 93
A125: 94
A126: 95
A127: 96
A128: 97
A129: 98
A130: 99
A131: 100

Sheet Requirements
A1: Order | B1: C2C_Level | C1: Column1 | D1: C2C_Themes | E1: GAP | F1: SMETA 6.0 | G1: SA8000 | H1: SLCP 1.3 | I1: New Master ID | J1: Column2 | K1: Column22 | L1: C2C_Requirements | M1: SMETA (Y/N) | N1: SA8000 Match (Y/N) | O1: SLCP Match (Y/N) | P1: SMETA ID | Q1: SMETA ID2 | R1: SMETA ID3 | S1: SMETA ID4 | T1: SMETA ID5 | U1: SMETA ID6 | V1: SMETA ID7 | W1: SMETA ID8 | X1: SMETA ID12 | Y1: SMETA ID13 | Z1: SMETA ID14 | AA1: SMETA ID15 | AB1: SA8000 ID | AC1: SA8000 ID4 | AD1: SA8000 ID5 | AE1: SA8000 ID6 | AF1: SLCP ID | AG1: SLCP ID7 | AH1: SLCP ID8 | AI1: SMETA ID9 | AJ1: SMETA ID10 | AK1: SMETA ID102 | AL1: SMETA ID103 | AM1: SMETA ID104 | AN1: SMETA ID105 | AO1: SMETA ID106 | AP1: SMETA ID107 | AQ1: SMETA ID1072 | AR1: SMETA ID1073 | AS1: SMETA ID108 | AT1: SMETA ID11 | AU1: SA8000 ID12 | AV1: SA8000 ID13 | AW1: SA8000 ID14 | AX1: SA8000 ID15 | AY1: Special | AZ1: SLCP ID16 | BA1: SLCP ID17 | BB1: SLCP ID18 | BD1: FAC_8.5.2e | BF1: FAC_8.5.2e | BH1: FAC_8.5.2b
A2: 1 | B2: Bronze | C2: =INDEX('Certification Preparation'!G:G,MATCH(Table1[[#This Row],[C2C_Level]],'Certification Preparation'!H:H,0)) -> 1 | D2: 8.3 Assessing Risks & Opportunities | E2: =IF(Table1[[#This Row],[Column1]]<'Certification Preparation'!$G$10,"GAP","Covered") -> GAP | F2: =IF(AND('Certification Preparation'!$B$27="Yes",M2="Y",SUM(AI2:BB2)=0),"Covered","GAP") -> GAP | G2: =IF(AND('Certification Preparation'!$B$28="Yes",N2="Y",SUM(AI2:BB2)=0),"Covered","GAP") -> GAP | H2: =IF(AND('Certification Preparation'!$B$29="Yes",O2="Y",SUM(AI2:BB2)=0),"Covered","GAP") -> GAP | I2: 8.03.001 | J2: FAC_8.3.1 | K2: 0 | L2: Assess human rights risks and identify opportunities for improvement for the Applicant company, including all final manufacturing stage facilities, and tier 1 suppliers. (Note: Tier 1 suppliers are defined as suppliers to the final manufacturing stage, including in cases where the Applicant is using contract manufacturing.) | M2: Y | N2: Y | O2: N | P2: SMETA.11.1 | Q2: SMETA.11.11 | R2: SMETA.11.12 | AB2: SA8000.9.10.1a | AC2: SA8000.9.10.1b | AD2: SA8000.9.10.1c | AI2: =COUNTIF('Certification Preparation'!$B$32:$B$420,P2) -> 0 | AJ2: =COUNTIF('Certification Preparation'!$B$32:$B$420,Q2) -> 0 | AK2: =COUNTIF('Certification Preparation'!$B$32:$B$420,R2) -> 0 | AL2: =COUNTIF('Certification Preparation'!$B$32:$B$420,S2) -> 0 | AM2: =COUNTIF('Certification Preparation'!$B$32:$B$420,T2) -> 0 | AN2: =COUNTIF('Certification Preparation'!$B$32:$B$420,U2) -> 0 | AO2: =COUNTIF('Certification Preparation'!$B$32:$B$420,V2) -> 0 | AP2: =COUNTIF('Certification Preparation'!$B$32:$B$420,W2) -> 0 | AQ2: =COUNTIF('Certification Preparation'!$B$32:$B$420,X2) -> 0 | AR2: =COUNTIF('Certification Preparation'!$B$32:$B$420,Y2) -> 0 | AS2: =COUNTIF('Certification Preparation'!$B$32:$B$420,Z2) -> 0 | AT2: =COUNTIF('Certification Preparation'!$B$32:$B$420,AA2) -> 0 | AU2: =COUNTIF('Certification Preparation'!$B$32:$B$420,AB2) -> 0 | AV2: =COUNTIF('Certification Preparation'!$B$32:$B$420,AC2) -> 0 | AW2: =COUNTIF('Certification Preparation'!$B$32:$B$420,AD2) -> 0 | AX2: =COUNTIF('Certification Preparation'!$B$32:$B$420,AE2) -> 0 | AZ2: =COUNTIF('Certification Preparation'!$B$32:$B$420,AF2) -> 0 | BA2: =COUNTIF('Certification Preparation'!$B$32:$B$420,AG2) -> 0 | BB2: =COUNTIF('Certification Preparation'!$B$32:$B$420,AH2) -> 0 | BD2: SMETA.3.4.2 | BE2: =COUNTIF('Certification Preparation'!$B$32:$B$420,BD2) -> 0 | BF2: SLCP.HS-8.1 | BG2: =COUNTIF('Certification Preparation'!$B$32:$B$420,BF2) -> 0 | BH2: SLCP.MS-1.4 | BI2: =COUNTIF('Certification Preparation'!$B$32:$B$420,BH2) -> 0
A3: 2 | B3: Bronze | C3: =INDEX('Certification Preparation'!G:G,MATCH(Table1[[#This Row],[C2C_Level]],'Certification Preparation'!H:H,0)) -> 1 | D3: 8.3 Assessing Risks & Opportunities | E3: =IF(Table1[[#This Row],[Column1]]<'Certification Preparation'!$G$10,"GAP","Covered") -> GAP | F3: =IF(AND('Certification Preparation'!$B$27="Yes",M3="Y",SUM(AI3:BB3)=0),"Covered","GAP") -> GAP | G3: =IF(AND('Certification Preparation'!$B$28="Yes",N3="Y",SUM(AI3:BB3)=0),"Covered","GAP") -> GAP | H3: =IF(AND('Certification Preparation'!$B$29="Yes",O3="Y",SUM(AI3:BB3)=0),"Covered","GAP") -> GAP | I3: 8.03.002 | J3: DC_8.3.4 | K3: 1 | L3: For the Bronze level, the risk and opportunity assessment must include: | M3: N | N3: N | O3: N | AI3: =COUNTIF('Certification Preparation'!$B$32:$B$420,P3) -> 0 | AJ3: =COUNTIF('Certification Preparation'!$B$32:$B$420,Q3) -> 0 | AK3: =COUNTIF('Certification Preparation'!$B$32:$B$420,R3) -> 0 | AL3: =COUNTIF('Certification Preparation'!$B$32:$B$420,S3) -> 0 | AM3: =COUNTIF('Certification Preparation'!$B$32:$B$420,T3) -> 0 | AN3: =COUNTIF('Certification Preparation'!$B$32:$B$420,U3) -> 0 | AO3: =COUNTIF('Certification Preparation'!$B$32:$B$420,V3) -> 0 | AP3: =COUNTIF('Certification Preparation'!$B$32:$B$420,W3) -> 0 | AQ3: =COUNTIF('Certification Preparation'!$B$32:$B$420,X3) -> 0 | AR3: =COUNTIF('Certification Preparation'!$B$32:$B$420,Y3) -> 0 | AS3: =COUNTIF('Certification Preparation'!$B$32:$B$420,Z3) -> 0 | AT3: =COUNTIF('Certification Preparation'!$B$32:$B$420,AA3) -> 0 | AU3: =COUNTIF('Certification Preparation'!$B$32:$B$420,AB3) -> 0 | AV3: =COUNTIF('Certification Preparation'!$B$32:$B$420,AC3) -> 0 | AW3: =COUNTIF('Certification Preparation'!$B$32:$B$420,AD3) -> 0 | AX3: =COUNTIF('Certification Preparation'!$B$32:$B$420,AE3) -> 0 | AZ3: =COUNTIF('Certification Preparation'!$B$32:$B$420,AF3) -> 0 | BA3: =COUNTIF('Certification Preparation'!$B$32:$B$420,AG3) -> 0 | BB3: =COUNTIF('Certification Preparation'!$B$32:$B$420,AH3) -> 0 | BD3: SMETA.3.2.27 | BE3: =COUNTIF('Certification Preparation'!$B$32:$B$420,BD3) -> 0 | BF3: SLCP.HS-8.2 | BG3: =COUNTIF('Certification Preparation'!$B$32:$B$420,BF3) -> 0 | BH3: SLCP.FL-2 | BI3: =COUNTIF('Certification Preparation'!$B$32:$B$420,BH3) -> 0
A4: 3 | B4: Bronze | C4: =INDEX('Certification Preparation'!G:G,MATCH(Table1[[#This Row],[C2C_Level]],'Certification Preparation'!H:H,0)) -> 1 | D4: 8.3 Assessing Risks & Opportunities | E4: =IF(Table1[[#This Row],[Column1]]<'Certification Preparation'!$G$10,"GAP","Covered") -> GAP | F4: =IF(AND('Certification Preparation'!$B$27="Yes",M4="Y",SUM(AI4:BB4)=0),"Covered","GAP") -> GAP | G4: =IF(AND('Certification Preparation'!$B$28="Yes",N4="Y",SUM(AI4:BB4)=0),"Covered","GAP") -> GAP | H4: =IF(AND('Certification Preparation'!$B$29="Yes",O4="Y",SUM(AI4:BB4)=0),"Covered","GAP") -> GAP | I4: 8.03.003 | J4: FAC_8.3.5 | K4: 0 | L4: 1. A company level risk assessment based on conducting desk research, at a minimum, to identify: | M4: N | N4: Y | O4: Y | AB4: SA8000.9.10.1b | AF4: SLCP.MS-2 | AI4: =COUNTIF('Certification Preparation'!$B$32:$B$420,P4) -> 0 | AJ4: =COUNTIF('Certification Preparation'!$B$32:$B$420,Q4) -> 0 | AK4: =COUNTIF('Certification Preparation'!$B$32:$B$420,R4) -> 0 | AL4: =COUNTIF('Certification Preparation'!$B$32:$B$420,S4) -> 0 | AM4: =COUNTIF('Certification Preparation'!$B$32:$B$420,T4) -> 0 | AN4: =COUNTIF('Certification Preparation'!$B$32:$B$420,U4) -> 0 | AO4: =COUNTIF('Certification Preparation'!$B$32:$B$420,V4) -> 0 | AP4: =COUNTIF('Certification Preparation'!$B$32:$B$420,W4) -> 0 | AQ4: =COUNTIF('Certification Preparation'!$B$32:$B$420,X4) -> 0 | AR4: =COUNTIF('Certification Preparation'!$B$32:$B$420,Y4) -> 0 | AS4: =COUNTIF('Certification Preparation'!$B$32:$B$420,Z4) -> 0 | AT4: =COUNTIF('Certification Preparation'!$B$32:$B$420,AA4) -> 0 | AU4: =COUNTIF('Certification Preparation'!$B$32:$B$420,AB4) -> 0 | AV4: =COUNTIF('Certification Preparation'!$B$32:$B$420,AC4) -> 0 | AW4: =COUNTIF('Certification Preparation'!$B$32:$B$420,AD4) -> 0 | AX4: =COUNTIF('Certification Preparation'!$B$32:$B$420,AE4) -> 0 | AZ4: =COUNTIF('Certification Preparation'!$B$32:$B$420,AF4) -> 0 | BA4: =COUNTIF('Certification Preparation'!$B$32:$B$420,AG4) -> 0 | BB4: =COUNTIF('Certification Preparation'!$B$32:$B$420,AH4) -> 0 | BD4: SMETA.3.3.3 | BE4: =COUNTIF('Certification Preparation'!$B$32:$B$420,BD4) -> 0 | BF4: SLCP.HS-8.3 | BG4: =COUNTIF('Certification Preparation'!$B$32:$B$420,BF4) -> 0 | BH4: SLCP.FL-3.1 | BI4: =COUNTIF('Certification Preparation'!$B$32:$B$420,BH4) -> 0
A5: 4 | B5: Bronze | C5: =INDEX('Certification Preparation'!G:G,MATCH(Table1[[#This Row],[C2C_Level]],'Certification Preparation'!H:H,0)) -> 1 | D5: 8.3 Assessing Risks & Opportunities | E5: =IF(Table1[[#This Row],[Column1]]<'Certification Preparation'!$G$10,"GAP","Covered") -> GAP | F5: =IF(AND('Certification Preparation'!$B$27="Yes",M5="Y",SUM(AI5:BB5)=0),"Covered","GAP") -> GAP | G5: =IF(AND('Certification Preparation'!$B$28="Yes",N5="Y",SUM(AI5:BB5)=0),"Covered","GAP") -> GAP | H5: =IF(AND('Certification Preparation'!$B$29="Yes",O5="Y",SUM(AI5:BB5)=0),"Covered","GAP") -> GAP | I5: 8.03.004 | J5: FAC_8.3.5a | K5: 0 | L5: a. Known and likely human rights risks associated with the Applicant company’s own operations, final manufacturing stage facilities, the product’s supply chain, product cycling, relevant communities, potentially affected groups, and other relevant stakeholders. | M5: N | N5: Y | O5: Y | AB5: SA8000.9.10.1b | AF5: SLCP.MS-6 | AI5: =COUNTIF('Certification Preparation'!$B$32:$B$420,P5) -> 0 | AJ5: =COUNTIF('Certification Preparation'!$B$32:$B$420,Q5) -> 0 | AK5: =COUNTIF('Certification Preparation'!$B$32:$B$420,R5) -> 0 | AL5: =COUNTIF('Certification Preparation'!$B$32:$B$420,S5) -> 0 | AM5: =COUNTIF('Certification Preparation'!$B$32:$B$420,T5) -> 0 | AN5: =COUNTIF('Certification Preparation'!$B$32:$B$420,U5) -> 0 | AO5: =COUNTIF('Certification Preparation'!$B$32:$B$420,V5) -> 0 | AP5: =COUNTIF('Certification Preparation'!$B$32:$B$420,W5) -> 0 | AQ5: =COUNTIF('Certification Preparation'!$B$32:$B$420,X5) -> 0 | AR5: =COUNTIF('Certification Preparation'!$B$32:$B$420,Y5) -> 0 | AS5: =COUNTIF('Certification Preparation'!$B$32:$B$420,Z5) -> 0 | AT5: =COUNTIF('Certification Preparation'!$B$32:$B$420,AA5) -> 0 | AU5: =COUNTIF('Certification Preparation'!$B$32:$B$420,AB5) -> 0 | AV5: =COUNTIF('Certification Preparation'!$B$32:$B$420,AC5) -> 0 | AW5: =COUNTIF('Certification Preparation'!$B$32:$B$420,AD5) -> 0 | AX5: =COUNTIF('Certification Preparation'!$B$32:$B$420,AE5) -> 0 | AZ5: =COUNTIF('Certification Preparation'!$B$32:$B$420,AF5) -> 0 | BA5: =COUNTIF('Certification Preparation'!$B$32:$B$420,AG5) -> 0 | BB5: =COUNTIF('Certification Preparation'!$B$32:$B$420,AH5) -> 0 | BD5: SMETA.3.3.4 | BE5: =COUNTIF('Certification Preparation'!$B$32:$B$420,BD5) -> 0 | BF5: SLCP.HS-10 | BG5: =COUNTIF('Certification Preparation'!$B$32:$B$420,BF5) -> 0 | BH5: SLCP.FL-4 | BI5: =COUNTIF('Certification Preparation'!$B$32:$B$420,BH5) -> 0
A6: 5 | B6: Bronze | C6: =INDEX('Certification Preparation'!G:G,MATCH(Table1[[#This Row],[C2C_Level]],'Certification Preparation'!H:H,0)) -> 1 | D6: 8.3 Assessing Risks & Opportunities | E6: =IF(Table1[[#This Row],[Column1]]<'Certification Preparation'!$G$10,"GAP","Covered") -> GAP | F6: =IF(AND('Certification Preparation'!$B$27="Yes",M6="Y",SUM(AI6:BB6)=0),"Covered","GAP") -> GAP | G6: =IF(AND('Certification Preparation'!$B$28="Yes",N6="Y",SUM(AI6:BB6)=0),"Covered","GAP") -> GAP | H6: =IF(AND('Certification Preparation'!$B$29="Yes",O6="Y",SUM(AI6:BB6)=0),"Covered","GAP") -> GAP | I6: 8.03.005 | J6: FAC_8.3.5b | K6: 0 | L6: b. Well-known risks associated with the Applicant’s industry/sector and country(ies) of operation. | M6: N | N6: Y | O6: N | AB6: SA8000.9.10.1b | AI6: =COUNTIF('Certification Preparation'!$B$32:$B$420,P6) -> 0 | AJ6: =COUNTIF('Certification Preparation'!$B$32:$B$420,Q6) -> 0 | AK6: =COUNTIF('Certification Preparation'!$B$32:$B$420,R6) -> 0 | AL6: =COUNTIF('Certification Preparation'!$B$32:$B$420,S6) -> 0 | AM6: =COUNTIF('Certification Preparation'!$B$32:$B$420,T6) -> 0 | AN6: =COUNTIF('Certification Preparation'!$B$32:$B$420,U6) -> 0 | AO6: =COUNTIF('Certification Preparation'!$B$32:$B$420,V6) -> 0 | AP6: =COUNTIF('Certification Preparation'!$B$32:$B$420,W6) -> 0 | AQ6: =COUNTIF('Certification Preparation'!$B$32:$B$420,X6) -> 0 | AR6: =COUNTIF('Certification Preparation'!$B$32:$B$420,Y6) -> 0 | AS6: =COUNTIF('Certification Preparation'!$B$32:$B$420,Z6) -> 0 | AT6: =COUNTIF('Certification Preparation'!$B$32:$B$420,AA6) -> 0 | AU6: =COUNTIF('Certification Preparation'!$B$32:$B$420,AB6) -> 0 | AV6: =COUNTIF('Certification Preparation'!$B$32:$B$420,AC6) -> 0 | AW6: =COUNTIF('Certification Preparation'!$B$32:$B$420,AD6) -> 0 | AX6: =COUNTIF('Certification Preparation'!$B$32:$B$420,AE6) -> 0 | AZ6: =COUNTIF('Certification Preparation'!$B$32:$B$420,AF6) -> 0 | BA6: =COUNTIF('Certification Preparation'!$B$32:$B$420,AG6) -> 0 | BB6: =COUNTIF('Certification Preparation'!$B$32:$B$420,AH6) -> 0 | BD6: SMETA.3.3.9 | BE6: =COUNTIF('Certification Preparation'!$B$32:$B$420,BD6) -> 0 | BF6: SLCP.HS-11.1 | BG6: =COUNTIF('Certification Preparation'!$B$32:$B$420,BF6) -> 0 | BH6: SLCP.FL-5 | BI6: =COUNTIF('Certification Preparation'!$B$32:$B$420,BH6) -> 0
A7: 6 | B7: Bronze | C7: =INDEX('Certification Preparation'!G:G,MATCH(Table1[[#This Row],[C2C_Level]],'Certification Preparation'!H:H,0)) -> 1 | D7: 8.3 Assessing Risks & Opportunities | E7: =IF(Table1[[#This Row],[Column1]]<'Certification Preparation'!$G$10,"GAP","Covered") -> GAP | F7: =IF(AND('Certification Preparation'!$B$27="Yes",M7="Y",SUM(AI7:BB7)=0),"Covered","GAP") -> GAP | G7: =IF(AND('Certification Preparation'!$B$28="Yes",N7="Y",SUM(AI7:BB7)=0),"Covered","GAP") -> GAP | H7: =IF(AND('Certification Preparation'!$B$29="Yes",O7="Y",SUM(AI7:BB7)=0),"Covered","GAP") -> GAP | I7: 8.03.006 | J7: FAC_8.3.6 | K7: 0 | L7: 2. A tier 1 supplier risk assessment based on knowledge of supplier industry/sector and locations to identify high-risk supplier facilities including those in: Note: tier 1 suppliers in scope for this portion of the risk assessment are direct suppliers to the final manufacturing stage of the certified product(s). | M7: N | N7: Y | O7: N | AB7: SA8000.9.10.1b | AI7: =COUNTIF('Certification Preparation'!$B$32:$B$420,P7) -> 0 | AJ7: =COUNTIF('Certification Preparation'!$B$32:$B$420,Q7) -> 0 | AK7: =COUNTIF('Certification Preparation'!$B$32:$B$420,R7) -> 0 | AL7: =COUNTIF('Certification Preparation'!$B$32:$B$420,S7) -> 0 | AM7: =COUNTIF('Certification Preparation'!$B$32:$B$420,T7) -> 0 | AN7: =COUNTIF('Certification Preparation'!$B$32:$B$420,U7) -> 0 | AO7: =COUNTIF('Certification Preparation'!$B$32:$B$420,V7) -> 0 | AP7: =COUNTIF('Certification Preparation'!$B$32:$B$420,W7) -> 0 | AQ7: =COUNTIF('Certification Preparation'!$B$32:$B$420,X7) -> 0 | AR7: =COUNTIF('Certification Preparation'!$B$32:$B$420,Y7) -> 0 | AS7: =COUNTIF('Certification Preparation'!$B$32:$B$420,Z7) -> 0 | AT7: =COUNTIF('Certification Preparation'!$B$32:$B$420,AA7) -> 0 | AU7: =COUNTIF('Certification Preparation'!$B$32:$B$420,AB7) -> 0 | AV7: =COUNTIF('Certification Preparation'!$B$32:$B$420,AC7) -> 0 | AW7: =COUNTIF('Certification Preparation'!$B$32:$B$420,AD7) -> 0 | AX7: =COUNTIF('Certification Preparation'!$B$32:$B$420,AE7) -> 0 | AZ7: =COUNTIF('Certification Preparation'!$B$32:$B$420,AF7) -> 0 | BA7: =COUNTIF('Certification Preparation'!$B$32:$B$420,AG7) -> 0 | BB7: =COUNTIF('Certification Preparation'!$B$32:$B$420,AH7) -> 0 | BD7: SMETA.3.3.4 | BE7: =COUNTIF('Certification Preparation'!$B$32:$B$420,BD7) -> 0 | BF7: SLCP.HS-18.1 | BG7: =COUNTIF('Certification Preparation'!$B$32:$B$420,BF7) -> 0 | BH7: SLCP.EP-4 | BI7: =COUNTIF('Certification Preparation'!$B$32:$B$420,BH7) -> 0
A8: 7 | B8: Bronze | C8: =INDEX('Certification Preparation'!G:G,MATCH(Table1[[#This Row],[C2C_Level]],'Certification Preparation'!H:H,0)) -> 1 | D8: 8.3 Assessing Risks & Opportunities | E8: =IF(Table1[[#This Row],[Column1]]<'Certification Preparation'!$G$10,"GAP","Covered") -> GAP | F8: =IF(AND('Certification Preparation'!$B$27="Yes",M8="Y",SUM(AI8:BB8)=0),"Covered","GAP") -> GAP | G8: =IF(AND('Certification Preparation'!$B$28="Yes",N8="Y",SUM(AI8:BB8)=0),"Covered","GAP") -> GAP | H8: =IF(AND('Certification Preparation'!$B$29="Yes",O8="Y",SUM(AI8:BB8)=0),"Covered","GAP") -> GAP | I8: 8.03.007 | J8: FAC_8.3.6a | K8: 0 | L8: a. Industries/sectors associated with a high-risk of human rights violations or other negative human rights impacts, | M8: N | N8: Y | O8: N | AB8: SA8000.9.10.1b | AI8: =COUNTIF('Certification Preparation'!$B$32:$B$420,P8) -> 0 | AJ8: =COUNTIF('Certification Preparation'!$B$32:$B$420,Q8) -> 0 | AK8: =COUNTIF('Certification Preparation'!$B$32:$B$420,R8) -> 0 | AL8: =COUNTIF('Certification Preparation'!$B$32:$B$420,S8) -> 0 | AM8: =COUNTIF('Certification Preparation'!$B$32:$B$420,T8) -> 0 | AN8: =COUNTIF('Certification Preparation'!$B$32:$B$420,U8) -> 0 | AO8: =COUNTIF('Certification Preparation'!$B$32:$B$420,V8) -> 0 | AP8: =COUNTIF('Certification Preparation'!$B$32:$B$420,W8) -> 0 | AQ8: =COUNTIF('Certification Preparation'!$B$32:$B$420,X8) -> 0 | AR8: =COUNTIF('Certification Preparation'!$B$32:$B$420,Y8) -> 0 | AS8: =COUNTIF('Certification Preparation'!$B$32:$B$420,Z8) -> 0 | AT8: =COUNTIF('Certification Preparation'!$B$32:$B$420,AA8) -> 0 | AU8: =COUNTIF('Certification Preparation'!$B$32:$B$420,AB8) -> 0 | AV8: =COUNTIF('Certification Preparation'!$B$32:$B$420,AC8) -> 0 | AW8: =COUNTIF('Certification Preparation'!$B$32:$B$420,AD8) -> 0 | AX8: =COUNTIF('Certification Preparation'!$B$32:$B$420,AE8) -> 0 | AZ8: =COUNTIF('Certification Preparation'!$B$32:$B$420,AF8) -> 0 | BA8: =COUNTIF('Certification Preparation'!$B$32:$B$420,AG8) -> 0 | BB8: =COUNTIF('Certification Preparation'!$B$32:$B$420,AH8) -> 0 | BD8: SMETA.3.4.3 | BE8: =COUNTIF('Certification Preparation'!$B$32:$B$420,BD8) -> 0 | BF8: SLCP.HS-19.3 | BG8: =COUNTIF('Certification Preparation'!$B$32:$B$420,BF8) -> 0 | BH8: SLCP.EP-4.2 | BI8: =COUNTIF('Certification Preparation'!$B$32:$B$420,BH8) -> 0
A9: 8 | B9: Bronze | C9: =INDEX('Certification Preparation'!G:G,MATCH(Table1[[#This Row],[C2C_Level]],'Certification Preparation'!H:H,0)) -> 1 | D9: 8.3 Assessing Risks & Opportunities | E9: =IF(Table1[[#This Row],[Column1]]<'Certification Preparation'!$G$10,"GAP","Covered") -> GAP | F9: =IF(AND('Certification Preparation'!$B$27="Yes",M9="Y",SUM(AI9:BB9)=0),"Covered","GAP") -> GAP | G9: =IF(AND('Certification Preparation'!$B$28="Yes",N9="Y",SUM(AI9:BB9)=0),"Covered","GAP") -> GAP | H9: =IF(AND('Certification Preparation'!$B$29="Yes",O9="Y",SUM(AI9:BB9)=0),"Covered","GAP") -> GAP | I9: 8.03.008 | J9: FAC_8.3.6b | K9: 0 | L9: b. Locations that are reputed to have conflict, corruption, widespread human rights violations, and/or weak governance. | M9: N | N9: N | O9: N | AI9: =COUNTIF('Certification Preparation'!$B$32:$B$420,P9) -> 0 | AJ9: =COUNTIF('Certification Preparation'!$B$32:$B$420,Q9) -> 0 | AK9: =COUNTIF('Certification Preparation'!$B$32:$B$420,R9) -> 0 | AL9: =COUNTIF('Certification Preparation'!$B$32:$B$420,S9) -> 0 | AM9: =COUNTIF('Certification Preparation'!$B$32:$B$420,T9) -> 0 | AN9: =COUNTIF('Certification Preparation'!$B$32:$B$420,U9) -> 0 | AO9: =COUNTIF('Certification Preparation'!$B$32:$B$420,V9) -> 0 | AP9: =COUNTIF('Certification Preparation'!$B$32:$B$420,W9) -> 0 | AQ9: =COUNTIF('Certification Preparation'!$B$32:$B$420,X9) -> 0 | AR9: =COUNTIF('Certification Preparation'!$B$32:$B$420,Y9) -> 0 | AS9: =COUNTIF('Certification Preparation'!$B$32:$B$420,Z9) -> 0 | AT9: =COUNTIF('Certification Preparation'!$B$32:$B$420,AA9) -> 0 | AU9: =COUNTIF('Certification Preparation'!$B$32:$B$420,AB9) -> 0 | AV9: =COUNTIF('Certification Preparation'!$B$32:$B$420,AC9) -> 0 | AW9: =COUNTIF('Certification Preparation'!$B$32:$B$420,AD9) -> 0 | AX9: =COUNTIF('Certification Preparation'!$B$32:$B$420,AE9) -> 0 | AZ9: =COUNTIF('Certification Preparation'!$B$32:$B$420,AF9) -> 0 | BA9: =COUNTIF('Certification Preparation'!$B$32:$B$420,AG9) -> 0 | BB9: =COUNTIF('Certification Preparation'!$B$32:$B$420,AH9) -> 0 | BD9: SMETA.3.4.4 | BE9: =COUNTIF('Certification Preparation'!$B$32:$B$420,BD9) -> 0 | BF9: SLCP.HS-19.4 | BG9: =COUNTIF('Certification Preparation'!$B$32:$B$420,BF9) -> 0 | BH9: SLCP.FL-9 | BI9: =COUNTIF('Certification Preparation'!$B$32:$B$420,BH9) -> 0
A10: 9 | B10: Bronze | C10: =INDEX('Certification Preparation'!G:G,MATCH(Table1[[#This Row],[C2C_Level]],'Certification Preparation'!H:H,0)) -> 1 | D10: 8.3 Assessing Risks & Opportunities | E10: =IF(Table1[[#This Row],[Column1]]<'Certification Preparation'!$G$10,"GAP","Covered") -> GAP | F10: =IF(AND('Certification Preparation'!$B$27="Yes",M10="Y",SUM(AI10:BB10)=0),"Covered","GAP") -> GAP | G10: =IF(AND('Certification Preparation'!$B$28="Yes",N10="Y",SUM(AI10:BB10)=0),"Covered","GAP") -> GAP | H10: =IF(AND('Certification Preparation'!$B$29="Yes",O10="Y",SUM(AI10:BB10)=0),"Covered","GAP") -> GAP | I10: 8.03.009 | J10: FAC_8.3.6c | K10: 0 | L10: c. De facto high-risk locations, defined as countries that fall below the 65% percentile when taking an average of the six World Bank Worldwide Governance Indicators. | M10: N | N10: N | O10: N | AI10: =COUNTIF('Certification Preparation'!$B$32:$B$420,P10) -> 0 | AJ10: =COUNTIF('Certification Preparation'!$B$32:$B$420,Q10) -> 0 | AK10: =COUNTIF('Certification Preparation'!$B$32:$B$420,R10) -> 0 | AL10: =COUNTIF('Certification Preparation'!$B$32:$B$420,S10) -> 0 | AM10: =COUNTIF('Certification Preparation'!$B$32:$B$420,T10) -> 0 | AN10: =COUNTIF('Certification Preparation'!$B$32:$B$420,U10) -> 0 | AO10: =COUNTIF('Certification Preparation'!$B$32:$B$420,V10) -> 0 | AP10: =COUNTIF('Certification Preparation'!$B$32:$B$420,W10) -> 0 | AQ10: =COUNTIF('Certification Preparation'!$B$32:$B$420,X10) -> 0 | AR10: =COUNTIF('Certification Preparation'!$B$32:$B$420,Y10) -> 0 | AS10: =COUNTIF('Certification Preparation'!$B$32:$B$420,Z10) -> 0 | AT10: =COUNTIF('Certification Preparation'!$B$32:$B$420,AA10) -> 0 | AU10: =COUNTIF('Certification Preparation'!$B$32:$B$420,AB10) -> 0 | AV10: =COUNTIF('Certification Preparation'!$B$32:$B$420,AC10) -> 0 | AW10: =COUNTIF('Certification Preparation'!$B$32:$B$420,AD10) -> 0 | AX10: =COUNTIF('Certification Preparation'!$B$32:$B$420,AE10) -> 0 | AZ10: =COUNTIF('Certification Preparation'!$B$32:$B$420,AF10) -> 0 | BA10: =COUNTIF('Certification Preparation'!$B$32:$B$420,AG10) -> 0 | BB10: =COUNTIF('Certification Preparation'!$B$32:$B$420,AH10) -> 0 | BD10: SMETA.3.4.5 | BE10: =COUNTIF('Certification Preparation'!$B$32:$B$420,BD10) -> 0 | BF10: SLCP.HS-19.5 | BG10: =COUNTIF('Certification Preparation'!$B$32:$B$420,BF10) -> 0 | BH10: SLCP.FL-9.3 | BI10: =COUNTIF('Certification Preparation'!$B$32:$B$420,BH10) -> 0
A11: 10 | B11: Bronze | C11: =INDEX('Certification Preparation'!G:G,MATCH(Table1[[#This Row],[C2C_Level]],'Certification Preparation'!H:H,0)) -> 1 | D11: 8.3 Assessing Risks & Opportunities | E11: =IF(Table1[[#This Row],[Column1]]<'Certification Preparation'!$G$10,"GAP","Covered") -> GAP | F11: =IF(AND('Certification Preparation'!$B$27="Yes",M11="Y",SUM(AI11:BB11)=0),"Covered","GAP") -> GAP | G11: =IF(AND('Certification Preparation'!$B$28="Yes",N11="Y",SUM(AI11:BB11)=0),"Covered","GAP") -> GAP | H11: =IF(AND('Certification Preparation'!$B$29="Yes",O11="Y",SUM(AI11:BB11)=0),"Covered","GAP") -> GAP | I11: 8.03.010 | J11: FAC_8.3.7 | K11: 0 | L11: 3. Identification of human rights due diligence best practices to address the risks. | M11: N | N11: Y | O11: N | AB11: SA8000.9.10.1c | AI11: =COUNTIF('Certification Preparation'!$B$32:$B$420,P11) -> 0 | AJ11: =COUNTIF('Certification Preparation'!$B$32:$B$420,Q11) -> 0 | AK11: =COUNTIF('Certification Preparation'!$B$32:$B$420,R11) -> 0 | AL11: =COUNTIF('Certification Preparation'!$B$32:$B$420,S11) -> 0 | AM11: =COUNTIF('Certification Preparation'!$B$32:$B$420,T11) -> 0 | AN11: =COUNTIF('Certification Preparation'!$B$32:$B$420,U11) -> 0 | AO11: =COUNTIF('Certification Preparation'!$B$32:$B$420,V11) -> 0 | AP11: =COUNTIF('Certification Preparation'!$B$32:$B$420,W11) -> 0 | AQ11: =COUNTIF('Certification Preparation'!$B$32:$B$420,X11) -> 0 | AR11: =COUNTIF('Certification Preparation'!$B$32:$B$420,Y11) -> 0 | AS11: =COUNTIF('Certification Preparation'!$B$32:$B$420,Z11) -> 0 | AT11: =COUNTIF('Certification Preparation'!$B$32:$B$420,AA11) -> 0 | AU11: =COUNTIF('Certification Preparation'!$B$32:$B$420,AB11) -> 0 | AV11: =COUNTIF('Certification Preparation'!$B$32:$B$420,AC11) -> 0 | AW11: =COUNTIF('Certification Preparation'!$B$32:$B$420,AD11) -> 0 | AX11: =COUNTIF('Certification Preparation'!$B$32:$B$420,AE11) -> 0 | AZ11: =COUNTIF('Certification Preparation'!$B$32:$B$420,AF11) -> 0 | BA11: =COUNTIF('Certification Preparation'!$B$32:$B$420,AG11) -> 0 | BB11: =COUNTIF('Certification Preparation'!$B$32:$B$420,AH11) -> 0 | BD11: SMETA.3.4.6 | BE11: =COUNTIF('Certification Preparation'!$B$32:$B$420,BD11) -> 0 | BF11: SLCP.HS-20 | BG11: =COUNTIF('Certification Preparation'!$B$32:$B$420,BF11) -> 0 | BH11: SLCP.FL-12 | BI11: =COUNTIF('Certification Preparation'!$B$32:$B$420,BH11) -> 0
A12: 11 | B12: Bronze | C12: =INDEX('Certification Preparation'!G:G,MATCH(Table1[[#This Row],[C2C_Level]],'Certification Preparation'!H:H,0)) -> 1 | D12: 8.3 Assessing Risks & Opportunities | E12: =IF(Table1[[#This Row],[Column1]]<'Certification Preparation'!$G$10,"GAP","Covered") -> GAP | F12: =IF(AND('Certification Preparation'!$B$27="Yes",M12="Y",SUM(AI12:BB12)=0),"Covered","GAP") -> GAP | G12: =IF(AND('Certification Preparation'!$B$28="Yes",N12="Y",SUM(AI12:BB12)=0),"Covered","GAP") -> GAP | H12: =IF(AND('Certification Preparation'!$B$29="Yes",O12="Y",SUM(AI12:BB12)=0),"Covered","GAP") -> GAP | I12: 8.03.011 | J12: FAC_8.3.8 | K12: 0 | L12: 4. Information regarding the impact and importance of identified risks as defined by affected stakeholders, including employees of the Applicant company. | M12: N | N12: Y | O12: N | AB12: SA8000.9.10.1b | AI12: =COUNTIF('Certification Preparation'!$B$32:$B$420,P12) -> 0 | AJ12: =COUNTIF('Certification Preparation'!$B$32:$B$420,Q12) -> 0 | AK12: =COUNTIF('Certification Preparation'!$B$32:$B$420,R12) -> 0 | AL12: =COUNTIF('Certification Preparation'!$B$32:$B$420,S12) -> 0 | AM12: =COUNTIF('Certification Preparation'!$B$32:$B$420,T12) -> 0 | AN12: =COUNTIF('Certification Preparation'!$B$32:$B$420,U12) -> 0 | AO12: =COUNTIF('Certification Preparation'!$B$32:$B$420,V12) -> 0 | AP12: =COUNTIF('Certification Preparation'!$B$32:$B$420,W12) -> 0 | AQ12: =COUNTIF('Certification Preparation'!$B$32:$B$420,X12) -> 0 | AR12: =COUNTIF('Certification Preparation'!$B$32:$B$420,Y12) -> 0 | AS12: =COUNTIF('Certification Preparation'!$B$32:$B$420,Z12) -> 0 | AT12: =COUNTIF('Certification Preparation'!$B$32:$B$420,AA12) -> 0 | AU12: =COUNTIF('Certification Preparation'!$B$32:$B$420,AB12) -> 0 | AV12: =COUNTIF('Certification Preparation'!$B$32:$B$420,AC12) -> 0 | AW12: =COUNTIF('Certification Preparation'!$B$32:$B$420,AD12) -> 0 | AX12: =COUNTIF('Certification Preparation'!$B$32:$B$420,AE12) -> 0 | AZ12: =COUNTIF('Certification Preparation'!$B$32:$B$420,AF12) -> 0 | BA12: =COUNTIF('Certification Preparation'!$B$32:$B$420,AG12) -> 0 | BB12: =COUNTIF('Certification Preparation'!$B$32:$B$420,AH12) -> 0 | BD12: SMETA.3.4.7 | BE12: =COUNTIF('Certification Preparation'!$B$32:$B$420,BD12) -> 0 | BF12: SLCP.HS-20.3 | BG12: =COUNTIF('Certification Preparation'!$B$32:$B$420,BF12) -> 0 | BH12: SLCP.FL-13 | BI12: =COUNTIF('Certification Preparation'!$B$32:$B$420,BH12) -> 0
A13: 12 | B13: Bronze | C13: =INDEX('Certification Preparation'!G:G,MATCH(Table1[[#This Row],[C2C_Level]],'Certification Preparation'!H:H,0)) -> 1 | D13: 8.3 Assessing Risks & Opportunities | E13: =IF(Table1[[#This Row],[Column1]]<'Certification Preparation'!$G$10,"GAP","Covered") -> GAP | F13: =IF(AND('Certification Preparation'!$B$27="Yes",M13="Y",SUM(AI13:BB13)=0),"Covered","GAP") -> GAP | G13: =IF(AND('Certification Preparation'!$B$28="Yes",N13="Y",SUM(AI13:BB13)=0),"Covered","GAP") -> GAP | H13: =IF(AND('Certification Preparation'!$B$29="Yes",O13="Y",SUM(AI13:BB13)=0),"Covered","GAP") -> GAP | I13: 8.03.012 | J13: FAC_8.3.9 | K13: 0 | L13: 5. Prioritization of the risks and opportunities for improvement identified. At a minimum, the following must be prioritized: | M13: N | N13: Y | O13: N | AB13: SA8000.9.10.1b | AI13: =COUNTIF('Certification Preparation'!$B$32:$B$420,P13) -> 0 | AJ13: =COUNTIF('Certification Preparation'!$B$32:$B$420,Q13) -> 0 | AK13: =COUNTIF('Certification Preparation'!$B$32:$B$420,R13) -> 0 | AL13: =COUNTIF('Certification Preparation'!$B$32:$B$420,S13) -> 0 | AM13: =COUNTIF('Certification Preparation'!$B$32:$B$420,T13) -> 0 | AN13: =COUNTIF('Certification Preparation'!$B$32:$B$420,U13) -> 0 | AO13: =COUNTIF('Certification Preparation'!$B$32:$B$420,V13) -> 0 | AP13: =COUNTIF('Certification Preparation'!$B$32:$B$420,W13) -> 0 | AQ13: =COUNTIF('Certification Preparation'!$B$32:$B$420,X13) -> 0 | AR13: =COUNTIF('Certification Preparation'!$B$32:$B$420,Y13) -> 0 | AS13: =COUNTIF('Certification Preparation'!$B$32:$B$420,Z13) -> 0 | AT13: =COUNTIF('Certification Preparation'!$B$32:$B$420,AA13) -> 0 | AU13: =COUNTIF('Certification Preparation'!$B$32:$B$420,AB13) -> 0 | AV13: =COUNTIF('Certification Preparation'!$B$32:$B$420,AC13) -> 0 | AW13: =COUNTIF('Certification Preparation'!$B$32:$B$420,AD13) -> 0 | AX13: =COUNTIF('Certification Preparation'!$B$32:$B$420,AE13) -> 0 | AZ13: =COUNTIF('Certification Preparation'!$B$32:$B$420,AF13) -> 0 | BA13: =COUNTIF('Certification Preparation'!$B$32:$B$420,AG13) -> 0 | BB13: =COUNTIF('Certification Preparation'!$B$32:$B$420,AH13) -> 0 | BD13: SMETA.3.4.8 | BE13: =COUNTIF('Certification Preparation'!$B$32:$B$420,BD13) -> 0 | BF13: SLCP.HS-20.5 | BG13: =COUNTIF('Certification Preparation'!$B$32:$B$420,BF13) -> 0 | BH13: SLCP.FL-14 | BI13: =COUNTIF('Certification Preparation'!$B$32:$B$420,BH13) -> 0
A14: 13 | B14: Bronze | C14: =INDEX('Certification Preparation'!G:G,MATCH(Table1[[#This Row],[C2C_Level]],'Certification Preparation'!H:H,0)) -> 1 | D14: 8.3 Assessing Risks & Opportunities | E14: =IF(Table1[[#This Row],[Column1]]<'Certification Preparation'!$G$10,"GAP","Covered") -> GAP | F14: =IF(AND('Certification Preparation'!$B$27="Yes",M14="Y",SUM(AI14:BB14)=0),"Covered","GAP") -> GAP | G14: =IF(AND('Certification Preparation'!$B$28="Yes",N14="Y",SUM(AI14:BB14)=0),"Covered","GAP") -> GAP | H14: =IF(AND('Certification Preparation'!$B$29="Yes",O14="Y",SUM(AI14:BB14)=0),"Covered","GAP") -> GAP | I14: 8.03.013 | J14: FAC_8.3.9a | K14: 0 | L14: a. Well-known industry risks, | M14: N | N14: N | O14: N | AI14: =COUNTIF('Certification Preparation'!$B$32:$B$420,P14) -> 0 | AJ14: =COUNTIF('Certification Preparation'!$B$32:$B$420,Q14) -> 0 | AK14: =COUNTIF('Certification Preparation'!$B$32:$B$420,R14) -> 0 | AL14: =COUNTIF('Certification Preparation'!$B$32:$B$420,S14) -> 0 | AM14: =COUNTIF('Certification Preparation'!$B$32:$B$420,T14) -> 0 | AN14: =COUNTIF('Certification Preparation'!$B$32:$B$420,U14) -> 0 | AO14: =COUNTIF('Certification Preparation'!$B$32:$B$420,V14) -> 0 | AP14: =COUNTIF('Certification Preparation'!$B$32:$B$420,W14) -> 0 | AQ14: =COUNTIF('Certification Preparation'!$B$32:$B$420,X14) -> 0 | AR14: =COUNTIF('Certification Preparation'!$B$32:$B$420,Y14) -> 0 | AS14: =COUNTIF('Certification Preparation'!$B$32:$B$420,Z14) -> 0 | AT14: =COUNTIF('Certification Preparation'!$B$32:$B$420,AA14) -> 0 | AU14: =COUNTIF('Certification Preparation'!$B$32:$B$420,AB14) -> 0 | AV14: =COUNTIF('Certification Preparation'!$B$32:$B$420,AC14) -> 0 | AW14: =COUNTIF('Certification Preparation'!$B$32:$B$420,AD14) -> 0 | AX14: =COUNTIF('Certification Preparation'!$B$32:$B$420,AE14) -> 0 | AZ14: =COUNTIF('Certification Preparation'!$B$32:$B$420,AF14) -> 0 | BA14: =COUNTIF('Certification Preparation'!$B$32:$B$420,AG14) -> 0 | BB14: =COUNTIF('Certification Preparation'!$B$32:$B$420,AH14) -> 0 | BD14: SMETA.3.4.10 | BE14: =COUNTIF('Certification Preparation'!$B$32:$B$420,BD14) -> 0 | BF14: SLCP.HS-20.6 | BG14: =COUNTIF('Certification Preparation'!$B$32:$B$420,BF14) -> 0 | BH14: SLCP.FL-14.1 | BI14: =COUNTIF('Certification Preparation'!$B$32:$B$420,BH14) -> 0
A15: 14 | B15: Bronze | C15: =INDEX('Certification Preparation'!G:G,MATCH(Table1[[#This Row],[C2C_Level]],'Certification Preparation'!H:H,0)) -> 1 | D15: 8.3 Assessing Risks & Opportunities | E15: =IF(Table1[[#This Row],[Column1]]<'Certification Preparation'!$G$10,"GAP","Covered") -> GAP | F15: =IF(AND('Certification Preparation'!$B$27="Yes",M15="Y",SUM(AI15:BB15)=0),"Covered","GAP") -> GAP | G15: =IF(AND('Certification Preparation'!$B$28="Yes",N15="Y",SUM(AI15:BB15)=0),"Covered","GAP") -> GAP | H15: =IF(AND('Certification Preparation'!$B$29="Yes",O15="Y",SUM(AI15:BB15)=0),"Covered","GAP") -> GAP | I15: 8.03.014 | J15: FAC_8.3.9b | K15: 0 | L15: b. Human rights violations, and | M15: N | N15: N | O15: N | AI15: =COUNTIF('Certification Preparation'!$B$32:$B$420,P15) -> 0 | AJ15: =COUNTIF('Certification Preparation'!$B$32:$B$420,Q15) -> 0 | AK15: =COUNTIF('Certification Preparation'!$B$32:$B$420,R15) -> 0 | AL15: =COUNTIF('Certification Preparation'!$B$32:$B$420,S15) -> 0 | AM15: =COUNTIF('Certification Preparation'!$B$32:$B$420,T15) -> 0 | AN15: =COUNTIF('Certification Preparation'!$B$32:$B$420,U15) -> 0 | AO15: =COUNTIF('Certification Preparation'!$B$32:$B$420,V15) -> 0 | AP15: =COUNTIF('Certification Preparation'!$B$32:$B$420,W15) -> 0 | AQ15: =COUNTIF('Certification Preparation'!$B$32:$B$420,X15) -> 0 | AR15: =COUNTIF('Certification Preparation'!$B$32:$B$420,Y15) -> 0 | AS15: =COUNTIF('Certification Preparation'!$B$32:$B$420,Z15) -> 0 | AT15: =COUNTIF('Certification Preparation'!$B$32:$B$420,AA15) -> 0 | AU15: =COUNTIF('Certification Preparation'!$B$32:$B$420,AB15) -> 0 | AV15: =COUNTIF('Certification Preparation'!$B$32:$B$420,AC15) -> 0 | AW15: =COUNTIF('Certification Preparation'!$B$32:$B$420,AD15) -> 0 | AX15: =COUNTIF('Certification Preparation'!$B$32:$B$420,AE15) -> 0 | AZ15: =COUNTIF('Certification Preparation'!$B$32:$B$420,AF15) -> 0 | BA15: =COUNTIF('Certification Preparation'!$B$32:$B$420,AG15) -> 0 | BB15: =COUNTIF('Certification Preparation'!$B$32:$B$420,AH15) -> 0 | BD15: SMETA.3.4.11 | BE15: =COUNTIF('Certification Preparation'!$B$32:$B$420,BD15) -> 0 | BF15: SLCP.HS-22 | BG15: =COUNTIF('Certification Preparation'!$B$32:$B$420,BF15) -> 0 | BH15: SLCP.FL-15 | BI15: =COUNTIF('Certification Preparation'!$B$32:$B$420,BH15) -> 0
A16: 15 | B16: Bronze | C16: =INDEX('Certification Preparation'!G:G,MATCH(Table1[[#This Row],[C2C_Level]],'Certification Preparation'!H:H,0)) -> 1 | D16: 8.3 Assessing Risks & Opportunities | E16: =IF(Table1[[#This Row],[Column1]]<'Certification Preparation'!$G$10,"GAP","Covered") -> GAP | F16: =IF(AND('Certification Preparation'!$B$27="Yes",M16="Y",SUM(AI16:BB16)=0),"Covered","GAP") -> GAP | G16: =IF(AND('Certification Preparation'!$B$28="Yes",N16="Y",SUM(AI16:BB16)=0),"Covered","GAP") -> GAP | H16: =IF(AND('Certification Preparation'!$B$29="Yes",O16="Y",SUM(AI16:BB16)=0),"Covered","GAP") -> GAP | I16: 8.03.015 | J16: FAC_8.3.9c | K16: 0 | L16: c. Issues where the Applicant has substantial leverage to make improvements. | M16: N | N16: Y | O16: N | AB16: SA8000.9.10.1a | AC16: SA8000.9.10.1b | AD16: SA8000.9.10.1c | AE16: SA8000.9.10.1d | AI16: =COUNTIF('Certification Preparation'!$B$32:$B$420,P16) -> 0 | AJ16: =COUNTIF('Certification Preparation'!$B$32:$B$420,Q16) -> 0 | AK16: =COUNTIF('Certification Preparation'!$B$32:$B$420,R16) -> 0 | AL16: =COUNTIF('Certification Preparation'!$B$32:$B$420,S16) -> 0 | AM16: =COUNTIF('Certification Preparation'!$B$32:$B$420,T16) -> 0 | AN16: =COUNTIF('Certification Preparation'!$B$32:$B$420,U16) -> 0 | AO16: =COUNTIF('Certification Preparation'!$B$32:$B$420,V16) -> 0 | AP16: =COUNTIF('Certification Preparation'!$B$32:$B$420,W16) -> 0 | AQ16: =COUNTIF('Certification Preparation'!$B$32:$B$420,X16) -> 0 | AR16: =COUNTIF('Certification Preparation'!$B$32:$B$420,Y16) -> 0 | AS16: =COUNTIF('Certification Preparation'!$B$32:$B$420,Z16) -> 0 | AT16: =COUNTIF('Certification Preparation'!$B$32:$B$420,AA16) -> 0 | AU16: =COUNTIF('Certification Preparation'!$B$32:$B$420,AB16) -> 0 | AV16: =COUNTIF('Certification Preparation'!$B$32:$B$420,AC16) -> 0 | AW16: =COUNTIF('Certification Preparation'!$B$32:$B$420,AD16) -> 0 | AX16: =COUNTIF('Certification Preparation'!$B$32:$B$420,AE16) -> 0 | AZ16: =COUNTIF('Certification Preparation'!$B$32:$B$420,AF16) -> 0 | BA16: =COUNTIF('Certification Preparation'!$B$32:$B$420,AG16) -> 0 | BB16: =COUNTIF('Certification Preparation'!$B$32:$B$420,AH16) -> 0 | BD16: SMETA.3.5.1 | BE16: =COUNTIF('Certification Preparation'!$B$32:$B$420,BD16) -> 0 | BF16: SLCP.HS-23.1 | BG16: =COUNTIF('Certification Preparation'!$B$32:$B$420,BF16) -> 0
A17: 16 | B17: Bronze | C17: =INDEX('Certification Preparation'!G:G,MATCH(Table1[[#This Row],[C2C_Level]],'Certification Preparation'!H:H,0)) -> 1 | D17: 8.3 Assessing Risks & Opportunities | E17: =IF(Table1[[#This Row],[Column1]]<'Certification Preparation'!$G$10,"GAP","Covered") -> GAP | F17: =IF(AND('Certification Preparation'!$B$27="Yes",M17="Y",SUM(AI17:BB17)=0),"Covered","GAP") -> GAP | G17: =IF(AND('Certification Preparation'!$B$28="Yes",N17="Y",SUM(AI17:BB17)=0),"Covered","GAP") -> GAP | H17: =IF(AND('Certification Preparation'!$B$29="Yes",O17="Y",SUM(AI17:BB17)=0),"Covered","GAP") -> GAP | I17: 8.03.016 | J17: FAC_8.3.10 | K17: 0 | L17: 6. Testing the results of the assessment with internal audience(s) to validate the outcome | M17: N | N17: Y | O17: N | AB17: SA8000.9.3.1 | AI17: =COUNTIF('Certification Preparation'!$B$32:$B$420,P17) -> 0 | AJ17: =COUNTIF('Certification Preparation'!$B$32:$B$420,Q17) -> 0 | AK17: =COUNTIF('Certification Preparation'!$B$32:$B$420,R17) -> 0 | AL17: =COUNTIF('Certification Preparation'!$B$32:$B$420,S17) -> 0 | AM17: =COUNTIF('Certification Preparation'!$B$32:$B$420,T17) -> 0 | AN17: =COUNTIF('Certification Preparation'!$B$32:$B$420,U17) -> 0 | AO17: =COUNTIF('Certification Preparation'!$B$32:$B$420,V17) -> 0 | AP17: =COUNTIF('Certification Preparation'!$B$32:$B$420,W17) -> 0 | AQ17: =COUNTIF('Certification Preparation'!$B$32:$B$420,X17) -> 0 | AR17: =COUNTIF('Certification Preparation'!$B$32:$B$420,Y17) -> 0 | AS17: =COUNTIF('Certification Preparation'!$B$32:$B$420,Z17) -> 0 | AT17: =COUNTIF('Certification Preparation'!$B$32:$B$420,AA17) -> 0 | AU17: =COUNTIF('Certification Preparation'!$B$32:$B$420,AB17) -> 0 | AV17: =COUNTIF('Certification Preparation'!$B$32:$B$420,AC17) -> 0 | AW17: =COUNTIF('Certification Preparation'!$B$32:$B$420,AD17) -> 0 | AX17: =COUNTIF('Certification Preparation'!$B$32:$B$420,AE17) -> 0 | AZ17: =COUNTIF('Certification Preparation'!$B$32:$B$420,AF17) -> 0 | BA17: =COUNTIF('Certification Preparation'!$B$32:$B$420,AG17) -> 0 | BB17: =COUNTIF('Certification Preparation'!$B$32:$B$420,AH17) -> 0 | BD17: SMETA.3.5.2 | BE17: =COUNTIF('Certification Preparation'!$B$32:$B$420,BD17) -> 0 | BF17: SLCP.HS-23.2 | BG17: =COUNTIF('Certification Preparation'!$B$32:$B$420,BF17) -> 0
A18: 17 | B18: Bronze | C18: =INDEX('Certification Preparation'!G:G,MATCH(Table1[[#This Row],[C2C_Level]],'Certification Preparation'!H:H,0)) -> 1 | D18: 8.3 Assessing Risks & Opportunities | E18: =IF(Table1[[#This Row],[Column1]]<'Certification Preparation'!$G$10,"GAP","Covered") -> GAP | F18: =IF(AND('Certification Preparation'!$B$27="Yes",M18="Y",SUM(AI18:BB18)=0),"Covered","GAP") -> GAP | G18: =IF(AND('Certification Preparation'!$B$28="Yes",N18="Y",SUM(AI18:BB18)=0),"Covered","GAP") -> GAP | H18: =IF(AND('Certification Preparation'!$B$29="Yes",O18="Y",SUM(AI18:BB18)=0),"Covered","GAP") -> GAP | I18: 8.03.017 | J18: FAC_8.3.10a.i | K18: 0 | L18: 7. A tier 2 supplier risk assessment (and eventually beyond tier 2) based on knowledge of supplier industry/sector and locations to identify high-risk supplier facilities including those in: | M18: N | N18: Y | O18: N | AB18: SA8000.9.10.1a | AC18: SA8000.9.10.1b | AD18: SA8000.9.10.1c | AE18: SA8000.9.10.1d | AI18: =COUNTIF('Certification Preparation'!$B$32:$B$420,P18) -> 0 | AJ18: =COUNTIF('Certification Preparation'!$B$32:$B$420,Q18) -> 0 | AK18: =COUNTIF('Certification Preparation'!$B$32:$B$420,R18) -> 0 | AL18: =COUNTIF('Certification Preparation'!$B$32:$B$420,S18) -> 0 | AM18: =COUNTIF('Certification Preparation'!$B$32:$B$420,T18) -> 0 | AN18: =COUNTIF('Certification Preparation'!$B$32:$B$420,U18) -> 0 | AO18: =COUNTIF('Certification Preparation'!$B$32:$B$420,V18) -> 0 | AP18: =COUNTIF('Certification Preparation'!$B$32:$B$420,W18) -> 0 | AQ18: =COUNTIF('Certification Preparation'!$B$32:$B$420,X18) -> 0 | AR18: =COUNTIF('Certification Preparation'!$B$32:$B$420,Y18) -> 0 | AS18: =COUNTIF('Certification Preparation'!$B$32:$B$420,Z18) -> 0 | AT18: =COUNTIF('Certification Preparation'!$B$32:$B$420,AA18) -> 0 | AU18: =COUNTIF('Certification Preparation'!$B$32:$B$420,AB18) -> 0 | AV18: =COUNTIF('Certification Preparation'!$B$32:$B$420,AC18) -> 0 | AW18: =COUNTIF('Certification Preparation'!$B$32:$B$420,AD18) -> 0 | AX18: =COUNTIF('Certification Preparation'!$B$32:$B$420,AE18) -> 0 | AZ18: =COUNTIF('Certification Preparation'!$B$32:$B$420,AF18) -> 0 | BA18: =COUNTIF('Certification Preparation'!$B$32:$B$420,AG18) -> 0 | BB18: =COUNTIF('Certification Preparation'!$B$32:$B$420,AH18) -> 0 | BD18: SMETA.3.5.3 | BE18: =COUNTIF('Certification Preparation'!$B$32:$B$420,BD18) -> 0 | BF18: SLCP.HS-23.5 | BG18: =COUNTIF('Certification Preparation'!$B$32:$B$420,BF18) -> 0
A19: 18 | B19: Bronze | C19: =INDEX('Certification Preparation'!G:G,MATCH(Table1[[#This Row],[C2C_Level]],'Certification Preparation'!H:H,0)) -> 1 | D19: 8.3 Assessing Risks & Opportunities | E19: =IF(Table1[[#This Row],[Column1]]<'Certification Preparation'!$G$10,"GAP","Covered") -> GAP | F19: =IF(AND('Certification Preparation'!$B$27="Yes",M19="Y",SUM(AI19:BB19)=0),"Covered","GAP") -> GAP | G19: =IF(AND('Certification Preparation'!$B$28="Yes",N19="Y",SUM(AI19:BB19)=0),"Covered","GAP") -> GAP | H19: =IF(AND('Certification Preparation'!$B$29="Yes",O19="Y",SUM(AI19:BB19)=0),"Covered","GAP") -> GAP | I19: 8.03.018 | J19: FAC_8.3.10a.ii | K19: 0 | L19: a. Industries/sectors associated with a high-risk of human rights violations or other negative human rights impacts, | M19: N | N19: Y | O19: N | AB19: SA8000.9.10.1a | AC19: SA8000.9.10.1b | AD19: SA8000.9.10.1c | AE19: SA8000.9.10.1d | AI19: =COUNTIF('Certification Preparation'!$B$32:$B$420,P19) -> 0 | AJ19: =COUNTIF('Certification Preparation'!$B$32:$B$420,Q19) -> 0 | AK19: =COUNTIF('Certification Preparation'!$B$32:$B$420,R19) -> 0 | AL19: =COUNTIF('Certification Preparation'!$B$32:$B$420,S19) -> 0 | AM19: =COUNTIF('Certification Preparation'!$B$32:$B$420,T19) -> 0 | AN19: =COUNTIF('Certification Preparation'!$B$32:$B$420,U19) -> 0 | AO19: =COUNTIF('Certification Preparation'!$B$32:$B$420,V19) -> 0 | AP19: =COUNTIF('Certification Preparation'!$B$32:$B$420,W19) -> 0 | AQ19: =COUNTIF('Certification Preparation'!$B$32:$B$420,X19) -> 0 | AR19: =COUNTIF('Certification Preparation'!$B$32:$B$420,Y19) -> 0 | AS19: =COUNTIF('Certification Preparation'!$B$32:$B$420,Z19) -> 0 | AT19: =COUNTIF('Certification Preparation'!$B$32:$B$420,AA19) -> 0 | AU19: =COUNTIF('Certification Preparation'!$B$32:$B$420,AB19) -> 0 | AV19: =COUNTIF('Certification Preparation'!$B$32:$B$420,AC19) -> 0 | AW19: =COUNTIF('Certification Preparation'!$B$32:$B$420,AD19) -> 0 | AX19: =COUNTIF('Certification Preparation'!$B$32:$B$420,AE19) -> 0 | AZ19: =COUNTIF('Certification Preparation'!$B$32:$B$420,AF19) -> 0 | BA19: =COUNTIF('Certification Preparation'!$B$32:$B$420,AG19) -> 0 | BB19: =COUNTIF('Certification Preparation'!$B$32:$B$420,AH19) -> 0 | BD19: SMETA.3.5.4 | BE19: =COUNTIF('Certification Preparation'!$B$32:$B$420,BD19) -> 0 | BF19: SLCP.HS-25 | BG19: =COUNTIF('Certification Preparation'!$B$32:$B$420,BF19) -> 0
A20: 19 | B20: Bronze | C20: =INDEX('Certification Preparation'!G:G,MATCH(Table1[[#This Row],[C2C_Level]],'Certification Preparation'!H:H,0)) -> 1 | D20: 8.3 Assessing Risks & Opportunities | E20: =IF(Table1[[#This Row],[Column1]]<'Certification Preparation'!$G$10,"GAP","Covered") -> GAP | F20: =IF(AND('Certification Preparation'!$B$27="Yes",M20="Y",SUM(AI20:BB20)=0),"Covered","GAP") -> GAP | G20: =IF(AND('Certification Preparation'!$B$28="Yes",N20="Y",SUM(AI20:BB20)=0),"Covered","GAP") -> GAP | H20: =IF(AND('Certification Preparation'!$B$29="Yes",O20="Y",SUM(AI20:BB20)=0),"Covered","GAP") -> GAP | I20: 8.03.019 | J20: FAC_8.3.10a.iii | K20: 0 | L20: b. Locations that are reputed to have conflict, corruption, widespread human rights violations, and/or weak governance. | M20: N | N20: Y | O20: N | AB20: SA8000.9.10.1a | AC20: SA8000.9.10.1b | AD20: SA8000.9.10.1c | AE20: SA8000.9.10.1d | AI20: =COUNTIF('Certification Preparation'!$B$32:$B$420,P20) -> 0 | AJ20: =COUNTIF('Certification Preparation'!$B$32:$B$420,Q20) -> 0 | AK20: =COUNTIF('Certification Preparation'!$B$32:$B$420,R20) -> 0 | AL20: =COUNTIF('Certification Preparation'!$B$32:$B$420,S20) -> 0 | AM20: =COUNTIF('Certification Preparation'!$B$32:$B$420,T20) -> 0 | AN20: =COUNTIF('Certification Preparation'!$B$32:$B$420,U20) -> 0 | AO20: =COUNTIF('Certification Preparation'!$B$32:$B$420,V20) -> 0 | AP20: =COUNTIF('Certification Preparation'!$B$32:$B$420,W20) -> 0 | AQ20: =COUNTIF('Certification Preparation'!$B$32:$B$420,X20) -> 0 | AR20: =COUNTIF('Certification Preparation'!$B$32:$B$420,Y20) -> 0 | AS20: =COUNTIF('Certification Preparation'!$B$32:$B$420,Z20) -> 0 | AT20: =COUNTIF('Certification Preparation'!$B$32:$B$420,AA20) -> 0 | AU20: =COUNTIF('Certification Preparation'!$B$32:$B$420,AB20) -> 0 | AV20: =COUNTIF('Certification Preparation'!$B$32:$B$420,AC20) -> 0 | AW20: =COUNTIF('Certification Preparation'!$B$32:$B$420,AD20) -> 0 | AX20: =COUNTIF('Certification Preparation'!$B$32:$B$420,AE20) -> 0 | AZ20: =COUNTIF('Certification Preparation'!$B$32:$B$420,AF20) -> 0 | BA20: =COUNTIF('Certification Preparation'!$B$32:$B$420,AG20) -> 0 | BB20: =COUNTIF('Certification Preparation'!$B$32:$B$420,AH20) -> 0 | BD20: SMETA.3.5.5 | BE20: =COUNTIF('Certification Preparation'!$B$32:$B$420,BD20) -> 0 | BF20: SLCP.HS-29 | BG20: =COUNTIF('Certification Preparation'!$B$32:$B$420,BF20) -> 0
A21: 20 | B21: Bronze | C21: =INDEX('Certification Preparation'!G:G,MATCH(Table1[[#This Row],[C2C_Level]],'Certification Preparation'!H:H,0)) -> 1 | D21: 8.3 Assessing Risks & Opportunities | E21: =IF(Table1[[#This Row],[Column1]]<'Certification Preparation'!$G$10,"GAP","Covered") -> GAP | F21: =IF(AND('Certification Preparation'!$B$27="Yes",M21="Y",SUM(AI21:BB21)=0),"Covered","GAP") -> GAP | G21: =IF(AND('Certification Preparation'!$B$28="Yes",N21="Y",SUM(AI21:BB21)=0),"Covered","GAP") -> GAP | H21: =IF(AND('Certification Preparation'!$B$29="Yes",O21="Y",SUM(AI21:BB21)=0),"Covered","GAP") -> GAP | I21: 8.03.020 | J21: FAC_8.3.10a.iv | K21: 0 | L21: c. De facto high-risk locations, defined as countries that fall below the 65% percentile when taking an average of the six World Bank Worldwide Governance Indicators. | M21: N | N21: N | O21: N | AI21: =COUNTIF('Certification Preparation'!$B$32:$B$420,P21) -> 0 | AJ21: =COUNTIF('Certification Preparation'!$B$32:$B$420,Q21) -> 0 | AK21: =COUNTIF('Certification Preparation'!$B$32:$B$420,R21) -> 0 | AL21: =COUNTIF('Certification Preparation'!$B$32:$B$420,S21) -> 0 | AM21: =COUNTIF('Certification Preparation'!$B$32:$B$420,T21) -> 0 | AN21: =COUNTIF('Certification Preparation'!$B$32:$B$420,U21) -> 0 | AO21: =COUNTIF('Certification Preparation'!$B$32:$B$420,V21) -> 0 | AP21: =COUNTIF('Certification Preparation'!$B$32:$B$420,W21) -> 0 | AQ21: =COUNTIF('Certification Preparation'!$B$32:$B$420,X21) -> 0 | AR21: =COUNTIF('Certification Preparation'!$B$32:$B$420,Y21) -> 0 | AS21: =COUNTIF('Certification Preparation'!$B$32:$B$420,Z21) -> 0 | AT21: =COUNTIF('Certification Preparation'!$B$32:$B$420,AA21) -> 0 | AU21: =COUNTIF('Certification Preparation'!$B$32:$B$420,AB21) -> 0 | AV21: =COUNTIF('Certification Preparation'!$B$32:$B$420,AC21) -> 0 | AW21: =COUNTIF('Certification Preparation'!$B$32:$B$420,AD21) -> 0 | AX21: =COUNTIF('Certification Preparation'!$B$32:$B$420,AE21) -> 0 | AZ21: =COUNTIF('Certification Preparation'!$B$32:$B$420,AF21) -> 0 | BA21: =COUNTIF('Certification Preparation'!$B$32:$B$420,AG21) -> 0 | BB21: =COUNTIF('Certification Preparation'!$B$32:$B$420,AH21) -> 0 | BD21: SMETA.3.5.6 | BE21: =COUNTIF('Certification Preparation'!$B$32:$B$420,BD21) -> 0 | BF21: SLCP.HS-31 | BG21: =COUNTIF('Certification Preparation'!$B$32:$B$420,BF21) -> 0
A22: 21 | B22: Bronze | C22: =INDEX('Certification Preparation'!G:G,MATCH(Table1[[#This Row],[C2C_Level]],'Certification Preparation'!H:H,0)) -> 1 | D22: 8.3 Assessing Risks & Opportunities | E22: =IF(Table1[[#This Row],[Column1]]<'Certification Preparation'!$G$10,"GAP","Covered") -> GAP | F22: =IF(AND('Certification Preparation'!$B$27="Yes",M22="Y",SUM(AI22:BB22)=0),"Covered","GAP") -> GAP | G22: =IF(AND('Certification Preparation'!$B$28="Yes",N22="Y",SUM(AI22:BB22)=0),"Covered","GAP") -> GAP | H22: =IF(AND('Certification Preparation'!$B$29="Yes",O22="Y",SUM(AI22:BB22)=0),"Covered","GAP") -> GAP | I22: 8.03.021 | J22: FAC_8.3.10b.i | K22: 0 | L22: 8. Identification of human rights due diligence best practices to address risks beyond tier 1. | M22: N | N22: Y | O22: N | AB22: SA8000.9.10.1a | AC22: SA8000.9.10.1b | AD22: SA8000.9.10.1c | AE22: SA8000.9.10.1d | AI22: =COUNTIF('Certification Preparation'!$B$32:$B$420,P22) -> 0 | AJ22: =COUNTIF('Certification Preparation'!$B$32:$B$420,Q22) -> 0 | AK22: =COUNTIF('Certification Preparation'!$B$32:$B$420,R22) -> 0 | AL22: =COUNTIF('Certification Preparation'!$B$32:$B$420,S22) -> 0 | AM22: =COUNTIF('Certification Preparation'!$B$32:$B$420,T22) -> 0 | AN22: =COUNTIF('Certification Preparation'!$B$32:$B$420,U22) -> 0 | AO22: =COUNTIF('Certification Preparation'!$B$32:$B$420,V22) -> 0 | AP22: =COUNTIF('Certification Preparation'!$B$32:$B$420,W22) -> 0 | AQ22: =COUNTIF('Certification Preparation'!$B$32:$B$420,X22) -> 0 | AR22: =COUNTIF('Certification Preparation'!$B$32:$B$420,Y22) -> 0 | AS22: =COUNTIF('Certification Preparation'!$B$32:$B$420,Z22) -> 0 | AT22: =COUNTIF('Certification Preparation'!$B$32:$B$420,AA22) -> 0 | AU22: =COUNTIF('Certification Preparation'!$B$32:$B$420,AB22) -> 0 | AV22: =COUNTIF('Certification Preparation'!$B$32:$B$420,AC22) -> 0 | AW22: =COUNTIF('Certification Preparation'!$B$32:$B$420,AD22) -> 0 | AX22: =COUNTIF('Certification Preparation'!$B$32:$B$420,AE22) -> 0 | AZ22: =COUNTIF('Certification Preparation'!$B$32:$B$420,AF22) -> 0 | BA22: =COUNTIF('Certification Preparation'!$B$32:$B$420,AG22) -> 0 | BB22: =COUNTIF('Certification Preparation'!$B$32:$B$420,AH22) -> 0 | BD22: SMETA.3.5.7 | BE22: =COUNTIF('Certification Preparation'!$B$32:$B$420,BD22) -> 0 | BF22: SLCP.HS-32 | BG22: =COUNTIF('Certification Preparation'!$B$32:$B$420,BF22) -> 0
A23: 22 | B23: Bronze | C23: =INDEX('Certification Preparation'!G:G,MATCH(Table1[[#This Row],[C2C_Level]],'Certification Preparation'!H:H,0)) -> 1 | D23: 8.3 Assessing Risks & Opportunities | E23: =IF(Table1[[#This Row],[Column1]]<'Certification Preparation'!$G$10,"GAP","Covered") -> GAP | F23: =IF(AND('Certification Preparation'!$B$27="Yes",M23="Y",SUM(AI23:BB23)=0),"Covered","GAP") -> GAP | G23: =IF(AND('Certification Preparation'!$B$28="Yes",N23="Y",SUM(AI23:BB23)=0),"Covered","GAP") -> GAP | H23: =IF(AND('Certification Preparation'!$B$29="Yes",O23="Y",SUM(AI23:BB23)=0),"Covered","GAP") -> GAP | I23: 8.03.022 | J23: FAC_8.3.10b.ii | K23: 0 | L23: 9. Information regarding the impact and importance of identified risks beyond tier 1, as defined by affected stakeholders, including employees of the Applicant company. | M23: N | N23: N | O23: Y | AF23: SLCP.AB-10 | AI23: =COUNTIF('Certification Preparation'!$B$32:$B$420,P23) -> 0 | AJ23: =COUNTIF('Certification Preparation'!$B$32:$B$420,Q23) -> 0 | AK23: =COUNTIF('Certification Preparation'!$B$32:$B$420,R23) -> 0 | AL23: =COUNTIF('Certification Preparation'!$B$32:$B$420,S23) -> 0 | AM23: =COUNTIF('Certification Preparation'!$B$32:$B$420,T23) -> 0 | AN23: =COUNTIF('Certification Preparation'!$B$32:$B$420,U23) -> 0 | AO23: =COUNTIF('Certification Preparation'!$B$32:$B$420,V23) -> 0 | AP23: =COUNTIF('Certification Preparation'!$B$32:$B$420,W23) -> 0 | AQ23: =COUNTIF('Certification Preparation'!$B$32:$B$420,X23) -> 0 | AR23: =COUNTIF('Certification Preparation'!$B$32:$B$420,Y23) -> 0 | AS23: =COUNTIF('Certification Preparation'!$B$32:$B$420,Z23) -> 0 | AT23: =COUNTIF('Certification Preparation'!$B$32:$B$420,AA23) -> 0 | AU23: =COUNTIF('Certification Preparation'!$B$32:$B$420,AB23) -> 0 | AV23: =COUNTIF('Certification Preparation'!$B$32:$B$420,AC23) -> 0 | AW23: =COUNTIF('Certification Preparation'!$B$32:$B$420,AD23) -> 0 | AX23: =COUNTIF('Certification Preparation'!$B$32:$B$420,AE23) -> 0 | AZ23: =COUNTIF('Certification Preparation'!$B$32:$B$420,AF23) -> 0 | BA23: =COUNTIF('Certification Preparation'!$B$32:$B$420,AG23) -> 0 | BB23: =COUNTIF('Certification Preparation'!$B$32:$B$420,AH23) -> 0 | BD23: SMETA.3.5.8 | BE23: =COUNTIF('Certification Preparation'!$B$32:$B$420,BD23) -> 0 | BF23: SLCP.HS-32.3 | BG23: =COUNTIF('Certification Preparation'!$B$32:$B$420,BF23) -> 0
A24: 23 | B24: Bronze | C24: =INDEX('Certification Preparation'!G:G,MATCH(Table1[[#This Row],[C2C_Level]],'Certification Preparation'!H:H,0)) -> 1 | D24: 8.3 Assessing Risks & Opportunities | E24: =IF(Table1[[#This Row],[Column1]]<'Certification Preparation'!$G$10,"GAP","Covered") -> GAP | F24: =IF(AND('Certification Preparation'!$B$27="Yes",M24="Y",SUM(AI24:BB24)=0),"Covered","GAP") -> GAP | G24: =IF(AND('Certification Preparation'!$B$28="Yes",N24="Y",SUM(AI24:BB24)=0),"Covered","GAP") -> GAP | H24: =IF(AND('Certification Preparation'!$B$29="Yes",O24="Y",SUM(AI24:BB24)=0),"Covered","GAP") -> GAP | I24: 8.03.023 | J24: FAC_8.3.10b.iii | K24: 0 | L24: 10. Prioritization of the risks and opportunities beyond tier 1 for improvement identified. At a minimum, the following must be prioritized: | M24: N | N24: Y | O24: N | AB24: SA8000.9.10.1b | AI24: =COUNTIF('Certification Preparation'!$B$32:$B$420,P24) -> 0 | AJ24: =COUNTIF('Certification Preparation'!$B$32:$B$420,Q24) -> 0 | AK24: =COUNTIF('Certification Preparation'!$B$32:$B$420,R24) -> 0 | AL24: =COUNTIF('Certification Preparation'!$B$32:$B$420,S24) -> 0 | AM24: =COUNTIF('Certification Preparation'!$B$32:$B$420,T24) -> 0 | AN24: =COUNTIF('Certification Preparation'!$B$32:$B$420,U24) -> 0 | AO24: =COUNTIF('Certification Preparation'!$B$32:$B$420,V24) -> 0 | AP24: =COUNTIF('Certification Preparation'!$B$32:$B$420,W24) -> 0 | AQ24: =COUNTIF('Certification Preparation'!$B$32:$B$420,X24) -> 0 | AR24: =COUNTIF('Certification Preparation'!$B$32:$B$420,Y24) -> 0 | AS24: =COUNTIF('Certification Preparation'!$B$32:$B$420,Z24) -> 0 | AT24: =COUNTIF('Certification Preparation'!$B$32:$B$420,AA24) -> 0 | AU24: =COUNTIF('Certification Preparation'!$B$32:$B$420,AB24) -> 0 | AV24: =COUNTIF('Certification Preparation'!$B$32:$B$420,AC24) -> 0 | AW24: =COUNTIF('Certification Preparation'!$B$32:$B$420,AD24) -> 0 | AX24: =COUNTIF('Certification Preparation'!$B$32:$B$420,AE24) -> 0 | AZ24: =COUNTIF('Certification Preparation'!$B$32:$B$420,AF24) -> 0 | BA24: =COUNTIF('Certification Preparation'!$B$32:$B$420,AG24) -> 0 | BB24: =COUNTIF('Certification Preparation'!$B$32:$B$420,AH24) -> 0 | BD24: SMETA.3.5.9 | BE24: =COUNTIF('Certification Preparation'!$B$32:$B$420,BD24) -> 0 | BF24: SLCP.HS-34.1 | BG24: =COUNTIF('Certification Preparation'!$B$32:$B$420,BF24) -> 0
A25: 24 | B25: Bronze | C25: =INDEX('Certification Preparation'!G:G,MATCH(Table1[[#This Row],[C2C_Level]],'Certification Preparation'!H:H,0)) -> 1 | D25: 8.3 Assessing Risks & Opportunities | E25: =IF(Table1[[#This Row],[Column1]]<'Certification Preparation'!$G$10,"GAP","Covered") -> GAP | F25: =IF(AND('Certification Preparation'!$B$27="Yes",M25="Y",SUM(AI25:BB25)=0),"Covered","GAP") -> GAP | G25: =IF(AND('Certification Preparation'!$B$28="Yes",N25="Y",SUM(AI25:BB25)=0),"Covered","GAP") -> GAP | H25: =IF(AND('Certification Preparation'!$B$29="Yes",O25="Y",SUM(AI25:BB25)=0),"Covered","GAP") -> GAP | I25: 8.03.024 | J25: FAC_8.3.10b.iv | K25: 0 | L25: a. Well-known industry risks, | M25: N | N25: N | O25: N | AI25: =COUNTIF('Certification Preparation'!$B$32:$B$420,P25) -> 0 | AJ25: =COUNTIF('Certification Preparation'!$B$32:$B$420,Q25) -> 0 | AK25: =COUNTIF('Certification Preparation'!$B$32:$B$420,R25) -> 0 | AL25: =COUNTIF('Certification Preparation'!$B$32:$B$420,S25) -> 0 | AM25: =COUNTIF('Certification Preparation'!$B$32:$B$420,T25) -> 0 | AN25: =COUNTIF('Certification Preparation'!$B$32:$B$420,U25) -> 0 | AO25: =COUNTIF('Certification Preparation'!$B$32:$B$420,V25) -> 0 | AP25: =COUNTIF('Certification Preparation'!$B$32:$B$420,W25) -> 0 | AQ25: =COUNTIF('Certification Preparation'!$B$32:$B$420,X25) -> 0 | AR25: =COUNTIF('Certification Preparation'!$B$32:$B$420,Y25) -> 0 | AS25: =COUNTIF('Certification Preparation'!$B$32:$B$420,Z25) -> 0 | AT25: =COUNTIF('Certification Preparation'!$B$32:$B$420,AA25) -> 0 | AU25: =COUNTIF('Certification Preparation'!$B$32:$B$420,AB25) -> 0 | AV25: =COUNTIF('Certification Preparation'!$B$32:$B$420,AC25) -> 0 | AW25: =COUNTIF('Certification Preparation'!$B$32:$B$420,AD25) -> 0 | AX25: =COUNTIF('Certification Preparation'!$B$32:$B$420,AE25) -> 0 | AZ25: =COUNTIF('Certification Preparation'!$B$32:$B$420,AF25) -> 0 | BA25: =COUNTIF('Certification Preparation'!$B$32:$B$420,AG25) -> 0 | BB25: =COUNTIF('Certification Preparation'!$B$32:$B$420,AH25) -> 0 | BD25: SMETA.3.6.2 | BE25: =COUNTIF('Certification Preparation'!$B$32:$B$420,BD25) -> 0 | BF25: SLCP.HS-35.1 | BG25: =COUNTIF('Certification Preparation'!$B$32:$B$420,BF25) -> 0
A26: 25 | B26: Bronze | C26: =INDEX('Certification Preparation'!G:G,MATCH(Table1[[#This Row],[C2C_Level]],'Certification Preparation'!H:H,0)) -> 1 | D26: 8.3 Assessing Risks & Opportunities | E26: =IF(Table1[[#This Row],[Column1]]<'Certification Preparation'!$G$10,"GAP","Covered") -> GAP | F26: =IF(AND('Certification Preparation'!$B$27="Yes",M26="Y",SUM(AI26:BB26)=0),"Covered","GAP") -> GAP | G26: =IF(AND('Certification Preparation'!$B$28="Yes",N26="Y",SUM(AI26:BB26)=0),"Covered","GAP") -> GAP | H26: =IF(AND('Certification Preparation'!$B$29="Yes",O26="Y",SUM(AI26:BB26)=0),"Covered","GAP") -> GAP | I26: 8.03.025 | J26: FAC_8.3.10b.v | K26: 0 | L26: b. Human rights violations, and | M26: N | N26: Y | O26: Y | AB26: SA8000.9.10.1b | AF26: SLCP.MS-7 | AI26: =COUNTIF('Certification Preparation'!$B$32:$B$420,P26) -> 0 | AJ26: =COUNTIF('Certification Preparation'!$B$32:$B$420,Q26) -> 0 | AK26: =COUNTIF('Certification Preparation'!$B$32:$B$420,R26) -> 0 | AL26: =COUNTIF('Certification Preparation'!$B$32:$B$420,S26) -> 0 | AM26: =COUNTIF('Certification Preparation'!$B$32:$B$420,T26) -> 0 | AN26: =COUNTIF('Certification Preparation'!$B$32:$B$420,U26) -> 0 | AO26: =COUNTIF('Certification Preparation'!$B$32:$B$420,V26) -> 0 | AP26: =COUNTIF('Certification Preparation'!$B$32:$B$420,W26) -> 0 | AQ26: =COUNTIF('Certification Preparation'!$B$32:$B$420,X26) -> 0 | AR26: =COUNTIF('Certification Preparation'!$B$32:$B$420,Y26) -> 0 | AS26: =COUNTIF('Certification Preparation'!$B$32:$B$420,Z26) -> 0 | AT26: =COUNTIF('Certification Preparation'!$B$32:$B$420,AA26) -> 0 | AU26: =COUNTIF('Certification Preparation'!$B$32:$B$420,AB26) -> 0 | AV26: =COUNTIF('Certification Preparation'!$B$32:$B$420,AC26) -> 0 | AW26: =COUNTIF('Certification Preparation'!$B$32:$B$420,AD26) -> 0 | AX26: =COUNTIF('Certification Preparation'!$B$32:$B$420,AE26) -> 0 | AZ26: =COUNTIF('Certification Preparation'!$B$32:$B$420,AF26) -> 0 | BA26: =COUNTIF('Certification Preparation'!$B$32:$B$420,AG26) -> 0 | BB26: =COUNTIF('Certification Preparation'!$B$32:$B$420,AH26) -> 0 | BD26: SMETA.3.6.3 | BE26: =COUNTIF('Certification Preparation'!$B$32:$B$420,BD26) -> 0 | BF26: SLCP.HS-39 | BG26: =COUNTIF('Certification Preparation'!$B$32:$B$420,BF26) -> 0
A27: 26 | B27: Bronze | C27: =INDEX('Certification Preparation'!G:G,MATCH(Table1[[#This Row],[C2C_Level]],'Certification Preparation'!H:H,0)) -> 1 | D27: 8.3 Assessing Risks & Opportunities | E27: =IF(Table1[[#This Row],[Column1]]<'Certification Preparation'!$G$10,"GAP","Covered") -> GAP | F27: =IF(AND('Certification Preparation'!$B$27="Yes",M27="Y",SUM(AI27:BB27)=0),"Covered","GAP") -> GAP | G27: =IF(AND('Certification Preparation'!$B$28="Yes",N27="Y",SUM(AI27:BB27)=0),"Covered","GAP") -> GAP | H27: =IF(AND('Certification Preparation'!$B$29="Yes",O27="Y",SUM(AI27:BB27)=0),"Covered","GAP") -> GAP | I27: 8.03.026 | J27: FAC_8.3.10b.vi | K27: 0 | L27: c. Issues where the Applicant has substantial leverage to make improvements. | M27: N | N27: Y | O27: N | AB27: SA8000.9.10.1b | AI27: =COUNTIF('Certification Preparation'!$B$32:$B$420,P27) -> 0 | AJ27: =COUNTIF('Certification Preparation'!$B$32:$B$420,Q27) -> 0 | AK27: =COUNTIF('Certification Preparation'!$B$32:$B$420,R27) -> 0 | AL27: =COUNTIF('Certification Preparation'!$B$32:$B$420,S27) -> 0 | AM27: =COUNTIF('Certification Preparation'!$B$32:$B$420,T27) -> 0 | AN27: =COUNTIF('Certification Preparation'!$B$32:$B$420,U27) -> 0 | AO27: =COUNTIF('Certification Preparation'!$B$32:$B$420,V27) -> 0 | AP27: =COUNTIF('Certification Preparation'!$B$32:$B$420,W27) -> 0 | AQ27: =COUNTIF('Certification Preparation'!$B$32:$B$420,X27) -> 0 | AR27: =COUNTIF('Certification Preparation'!$B$32:$B$420,Y27) -> 0 | AS27: =COUNTIF('Certification Preparation'!$B$32:$B$420,Z27) -> 0 | AT27: =COUNTIF('Certification Preparation'!$B$32:$B$420,AA27) -> 0 | AU27: =COUNTIF('Certification Preparation'!$B$32:$B$420,AB27) -> 0 | AV27: =COUNTIF('Certification Preparation'!$B$32:$B$420,AC27) -> 0 | AW27: =COUNTIF('Certification Preparation'!$B$32:$B$420,AD27) -> 0 | AX27: =COUNTIF('Certification Preparation'!$B$32:$B$420,AE27) -> 0 | AZ27: =COUNTIF('Certification Preparation'!$B$32:$B$420,AF27) -> 0 | BA27: =COUNTIF('Certification Preparation'!$B$32:$B$420,AG27) -> 0 | BB27: =COUNTIF('Certification Preparation'!$B$32:$B$420,AH27) -> 0 | BD27: SMETA.3.6.10 | BE27: =COUNTIF('Certification Preparation'!$B$32:$B$420,BD27) -> 0 | BF27: SLCP.HS-40 | BG27: =COUNTIF('Certification Preparation'!$B$32:$B$420,BF27) -> 0
A28: 27 | B28: Bronze | C28: =INDEX('Certification Preparation'!G:G,MATCH(Table1[[#This Row],[C2C_Level]],'Certification Preparation'!H:H,0)) -> 1 | D28: 8.3 Assessing Risks & Opportunities | E28: =IF(Table1[[#This Row],[Column1]]<'Certification Preparation'!$G$10,"GAP","Covered") -> GAP | F28: =IF(AND('Certification Preparation'!$B$27="Yes",M28="Y",SUM(AI28:BB28)=0),"Covered","GAP") -> GAP | G28: =IF(AND('Certification Preparation'!$B$28="Yes",N28="Y",SUM(AI28:BB28)=0),"Covered","GAP") -> GAP | H28: =IF(AND('Certification Preparation'!$B$29="Yes",O28="Y",SUM(AI28:BB28)=0),"Covered","GAP") -> GAP | I28: 8.03.027 | J28: FAC_8.3.10b.vii | K28: 0 | L28: 11. Testing the results of the assessment beyond tier 1 with internal audience(s) to validate the outcome. | M28: N | N28: Y | O28: N | AB28: SA8000.9.3.1 | AI28: =COUNTIF('Certification Preparation'!$B$32:$B$420,P28) -> 0 | AJ28: =COUNTIF('Certification Preparation'!$B$32:$B$420,Q28) -> 0 | AK28: =COUNTIF('Certification Preparation'!$B$32:$B$420,R28) -> 0 | AL28: =COUNTIF('Certification Preparation'!$B$32:$B$420,S28) -> 0 | AM28: =COUNTIF('Certification Preparation'!$B$32:$B$420,T28) -> 0 | AN28: =COUNTIF('Certification Preparation'!$B$32:$B$420,U28) -> 0 | AO28: =COUNTIF('Certification Preparation'!$B$32:$B$420,V28) -> 0 | AP28: =COUNTIF('Certification Preparation'!$B$32:$B$420,W28) -> 0 | AQ28: =COUNTIF('Certification Preparation'!$B$32:$B$420,X28) -> 0 | AR28: =COUNTIF('Certification Preparation'!$B$32:$B$420,Y28) -> 0 | AS28: =COUNTIF('Certification Preparation'!$B$32:$B$420,Z28) -> 0 | AT28: =COUNTIF('Certification Preparation'!$B$32:$B$420,AA28) -> 0 | AU28: =COUNTIF('Certification Preparation'!$B$32:$B$420,AB28) -> 0 | AV28: =COUNTIF('Certification Preparation'!$B$32:$B$420,AC28) -> 0 | AW28: =COUNTIF('Certification Preparation'!$B$32:$B$420,AD28) -> 0 | AX28: =COUNTIF('Certification Preparation'!$B$32:$B$420,AE28) -> 0 | AZ28: =COUNTIF('Certification Preparation'!$B$32:$B$420,AF28) -> 0 | BA28: =COUNTIF('Certification Preparation'!$B$32:$B$420,AG28) -> 0 | BB28: =COUNTIF('Certification Preparation'!$B$32:$B$420,AH28) -> 0 | BD28: SMETA.3.1.1 | BE28: =COUNTIF('Certification Preparation'!$B$32:$B$420,BD28) -> 0 | BF28: SLCP.HS-42 | BG28: =COUNTIF('Certification Preparation'!$B$32:$B$420,BF28) -> 0
A29: 28 | B29: Bronze | C29: =INDEX('Certification Preparation'!G:G,MATCH(Table1[[#This Row],[C2C_Level]],'Certification Preparation'!H:H,0)) -> 1 | D29: 8.3 Assessing Risks & Opportunities | E29: =IF(Table1[[#This Row],[Column1]]<'Certification Preparation'!$G$10,"GAP","Covered") -> GAP | F29: =IF(AND('Certification Preparation'!$B$27="Yes",M29="Y",SUM(AI29:BB29)=0),"Covered","GAP") -> GAP | G29: =IF(AND('Certification Preparation'!$B$28="Yes",N29="Y",SUM(AI29:BB29)=0),"Covered","GAP") -> GAP | H29: =IF(AND('Certification Preparation'!$B$29="Yes",O29="Y",SUM(AI29:BB29)=0),"Covered","GAP") -> GAP | I29: 8.03.028 | J29: FAC_8.3.10c | K29: 0 | L29: 12. For supplier locations that have not yet been identified, if there is a chance that the location is high-risk, then it must be considered de facto high-risk until shown otherwise. | M29: N | N29: Y | O29: N | AB29: SA8000.9.10.1b | AC29: SA8000.9.10.1c | AI29: =COUNTIF('Certification Preparation'!$B$32:$B$420,P29) -> 0 | AJ29: =COUNTIF('Certification Preparation'!$B$32:$B$420,Q29) -> 0 | AK29: =COUNTIF('Certification Preparation'!$B$32:$B$420,R29) -> 0 | AL29: =COUNTIF('Certification Preparation'!$B$32:$B$420,S29) -> 0 | AM29: =COUNTIF('Certification Preparation'!$B$32:$B$420,T29) -> 0 | AN29: =COUNTIF('Certification Preparation'!$B$32:$B$420,U29) -> 0 | AO29: =COUNTIF('Certification Preparation'!$B$32:$B$420,V29) -> 0 | AP29: =COUNTIF('Certification Preparation'!$B$32:$B$420,W29) -> 0 | AQ29: =COUNTIF('Certification Preparation'!$B$32:$B$420,X29) -> 0 | AR29: =COUNTIF('Certification Preparation'!$B$32:$B$420,Y29) -> 0 | AS29: =COUNTIF('Certification Preparation'!$B$32:$B$420,Z29) -> 0 | AT29: =COUNTIF('Certification Preparation'!$B$32:$B$420,AA29) -> 0 | AU29: =COUNTIF('Certification Preparation'!$B$32:$B$420,AB29) -> 0 | AV29: =COUNTIF('Certification Preparation'!$B$32:$B$420,AC29) -> 0 | AW29: =COUNTIF('Certification Preparation'!$B$32:$B$420,AD29) -> 0 | AX29: =COUNTIF('Certification Preparation'!$B$32:$B$420,AE29) -> 0 | AZ29: =COUNTIF('Certification Preparation'!$B$32:$B$420,AF29) -> 0 | BA29: =COUNTIF('Certification Preparation'!$B$32:$B$420,AG29) -> 0 | BB29: =COUNTIF('Certification Preparation'!$B$32:$B$420,AH29) -> 0 | BD29: SMETA.3.1.2 | BE29: =COUNTIF('Certification Preparation'!$B$32:$B$420,BD29) -> 0 | BF29: SLCP.HS-42 | BG29: =COUNTIF('Certification Preparation'!$B$32:$B$420,BF29) -> 0
A30: 29 | B30: Bronze | C30: =INDEX('Certification Preparation'!G:G,MATCH(Table1[[#This Row],[C2C_Level]],'Certification Preparation'!H:H,0)) -> 1 | D30: 8.3 Assessing Risks & Opportunities | E30: =IF(Table1[[#This Row],[Column1]]<'Certification Preparation'!$G$10,"GAP","Covered") -> GAP | F30: =IF(AND('Certification Preparation'!$B$27="Yes",M30="Y",SUM(AI30:BB30)=0),"Covered","GAP") -> GAP | G30: =IF(AND('Certification Preparation'!$B$28="Yes",N30="Y",SUM(AI30:BB30)=0),"Covered","GAP") -> GAP | H30: =IF(AND('Certification Preparation'!$B$29="Yes",O30="Y",SUM(AI30:BB30)=0),"Covered","GAP") -> GAP | I30: 8.03.029 | J30: FAC_8.3.10d | K30: 0 | L30: 13. Identification of the locations of these potentially high-risk suppliers must be prioritized. | M30: N | N30: Y | O30: N | AB30: SA8000.9.10.1b | AC30: SA8000.9.10.1c | AI30: =COUNTIF('Certification Preparation'!$B$32:$B$420,P30) -> 0 | AJ30: =COUNTIF('Certification Preparation'!$B$32:$B$420,Q30) -> 0 | AK30: =COUNTIF('Certification Preparation'!$B$32:$B$420,R30) -> 0 | AL30: =COUNTIF('Certification Preparation'!$B$32:$B$420,S30) -> 0 | AM30: =COUNTIF('Certification Preparation'!$B$32:$B$420,T30) -> 0 | AN30: =COUNTIF('Certification Preparation'!$B$32:$B$420,U30) -> 0 | AO30: =COUNTIF('Certification Preparation'!$B$32:$B$420,V30) -> 0 | AP30: =COUNTIF('Certification Preparation'!$B$32:$B$420,W30) -> 0 | AQ30: =COUNTIF('Certification Preparation'!$B$32:$B$420,X30) -> 0 | AR30: =COUNTIF('Certification Preparation'!$B$32:$B$420,Y30) -> 0 | AS30: =COUNTIF('Certification Preparation'!$B$32:$B$420,Z30) -> 0 | AT30: =COUNTIF('Certification Preparation'!$B$32:$B$420,AA30) -> 0 | AU30: =COUNTIF('Certification Preparation'!$B$32:$B$420,AB30) -> 0 | AV30: =COUNTIF('Certification Preparation'!$B$32:$B$420,AC30) -> 0 | AW30: =COUNTIF('Certification Preparation'!$B$32:$B$420,AD30) -> 0 | AX30: =COUNTIF('Certification Preparation'!$B$32:$B$420,AE30) -> 0 | AZ30: =COUNTIF('Certification Preparation'!$B$32:$B$420,AF30) -> 0 | BA30: =COUNTIF('Certification Preparation'!$B$32:$B$420,AG30) -> 0 | BB30: =COUNTIF('Certification Preparation'!$B$32:$B$420,AH30) -> 0 | BD30: SMETA.3.1.3 | BE30: =COUNTIF('Certification Preparation'!$B$32:$B$420,BD30) -> 0 | BF30: SLCP.HS-42.3 | BG30: =COUNTIF('Certification Preparation'!$B$32:$B$420,BF30) -> 0
A31: 30 | B31: Bronze | C31: =INDEX('Certification Preparation'!G:G,MATCH(Table1[[#This Row],[C2C_Level]],'Certification Preparation'!H:H,0)) -> 1 | D31: 8.3 Assessing Risks & Opportunities | E31: =IF(Table1[[#This Row],[Column1]]<'Certification Preparation'!$G$10,"GAP","Covered") -> GAP | F31: =IF(AND('Certification Preparation'!$B$27="Yes",M31="Y",SUM(AI31:BB31)=0),"Covered","GAP") -> GAP | G31: =IF(AND('Certification Preparation'!$B$28="Yes",N31="Y",SUM(AI31:BB31)=0),"Covered","GAP") -> GAP | H31: =IF(AND('Certification Preparation'!$B$29="Yes",O31="Y",SUM(AI31:BB31)=0),"Covered","GAP") -> GAP | I31: 8.03.030 | J31: FAC_8.3.10a | K31: 0 | L31: 14. For recertification, demonstrate ongoing efforts to improve visibility and assess risks within the product’s supply chain based on increasing knowledge of supplier industry/sector(s) and location(s) and progress made compared to the previous application. | M31: N | N31: Y | O31: N | AB31: SA8000.9.10.1a | AC31: SA8000.9.10.1b | AD31: SA8000.9.10.1c | AE31: SA8000.9.10.1d | AI31: =COUNTIF('Certification Preparation'!$B$32:$B$420,P31) -> 0 | AJ31: =COUNTIF('Certification Preparation'!$B$32:$B$420,Q31) -> 0 | AK31: =COUNTIF('Certification Preparation'!$B$32:$B$420,R31) -> 0 | AL31: =COUNTIF('Certification Preparation'!$B$32:$B$420,S31) -> 0 | AM31: =COUNTIF('Certification Preparation'!$B$32:$B$420,T31) -> 0 | AN31: =COUNTIF('Certification Preparation'!$B$32:$B$420,U31) -> 0 | AO31: =COUNTIF('Certification Preparation'!$B$32:$B$420,V31) -> 0 | AP31: =COUNTIF('Certification Preparation'!$B$32:$B$420,W31) -> 0 | AQ31: =COUNTIF('Certification Preparation'!$B$32:$B$420,X31) -> 0 | AR31: =COUNTIF('Certification Preparation'!$B$32:$B$420,Y31) -> 0 | AS31: =COUNTIF('Certification Preparation'!$B$32:$B$420,Z31) -> 0 | AT31: =COUNTIF('Certification Preparation'!$B$32:$B$420,AA31) -> 0 | AU31: =COUNTIF('Certification Preparation'!$B$32:$B$420,AB31) -> 0 | AV31: =COUNTIF('Certification Preparation'!$B$32:$B$420,AC31) -> 0 | AW31: =COUNTIF('Certification Preparation'!$B$32:$B$420,AD31) -> 0 | AX31: =COUNTIF('Certification Preparation'!$B$32:$B$420,AE31) -> 0 | AZ31: =COUNTIF('Certification Preparation'!$B$32:$B$420,AF31) -> 0 | BA31: =COUNTIF('Certification Preparation'!$B$32:$B$420,AG31) -> 0 | BB31: =COUNTIF('Certification Preparation'!$B$32:$B$420,AH31) -> 0 | BD31: SMETA.3.1.4 | BE31: =COUNTIF('Certification Preparation'!$B$32:$B$420,BD31) -> 0 | BF31: SLCP.HS-43 | BG31: =COUNTIF('Certification Preparation'!$B$32:$B$420,BF31) -> 0
A32: 31 | B32: Gold | C32: =INDEX('Certification Preparation'!G:G,MATCH(Table1[[#This Row],[C2C_Level]],'Certification Preparation'!H:H,0)) -> 3 | D32: 8.3 Assessing Risks & Opportunities | E32: =IF(Table1[[#This Row],[Column1]]<'Certification Preparation'!$G$10,"GAP","Covered") -> GAP | F32: =IF(AND('Certification Preparation'!$B$27="Yes",M32="Y",SUM(AI32:BB32)=0),"Covered","GAP") -> GAP | G32: =IF(AND('Certification Preparation'!$B$28="Yes",N32="Y",SUM(AI32:BB32)=0),"Covered","GAP") -> GAP | H32: =IF(AND('Certification Preparation'!$B$29="Yes",O32="Y",SUM(AI32:BB32)=0),"Covered","GAP") -> GAP | I32: 8.03.031 | J32: FAC_8.3.2 | K32: 0 | L32: Assess human rights risks and identify opportunities for improvement associated with the product’s components and raw materials (regardless of supply chain tier). | M32: Y | N32: Y | O32: N | P32: SMETA.11.12 | AB32: SA8000.9.10.1b | AC32: SA8000.9.10.1c | AI32: =COUNTIF('Certification Preparation'!$B$32:$B$420,P32) -> 0 | AJ32: =COUNTIF('Certification Preparation'!$B$32:$B$420,Q32) -> 0 | AK32: =COUNTIF('Certification Preparation'!$B$32:$B$420,R32) -> 0 | AL32: =COUNTIF('Certification Preparation'!$B$32:$B$420,S32) -> 0 | AM32: =COUNTIF('Certification Preparation'!$B$32:$B$420,T32) -> 0 | AN32: =COUNTIF('Certification Preparation'!$B$32:$B$420,U32) -> 0 | AO32: =COUNTIF('Certification Preparation'!$B$32:$B$420,V32) -> 0 | AP32: =COUNTIF('Certification Preparation'!$B$32:$B$420,W32) -> 0 | AQ32: =COUNTIF('Certification Preparation'!$B$32:$B$420,X32) -> 0 | AR32: =COUNTIF('Certification Preparation'!$B$32:$B$420,Y32) -> 0 | AS32: =COUNTIF('Certification Preparation'!$B$32:$B$420,Z32) -> 0 | AT32: =COUNTIF('Certification Preparation'!$B$32:$B$420,AA32) -> 0 | AU32: =COUNTIF('Certification Preparation'!$B$32:$B$420,AB32) -> 0 | AV32: =COUNTIF('Certification Preparation'!$B$32:$B$420,AC32) -> 0 | AW32: =COUNTIF('Certification Preparation'!$B$32:$B$420,AD32) -> 0 | AX32: =COUNTIF('Certification Preparation'!$B$32:$B$420,AE32) -> 0 | AZ32: =COUNTIF('Certification Preparation'!$B$32:$B$420,AF32) -> 0 | BA32: =COUNTIF('Certification Preparation'!$B$32:$B$420,AG32) -> 0 | BB32: =COUNTIF('Certification Preparation'!$B$32:$B$420,AH32) -> 0 | BD32: SMETA.3.1.6 | BE32: =COUNTIF('Certification Preparation'!$B$32:$B$420,BD32) -> 0 | BF32: SLCP.HS-44 | BG32: =COUNTIF('Certification Preparation'!$B$32:$B$420,BF32) -> 0
A33: 32 | B33: Gold | C33: =INDEX('Certification Preparation'!G:G,MATCH(Table1[[#This Row],[C2C_Level]],'Certification Preparation'!H:H,0)) -> 3 | D33: 8.3 Assessing Risks & Opportunities | E33: =IF(Table1[[#This Row],[Column1]]<'Certification Preparation'!$G$10,"GAP","Covered") -> GAP | F33: =IF(AND('Certification Preparation'!$B$27="Yes",M33="Y",SUM(AI33:BB33)=0),"Covered","GAP") -> GAP | G33: =IF(AND('Certification Preparation'!$B$28="Yes",N33="Y",SUM(AI33:BB33)=0),"Covered","GAP") -> GAP | H33: =IF(AND('Certification Preparation'!$B$29="Yes",O33="Y",SUM(AI33:BB33)=0),"Covered","GAP") -> GAP | I33: 8.03.032 | J33: FAC_8.3.11 | K33: 1 | L33: 1. For the Gold level, high-risk components and raw materials must be identified, including the following de facto high risk items: | M33: N | N33: N | O33: N | AI33: =COUNTIF('Certification Preparation'!$B$32:$B$420,P33) -> 0 | AJ33: =COUNTIF('Certification Preparation'!$B$32:$B$420,Q33) -> 0 | AK33: =COUNTIF('Certification Preparation'!$B$32:$B$420,R33) -> 0 | AL33: =COUNTIF('Certification Preparation'!$B$32:$B$420,S33) -> 0 | AM33: =COUNTIF('Certification Preparation'!$B$32:$B$420,T33) -> 0 | AN33: =COUNTIF('Certification Preparation'!$B$32:$B$420,U33) -> 0 | AO33: =COUNTIF('Certification Preparation'!$B$32:$B$420,V33) -> 0 | AP33: =COUNTIF('Certification Preparation'!$B$32:$B$420,W33) -> 0 | AQ33: =COUNTIF('Certification Preparation'!$B$32:$B$420,X33) -> 0 | AR33: =COUNTIF('Certification Preparation'!$B$32:$B$420,Y33) -> 0 | AS33: =COUNTIF('Certification Preparation'!$B$32:$B$420,Z33) -> 0 | AT33: =COUNTIF('Certification Preparation'!$B$32:$B$420,AA33) -> 0 | AU33: =COUNTIF('Certification Preparation'!$B$32:$B$420,AB33) -> 0 | AV33: =COUNTIF('Certification Preparation'!$B$32:$B$420,AC33) -> 0 | AW33: =COUNTIF('Certification Preparation'!$B$32:$B$420,AD33) -> 0 | AX33: =COUNTIF('Certification Preparation'!$B$32:$B$420,AE33) -> 0 | AZ33: =COUNTIF('Certification Preparation'!$B$32:$B$420,AF33) -> 0 | BA33: =COUNTIF('Certification Preparation'!$B$32:$B$420,AG33) -> 0 | BB33: =COUNTIF('Certification Preparation'!$B$32:$B$420,AH33) -> 0 | BD33: SMETA.3.1.7 | BE33: =COUNTIF('Certification Preparation'!$B$32:$B$420,BD33) -> 0 | BF33: SLCP.HS-53.1 | BG33: =COUNTIF('Certification Preparation'!$B$32:$B$420,BF33) -> 0
A34: 33 | B34: Gold | C34: =INDEX('Certification Preparation'!G:G,MATCH(Table1[[#This Row],[C2C_Level]],'Certification Preparation'!H:H,0)) -> 3 | D34: 8.3 Assessing Risks & Opportunities | E34: =IF(Table1[[#This Row],[Column1]]<'Certification Preparation'!$G$10,"GAP","Covered") -> GAP | F34: =IF(AND('Certification Preparation'!$B$27="Yes",M34="Y",SUM(AI34:BB34)=0),"Covered","GAP") -> GAP | G34: =IF(AND('Certification Preparation'!$B$28="Yes",N34="Y",SUM(AI34:BB34)=0),"Covered","GAP") -> GAP | H34: =IF(AND('Certification Preparation'!$B$29="Yes",O34="Y",SUM(AI34:BB34)=0),"Covered","GAP") -> GAP | I34: 8.03.033 | J34: FAC_8.3.11a | K34: 0 | L34: a. Materials and components from source countries where there is reason to believe that child labor or forced labor is involved, and | M34: N | N34: N | O34: N | AI34: =COUNTIF('Certification Preparation'!$B$32:$B$420,P34) -> 0 | AJ34: =COUNTIF('Certification Preparation'!$B$32:$B$420,Q34) -> 0 | AK34: =COUNTIF('Certification Preparation'!$B$32:$B$420,R34) -> 0 | AL34: =COUNTIF('Certification Preparation'!$B$32:$B$420,S34) -> 0 | AM34: =COUNTIF('Certification Preparation'!$B$32:$B$420,T34) -> 0 | AN34: =COUNTIF('Certification Preparation'!$B$32:$B$420,U34) -> 0 | AO34: =COUNTIF('Certification Preparation'!$B$32:$B$420,V34) -> 0 | AP34: =COUNTIF('Certification Preparation'!$B$32:$B$420,W34) -> 0 | AQ34: =COUNTIF('Certification Preparation'!$B$32:$B$420,X34) -> 0 | AR34: =COUNTIF('Certification Preparation'!$B$32:$B$420,Y34) -> 0 | AS34: =COUNTIF('Certification Preparation'!$B$32:$B$420,Z34) -> 0 | AT34: =COUNTIF('Certification Preparation'!$B$32:$B$420,AA34) -> 0 | AU34: =COUNTIF('Certification Preparation'!$B$32:$B$420,AB34) -> 0 | AV34: =COUNTIF('Certification Preparation'!$B$32:$B$420,AC34) -> 0 | AW34: =COUNTIF('Certification Preparation'!$B$32:$B$420,AD34) -> 0 | AX34: =COUNTIF('Certification Preparation'!$B$32:$B$420,AE34) -> 0 | AZ34: =COUNTIF('Certification Preparation'!$B$32:$B$420,AF34) -> 0 | BA34: =COUNTIF('Certification Preparation'!$B$32:$B$420,AG34) -> 0 | BB34: =COUNTIF('Certification Preparation'!$B$32:$B$420,AH34) -> 0 | BD34: SMETA.3.1.9 | BE34: =COUNTIF('Certification Preparation'!$B$32:$B$420,BD34) -> 0 | BF34: SLCP.HS-53.2 | BG34: =COUNTIF('Certification Preparation'!$B$32:$B$420,BF34) -> 0
A35: 34 | B35: Gold | C35: =INDEX('Certification Preparation'!G:G,MATCH(Table1[[#This Row],[C2C_Level]],'Certification Preparation'!H:H,0)) -> 3 | D35: 8.3 Assessing Risks & Opportunities | E35: =IF(Table1[[#This Row],[Column1]]<'Certification Preparation'!$G$10,"GAP","Covered") -> GAP | F35: =IF(AND('Certification Preparation'!$B$27="Yes",M35="Y",SUM(AI35:BB35)=0),"Covered","GAP") -> GAP | G35: =IF(AND('Certification Preparation'!$B$28="Yes",N35="Y",SUM(AI35:BB35)=0),"Covered","GAP") -> GAP | H35: =IF(AND('Certification Preparation'!$B$29="Yes",O35="Y",SUM(AI35:BB35)=0),"Covered","GAP") -> GAP | I35: 8.03.034 | J35: FAC_8.3.11b | K35: 0 | L35: b. Tin, tantalum, tungsten, and gold from conflict-affected and high-risk areas. | M35: N | N35: N | O35: N | AI35: =COUNTIF('Certification Preparation'!$B$32:$B$420,P35) -> 0 | AJ35: =COUNTIF('Certification Preparation'!$B$32:$B$420,Q35) -> 0 | AK35: =COUNTIF('Certification Preparation'!$B$32:$B$420,R35) -> 0 | AL35: =COUNTIF('Certification Preparation'!$B$32:$B$420,S35) -> 0 | AM35: =COUNTIF('Certification Preparation'!$B$32:$B$420,T35) -> 0 | AN35: =COUNTIF('Certification Preparation'!$B$32:$B$420,U35) -> 0 | AO35: =COUNTIF('Certification Preparation'!$B$32:$B$420,V35) -> 0 | AP35: =COUNTIF('Certification Preparation'!$B$32:$B$420,W35) -> 0 | AQ35: =COUNTIF('Certification Preparation'!$B$32:$B$420,X35) -> 0 | AR35: =COUNTIF('Certification Preparation'!$B$32:$B$420,Y35) -> 0 | AS35: =COUNTIF('Certification Preparation'!$B$32:$B$420,Z35) -> 0 | AT35: =COUNTIF('Certification Preparation'!$B$32:$B$420,AA35) -> 0 | AU35: =COUNTIF('Certification Preparation'!$B$32:$B$420,AB35) -> 0 | AV35: =COUNTIF('Certification Preparation'!$B$32:$B$420,AC35) -> 0 | AW35: =COUNTIF('Certification Preparation'!$B$32:$B$420,AD35) -> 0 | AX35: =COUNTIF('Certification Preparation'!$B$32:$B$420,AE35) -> 0 | AZ35: =COUNTIF('Certification Preparation'!$B$32:$B$420,AF35) -> 0 | BA35: =COUNTIF('Certification Preparation'!$B$32:$B$420,AG35) -> 0 | BB35: =COUNTIF('Certification Preparation'!$B$32:$B$420,AH35) -> 0 | BD35: SMETA.3.1.10 | BE35: =COUNTIF('Certification Preparation'!$B$32:$B$420,BD35) -> 0 | BF35: SLCP.HS-53.3 | BG35: =COUNTIF('Certification Preparation'!$B$32:$B$420,BF35) -> 0
A36: 35 | B36: Gold | C36: =INDEX('Certification Preparation'!G:G,MATCH(Table1[[#This Row],[C2C_Level]],'Certification Preparation'!H:H,0)) -> 3 | D36: 8.3 Assessing Risks & Opportunities | E36: =IF(Table1[[#This Row],[Column1]]<'Certification Preparation'!$G$10,"GAP","Covered") -> GAP | F36: =IF(AND('Certification Preparation'!$B$27="Yes",M36="Y",SUM(AI36:BB36)=0),"Covered","GAP") -> GAP | G36: =IF(AND('Certification Preparation'!$B$28="Yes",N36="Y",SUM(AI36:BB36)=0),"Covered","GAP") -> GAP | H36: =IF(AND('Certification Preparation'!$B$29="Yes",O36="Y",SUM(AI36:BB36)=0),"Covered","GAP") -> GAP | I36: 8.03.035 | J36: DC_8.3.12 | K36: 0 | L36: 2. If new risks are identified, #3-6 for Bronze also apply. | M36: N | N36: N | O36: N | AI36: =COUNTIF('Certification Preparation'!$B$32:$B$420,P36) -> 0 | AJ36: =COUNTIF('Certification Preparation'!$B$32:$B$420,Q36) -> 0 | AK36: =COUNTIF('Certification Preparation'!$B$32:$B$420,R36) -> 0 | AL36: =COUNTIF('Certification Preparation'!$B$32:$B$420,S36) -> 0 | AM36: =COUNTIF('Certification Preparation'!$B$32:$B$420,T36) -> 0 | AN36: =COUNTIF('Certification Preparation'!$B$32:$B$420,U36) -> 0 | AO36: =COUNTIF('Certification Preparation'!$B$32:$B$420,V36) -> 0 | AP36: =COUNTIF('Certification Preparation'!$B$32:$B$420,W36) -> 0 | AQ36: =COUNTIF('Certification Preparation'!$B$32:$B$420,X36) -> 0 | AR36: =COUNTIF('Certification Preparation'!$B$32:$B$420,Y36) -> 0 | AS36: =COUNTIF('Certification Preparation'!$B$32:$B$420,Z36) -> 0 | AT36: =COUNTIF('Certification Preparation'!$B$32:$B$420,AA36) -> 0 | AU36: =COUNTIF('Certification Preparation'!$B$32:$B$420,AB36) -> 0 | AV36: =COUNTIF('Certification Preparation'!$B$32:$B$420,AC36) -> 0 | AW36: =COUNTIF('Certification Preparation'!$B$32:$B$420,AD36) -> 0 | AX36: =COUNTIF('Certification Preparation'!$B$32:$B$420,AE36) -> 0 | AZ36: =COUNTIF('Certification Preparation'!$B$32:$B$420,AF36) -> 0 | BA36: =COUNTIF('Certification Preparation'!$B$32:$B$420,AG36) -> 0 | BB36: =COUNTIF('Certification Preparation'!$B$32:$B$420,AH36) -> 0 | BD36: SMETA.3.2.1 | BE36: =COUNTIF('Certification Preparation'!$B$32:$B$420,BD36) -> 0
A37: 36 | B37: Gold | C37: =INDEX('Certification Preparation'!G:G,MATCH(Table1[[#This Row],[C2C_Level]],'Certification Preparation'!H:H,0)) -> 3 | D37: 8.3 Assessing Risks & Opportunities | E37: =IF(Table1[[#This Row],[Column1]]<'Certification Preparation'!$G$10,"GAP","Covered") -> GAP | F37: =IF(AND('Certification Preparation'!$B$27="Yes",M37="Y",SUM(AI37:BB37)=0),"Covered","GAP") -> GAP | G37: =IF(AND('Certification Preparation'!$B$28="Yes",N37="Y",SUM(AI37:BB37)=0),"Covered","GAP") -> GAP | H37: =IF(AND('Certification Preparation'!$B$29="Yes",O37="Y",SUM(AI37:BB37)=0),"Covered","GAP") -> GAP | I37: 8.03.036 | J37: 0 | K37: 1 | L37: FOR NEW RISKS IDENTIFIED AT GOLD LEVEL: | M37: N | N37: N | O37: N | AI37: =COUNTIF('Certification Preparation'!$B$32:$B$420,P37) -> 0 | AJ37: =COUNTIF('Certification Preparation'!$B$32:$B$420,Q37) -> 0 | AK37: =COUNTIF('Certification Preparation'!$B$32:$B$420,R37) -> 0 | AL37: =COUNTIF('Certification Preparation'!$B$32:$B$420,S37) -> 0 | AM37: =COUNTIF('Certification Preparation'!$B$32:$B$420,T37) -> 0 | AN37: =COUNTIF('Certification Preparation'!$B$32:$B$420,U37) -> 0 | AO37: =COUNTIF('Certification Preparation'!$B$32:$B$420,V37) -> 0 | AP37: =COUNTIF('Certification Preparation'!$B$32:$B$420,W37) -> 0 | AQ37: =COUNTIF('Certification Preparation'!$B$32:$B$420,X37) -> 0 | AR37: =COUNTIF('Certification Preparation'!$B$32:$B$420,Y37) -> 0 | AS37: =COUNTIF('Certification Preparation'!$B$32:$B$420,Z37) -> 0 | AT37: =COUNTIF('Certification Preparation'!$B$32:$B$420,AA37) -> 0 | AU37: =COUNTIF('Certification Preparation'!$B$32:$B$420,AB37) -> 0 | AV37: =COUNTIF('Certification Preparation'!$B$32:$B$420,AC37) -> 0 | AW37: =COUNTIF('Certification Preparation'!$B$32:$B$420,AD37) -> 0 | AX37: =COUNTIF('Certification Preparation'!$B$32:$B$420,AE37) -> 0 | AZ37: =COUNTIF('Certification Preparation'!$B$32:$B$420,AF37) -> 0 | BA37: =COUNTIF('Certification Preparation'!$B$32:$B$420,AG37) -> 0 | BB37: =COUNTIF('Certification Preparation'!$B$32:$B$420,AH37) -> 0 | BD37: SMETA.3.2.2 | BE37: =COUNTIF('Certification Preparation'!$B$32:$B$420,BD37) -> 0
A38: 37 | B38: Gold | C38: =INDEX('Certification Preparation'!G:G,MATCH(Table1[[#This Row],[C2C_Level]],'Certification Preparation'!H:H,0)) -> 3 | D38: 8.3 Assessing Risks & Opportunities | E38: =IF(Table1[[#This Row],[Column1]]<'Certification Preparation'!$G$10,"GAP","Covered") -> GAP | F38: =IF(AND('Certification Preparation'!$B$27="Yes",M38="Y",SUM(AI38:BB38)=0),"Covered","GAP") -> GAP | G38: =IF(AND('Certification Preparation'!$B$28="Yes",N38="Y",SUM(AI38:BB38)=0),"Covered","GAP") -> GAP | H38: =IF(AND('Certification Preparation'!$B$29="Yes",O38="Y",SUM(AI38:BB38)=0),"Covered","GAP") -> GAP | I38: 8.03.037 | J38: FAC_8.3.12a | K38: 0 | L38: 3. Identification of human rights due diligence best practices to address the risks. | M38: N | N38: Y | O38: N | AB38: SA8000.9.10.1b | AI38: =COUNTIF('Certification Preparation'!$B$32:$B$420,P38) -> 0 | AJ38: =COUNTIF('Certification Preparation'!$B$32:$B$420,Q38) -> 0 | AK38: =COUNTIF('Certification Preparation'!$B$32:$B$420,R38) -> 0 | AL38: =COUNTIF('Certification Preparation'!$B$32:$B$420,S38) -> 0 | AM38: =COUNTIF('Certification Preparation'!$B$32:$B$420,T38) -> 0 | AN38: =COUNTIF('Certification Preparation'!$B$32:$B$420,U38) -> 0 | AO38: =COUNTIF('Certification Preparation'!$B$32:$B$420,V38) -> 0 | AP38: =COUNTIF('Certification Preparation'!$B$32:$B$420,W38) -> 0 | AQ38: =COUNTIF('Certification Preparation'!$B$32:$B$420,X38) -> 0 | AR38: =COUNTIF('Certification Preparation'!$B$32:$B$420,Y38) -> 0 | AS38: =COUNTIF('Certification Preparation'!$B$32:$B$420,Z38) -> 0 | AT38: =COUNTIF('Certification Preparation'!$B$32:$B$420,AA38) -> 0 | AU38: =COUNTIF('Certification Preparation'!$B$32:$B$420,AB38) -> 0 | AV38: =COUNTIF('Certification Preparation'!$B$32:$B$420,AC38) -> 0 | AW38: =COUNTIF('Certification Preparation'!$B$32:$B$420,AD38) -> 0 | AX38: =COUNTIF('Certification Preparation'!$B$32:$B$420,AE38) -> 0 | AZ38: =COUNTIF('Certification Preparation'!$B$32:$B$420,AF38) -> 0 | BA38: =COUNTIF('Certification Preparation'!$B$32:$B$420,AG38) -> 0 | BB38: =COUNTIF('Certification Preparation'!$B$32:$B$420,AH38) -> 0 | BD38: SMETA.3.2.3 | BE38: =COUNTIF('Certification Preparation'!$B$32:$B$420,BD38) -> 0
A39: 38 | B39: Gold | C39: =INDEX('Certification Preparation'!G:G,MATCH(Table1[[#This Row],[C2C_Level]],'Certification Preparation'!H:H,0)) -> 3 | D39: 8.3 Assessing Risks & Opportunities | E39: =IF(Table1[[#This Row],[Column1]]<'Certification Preparation'!$G$10,"GAP","Covered") -> GAP | F39: =IF(AND('Certification Preparation'!$B$27="Yes",M39="Y",SUM(AI39:BB39)=0),"Covered","GAP") -> GAP | G39: =IF(AND('Certification Preparation'!$B$28="Yes",N39="Y",SUM(AI39:BB39)=0),"Covered","GAP") -> GAP | H39: =IF(AND('Certification Preparation'!$B$29="Yes",O39="Y",SUM(AI39:BB39)=0),"Covered","GAP") -> GAP | I39: 8.03.038 | J39: FAC_8.3.12b | K39: 0 | L39: 4. Information regarding the impact and importance of identified risks as defined by affected stakeholders, including employees of the Applicant company. | M39: N | N39: Y | O39: N | AB39: SA8000.9.10.1b | AI39: =COUNTIF('Certification Preparation'!$B$32:$B$420,P39) -> 0 | AJ39: =COUNTIF('Certification Preparation'!$B$32:$B$420,Q39) -> 0 | AK39: =COUNTIF('Certification Preparation'!$B$32:$B$420,R39) -> 0 | AL39: =COUNTIF('Certification Preparation'!$B$32:$B$420,S39) -> 0 | AM39: =COUNTIF('Certification Preparation'!$B$32:$B$420,T39) -> 0 | AN39: =COUNTIF('Certification Preparation'!$B$32:$B$420,U39) -> 0 | AO39: =COUNTIF('Certification Preparation'!$B$32:$B$420,V39) -> 0 | AP39: =COUNTIF('Certification Preparation'!$B$32:$B$420,W39) -> 0 | AQ39: =COUNTIF('Certification Preparation'!$B$32:$B$420,X39) -> 0 | AR39: =COUNTIF('Certification Preparation'!$B$32:$B$420,Y39) -> 0 | AS39: =COUNTIF('Certification Preparation'!$B$32:$B$420,Z39) -> 0 | AT39: =COUNTIF('Certification Preparation'!$B$32:$B$420,AA39) -> 0 | AU39: =COUNTIF('Certification Preparation'!$B$32:$B$420,AB39) -> 0 | AV39: =COUNTIF('Certification Preparation'!$B$32:$B$420,AC39) -> 0 | AW39: =COUNTIF('Certification Preparation'!$B$32:$B$420,AD39) -> 0 | AX39: =COUNTIF('Certification Preparation'!$B$32:$B$420,AE39) -> 0 | AZ39: =COUNTIF('Certification Preparation'!$B$32:$B$420,AF39) -> 0 | BA39: =COUNTIF('Certification Preparation'!$B$32:$B$420,AG39) -> 0 | BB39: =COUNTIF('Certification Preparation'!$B$32:$B$420,AH39) -> 0 | BD39: SMETA.3.2.4 | BE39: =COUNTIF('Certification Preparation'!$B$32:$B$420,BD39) -> 0
A40: 39 | B40: Gold | C40: =INDEX('Certification Preparation'!G:G,MATCH(Table1[[#This Row],[C2C_Level]],'Certification Preparation'!H:H,0)) -> 3 | D40: 8.3 Assessing Risks & Opportunities | E40: =IF(Table1[[#This Row],[Column1]]<'Certification Preparation'!$G$10,"GAP","Covered") -> GAP | F40: =IF(AND('Certification Preparation'!$B$27="Yes",M40="Y",SUM(AI40:BB40)=0),"Covered","GAP") -> GAP | G40: =IF(AND('Certification Preparation'!$B$28="Yes",N40="Y",SUM(AI40:BB40)=0),"Covered","GAP") -> GAP | H40: =IF(AND('Certification Preparation'!$B$29="Yes",O40="Y",SUM(AI40:BB40)=0),"Covered","GAP") -> GAP | I40: 8.03.039 | J40: FAC_8.3.12c | K40: 0 | L40: 5. Prioritization of the risks and opportunities for improvement identified. At a minimum, the following must be prioritized: | M40: N | N40: Y | O40: N | AB40: SA8000.9.10.1b | AI40: =COUNTIF('Certification Preparation'!$B$32:$B$420,P40) -> 0 | AJ40: =COUNTIF('Certification Preparation'!$B$32:$B$420,Q40) -> 0 | AK40: =COUNTIF('Certification Preparation'!$B$32:$B$420,R40) -> 0 | AL40: =COUNTIF('Certification Preparation'!$B$32:$B$420,S40) -> 0 | AM40: =COUNTIF('Certification Preparation'!$B$32:$B$420,T40) -> 0 | AN40: =COUNTIF('Certification Preparation'!$B$32:$B$420,U40) -> 0 | AO40: =COUNTIF('Certification Preparation'!$B$32:$B$420,V40) -> 0 | AP40: =COUNTIF('Certification Preparation'!$B$32:$B$420,W40) -> 0 | AQ40: =COUNTIF('Certification Preparation'!$B$32:$B$420,X40) -> 0 | AR40: =COUNTIF('Certification Preparation'!$B$32:$B$420,Y40) -> 0 | AS40: =COUNTIF('Certification Preparation'!$B$32:$B$420,Z40) -> 0 | AT40: =COUNTIF('Certification Preparation'!$B$32:$B$420,AA40) -> 0 | AU40: =COUNTIF('Certification Preparation'!$B$32:$B$420,AB40) -> 0 | AV40: =COUNTIF('Certification Preparation'!$B$32:$B$420,AC40) -> 0 | AW40: =COUNTIF('Certification Preparation'!$B$32:$B$420,AD40) -> 0 | AX40: =COUNTIF('Certification Preparation'!$B$32:$B$420,AE40) -> 0 | AZ40: =COUNTIF('Certification Preparation'!$B$32:$B$420,AF40) -> 0 | BA40: =COUNTIF('Certification Preparation'!$B$32:$B$420,AG40) -> 0 | BB40: =COUNTIF('Certification Preparation'!$B$32:$B$420,AH40) -> 0 | BD40: SMETA.3.2.5 | BE40: =COUNTIF('Certification Preparation'!$B$32:$B$420,BD40) -> 0
A41: 40 | B41: Gold | C41: =INDEX('Certification Preparation'!G:G,MATCH(Table1[[#This Row],[C2C_Level]],'Certification Preparation'!H:H,0)) -> 3 | D41: 8.3 Assessing Risks & Opportunities | E41: =IF(Table1[[#This Row],[Column1]]<'Certification Preparation'!$G$10,"GAP","Covered") -> GAP | F41: =IF(AND('Certification Preparation'!$B$27="Yes",M41="Y",SUM(AI41:BB41)=0),"Covered","GAP") -> GAP | G41: =IF(AND('Certification Preparation'!$B$28="Yes",N41="Y",SUM(AI41:BB41)=0),"Covered","GAP") -> GAP | H41: =IF(AND('Certification Preparation'!$B$29="Yes",O41="Y",SUM(AI41:BB41)=0),"Covered","GAP") -> GAP | I41: 8.03.040 | J41: FAC_8.3.12d | K41: 0 | L41: a. Well-known industry risks, | M41: N | N41: Y | O41: N | AB41: SA8000.9.10.1b | AI41: =COUNTIF('Certification Preparation'!$B$32:$B$420,P41) -> 0 | AJ41: =COUNTIF('Certification Preparation'!$B$32:$B$420,Q41) -> 0 | AK41: =COUNTIF('Certification Preparation'!$B$32:$B$420,R41) -> 0 | AL41: =COUNTIF('Certification Preparation'!$B$32:$B$420,S41) -> 0 | AM41: =COUNTIF('Certification Preparation'!$B$32:$B$420,T41) -> 0 | AN41: =COUNTIF('Certification Preparation'!$B$32:$B$420,U41) -> 0 | AO41: =COUNTIF('Certification Preparation'!$B$32:$B$420,V41) -> 0 | AP41: =COUNTIF('Certification Preparation'!$B$32:$B$420,W41) -> 0 | AQ41: =COUNTIF('Certification Preparation'!$B$32:$B$420,X41) -> 0 | AR41: =COUNTIF('Certification Preparation'!$B$32:$B$420,Y41) -> 0 | AS41: =COUNTIF('Certification Preparation'!$B$32:$B$420,Z41) -> 0 | AT41: =COUNTIF('Certification Preparation'!$B$32:$B$420,AA41) -> 0 | AU41: =COUNTIF('Certification Preparation'!$B$32:$B$420,AB41) -> 0 | AV41: =COUNTIF('Certification Preparation'!$B$32:$B$420,AC41) -> 0 | AW41: =COUNTIF('Certification Preparation'!$B$32:$B$420,AD41) -> 0 | AX41: =COUNTIF('Certification Preparation'!$B$32:$B$420,AE41) -> 0 | AZ41: =COUNTIF('Certification Preparation'!$B$32:$B$420,AF41) -> 0 | BA41: =COUNTIF('Certification Preparation'!$B$32:$B$420,AG41) -> 0 | BB41: =COUNTIF('Certification Preparation'!$B$32:$B$420,AH41) -> 0 | BD41: SMETA.3.2.6 | BE41: =COUNTIF('Certification Preparation'!$B$32:$B$420,BD41) -> 0
A42: 41 | B42: Gold | C42: =INDEX('Certification Preparation'!G:G,MATCH(Table1[[#This Row],[C2C_Level]],'Certification Preparation'!H:H,0)) -> 3 | D42: 8.3 Assessing Risks & Opportunities | E42: =IF(Table1[[#This Row],[Column1]]<'Certification Preparation'!$G$10,"GAP","Covered") -> GAP | F42: =IF(AND('Certification Preparation'!$B$27="Yes",M42="Y",SUM(AI42:BB42)=0),"Covered","GAP") -> GAP | G42: =IF(AND('Certification Preparation'!$B$28="Yes",N42="Y",SUM(AI42:BB42)=0),"Covered","GAP") -> GAP | H42: =IF(AND('Certification Preparation'!$B$29="Yes",O42="Y",SUM(AI42:BB42)=0),"Covered","GAP") -> GAP | I42: 8.03.041 | J42: FAC_8.3.12d | K42: 0 | L42: b. Human rights violations, and | M42: N | N42: Y | O42: N | AB42: SA8000.9.10.1b | AI42: =COUNTIF('Certification Preparation'!$B$32:$B$420,P42) -> 0 | AJ42: =COUNTIF('Certification Preparation'!$B$32:$B$420,Q42) -> 0 | AK42: =COUNTIF('Certification Preparation'!$B$32:$B$420,R42) -> 0 | AL42: =COUNTIF('Certification Preparation'!$B$32:$B$420,S42) -> 0 | AM42: =COUNTIF('Certification Preparation'!$B$32:$B$420,T42) -> 0 | AN42: =COUNTIF('Certification Preparation'!$B$32:$B$420,U42) -> 0 | AO42: =COUNTIF('Certification Preparation'!$B$32:$B$420,V42) -> 0 | AP42: =COUNTIF('Certification Preparation'!$B$32:$B$420,W42) -> 0 | AQ42: =COUNTIF('Certification Preparation'!$B$32:$B$420,X42) -> 0 | AR42: =COUNTIF('Certification Preparation'!$B$32:$B$420,Y42) -> 0 | AS42: =COUNTIF('Certification Preparation'!$B$32:$B$420,Z42) -> 0 | AT42: =COUNTIF('Certification Preparation'!$B$32:$B$420,AA42) -> 0 | AU42: =COUNTIF('Certification Preparation'!$B$32:$B$420,AB42) -> 0 | AV42: =COUNTIF('Certification Preparation'!$B$32:$B$420,AC42) -> 0 | AW42: =COUNTIF('Certification Preparation'!$B$32:$B$420,AD42) -> 0 | AX42: =COUNTIF('Certification Preparation'!$B$32:$B$420,AE42) -> 0 | AZ42: =COUNTIF('Certification Preparation'!$B$32:$B$420,AF42) -> 0 | BA42: =COUNTIF('Certification Preparation'!$B$32:$B$420,AG42) -> 0 | BB42: =COUNTIF('Certification Preparation'!$B$32:$B$420,AH42) -> 0 | BD42: SMETA.3.2.7 | BE42: =COUNTIF('Certification Preparation'!$B$32:$B$420,BD42) -> 0
A43: 42 | B43: Gold | C43: =INDEX('Certification Preparation'!G:G,MATCH(Table1[[#This Row],[C2C_Level]],'Certification Preparation'!H:H,0)) -> 3 | D43: 8.3 Assessing Risks & Opportunities | E43: =IF(Table1[[#This Row],[Column1]]<'Certification Preparation'!$G$10,"GAP","Covered") -> GAP | F43: =IF(AND('Certification Preparation'!$B$27="Yes",M43="Y",SUM(AI43:BB43)=0),"Covered","GAP") -> GAP | G43: =IF(AND('Certification Preparation'!$B$28="Yes",N43="Y",SUM(AI43:BB43)=0),"Covered","GAP") -> GAP | H43: =IF(AND('Certification Preparation'!$B$29="Yes",O43="Y",SUM(AI43:BB43)=0),"Covered","GAP") -> GAP | I43: 8.03.042 | J43: FAC_8.3.12e | K43: 0 | L43: c. Issues where the Applicant has substantial leverage to make improvements. | M43: N | N43: Y | O43: N | AB43: SA8000.9.10.1a | AC43: SA8000.9.10.1b | AD43: SA8000.9.10.1c | AE43: SA8000.9.10.1d | AI43: =COUNTIF('Certification Preparation'!$B$32:$B$420,P43) -> 0 | AJ43: =COUNTIF('Certification Preparation'!$B$32:$B$420,Q43) -> 0 | AK43: =COUNTIF('Certification Preparation'!$B$32:$B$420,R43) -> 0 | AL43: =COUNTIF('Certification Preparation'!$B$32:$B$420,S43) -> 0 | AM43: =COUNTIF('Certification Preparation'!$B$32:$B$420,T43) -> 0 | AN43: =COUNTIF('Certification Preparation'!$B$32:$B$420,U43) -> 0 | AO43: =COUNTIF('Certification Preparation'!$B$32:$B$420,V43) -> 0 | AP43: =COUNTIF('Certification Preparation'!$B$32:$B$420,W43) -> 0 | AQ43: =COUNTIF('Certification Preparation'!$B$32:$B$420,X43) -> 0 | AR43: =COUNTIF('Certification Preparation'!$B$32:$B$420,Y43) -> 0 | AS43: =COUNTIF('Certification Preparation'!$B$32:$B$420,Z43) -> 0 | AT43: =COUNTIF('Certification Preparation'!$B$32:$B$420,AA43) -> 0 | AU43: =COUNTIF('Certification Preparation'!$B$32:$B$420,AB43) -> 0 | AV43: =COUNTIF('Certification Preparation'!$B$32:$B$420,AC43) -> 0 | AW43: =COUNTIF('Certification Preparation'!$B$32:$B$420,AD43) -> 0 | AX43: =COUNTIF('Certification Preparation'!$B$32:$B$420,AE43) -> 0 | AZ43: =COUNTIF('Certification Preparation'!$B$32:$B$420,AF43) -> 0 | BA43: =COUNTIF('Certification Preparation'!$B$32:$B$420,AG43) -> 0 | BB43: =COUNTIF('Certification Preparation'!$B$32:$B$420,AH43) -> 0 | BD43: SMETA.3.2.8 | BE43: =COUNTIF('Certification Preparation'!$B$32:$B$420,BD43) -> 0
A44: 43 | B44: Gold | C44: =INDEX('Certification Preparation'!G:G,MATCH(Table1[[#This Row],[C2C_Level]],'Certification Preparation'!H:H,0)) -> 3 | D44: 8.3 Assessing Risks & Opportunities | E44: =IF(Table1[[#This Row],[Column1]]<'Certification Preparation'!$G$10,"GAP","Covered") -> GAP | F44: =IF(AND('Certification Preparation'!$B$27="Yes",M44="Y",SUM(AI44:BB44)=0),"Covered","GAP") -> GAP | G44: =IF(AND('Certification Preparation'!$B$28="Yes",N44="Y",SUM(AI44:BB44)=0),"Covered","GAP") -> GAP | H44: =IF(AND('Certification Preparation'!$B$29="Yes",O44="Y",SUM(AI44:BB44)=0),"Covered","GAP") -> GAP | I44: 8.03.043 | J44: FAC_8.3.12f | K44: 0 | L44: 6. Testing the results of the assessment with internal audience(s) to validate the outcome | M44: N | N44: Y | O44: N | AB44: SA8000.9.3.1 | AI44: =COUNTIF('Certification Preparation'!$B$32:$B$420,P44) -> 0 | AJ44: =COUNTIF('Certification Preparation'!$B$32:$B$420,Q44) -> 0 | AK44: =COUNTIF('Certification Preparation'!$B$32:$B$420,R44) -> 0 | AL44: =COUNTIF('Certification Preparation'!$B$32:$B$420,S44) -> 0 | AM44: =COUNTIF('Certification Preparation'!$B$32:$B$420,T44) -> 0 | AN44: =COUNTIF('Certification Preparation'!$B$32:$B$420,U44) -> 0 | AO44: =COUNTIF('Certification Preparation'!$B$32:$B$420,V44) -> 0 | AP44: =COUNTIF('Certification Preparation'!$B$32:$B$420,W44) -> 0 | AQ44: =COUNTIF('Certification Preparation'!$B$32:$B$420,X44) -> 0 | AR44: =COUNTIF('Certification Preparation'!$B$32:$B$420,Y44) -> 0 | AS44: =COUNTIF('Certification Preparation'!$B$32:$B$420,Z44) -> 0 | AT44: =COUNTIF('Certification Preparation'!$B$32:$B$420,AA44) -> 0 | AU44: =COUNTIF('Certification Preparation'!$B$32:$B$420,AB44) -> 0 | AV44: =COUNTIF('Certification Preparation'!$B$32:$B$420,AC44) -> 0 | AW44: =COUNTIF('Certification Preparation'!$B$32:$B$420,AD44) -> 0 | AX44: =COUNTIF('Certification Preparation'!$B$32:$B$420,AE44) -> 0 | AZ44: =COUNTIF('Certification Preparation'!$B$32:$B$420,AF44) -> 0 | BA44: =COUNTIF('Certification Preparation'!$B$32:$B$420,AG44) -> 0 | BB44: =COUNTIF('Certification Preparation'!$B$32:$B$420,AH44) -> 0 | BD44: SMETA.3.2.9 | BE44: =COUNTIF('Certification Preparation'!$B$32:$B$420,BD44) -> 0
A45: 44 | B45: Bronze | C45: =INDEX('Certification Preparation'!G:G,MATCH(Table1[[#This Row],[C2C_Level]],'Certification Preparation'!H:H,0)) -> 1 | D45: 8.4 Human Rights Policy | E45: =IF(Table1[[#This Row],[Column1]]<'Certification Preparation'!$G$10,"GAP","Covered") -> GAP | F45: =IF(AND('Certification Preparation'!$B$27="Yes",M45="Y",SUM(AI45:BB45)=0),"Covered","GAP") -> GAP | G45: =IF(AND('Certification Preparation'!$B$28="Yes",N45="Y",SUM(AI45:BB45)=0),"Covered","GAP") -> GAP | H45: =IF(AND('Certification Preparation'!$B$29="Yes",O45="Y",SUM(AI45:BB45)=0),"Covered","GAP") -> GAP | I45: 8.04.001 | J45: FAC_8.4 | K45: 0 | L45: Commit to respect human rights, as enshrined in municipal law and internationally recognized human rights standards, through company policy. | M45: Y | N45: Y | O45: Y | P45: SMETA.0.09 | Q45: SMETA.0.1 | AB45: SA8000.9.1.2 | AF45: SLCP.MS-1.1 | AI45: =COUNTIF('Certification Preparation'!$B$32:$B$420,P45) -> 0 | AJ45: =COUNTIF('Certification Preparation'!$B$32:$B$420,Q45) -> 0 | AK45: =COUNTIF('Certification Preparation'!$B$32:$B$420,R45) -> 0 | AL45: =COUNTIF('Certification Preparation'!$B$32:$B$420,S45) -> 0 | AM45: =COUNTIF('Certification Preparation'!$B$32:$B$420,T45) -> 0 | AN45: =COUNTIF('Certification Preparation'!$B$32:$B$420,U45) -> 0 | AO45: =COUNTIF('Certification Preparation'!$B$32:$B$420,V45) -> 0 | AP45: =COUNTIF('Certification Preparation'!$B$32:$B$420,W45) -> 0 | AQ45: =COUNTIF('Certification Preparation'!$B$32:$B$420,X45) -> 0 | AR45: =COUNTIF('Certification Preparation'!$B$32:$B$420,Y45) -> 0 | AS45: =COUNTIF('Certification Preparation'!$B$32:$B$420,Z45) -> 0 | AT45: =COUNTIF('Certification Preparation'!$B$32:$B$420,AA45) -> 0 | AU45: =COUNTIF('Certification Preparation'!$B$32:$B$420,AB45) -> 0 | AV45: =COUNTIF('Certification Preparation'!$B$32:$B$420,AC45) -> 0 | AW45: =COUNTIF('Certification Preparation'!$B$32:$B$420,AD45) -> 0 | AX45: =COUNTIF('Certification Preparation'!$B$32:$B$420,AE45) -> 0 | AZ45: =COUNTIF('Certification Preparation'!$B$32:$B$420,AF45) -> 0 | BA45: =COUNTIF('Certification Preparation'!$B$32:$B$420,AG45) -> 0 | BB45: =COUNTIF('Certification Preparation'!$B$32:$B$420,AH45) -> 0 | BD45: SMETA.3.2.10 | BE45: =COUNTIF('Certification Preparation'!$B$32:$B$420,BD45) -> 0
A46: 45 | B46: Bronze | C46: =INDEX('Certification Preparation'!G:G,MATCH(Table1[[#This Row],[C2C_Level]],'Certification Preparation'!H:H,0)) -> 1 | D46: 8.4 Human Rights Policy | E46: =IF(Table1[[#This Row],[Column1]]<'Certification Preparation'!$G$10,"GAP","Covered") -> GAP | F46: =IF(AND('Certification Preparation'!$B$27="Yes",M46="Y",SUM(AI46:BB46)=0),"Covered","GAP") -> GAP | G46: =IF(AND('Certification Preparation'!$B$28="Yes",N46="Y",SUM(AI46:BB46)=0),"Covered","GAP") -> GAP | H46: =IF(AND('Certification Preparation'!$B$29="Yes",O46="Y",SUM(AI46:BB46)=0),"Covered","GAP") -> GAP | I46: 8.04.002 | J46: DC_8.4 | K46: 1 | L46: The policy must: | M46: N | N46: N | O46: N | AI46: =COUNTIF('Certification Preparation'!$B$32:$B$420,P46) -> 0 | AJ46: =COUNTIF('Certification Preparation'!$B$32:$B$420,Q46) -> 0 | AK46: =COUNTIF('Certification Preparation'!$B$32:$B$420,R46) -> 0 | AL46: =COUNTIF('Certification Preparation'!$B$32:$B$420,S46) -> 0 | AM46: =COUNTIF('Certification Preparation'!$B$32:$B$420,T46) -> 0 | AN46: =COUNTIF('Certification Preparation'!$B$32:$B$420,U46) -> 0 | AO46: =COUNTIF('Certification Preparation'!$B$32:$B$420,V46) -> 0 | AP46: =COUNTIF('Certification Preparation'!$B$32:$B$420,W46) -> 0 | AQ46: =COUNTIF('Certification Preparation'!$B$32:$B$420,X46) -> 0 | AR46: =COUNTIF('Certification Preparation'!$B$32:$B$420,Y46) -> 0 | AS46: =COUNTIF('Certification Preparation'!$B$32:$B$420,Z46) -> 0 | AT46: =COUNTIF('Certification Preparation'!$B$32:$B$420,AA46) -> 0 | AU46: =COUNTIF('Certification Preparation'!$B$32:$B$420,AB46) -> 0 | AV46: =COUNTIF('Certification Preparation'!$B$32:$B$420,AC46) -> 0 | AW46: =COUNTIF('Certification Preparation'!$B$32:$B$420,AD46) -> 0 | AX46: =COUNTIF('Certification Preparation'!$B$32:$B$420,AE46) -> 0 | AZ46: =COUNTIF('Certification Preparation'!$B$32:$B$420,AF46) -> 0 | BA46: =COUNTIF('Certification Preparation'!$B$32:$B$420,AG46) -> 0 | BB46: =COUNTIF('Certification Preparation'!$B$32:$B$420,AH46) -> 0 | BD46: SMETA.3.2.11 | BE46: =COUNTIF('Certification Preparation'!$B$32:$B$420,BD46) -> 0
A47: 46 | B47: Bronze | C47: =INDEX('Certification Preparation'!G:G,MATCH(Table1[[#This Row],[C2C_Level]],'Certification Preparation'!H:H,0)) -> 1 | D47: 8.4 Human Rights Policy | E47: =IF(Table1[[#This Row],[Column1]]<'Certification Preparation'!$G$10,"GAP","Covered") -> GAP | F47: =IF(AND('Certification Preparation'!$B$27="Yes",M47="Y",SUM(AI47:BB47)=0),"Covered","GAP") -> GAP | G47: =IF(AND('Certification Preparation'!$B$28="Yes",N47="Y",SUM(AI47:BB47)=0),"Covered","GAP") -> GAP | H47: =IF(AND('Certification Preparation'!$B$29="Yes",O47="Y",SUM(AI47:BB47)=0),"Covered","GAP") -> GAP | I47: 8.04.003 | J47: FAC_8.4.1 | K47: 0 | L47: 1. Establish human rights expectations for the Applicant company, the supply chain, communities, potentially affected groups, and other relevant stakeholders. | M47: Y | N47: Y | O47: Y | P47: SMETA.0.09 | Q47: SMETA.0.22 | R47: SMETA.11.02 | AB47: SA8000.9.1.3 | AC47: SA8000.9.1.3 | AF47: SLCP.MS-1.1 | AG47: SLCP.MS1-15 | AI47: =COUNTIF('Certification Preparation'!$B$32:$B$420,P47) -> 0 | AJ47: =COUNTIF('Certification Preparation'!$B$32:$B$420,Q47) -> 0 | AK47: =COUNTIF('Certification Preparation'!$B$32:$B$420,R47) -> 0 | AL47: =COUNTIF('Certification Preparation'!$B$32:$B$420,S47) -> 0 | AM47: =COUNTIF('Certification Preparation'!$B$32:$B$420,T47) -> 0 | AN47: =COUNTIF('Certification Preparation'!$B$32:$B$420,U47) -> 0 | AO47: =COUNTIF('Certification Preparation'!$B$32:$B$420,V47) -> 0 | AP47: =COUNTIF('Certification Preparation'!$B$32:$B$420,W47) -> 0 | AQ47: =COUNTIF('Certification Preparation'!$B$32:$B$420,X47) -> 0 | AR47: =COUNTIF('Certification Preparation'!$B$32:$B$420,Y47) -> 0 | AS47: =COUNTIF('Certification Preparation'!$B$32:$B$420,Z47) -> 0 | AT47: =COUNTIF('Certification Preparation'!$B$32:$B$420,AA47) -> 0 | AU47: =COUNTIF('Certification Preparation'!$B$32:$B$420,AB47) -> 0 | AV47: =COUNTIF('Certification Preparation'!$B$32:$B$420,AC47) -> 0 | AW47: =COUNTIF('Certification Preparation'!$B$32:$B$420,AD47) -> 0 | AX47: =COUNTIF('Certification Preparation'!$B$32:$B$420,AE47) -> 0 | AZ47: =COUNTIF('Certification Preparation'!$B$32:$B$420,AF47) -> 0 | BA47: =COUNTIF('Certification Preparation'!$B$32:$B$420,AG47) -> 0 | BB47: =COUNTIF('Certification Preparation'!$B$32:$B$420,AH47) -> 0 | BD47: SMETA.3.2.12 | BE47: =COUNTIF('Certification Preparation'!$B$32:$B$420,BD47) -> 0
A48: 47 | B48: Bronze | C48: =INDEX('Certification Preparation'!G:G,MATCH(Table1[[#This Row],[C2C_Level]],'Certification Preparation'!H:H,0)) -> 1 | D48: 8.4 Human Rights Policy | E48: =IF(Table1[[#This Row],[Column1]]<'Certification Preparation'!$G$10,"GAP","Covered") -> GAP | F48: =IF(AND('Certification Preparation'!$B$27="Yes",M48="Y",SUM(AI48:BB48)=0),"Covered","GAP") -> GAP | G48: =IF(AND('Certification Preparation'!$B$28="Yes",N48="Y",SUM(AI48:BB48)=0),"Covered","GAP") -> GAP | H48: =IF(AND('Certification Preparation'!$B$29="Yes",O48="Y",SUM(AI48:BB48)=0),"Covered","GAP") -> GAP | I48: 8.04.004 | J48: DC_8.4.2 | K48: 1 | L48: 2. Include the company’s commitment to support the following (note: these are the expectations that must be established and are referred to as ‘required policy elements’ in other sections of the standard): | M48: N | N48: N | O48: N | AI48: =COUNTIF('Certification Preparation'!$B$32:$B$420,P48) -> 0 | AJ48: =COUNTIF('Certification Preparation'!$B$32:$B$420,Q48) -> 0 | AK48: =COUNTIF('Certification Preparation'!$B$32:$B$420,R48) -> 0 | AL48: =COUNTIF('Certification Preparation'!$B$32:$B$420,S48) -> 0 | AM48: =COUNTIF('Certification Preparation'!$B$32:$B$420,T48) -> 0 | AN48: =COUNTIF('Certification Preparation'!$B$32:$B$420,U48) -> 0 | AO48: =COUNTIF('Certification Preparation'!$B$32:$B$420,V48) -> 0 | AP48: =COUNTIF('Certification Preparation'!$B$32:$B$420,W48) -> 0 | AQ48: =COUNTIF('Certification Preparation'!$B$32:$B$420,X48) -> 0 | AR48: =COUNTIF('Certification Preparation'!$B$32:$B$420,Y48) -> 0 | AS48: =COUNTIF('Certification Preparation'!$B$32:$B$420,Z48) -> 0 | AT48: =COUNTIF('Certification Preparation'!$B$32:$B$420,AA48) -> 0 | AU48: =COUNTIF('Certification Preparation'!$B$32:$B$420,AB48) -> 0 | AV48: =COUNTIF('Certification Preparation'!$B$32:$B$420,AC48) -> 0 | AW48: =COUNTIF('Certification Preparation'!$B$32:$B$420,AD48) -> 0 | AX48: =COUNTIF('Certification Preparation'!$B$32:$B$420,AE48) -> 0 | AZ48: =COUNTIF('Certification Preparation'!$B$32:$B$420,AF48) -> 0 | BA48: =COUNTIF('Certification Preparation'!$B$32:$B$420,AG48) -> 0 | BB48: =COUNTIF('Certification Preparation'!$B$32:$B$420,AH48) -> 0 | BD48: SMETA.3.2.13 | BE48: =COUNTIF('Certification Preparation'!$B$32:$B$420,BD48) -> 0
A49: 48 | B49: Bronze | C49: =INDEX('Certification Preparation'!G:G,MATCH(Table1[[#This Row],[C2C_Level]],'Certification Preparation'!H:H,0)) -> 1 | D49: 8.4 Human Rights Policy | E49: =IF(Table1[[#This Row],[Column1]]<'Certification Preparation'!$G$10,"GAP","Covered") -> GAP | F49: =IF(AND('Certification Preparation'!$B$27="Yes",M49="Y",SUM(AI49:BB49)=0),"Covered","GAP") -> GAP | G49: =IF(AND('Certification Preparation'!$B$28="Yes",N49="Y",SUM(AI49:BB49)=0),"Covered","GAP") -> GAP | H49: =IF(AND('Certification Preparation'!$B$29="Yes",O49="Y",SUM(AI49:BB49)=0),"Covered","GAP") -> GAP | I49: 8.04.005 | J49: FAC_8.4.2a | K49: 0 | L49: a. Elimination of discrimination with respect to employment and occupation including but not limited to ethnicity-, race-, and gender-based discrimination, | M49: Y | N49: Y | O49: Y | P49: SMETA.7.03 | Q49: SMETA.7.16 | AB49: SA8000.9.1.2 | AF49: SLCP.MS-1.2 | AG49: SLCP.MS-1.6 | AI49: =COUNTIF('Certification Preparation'!$B$32:$B$420,P49) -> 0 | AJ49: =COUNTIF('Certification Preparation'!$B$32:$B$420,Q49) -> 0 | AK49: =COUNTIF('Certification Preparation'!$B$32:$B$420,R49) -> 0 | AL49: =COUNTIF('Certification Preparation'!$B$32:$B$420,S49) -> 0 | AM49: =COUNTIF('Certification Preparation'!$B$32:$B$420,T49) -> 0 | AN49: =COUNTIF('Certification Preparation'!$B$32:$B$420,U49) -> 0 | AO49: =COUNTIF('Certification Preparation'!$B$32:$B$420,V49) -> 0 | AP49: =COUNTIF('Certification Preparation'!$B$32:$B$420,W49) -> 0 | AQ49: =COUNTIF('Certification Preparation'!$B$32:$B$420,X49) -> 0 | AR49: =COUNTIF('Certification Preparation'!$B$32:$B$420,Y49) -> 0 | AS49: =COUNTIF('Certification Preparation'!$B$32:$B$420,Z49) -> 0 | AT49: =COUNTIF('Certification Preparation'!$B$32:$B$420,AA49) -> 0 | AU49: =COUNTIF('Certification Preparation'!$B$32:$B$420,AB49) -> 0 | AV49: =COUNTIF('Certification Preparation'!$B$32:$B$420,AC49) -> 0 | AW49: =COUNTIF('Certification Preparation'!$B$32:$B$420,AD49) -> 0 | AX49: =COUNTIF('Certification Preparation'!$B$32:$B$420,AE49) -> 0 | AZ49: =COUNTIF('Certification Preparation'!$B$32:$B$420,AF49) -> 0 | BA49: =COUNTIF('Certification Preparation'!$B$32:$B$420,AG49) -> 0 | BB49: =COUNTIF('Certification Preparation'!$B$32:$B$420,AH49) -> 0 | BD49: SMETA.3.2.14 | BE49: =COUNTIF('Certification Preparation'!$B$32:$B$420,BD49) -> 0
A50: 49 | B50: Bronze | C50: =INDEX('Certification Preparation'!G:G,MATCH(Table1[[#This Row],[C2C_Level]],'Certification Preparation'!H:H,0)) -> 1 | D50: 8.4 Human Rights Policy | E50: =IF(Table1[[#This Row],[Column1]]<'Certification Preparation'!$G$10,"GAP","Covered") -> GAP | F50: =IF(AND('Certification Preparation'!$B$27="Yes",M50="Y",SUM(AI50:BB50)=0),"Covered","GAP") -> GAP | G50: =IF(AND('Certification Preparation'!$B$28="Yes",N50="Y",SUM(AI50:BB50)=0),"Covered","GAP") -> GAP | H50: =IF(AND('Certification Preparation'!$B$29="Yes",O50="Y",SUM(AI50:BB50)=0),"Covered","GAP") -> GAP | I50: 8.04.006 | J50: FAC_8.4.2b | K50: 0 | L50: b. Elimination of harassment and abuse, | M50: Y | N50: Y | O50: Y | P50: SMETA.9.01 | AB50: SA8000.4.3 | AC50: SA8000.5.3 | AF50: SLCP.MS-1.5 | AI50: =COUNTIF('Certification Preparation'!$B$32:$B$420,P50) -> 0 | AJ50: =COUNTIF('Certification Preparation'!$B$32:$B$420,Q50) -> 0 | AK50: =COUNTIF('Certification Preparation'!$B$32:$B$420,R50) -> 0 | AL50: =COUNTIF('Certification Preparation'!$B$32:$B$420,S50) -> 0 | AM50: =COUNTIF('Certification Preparation'!$B$32:$B$420,T50) -> 0 | AN50: =COUNTIF('Certification Preparation'!$B$32:$B$420,U50) -> 0 | AO50: =COUNTIF('Certification Preparation'!$B$32:$B$420,V50) -> 0 | AP50: =COUNTIF('Certification Preparation'!$B$32:$B$420,W50) -> 0 | AQ50: =COUNTIF('Certification Preparation'!$B$32:$B$420,X50) -> 0 | AR50: =COUNTIF('Certification Preparation'!$B$32:$B$420,Y50) -> 0 | AS50: =COUNTIF('Certification Preparation'!$B$32:$B$420,Z50) -> 0 | AT50: =COUNTIF('Certification Preparation'!$B$32:$B$420,AA50) -> 0 | AU50: =COUNTIF('Certification Preparation'!$B$32:$B$420,AB50) -> 0 | AV50: =COUNTIF('Certification Preparation'!$B$32:$B$420,AC50) -> 0 | AW50: =COUNTIF('Certification Preparation'!$B$32:$B$420,AD50) -> 0 | AX50: =COUNTIF('Certification Preparation'!$B$32:$B$420,AE50) -> 0 | AZ50: =COUNTIF('Certification Preparation'!$B$32:$B$420,AF50) -> 0 | BA50: =COUNTIF('Certification Preparation'!$B$32:$B$420,AG50) -> 0 | BB50: =COUNTIF('Certification Preparation'!$B$32:$B$420,AH50) -> 0 | BD50: SMETA.3.2.15 | BE50: =COUNTIF('Certification Preparation'!$B$32:$B$420,BD50) -> 0
A51: 50 | B51: Bronze | C51: =INDEX('Certification Preparation'!G:G,MATCH(Table1[[#This Row],[C2C_Level]],'Certification Preparation'!H:H,0)) -> 1 | D51: 8.4 Human Rights Policy | E51: =IF(Table1[[#This Row],[Column1]]<'Certification Preparation'!$G$10,"GAP","Covered") -> GAP | F51: =IF(AND('Certification Preparation'!$B$27="Yes",M51="Y",SUM(AI51:BB51)=0),"Covered","GAP") -> GAP | G51: =IF(AND('Certification Preparation'!$B$28="Yes",N51="Y",SUM(AI51:BB51)=0),"Covered","GAP") -> GAP | H51: =IF(AND('Certification Preparation'!$B$29="Yes",O51="Y",SUM(AI51:BB51)=0),"Covered","GAP") -> GAP | I51: 8.04.007 | J51: FAC_8.4.2c | K51: 0 | L51: c. Elimination of all forms of forced or compulsory labor, or activities that are known to lead to forced labor (e.g. human trafficking), | M51: Y | N51: Y | O51: Y | P51: SMETA.1.1 | AB51: SA8000.2.1 | AF51: SLCP.MS-1.4 | AI51: =COUNTIF('Certification Preparation'!$B$32:$B$420,P51) -> 0 | AJ51: =COUNTIF('Certification Preparation'!$B$32:$B$420,Q51) -> 0 | AK51: =COUNTIF('Certification Preparation'!$B$32:$B$420,R51) -> 0 | AL51: =COUNTIF('Certification Preparation'!$B$32:$B$420,S51) -> 0 | AM51: =COUNTIF('Certification Preparation'!$B$32:$B$420,T51) -> 0 | AN51: =COUNTIF('Certification Preparation'!$B$32:$B$420,U51) -> 0 | AO51: =COUNTIF('Certification Preparation'!$B$32:$B$420,V51) -> 0 | AP51: =COUNTIF('Certification Preparation'!$B$32:$B$420,W51) -> 0 | AQ51: =COUNTIF('Certification Preparation'!$B$32:$B$420,X51) -> 0 | AR51: =COUNTIF('Certification Preparation'!$B$32:$B$420,Y51) -> 0 | AS51: =COUNTIF('Certification Preparation'!$B$32:$B$420,Z51) -> 0 | AT51: =COUNTIF('Certification Preparation'!$B$32:$B$420,AA51) -> 0 | AU51: =COUNTIF('Certification Preparation'!$B$32:$B$420,AB51) -> 0 | AV51: =COUNTIF('Certification Preparation'!$B$32:$B$420,AC51) -> 0 | AW51: =COUNTIF('Certification Preparation'!$B$32:$B$420,AD51) -> 0 | AX51: =COUNTIF('Certification Preparation'!$B$32:$B$420,AE51) -> 0 | AZ51: =COUNTIF('Certification Preparation'!$B$32:$B$420,AF51) -> 0 | BA51: =COUNTIF('Certification Preparation'!$B$32:$B$420,AG51) -> 0 | BB51: =COUNTIF('Certification Preparation'!$B$32:$B$420,AH51) -> 0 | BD51: SMETA.3.2.16 | BE51: =COUNTIF('Certification Preparation'!$B$32:$B$420,BD51) -> 0
A52: 51 | B52: Bronze | C52: =INDEX('Certification Preparation'!G:G,MATCH(Table1[[#This Row],[C2C_Level]],'Certification Preparation'!H:H,0)) -> 1 | D52: 8.4 Human Rights Policy | E52: =IF(Table1[[#This Row],[Column1]]<'Certification Preparation'!$G$10,"GAP","Covered") -> GAP | F52: =IF(AND('Certification Preparation'!$B$27="Yes",M52="Y",SUM(AI52:BB52)=0),"Covered","GAP") -> GAP | G52: =IF(AND('Certification Preparation'!$B$28="Yes",N52="Y",SUM(AI52:BB52)=0),"Covered","GAP") -> GAP | H52: =IF(AND('Certification Preparation'!$B$29="Yes",O52="Y",SUM(AI52:BB52)=0),"Covered","GAP") -> GAP | I52: 8.04.008 | J52: FAC_8.4.2d | K52: 0 | L52: d. The abolition of child labor and adequate protections for workers above the legal working age and below age 18, | M52: Y | N52: Y | O52: Y | P52: SMETA.4.01 | Q52: SMETA.4.13 | AB52: SA8000.9.1.2 | AF52: SLCP.MS-1.3 | AI52: =COUNTIF('Certification Preparation'!$B$32:$B$420,P52) -> 0 | AJ52: =COUNTIF('Certification Preparation'!$B$32:$B$420,Q52) -> 0 | AK52: =COUNTIF('Certification Preparation'!$B$32:$B$420,R52) -> 0 | AL52: =COUNTIF('Certification Preparation'!$B$32:$B$420,S52) -> 0 | AM52: =COUNTIF('Certification Preparation'!$B$32:$B$420,T52) -> 0 | AN52: =COUNTIF('Certification Preparation'!$B$32:$B$420,U52) -> 0 | AO52: =COUNTIF('Certification Preparation'!$B$32:$B$420,V52) -> 0 | AP52: =COUNTIF('Certification Preparation'!$B$32:$B$420,W52) -> 0 | AQ52: =COUNTIF('Certification Preparation'!$B$32:$B$420,X52) -> 0 | AR52: =COUNTIF('Certification Preparation'!$B$32:$B$420,Y52) -> 0 | AS52: =COUNTIF('Certification Preparation'!$B$32:$B$420,Z52) -> 0 | AT52: =COUNTIF('Certification Preparation'!$B$32:$B$420,AA52) -> 0 | AU52: =COUNTIF('Certification Preparation'!$B$32:$B$420,AB52) -> 0 | AV52: =COUNTIF('Certification Preparation'!$B$32:$B$420,AC52) -> 0 | AW52: =COUNTIF('Certification Preparation'!$B$32:$B$420,AD52) -> 0 | AX52: =COUNTIF('Certification Preparation'!$B$32:$B$420,AE52) -> 0 | AZ52: =COUNTIF('Certification Preparation'!$B$32:$B$420,AF52) -> 0 | BA52: =COUNTIF('Certification Preparation'!$B$32:$B$420,AG52) -> 0 | BB52: =COUNTIF('Certification Preparation'!$B$32:$B$420,AH52) -> 0 | BD52: SMETA.3.2.17 | BE52: =COUNTIF('Certification Preparation'!$B$32:$B$420,BD52) -> 0
A53: 52 | B53: Bronze | C53: =INDEX('Certification Preparation'!G:G,MATCH(Table1[[#This Row],[C2C_Level]],'Certification Preparation'!H:H,0)) -> 1 | D53: 8.4 Human Rights Policy | E53: =IF(Table1[[#This Row],[Column1]]<'Certification Preparation'!$G$10,"GAP","Covered") -> GAP | F53: =IF(AND('Certification Preparation'!$B$27="Yes",M53="Y",SUM(AI53:BB53)=0),"Covered","GAP") -> GAP | G53: =IF(AND('Certification Preparation'!$B$28="Yes",N53="Y",SUM(AI53:BB53)=0),"Covered","GAP") -> GAP | H53: =IF(AND('Certification Preparation'!$B$29="Yes",O53="Y",SUM(AI53:BB53)=0),"Covered","GAP") -> GAP | I53: 8.04.009 | J53: FAC_8.4.2e | K53: 0 | L53: e. Prevention of excessive working hours, | M53: Y | N53: Y | O53: Y | P53: SMETA.6.06 | Q53: SMETA.6.07 | R53: SMETA.6.09 | AB53: SA8000.9.1.2 | AF53: SLCP.MS-1.7 | AI53: =COUNTIF('Certification Preparation'!$B$32:$B$420,P53) -> 0 | AJ53: =COUNTIF('Certification Preparation'!$B$32:$B$420,Q53) -> 0 | AK53: =COUNTIF('Certification Preparation'!$B$32:$B$420,R53) -> 0 | AL53: =COUNTIF('Certification Preparation'!$B$32:$B$420,S53) -> 0 | AM53: =COUNTIF('Certification Preparation'!$B$32:$B$420,T53) -> 0 | AN53: =COUNTIF('Certification Preparation'!$B$32:$B$420,U53) -> 0 | AO53: =COUNTIF('Certification Preparation'!$B$32:$B$420,V53) -> 0 | AP53: =COUNTIF('Certification Preparation'!$B$32:$B$420,W53) -> 0 | AQ53: =COUNTIF('Certification Preparation'!$B$32:$B$420,X53) -> 0 | AR53: =COUNTIF('Certification Preparation'!$B$32:$B$420,Y53) -> 0 | AS53: =COUNTIF('Certification Preparation'!$B$32:$B$420,Z53) -> 0 | AT53: =COUNTIF('Certification Preparation'!$B$32:$B$420,AA53) -> 0 | AU53: =COUNTIF('Certification Preparation'!$B$32:$B$420,AB53) -> 0 | AV53: =COUNTIF('Certification Preparation'!$B$32:$B$420,AC53) -> 0 | AW53: =COUNTIF('Certification Preparation'!$B$32:$B$420,AD53) -> 0 | AX53: =COUNTIF('Certification Preparation'!$B$32:$B$420,AE53) -> 0 | AZ53: =COUNTIF('Certification Preparation'!$B$32:$B$420,AF53) -> 0 | BA53: =COUNTIF('Certification Preparation'!$B$32:$B$420,AG53) -> 0 | BB53: =COUNTIF('Certification Preparation'!$B$32:$B$420,AH53) -> 0 | BD53: SMETA.3.2.18 | BE53: =COUNTIF('Certification Preparation'!$B$32:$B$420,BD53) -> 0
A54: 53 | B54: Bronze | C54: =INDEX('Certification Preparation'!G:G,MATCH(Table1[[#This Row],[C2C_Level]],'Certification Preparation'!H:H,0)) -> 1 | D54: 8.4 Human Rights Policy | E54: =IF(Table1[[#This Row],[Column1]]<'Certification Preparation'!$G$10,"GAP","Covered") -> GAP | F54: =IF(AND('Certification Preparation'!$B$27="Yes",M54="Y",SUM(AI54:BB54)=0),"Covered","GAP") -> GAP | G54: =IF(AND('Certification Preparation'!$B$28="Yes",N54="Y",SUM(AI54:BB54)=0),"Covered","GAP") -> GAP | H54: =IF(AND('Certification Preparation'!$B$29="Yes",O54="Y",SUM(AI54:BB54)=0),"Covered","GAP") -> GAP | I54: 8.04.010 | J54: FAC_8.4.2f | K54: 0 | L54: f. Freedom of association and collective bargaining, | M54: Y | N54: Y | O54: Y | P54: SMETA.2.2 | AB54: SA8000.9.1.2 | AF54: SLCP.MS-1.10 | AI54: =COUNTIF('Certification Preparation'!$B$32:$B$420,P54) -> 0 | AJ54: =COUNTIF('Certification Preparation'!$B$32:$B$420,Q54) -> 0 | AK54: =COUNTIF('Certification Preparation'!$B$32:$B$420,R54) -> 0 | AL54: =COUNTIF('Certification Preparation'!$B$32:$B$420,S54) -> 0 | AM54: =COUNTIF('Certification Preparation'!$B$32:$B$420,T54) -> 0 | AN54: =COUNTIF('Certification Preparation'!$B$32:$B$420,U54) -> 0 | AO54: =COUNTIF('Certification Preparation'!$B$32:$B$420,V54) -> 0 | AP54: =COUNTIF('Certification Preparation'!$B$32:$B$420,W54) -> 0 | AQ54: =COUNTIF('Certification Preparation'!$B$32:$B$420,X54) -> 0 | AR54: =COUNTIF('Certification Preparation'!$B$32:$B$420,Y54) -> 0 | AS54: =COUNTIF('Certification Preparation'!$B$32:$B$420,Z54) -> 0 | AT54: =COUNTIF('Certification Preparation'!$B$32:$B$420,AA54) -> 0 | AU54: =COUNTIF('Certification Preparation'!$B$32:$B$420,AB54) -> 0 | AV54: =COUNTIF('Certification Preparation'!$B$32:$B$420,AC54) -> 0 | AW54: =COUNTIF('Certification Preparation'!$B$32:$B$420,AD54) -> 0 | AX54: =COUNTIF('Certification Preparation'!$B$32:$B$420,AE54) -> 0 | AZ54: =COUNTIF('Certification Preparation'!$B$32:$B$420,AF54) -> 0 | BA54: =COUNTIF('Certification Preparation'!$B$32:$B$420,AG54) -> 0 | BB54: =COUNTIF('Certification Preparation'!$B$32:$B$420,AH54) -> 0 | BD54: SMETA.3.2.19 | BE54: =COUNTIF('Certification Preparation'!$B$32:$B$420,BD54) -> 0
A55: 54 | B55: Bronze | C55: =INDEX('Certification Preparation'!G:G,MATCH(Table1[[#This Row],[C2C_Level]],'Certification Preparation'!H:H,0)) -> 1 | D55: 8.4 Human Rights Policy | E55: =IF(Table1[[#This Row],[Column1]]<'Certification Preparation'!$G$10,"GAP","Covered") -> GAP | F55: =IF(AND('Certification Preparation'!$B$27="Yes",M55="Y",SUM(AI55:BB55)=0),"Covered","GAP") -> GAP | G55: =IF(AND('Certification Preparation'!$B$28="Yes",N55="Y",SUM(AI55:BB55)=0),"Covered","GAP") -> GAP | H55: =IF(AND('Certification Preparation'!$B$29="Yes",O55="Y",SUM(AI55:BB55)=0),"Covered","GAP") -> GAP | I55: 8.04.011 | J55: FAC_8.4.2g | K55: 0 | L55: g. Safe and healthy work, including: | M55: N | N55: Y | O55: Y | AB55: SA8000.9.1.2 | AF55: SLCP.MS-1.12 | AI55: =COUNTIF('Certification Preparation'!$B$32:$B$420,P55) -> 0 | AJ55: =COUNTIF('Certification Preparation'!$B$32:$B$420,Q55) -> 0 | AK55: =COUNTIF('Certification Preparation'!$B$32:$B$420,R55) -> 0 | AL55: =COUNTIF('Certification Preparation'!$B$32:$B$420,S55) -> 0 | AM55: =COUNTIF('Certification Preparation'!$B$32:$B$420,T55) -> 0 | AN55: =COUNTIF('Certification Preparation'!$B$32:$B$420,U55) -> 0 | AO55: =COUNTIF('Certification Preparation'!$B$32:$B$420,V55) -> 0 | AP55: =COUNTIF('Certification Preparation'!$B$32:$B$420,W55) -> 0 | AQ55: =COUNTIF('Certification Preparation'!$B$32:$B$420,X55) -> 0 | AR55: =COUNTIF('Certification Preparation'!$B$32:$B$420,Y55) -> 0 | AS55: =COUNTIF('Certification Preparation'!$B$32:$B$420,Z55) -> 0 | AT55: =COUNTIF('Certification Preparation'!$B$32:$B$420,AA55) -> 0 | AU55: =COUNTIF('Certification Preparation'!$B$32:$B$420,AB55) -> 0 | AV55: =COUNTIF('Certification Preparation'!$B$32:$B$420,AC55) -> 0 | AW55: =COUNTIF('Certification Preparation'!$B$32:$B$420,AD55) -> 0 | AX55: =COUNTIF('Certification Preparation'!$B$32:$B$420,AE55) -> 0 | AZ55: =COUNTIF('Certification Preparation'!$B$32:$B$420,AF55) -> 0 | BA55: =COUNTIF('Certification Preparation'!$B$32:$B$420,AG55) -> 0 | BB55: =COUNTIF('Certification Preparation'!$B$32:$B$420,AH55) -> 0 | BD55: SMETA.3.2.20 | BE55: =COUNTIF('Certification Preparation'!$B$32:$B$420,BD55) -> 0
A56: 55 | B56: Bronze | C56: =INDEX('Certification Preparation'!G:G,MATCH(Table1[[#This Row],[C2C_Level]],'Certification Preparation'!H:H,0)) -> 1 | D56: 8.4 Human Rights Policy | E56: =IF(Table1[[#This Row],[Column1]]<'Certification Preparation'!$G$10,"GAP","Covered") -> GAP | F56: =IF(AND('Certification Preparation'!$B$27="Yes",M56="Y",SUM(AI56:BB56)=0),"Covered","GAP") -> GAP | G56: =IF(AND('Certification Preparation'!$B$28="Yes",N56="Y",SUM(AI56:BB56)=0),"Covered","GAP") -> GAP | H56: =IF(AND('Certification Preparation'!$B$29="Yes",O56="Y",SUM(AI56:BB56)=0),"Covered","GAP") -> GAP | I56: 8.04.012 | J56: FAC_8.4.2g.i | K56: 0 | L56: i. Access to water, sanitation, and hygiene (WASH), | M56: N | N56: Y | O56: Y | AB56: SA8000.9.1.2 | AF56: SLCP.HS-6 | AG56: SLCP.HS-6 | AH56: SLCP.HS-55.2 | AI56: =COUNTIF('Certification Preparation'!$B$32:$B$420,P56) -> 0 | AJ56: =COUNTIF('Certification Preparation'!$B$32:$B$420,Q56) -> 0 | AK56: =COUNTIF('Certification Preparation'!$B$32:$B$420,R56) -> 0 | AL56: =COUNTIF('Certification Preparation'!$B$32:$B$420,S56) -> 0 | AM56: =COUNTIF('Certification Preparation'!$B$32:$B$420,T56) -> 0 | AN56: =COUNTIF('Certification Preparation'!$B$32:$B$420,U56) -> 0 | AO56: =COUNTIF('Certification Preparation'!$B$32:$B$420,V56) -> 0 | AP56: =COUNTIF('Certification Preparation'!$B$32:$B$420,W56) -> 0 | AQ56: =COUNTIF('Certification Preparation'!$B$32:$B$420,X56) -> 0 | AR56: =COUNTIF('Certification Preparation'!$B$32:$B$420,Y56) -> 0 | AS56: =COUNTIF('Certification Preparation'!$B$32:$B$420,Z56) -> 0 | AT56: =COUNTIF('Certification Preparation'!$B$32:$B$420,AA56) -> 0 | AU56: =COUNTIF('Certification Preparation'!$B$32:$B$420,AB56) -> 0 | AV56: =COUNTIF('Certification Preparation'!$B$32:$B$420,AC56) -> 0 | AW56: =COUNTIF('Certification Preparation'!$B$32:$B$420,AD56) -> 0 | AX56: =COUNTIF('Certification Preparation'!$B$32:$B$420,AE56) -> 0 | AZ56: =COUNTIF('Certification Preparation'!$B$32:$B$420,AF56) -> 0 | BA56: =COUNTIF('Certification Preparation'!$B$32:$B$420,AG56) -> 0 | BB56: =COUNTIF('Certification Preparation'!$B$32:$B$420,AH56) -> 0 | BD56: SMETA.3.2.21 | BE56: =COUNTIF('Certification Preparation'!$B$32:$B$420,BD56) -> 0
A57: 56 | B57: Bronze | C57: =INDEX('Certification Preparation'!G:G,MATCH(Table1[[#This Row],[C2C_Level]],'Certification Preparation'!H:H,0)) -> 1 | D57: 8.4 Human Rights Policy | E57: =IF(Table1[[#This Row],[Column1]]<'Certification Preparation'!$G$10,"GAP","Covered") -> GAP | F57: =IF(AND('Certification Preparation'!$B$27="Yes",M57="Y",SUM(AI57:BB57)=0),"Covered","GAP") -> GAP | G57: =IF(AND('Certification Preparation'!$B$28="Yes",N57="Y",SUM(AI57:BB57)=0),"Covered","GAP") -> GAP | H57: =IF(AND('Certification Preparation'!$B$29="Yes",O57="Y",SUM(AI57:BB57)=0),"Covered","GAP") -> GAP | I57: 8.04.013 | J57: FAC_8.4.2g.ii | K57: 0 | L57: ii. Emergency preparation and response, | M57: N | N57: Y | O57: Y | AB57: SA8000.9.1.2 | AF57: SLCP.MS-1.12 | AI57: =COUNTIF('Certification Preparation'!$B$32:$B$420,P57) -> 0 | AJ57: =COUNTIF('Certification Preparation'!$B$32:$B$420,Q57) -> 0 | AK57: =COUNTIF('Certification Preparation'!$B$32:$B$420,R57) -> 0 | AL57: =COUNTIF('Certification Preparation'!$B$32:$B$420,S57) -> 0 | AM57: =COUNTIF('Certification Preparation'!$B$32:$B$420,T57) -> 0 | AN57: =COUNTIF('Certification Preparation'!$B$32:$B$420,U57) -> 0 | AO57: =COUNTIF('Certification Preparation'!$B$32:$B$420,V57) -> 0 | AP57: =COUNTIF('Certification Preparation'!$B$32:$B$420,W57) -> 0 | AQ57: =COUNTIF('Certification Preparation'!$B$32:$B$420,X57) -> 0 | AR57: =COUNTIF('Certification Preparation'!$B$32:$B$420,Y57) -> 0 | AS57: =COUNTIF('Certification Preparation'!$B$32:$B$420,Z57) -> 0 | AT57: =COUNTIF('Certification Preparation'!$B$32:$B$420,AA57) -> 0 | AU57: =COUNTIF('Certification Preparation'!$B$32:$B$420,AB57) -> 0 | AV57: =COUNTIF('Certification Preparation'!$B$32:$B$420,AC57) -> 0 | AW57: =COUNTIF('Certification Preparation'!$B$32:$B$420,AD57) -> 0 | AX57: =COUNTIF('Certification Preparation'!$B$32:$B$420,AE57) -> 0 | AZ57: =COUNTIF('Certification Preparation'!$B$32:$B$420,AF57) -> 0 | BA57: =COUNTIF('Certification Preparation'!$B$32:$B$420,AG57) -> 0 | BB57: =COUNTIF('Certification Preparation'!$B$32:$B$420,AH57) -> 0 | BD57: SMETA.3.2.22 | BE57: =COUNTIF('Certification Preparation'!$B$32:$B$420,BD57) -> 0
A58: 57 | B58: Bronze | C58: =INDEX('Certification Preparation'!G:G,MATCH(Table1[[#This Row],[C2C_Level]],'Certification Preparation'!H:H,0)) -> 1 | D58: 8.4 Human Rights Policy | E58: =IF(Table1[[#This Row],[Column1]]<'Certification Preparation'!$G$10,"GAP","Covered") -> GAP | F58: =IF(AND('Certification Preparation'!$B$27="Yes",M58="Y",SUM(AI58:BB58)=0),"Covered","GAP") -> GAP | G58: =IF(AND('Certification Preparation'!$B$28="Yes",N58="Y",SUM(AI58:BB58)=0),"Covered","GAP") -> GAP | H58: =IF(AND('Certification Preparation'!$B$29="Yes",O58="Y",SUM(AI58:BB58)=0),"Covered","GAP") -> GAP | I58: 8.04.014 | J58: FAC_8.4.2g.iii | K58: 0 | L58: iii. Hazardous materials handling procedures, | M58: N | N58: Y | O58: Y | AB58: SA8000.9.1.2 | AF58: SLCP.MS-1.12 | AI58: =COUNTIF('Certification Preparation'!$B$32:$B$420,P58) -> 0 | AJ58: =COUNTIF('Certification Preparation'!$B$32:$B$420,Q58) -> 0 | AK58: =COUNTIF('Certification Preparation'!$B$32:$B$420,R58) -> 0 | AL58: =COUNTIF('Certification Preparation'!$B$32:$B$420,S58) -> 0 | AM58: =COUNTIF('Certification Preparation'!$B$32:$B$420,T58) -> 0 | AN58: =COUNTIF('Certification Preparation'!$B$32:$B$420,U58) -> 0 | AO58: =COUNTIF('Certification Preparation'!$B$32:$B$420,V58) -> 0 | AP58: =COUNTIF('Certification Preparation'!$B$32:$B$420,W58) -> 0 | AQ58: =COUNTIF('Certification Preparation'!$B$32:$B$420,X58) -> 0 | AR58: =COUNTIF('Certification Preparation'!$B$32:$B$420,Y58) -> 0 | AS58: =COUNTIF('Certification Preparation'!$B$32:$B$420,Z58) -> 0 | AT58: =COUNTIF('Certification Preparation'!$B$32:$B$420,AA58) -> 0 | AU58: =COUNTIF('Certification Preparation'!$B$32:$B$420,AB58) -> 0 | AV58: =COUNTIF('Certification Preparation'!$B$32:$B$420,AC58) -> 0 | AW58: =COUNTIF('Certification Preparation'!$B$32:$B$420,AD58) -> 0 | AX58: =COUNTIF('Certification Preparation'!$B$32:$B$420,AE58) -> 0 | AZ58: =COUNTIF('Certification Preparation'!$B$32:$B$420,AF58) -> 0 | BA58: =COUNTIF('Certification Preparation'!$B$32:$B$420,AG58) -> 0 | BB58: =COUNTIF('Certification Preparation'!$B$32:$B$420,AH58) -> 0 | BD58: SMETA.3.2.23 | BE58: =COUNTIF('Certification Preparation'!$B$32:$B$420,BD58) -> 0
A59: 58 | B59: Bronze | C59: =INDEX('Certification Preparation'!G:G,MATCH(Table1[[#This Row],[C2C_Level]],'Certification Preparation'!H:H,0)) -> 1 | D59: 8.4 Human Rights Policy | E59: =IF(Table1[[#This Row],[Column1]]<'Certification Preparation'!$G$10,"GAP","Covered") -> GAP | F59: =IF(AND('Certification Preparation'!$B$27="Yes",M59="Y",SUM(AI59:BB59)=0),"Covered","GAP") -> GAP | G59: =IF(AND('Certification Preparation'!$B$28="Yes",N59="Y",SUM(AI59:BB59)=0),"Covered","GAP") -> GAP | H59: =IF(AND('Certification Preparation'!$B$29="Yes",O59="Y",SUM(AI59:BB59)=0),"Covered","GAP") -> GAP | I59: 8.04.015 | J59: FAC_8.4.2g.iv | K59: 0 | L59: iv. Management systems that address health and safety risks, and | M59: N | N59: Y | O59: Y | AB59: SA8000.9.1.2 | AF59: SLCP.MS-1.12 | AI59: =COUNTIF('Certification Preparation'!$B$32:$B$420,P59) -> 0 | AJ59: =COUNTIF('Certification Preparation'!$B$32:$B$420,Q59) -> 0 | AK59: =COUNTIF('Certification Preparation'!$B$32:$B$420,R59) -> 0 | AL59: =COUNTIF('Certification Preparation'!$B$32:$B$420,S59) -> 0 | AM59: =COUNTIF('Certification Preparation'!$B$32:$B$420,T59) -> 0 | AN59: =COUNTIF('Certification Preparation'!$B$32:$B$420,U59) -> 0 | AO59: =COUNTIF('Certification Preparation'!$B$32:$B$420,V59) -> 0 | AP59: =COUNTIF('Certification Preparation'!$B$32:$B$420,W59) -> 0 | AQ59: =COUNTIF('Certification Preparation'!$B$32:$B$420,X59) -> 0 | AR59: =COUNTIF('Certification Preparation'!$B$32:$B$420,Y59) -> 0 | AS59: =COUNTIF('Certification Preparation'!$B$32:$B$420,Z59) -> 0 | AT59: =COUNTIF('Certification Preparation'!$B$32:$B$420,AA59) -> 0 | AU59: =COUNTIF('Certification Preparation'!$B$32:$B$420,AB59) -> 0 | AV59: =COUNTIF('Certification Preparation'!$B$32:$B$420,AC59) -> 0 | AW59: =COUNTIF('Certification Preparation'!$B$32:$B$420,AD59) -> 0 | AX59: =COUNTIF('Certification Preparation'!$B$32:$B$420,AE59) -> 0 | AZ59: =COUNTIF('Certification Preparation'!$B$32:$B$420,AF59) -> 0 | BA59: =COUNTIF('Certification Preparation'!$B$32:$B$420,AG59) -> 0 | BB59: =COUNTIF('Certification Preparation'!$B$32:$B$420,AH59) -> 0 | BD59: SMETA.3.2.24 | BE59: =COUNTIF('Certification Preparation'!$B$32:$B$420,BD59) -> 0
A60: 59 | B60: Bronze | C60: =INDEX('Certification Preparation'!G:G,MATCH(Table1[[#This Row],[C2C_Level]],'Certification Preparation'!H:H,0)) -> 1 | D60: 8.4 Human Rights Policy | E60: =IF(Table1[[#This Row],[Column1]]<'Certification Preparation'!$G$10,"GAP","Covered") -> GAP | F60: =IF(AND('Certification Preparation'!$B$27="Yes",M60="Y",SUM(AI60:BB60)=0),"Covered","GAP") -> GAP | G60: =IF(AND('Certification Preparation'!$B$28="Yes",N60="Y",SUM(AI60:BB60)=0),"Covered","GAP") -> GAP | H60: =IF(AND('Certification Preparation'!$B$29="Yes",O60="Y",SUM(AI60:BB60)=0),"Covered","GAP") -> GAP | I60: 8.04.016 | J60: FAC_8.4.2g.v | K60: 0 | L60: v. Appropriate building construction, electrical, and fire safety. | M60: N | N60: Y | O60: Y | AB60: SA8000.3.10 | AF60: SLCP.MS-1.12 | AI60: =COUNTIF('Certification Preparation'!$B$32:$B$420,P60) -> 0 | AJ60: =COUNTIF('Certification Preparation'!$B$32:$B$420,Q60) -> 0 | AK60: =COUNTIF('Certification Preparation'!$B$32:$B$420,R60) -> 0 | AL60: =COUNTIF('Certification Preparation'!$B$32:$B$420,S60) -> 0 | AM60: =COUNTIF('Certification Preparation'!$B$32:$B$420,T60) -> 0 | AN60: =COUNTIF('Certification Preparation'!$B$32:$B$420,U60) -> 0 | AO60: =COUNTIF('Certification Preparation'!$B$32:$B$420,V60) -> 0 | AP60: =COUNTIF('Certification Preparation'!$B$32:$B$420,W60) -> 0 | AQ60: =COUNTIF('Certification Preparation'!$B$32:$B$420,X60) -> 0 | AR60: =COUNTIF('Certification Preparation'!$B$32:$B$420,Y60) -> 0 | AS60: =COUNTIF('Certification Preparation'!$B$32:$B$420,Z60) -> 0 | AT60: =COUNTIF('Certification Preparation'!$B$32:$B$420,AA60) -> 0 | AU60: =COUNTIF('Certification Preparation'!$B$32:$B$420,AB60) -> 0 | AV60: =COUNTIF('Certification Preparation'!$B$32:$B$420,AC60) -> 0 | AW60: =COUNTIF('Certification Preparation'!$B$32:$B$420,AD60) -> 0 | AX60: =COUNTIF('Certification Preparation'!$B$32:$B$420,AE60) -> 0 | AZ60: =COUNTIF('Certification Preparation'!$B$32:$B$420,AF60) -> 0 | BA60: =COUNTIF('Certification Preparation'!$B$32:$B$420,AG60) -> 0 | BB60: =COUNTIF('Certification Preparation'!$B$32:$B$420,AH60) -> 0 | BD60: SMETA.3.2.25 | BE60: =COUNTIF('Certification Preparation'!$B$32:$B$420,BD60) -> 0
A61: 60 | B61: Bronze | C61: =INDEX('Certification Preparation'!G:G,MATCH(Table1[[#This Row],[C2C_Level]],'Certification Preparation'!H:H,0)) -> 1 | D61: 8.4 Human Rights Policy | E61: =IF(Table1[[#This Row],[Column1]]<'Certification Preparation'!$G$10,"GAP","Covered") -> GAP | F61: =IF(AND('Certification Preparation'!$B$27="Yes",M61="Y",SUM(AI61:BB61)=0),"Covered","GAP") -> GAP | G61: =IF(AND('Certification Preparation'!$B$28="Yes",N61="Y",SUM(AI61:BB61)=0),"Covered","GAP") -> GAP | H61: =IF(AND('Certification Preparation'!$B$29="Yes",O61="Y",SUM(AI61:BB61)=0),"Covered","GAP") -> GAP | I61: 8.04.017 | J61: FAC_8.4.2h | K61: 0 | L61: h. Provision of the legal minimum wage and all legally mandated benefits including employer contributions for social security benefits and services, | M61: Y | N61: Y | O61: Y | P61: SMETA.7.04 | AB61: SA8000.9.1.2 | AF61: SLCP.WB-1.1 | AG61: SLCP.WB-1.2 | AH61: SLCP.MS-1.8 | AI61: =COUNTIF('Certification Preparation'!$B$32:$B$420,P61) -> 0 | AJ61: =COUNTIF('Certification Preparation'!$B$32:$B$420,Q61) -> 0 | AK61: =COUNTIF('Certification Preparation'!$B$32:$B$420,R61) -> 0 | AL61: =COUNTIF('Certification Preparation'!$B$32:$B$420,S61) -> 0 | AM61: =COUNTIF('Certification Preparation'!$B$32:$B$420,T61) -> 0 | AN61: =COUNTIF('Certification Preparation'!$B$32:$B$420,U61) -> 0 | AO61: =COUNTIF('Certification Preparation'!$B$32:$B$420,V61) -> 0 | AP61: =COUNTIF('Certification Preparation'!$B$32:$B$420,W61) -> 0 | AQ61: =COUNTIF('Certification Preparation'!$B$32:$B$420,X61) -> 0 | AR61: =COUNTIF('Certification Preparation'!$B$32:$B$420,Y61) -> 0 | AS61: =COUNTIF('Certification Preparation'!$B$32:$B$420,Z61) -> 0 | AT61: =COUNTIF('Certification Preparation'!$B$32:$B$420,AA61) -> 0 | AU61: =COUNTIF('Certification Preparation'!$B$32:$B$420,AB61) -> 0 | AV61: =COUNTIF('Certification Preparation'!$B$32:$B$420,AC61) -> 0 | AW61: =COUNTIF('Certification Preparation'!$B$32:$B$420,AD61) -> 0 | AX61: =COUNTIF('Certification Preparation'!$B$32:$B$420,AE61) -> 0 | AZ61: =COUNTIF('Certification Preparation'!$B$32:$B$420,AF61) -> 0 | BA61: =COUNTIF('Certification Preparation'!$B$32:$B$420,AG61) -> 0 | BB61: =COUNTIF('Certification Preparation'!$B$32:$B$420,AH61) -> 0 | BD61: SMETA.3.2.26 | BE61: =COUNTIF('Certification Preparation'!$B$32:$B$420,BD61) -> 0
A62: 61 | B62: Bronze | C62: =INDEX('Certification Preparation'!G:G,MATCH(Table1[[#This Row],[C2C_Level]],'Certification Preparation'!H:H,0)) -> 1 | D62: 8.4 Human Rights Policy | E62: =IF(Table1[[#This Row],[Column1]]<'Certification Preparation'!$G$10,"GAP","Covered") -> GAP | F62: =IF(AND('Certification Preparation'!$B$27="Yes",M62="Y",SUM(AI62:BB62)=0),"Covered","GAP") -> GAP | G62: =IF(AND('Certification Preparation'!$B$28="Yes",N62="Y",SUM(AI62:BB62)=0),"Covered","GAP") -> GAP | H62: =IF(AND('Certification Preparation'!$B$29="Yes",O62="Y",SUM(AI62:BB62)=0),"Covered","GAP") -> GAP | I62: 8.04.018 | J62: FAC_8.4.2i | K62: 0 | L62: i. Aspirations for the provision of a living wage that covers the necessities for life as defined in its local context (e.g., food, water, housing, health care, education, clothing, transportation, child care, discretionary income). | M62: N | N62: Y | O62: Y | AB62: SA8000.8.1 | AF62: SLCP.AB-4 | AI62: =COUNTIF('Certification Preparation'!$B$32:$B$420,P62) -> 0 | AJ62: =COUNTIF('Certification Preparation'!$B$32:$B$420,Q62) -> 0 | AK62: =COUNTIF('Certification Preparation'!$B$32:$B$420,R62) -> 0 | AL62: =COUNTIF('Certification Preparation'!$B$32:$B$420,S62) -> 0 | AM62: =COUNTIF('Certification Preparation'!$B$32:$B$420,T62) -> 0 | AN62: =COUNTIF('Certification Preparation'!$B$32:$B$420,U62) -> 0 | AO62: =COUNTIF('Certification Preparation'!$B$32:$B$420,V62) -> 0 | AP62: =COUNTIF('Certification Preparation'!$B$32:$B$420,W62) -> 0 | AQ62: =COUNTIF('Certification Preparation'!$B$32:$B$420,X62) -> 0 | AR62: =COUNTIF('Certification Preparation'!$B$32:$B$420,Y62) -> 0 | AS62: =COUNTIF('Certification Preparation'!$B$32:$B$420,Z62) -> 0 | AT62: =COUNTIF('Certification Preparation'!$B$32:$B$420,AA62) -> 0 | AU62: =COUNTIF('Certification Preparation'!$B$32:$B$420,AB62) -> 0 | AV62: =COUNTIF('Certification Preparation'!$B$32:$B$420,AC62) -> 0 | AW62: =COUNTIF('Certification Preparation'!$B$32:$B$420,AD62) -> 0 | AX62: =COUNTIF('Certification Preparation'!$B$32:$B$420,AE62) -> 0 | AZ62: =COUNTIF('Certification Preparation'!$B$32:$B$420,AF62) -> 0 | BA62: =COUNTIF('Certification Preparation'!$B$32:$B$420,AG62) -> 0 | BB62: =COUNTIF('Certification Preparation'!$B$32:$B$420,AH62) -> 0 | BD62: SMETA.3.2.28 | BE62: =COUNTIF('Certification Preparation'!$B$32:$B$420,BD62) -> 0
A63: 62 | B63: Bronze | C63: =INDEX('Certification Preparation'!G:G,MATCH(Table1[[#This Row],[C2C_Level]],'Certification Preparation'!H:H,0)) -> 1 | D63: 8.4 Human Rights Policy | E63: =IF(Table1[[#This Row],[Column1]]<'Certification Preparation'!$G$10,"GAP","Covered") -> GAP | F63: =IF(AND('Certification Preparation'!$B$27="Yes",M63="Y",SUM(AI63:BB63)=0),"Covered","GAP") -> GAP | G63: =IF(AND('Certification Preparation'!$B$28="Yes",N63="Y",SUM(AI63:BB63)=0),"Covered","GAP") -> GAP | H63: =IF(AND('Certification Preparation'!$B$29="Yes",O63="Y",SUM(AI63:BB63)=0),"Covered","GAP") -> GAP | I63: 8.04.019 | J63: FAC_8.4.2j | K63: 0 | L63: j. Additional priority issues identified in the risk assessment (per Section 8.3), if any. | M63: N | N63: Y | O63: N | AB63: SA8000.9.1.2 | AI63: =COUNTIF('Certification Preparation'!$B$32:$B$420,P63) -> 0 | AJ63: =COUNTIF('Certification Preparation'!$B$32:$B$420,Q63) -> 0 | AK63: =COUNTIF('Certification Preparation'!$B$32:$B$420,R63) -> 0 | AL63: =COUNTIF('Certification Preparation'!$B$32:$B$420,S63) -> 0 | AM63: =COUNTIF('Certification Preparation'!$B$32:$B$420,T63) -> 0 | AN63: =COUNTIF('Certification Preparation'!$B$32:$B$420,U63) -> 0 | AO63: =COUNTIF('Certification Preparation'!$B$32:$B$420,V63) -> 0 | AP63: =COUNTIF('Certification Preparation'!$B$32:$B$420,W63) -> 0 | AQ63: =COUNTIF('Certification Preparation'!$B$32:$B$420,X63) -> 0 | AR63: =COUNTIF('Certification Preparation'!$B$32:$B$420,Y63) -> 0 | AS63: =COUNTIF('Certification Preparation'!$B$32:$B$420,Z63) -> 0 | AT63: =COUNTIF('Certification Preparation'!$B$32:$B$420,AA63) -> 0 | AU63: =COUNTIF('Certification Preparation'!$B$32:$B$420,AB63) -> 0 | AV63: =COUNTIF('Certification Preparation'!$B$32:$B$420,AC63) -> 0 | AW63: =COUNTIF('Certification Preparation'!$B$32:$B$420,AD63) -> 0 | AX63: =COUNTIF('Certification Preparation'!$B$32:$B$420,AE63) -> 0 | AZ63: =COUNTIF('Certification Preparation'!$B$32:$B$420,AF63) -> 0 | BA63: =COUNTIF('Certification Preparation'!$B$32:$B$420,AG63) -> 0 | BB63: =COUNTIF('Certification Preparation'!$B$32:$B$420,AH63) -> 0 | BD63: SMETA.3.3.5 | BE63: =COUNTIF('Certification Preparation'!$B$32:$B$420,BD63) -> 0
A64: 63 | B64: Bronze | C64: =INDEX('Certification Preparation'!G:G,MATCH(Table1[[#This Row],[C2C_Level]],'Certification Preparation'!H:H,0)) -> 1 | D64: 8.4 Human Rights Policy | E64: =IF(Table1[[#This Row],[Column1]]<'Certification Preparation'!$G$10,"GAP","Covered") -> GAP | F64: =IF(AND('Certification Preparation'!$B$27="Yes",M64="Y",SUM(AI64:BB64)=0),"Covered","GAP") -> GAP | G64: =IF(AND('Certification Preparation'!$B$28="Yes",N64="Y",SUM(AI64:BB64)=0),"Covered","GAP") -> GAP | H64: =IF(AND('Certification Preparation'!$B$29="Yes",O64="Y",SUM(AI64:BB64)=0),"Covered","GAP") -> GAP | I64: 8.04.020 | J64: FAC_8.4.3 | K64: 0 | L64: 3. The policy must commit to respect human rights, as mandated by local and State laws. | M64: Y | N64: Y | O64: Y | P64: SMETA.0.11 | AB64: SA8000.9.2.1 | AF64: SLCP.MS-4 | AI64: =COUNTIF('Certification Preparation'!$B$32:$B$420,P64) -> 0 | AJ64: =COUNTIF('Certification Preparation'!$B$32:$B$420,Q64) -> 0 | AK64: =COUNTIF('Certification Preparation'!$B$32:$B$420,R64) -> 0 | AL64: =COUNTIF('Certification Preparation'!$B$32:$B$420,S64) -> 0 | AM64: =COUNTIF('Certification Preparation'!$B$32:$B$420,T64) -> 0 | AN64: =COUNTIF('Certification Preparation'!$B$32:$B$420,U64) -> 0 | AO64: =COUNTIF('Certification Preparation'!$B$32:$B$420,V64) -> 0 | AP64: =COUNTIF('Certification Preparation'!$B$32:$B$420,W64) -> 0 | AQ64: =COUNTIF('Certification Preparation'!$B$32:$B$420,X64) -> 0 | AR64: =COUNTIF('Certification Preparation'!$B$32:$B$420,Y64) -> 0 | AS64: =COUNTIF('Certification Preparation'!$B$32:$B$420,Z64) -> 0 | AT64: =COUNTIF('Certification Preparation'!$B$32:$B$420,AA64) -> 0 | AU64: =COUNTIF('Certification Preparation'!$B$32:$B$420,AB64) -> 0 | AV64: =COUNTIF('Certification Preparation'!$B$32:$B$420,AC64) -> 0 | AW64: =COUNTIF('Certification Preparation'!$B$32:$B$420,AD64) -> 0 | AX64: =COUNTIF('Certification Preparation'!$B$32:$B$420,AE64) -> 0 | AZ64: =COUNTIF('Certification Preparation'!$B$32:$B$420,AF64) -> 0 | BA64: =COUNTIF('Certification Preparation'!$B$32:$B$420,AG64) -> 0 | BB64: =COUNTIF('Certification Preparation'!$B$32:$B$420,AH64) -> 0 | BD64: SMETA.3.3.6 | BE64: =COUNTIF('Certification Preparation'!$B$32:$B$420,BD64) -> 0
A65: 64 | B65: Bronze | C65: =INDEX('Certification Preparation'!G:G,MATCH(Table1[[#This Row],[C2C_Level]],'Certification Preparation'!H:H,0)) -> 1 | D65: 8.4 Human Rights Policy | E65: =IF(Table1[[#This Row],[Column1]]<'Certification Preparation'!$G$10,"GAP","Covered") -> GAP | F65: =IF(AND('Certification Preparation'!$B$27="Yes",M65="Y",SUM(AI65:BB65)=0),"Covered","GAP") -> GAP | G65: =IF(AND('Certification Preparation'!$B$28="Yes",N65="Y",SUM(AI65:BB65)=0),"Covered","GAP") -> GAP | H65: =IF(AND('Certification Preparation'!$B$29="Yes",O65="Y",SUM(AI65:BB65)=0),"Covered","GAP") -> GAP | I65: 8.04.021 | J65: FAC_8.4.4 | K65: 0 | L65: 4. Be formally approved and signed by a duly empowered officer of the Applicant company or by the board of directors. | M65: N | N65: Y | O65: N | AB65: SA8000.9.1.1 | AI65: =COUNTIF('Certification Preparation'!$B$32:$B$420,P65) -> 0 | AJ65: =COUNTIF('Certification Preparation'!$B$32:$B$420,Q65) -> 0 | AK65: =COUNTIF('Certification Preparation'!$B$32:$B$420,R65) -> 0 | AL65: =COUNTIF('Certification Preparation'!$B$32:$B$420,S65) -> 0 | AM65: =COUNTIF('Certification Preparation'!$B$32:$B$420,T65) -> 0 | AN65: =COUNTIF('Certification Preparation'!$B$32:$B$420,U65) -> 0 | AO65: =COUNTIF('Certification Preparation'!$B$32:$B$420,V65) -> 0 | AP65: =COUNTIF('Certification Preparation'!$B$32:$B$420,W65) -> 0 | AQ65: =COUNTIF('Certification Preparation'!$B$32:$B$420,X65) -> 0 | AR65: =COUNTIF('Certification Preparation'!$B$32:$B$420,Y65) -> 0 | AS65: =COUNTIF('Certification Preparation'!$B$32:$B$420,Z65) -> 0 | AT65: =COUNTIF('Certification Preparation'!$B$32:$B$420,AA65) -> 0 | AU65: =COUNTIF('Certification Preparation'!$B$32:$B$420,AB65) -> 0 | AV65: =COUNTIF('Certification Preparation'!$B$32:$B$420,AC65) -> 0 | AW65: =COUNTIF('Certification Preparation'!$B$32:$B$420,AD65) -> 0 | AX65: =COUNTIF('Certification Preparation'!$B$32:$B$420,AE65) -> 0 | AZ65: =COUNTIF('Certification Preparation'!$B$32:$B$420,AF65) -> 0 | BA65: =COUNTIF('Certification Preparation'!$B$32:$B$420,AG65) -> 0 | BB65: =COUNTIF('Certification Preparation'!$B$32:$B$420,AH65) -> 0 | BD65: SMETA.3.3.7 | BE65: =COUNTIF('Certification Preparation'!$B$32:$B$420,BD65) -> 0
A66: 65 | B66: Bronze | C66: =INDEX('Certification Preparation'!G:G,MATCH(Table1[[#This Row],[C2C_Level]],'Certification Preparation'!H:H,0)) -> 1 | D66: 8.4 Human Rights Policy | E66: =IF(Table1[[#This Row],[Column1]]<'Certification Preparation'!$G$10,"GAP","Covered") -> GAP | F66: =IF(AND('Certification Preparation'!$B$27="Yes",M66="Y",SUM(AI66:BB66)=0),"Covered","GAP") -> GAP | G66: =IF(AND('Certification Preparation'!$B$28="Yes",N66="Y",SUM(AI66:BB66)=0),"Covered","GAP") -> GAP | H66: =IF(AND('Certification Preparation'!$B$29="Yes",O66="Y",SUM(AI66:BB66)=0),"Covered","GAP") -> GAP | I66: 8.04.022 | J66: FAC_8.4.5 | K66: 0 | L66: 5. The policy must be guided by the eight Fundamental Conventions of the International Labor Organization and the United Nations Guiding Principles on Business and Human Rights, as well as either the Universal Declaration of Human Rights or the International Bill of Human Rights. | M66: N | N66: Y | O66: Y | AB66: SA8000.9.1.2 | AF66: SLCP.MS-1.1 | AI66: =COUNTIF('Certification Preparation'!$B$32:$B$420,P66) -> 0 | AJ66: =COUNTIF('Certification Preparation'!$B$32:$B$420,Q66) -> 0 | AK66: =COUNTIF('Certification Preparation'!$B$32:$B$420,R66) -> 0 | AL66: =COUNTIF('Certification Preparation'!$B$32:$B$420,S66) -> 0 | AM66: =COUNTIF('Certification Preparation'!$B$32:$B$420,T66) -> 0 | AN66: =COUNTIF('Certification Preparation'!$B$32:$B$420,U66) -> 0 | AO66: =COUNTIF('Certification Preparation'!$B$32:$B$420,V66) -> 0 | AP66: =COUNTIF('Certification Preparation'!$B$32:$B$420,W66) -> 0 | AQ66: =COUNTIF('Certification Preparation'!$B$32:$B$420,X66) -> 0 | AR66: =COUNTIF('Certification Preparation'!$B$32:$B$420,Y66) -> 0 | AS66: =COUNTIF('Certification Preparation'!$B$32:$B$420,Z66) -> 0 | AT66: =COUNTIF('Certification Preparation'!$B$32:$B$420,AA66) -> 0 | AU66: =COUNTIF('Certification Preparation'!$B$32:$B$420,AB66) -> 0 | AV66: =COUNTIF('Certification Preparation'!$B$32:$B$420,AC66) -> 0 | AW66: =COUNTIF('Certification Preparation'!$B$32:$B$420,AD66) -> 0 | AX66: =COUNTIF('Certification Preparation'!$B$32:$B$420,AE66) -> 0 | AZ66: =COUNTIF('Certification Preparation'!$B$32:$B$420,AF66) -> 0 | BA66: =COUNTIF('Certification Preparation'!$B$32:$B$420,AG66) -> 0 | BB66: =COUNTIF('Certification Preparation'!$B$32:$B$420,AH66) -> 0 | BD66: SMETA.3.3.8 | BE66: =COUNTIF('Certification Preparation'!$B$32:$B$420,BD66) -> 0
A67: 66 | B67: Bronze | C67: =INDEX('Certification Preparation'!G:G,MATCH(Table1[[#This Row],[C2C_Level]],'Certification Preparation'!H:H,0)) -> 1 | D67: 8.4 Human Rights Policy | E67: =IF(Table1[[#This Row],[Column1]]<'Certification Preparation'!$G$10,"GAP","Covered") -> GAP | F67: =IF(AND('Certification Preparation'!$B$27="Yes",M67="Y",SUM(AI67:BB67)=0),"Covered","GAP") -> GAP | G67: =IF(AND('Certification Preparation'!$B$28="Yes",N67="Y",SUM(AI67:BB67)=0),"Covered","GAP") -> GAP | H67: =IF(AND('Certification Preparation'!$B$29="Yes",O67="Y",SUM(AI67:BB67)=0),"Covered","GAP") -> GAP | I67: 8.04.023 | J67: FAC_8.4.6 | K67: 0 | L67: 6. Where national law and these international human rights standards differ, the Applicant must follow the higher standard; where they are in conflict, the Applicant must seek to respect internationally-recognized human rights to the greatest extent possible. | M67: N | N67: Y | O67: Y | AB67: SA8000.9.1.2 | AF67: SLCP.MS-1.1 | AI67: =COUNTIF('Certification Preparation'!$B$32:$B$420,P67) -> 0 | AJ67: =COUNTIF('Certification Preparation'!$B$32:$B$420,Q67) -> 0 | AK67: =COUNTIF('Certification Preparation'!$B$32:$B$420,R67) -> 0 | AL67: =COUNTIF('Certification Preparation'!$B$32:$B$420,S67) -> 0 | AM67: =COUNTIF('Certification Preparation'!$B$32:$B$420,T67) -> 0 | AN67: =COUNTIF('Certification Preparation'!$B$32:$B$420,U67) -> 0 | AO67: =COUNTIF('Certification Preparation'!$B$32:$B$420,V67) -> 0 | AP67: =COUNTIF('Certification Preparation'!$B$32:$B$420,W67) -> 0 | AQ67: =COUNTIF('Certification Preparation'!$B$32:$B$420,X67) -> 0 | AR67: =COUNTIF('Certification Preparation'!$B$32:$B$420,Y67) -> 0 | AS67: =COUNTIF('Certification Preparation'!$B$32:$B$420,Z67) -> 0 | AT67: =COUNTIF('Certification Preparation'!$B$32:$B$420,AA67) -> 0 | AU67: =COUNTIF('Certification Preparation'!$B$32:$B$420,AB67) -> 0 | AV67: =COUNTIF('Certification Preparation'!$B$32:$B$420,AC67) -> 0 | AW67: =COUNTIF('Certification Preparation'!$B$32:$B$420,AD67) -> 0 | AX67: =COUNTIF('Certification Preparation'!$B$32:$B$420,AE67) -> 0 | AZ67: =COUNTIF('Certification Preparation'!$B$32:$B$420,AF67) -> 0 | BA67: =COUNTIF('Certification Preparation'!$B$32:$B$420,AG67) -> 0 | BB67: =COUNTIF('Certification Preparation'!$B$32:$B$420,AH67) -> 0 | BD67: SMETA.3.3.9 | BE67: =COUNTIF('Certification Preparation'!$B$32:$B$420,BD67) -> 0
A68: 67 | B68: Bronze | C68: =INDEX('Certification Preparation'!G:G,MATCH(Table1[[#This Row],[C2C_Level]],'Certification Preparation'!H:H,0)) -> 1 | D68: 8.5 Monitor and Verify Performance | E68: =IF(Table1[[#This Row],[Column1]]<'Certification Preparation'!$G$10,"GAP","Covered") -> GAP | F68: =IF(AND('Certification Preparation'!$B$27="Yes",M68="Y",SUM(AI68:BB68)=0),"Covered","GAP") -> GAP | G68: =IF(AND('Certification Preparation'!$B$28="Yes",N68="Y",SUM(AI68:BB68)=0),"Covered","GAP") -> GAP | H68: =IF(AND('Certification Preparation'!$B$29="Yes",O68="Y",SUM(AI68:BB68)=0),"Covered","GAP") -> GAP | I68: 8.05.001 | J68: FAC_8.5 | K68: 0 | L68: For the Applicant company and final manufacturing stage facilities, measure performance against the human rights policy and confirm the completion of corrective actions associated with issues of high concern including child labor, forced labor, corruption/bribery, and immediate threats to life and safety. For any other poor performance issues, plan corrective actions and at recertification, demonstrate progress on addressing the issues. | M68: Y | N68: Y | O68: Y | P68: SMETA.0.09 | AB68: SA8000.9.10.1c | AC68: SA8000.9.10.1d | AF68: SLCP.MS-7 | AI68: =COUNTIF('Certification Preparation'!$B$32:$B$420,P68) -> 0 | AJ68: =COUNTIF('Certification Preparation'!$B$32:$B$420,Q68) -> 0 | AK68: =COUNTIF('Certification Preparation'!$B$32:$B$420,R68) -> 0 | AL68: =COUNTIF('Certification Preparation'!$B$32:$B$420,S68) -> 0 | AM68: =COUNTIF('Certification Preparation'!$B$32:$B$420,T68) -> 0 | AN68: =COUNTIF('Certification Preparation'!$B$32:$B$420,U68) -> 0 | AO68: =COUNTIF('Certification Preparation'!$B$32:$B$420,V68) -> 0 | AP68: =COUNTIF('Certification Preparation'!$B$32:$B$420,W68) -> 0 | AQ68: =COUNTIF('Certification Preparation'!$B$32:$B$420,X68) -> 0 | AR68: =COUNTIF('Certification Preparation'!$B$32:$B$420,Y68) -> 0 | AS68: =COUNTIF('Certification Preparation'!$B$32:$B$420,Z68) -> 0 | AT68: =COUNTIF('Certification Preparation'!$B$32:$B$420,AA68) -> 0 | AU68: =COUNTIF('Certification Preparation'!$B$32:$B$420,AB68) -> 0 | AV68: =COUNTIF('Certification Preparation'!$B$32:$B$420,AC68) -> 0 | AW68: =COUNTIF('Certification Preparation'!$B$32:$B$420,AD68) -> 0 | AX68: =COUNTIF('Certification Preparation'!$B$32:$B$420,AE68) -> 0 | AZ68: =COUNTIF('Certification Preparation'!$B$32:$B$420,AF68) -> 0 | BA68: =COUNTIF('Certification Preparation'!$B$32:$B$420,AG68) -> 0 | BB68: =COUNTIF('Certification Preparation'!$B$32:$B$420,AH68) -> 0
A69: 68 | B69: Bronze | C69: =INDEX('Certification Preparation'!G:G,MATCH(Table1[[#This Row],[C2C_Level]],'Certification Preparation'!H:H,0)) -> 1 | D69: 8.5 Monitor and Verify Performance | E69: =IF(Table1[[#This Row],[Column1]]<'Certification Preparation'!$G$10,"GAP","Covered") -> GAP | F69: =IF(AND('Certification Preparation'!$B$27="Yes",M69="Y",SUM(AI69:BB69)=0),"Covered","GAP") -> GAP | G69: =IF(AND('Certification Preparation'!$B$28="Yes",N69="Y",SUM(AI69:BB69)=0),"Covered","GAP") -> GAP | H69: =IF(AND('Certification Preparation'!$B$29="Yes",O69="Y",SUM(AI69:BB69)=0),"Covered","GAP") -> GAP | I69: 8.05.002 | J69: FAC_8.5d | K69: 1 | L69: For the Bronze level performance measurement requirements applying to the Applicant company and final manufacturing stage facilities: | M69: N | N69: N | O69: N | AI69: =COUNTIF('Certification Preparation'!$B$32:$B$420,P69) -> 0 | AJ69: =COUNTIF('Certification Preparation'!$B$32:$B$420,Q69) -> 0 | AK69: =COUNTIF('Certification Preparation'!$B$32:$B$420,R69) -> 0 | AL69: =COUNTIF('Certification Preparation'!$B$32:$B$420,S69) -> 0 | AM69: =COUNTIF('Certification Preparation'!$B$32:$B$420,T69) -> 0 | AN69: =COUNTIF('Certification Preparation'!$B$32:$B$420,U69) -> 0 | AO69: =COUNTIF('Certification Preparation'!$B$32:$B$420,V69) -> 0 | AP69: =COUNTIF('Certification Preparation'!$B$32:$B$420,W69) -> 0 | AQ69: =COUNTIF('Certification Preparation'!$B$32:$B$420,X69) -> 0 | AR69: =COUNTIF('Certification Preparation'!$B$32:$B$420,Y69) -> 0 | AS69: =COUNTIF('Certification Preparation'!$B$32:$B$420,Z69) -> 0 | AT69: =COUNTIF('Certification Preparation'!$B$32:$B$420,AA69) -> 0 | AU69: =COUNTIF('Certification Preparation'!$B$32:$B$420,AB69) -> 0 | AV69: =COUNTIF('Certification Preparation'!$B$32:$B$420,AC69) -> 0 | AW69: =COUNTIF('Certification Preparation'!$B$32:$B$420,AD69) -> 0 | AX69: =COUNTIF('Certification Preparation'!$B$32:$B$420,AE69) -> 0 | AZ69: =COUNTIF('Certification Preparation'!$B$32:$B$420,AF69) -> 0 | BA69: =COUNTIF('Certification Preparation'!$B$32:$B$420,AG69) -> 0 | BB69: =COUNTIF('Certification Preparation'!$B$32:$B$420,AH69) -> 0
A70: 69 | B70: Bronze | C70: =INDEX('Certification Preparation'!G:G,MATCH(Table1[[#This Row],[C2C_Level]],'Certification Preparation'!H:H,0)) -> 1 | D70: 8.5 Monitor and Verify Performance | E70: =IF(Table1[[#This Row],[Column1]]<'Certification Preparation'!$G$10,"GAP","Covered") -> GAP | F70: =IF(AND('Certification Preparation'!$B$27="Yes",M70="Y",SUM(AI70:BB70)=0),"Covered","GAP") -> GAP | G70: =IF(AND('Certification Preparation'!$B$28="Yes",N70="Y",SUM(AI70:BB70)=0),"Covered","GAP") -> GAP | H70: =IF(AND('Certification Preparation'!$B$29="Yes",O70="Y",SUM(AI70:BB70)=0),"Covered","GAP") -> GAP | I70: 8.05.003 | J70: FAC_8.5.1 | K70: 0 | L70: 1. Performance data must be generated and verified by a qualified party. | M70: N | N70: Y | O70: Y | AB70: SA8000.9.4.1 | AC70: SA8000.9.4.2 | AD70: SA8000.9.7.1 | AF70: SLCP.MS-6 | AI70: =COUNTIF('Certification Preparation'!$B$32:$B$420,P70) -> 0 | AJ70: =COUNTIF('Certification Preparation'!$B$32:$B$420,Q70) -> 0 | AK70: =COUNTIF('Certification Preparation'!$B$32:$B$420,R70) -> 0 | AL70: =COUNTIF('Certification Preparation'!$B$32:$B$420,S70) -> 0 | AM70: =COUNTIF('Certification Preparation'!$B$32:$B$420,T70) -> 0 | AN70: =COUNTIF('Certification Preparation'!$B$32:$B$420,U70) -> 0 | AO70: =COUNTIF('Certification Preparation'!$B$32:$B$420,V70) -> 0 | AP70: =COUNTIF('Certification Preparation'!$B$32:$B$420,W70) -> 0 | AQ70: =COUNTIF('Certification Preparation'!$B$32:$B$420,X70) -> 0 | AR70: =COUNTIF('Certification Preparation'!$B$32:$B$420,Y70) -> 0 | AS70: =COUNTIF('Certification Preparation'!$B$32:$B$420,Z70) -> 0 | AT70: =COUNTIF('Certification Preparation'!$B$32:$B$420,AA70) -> 0 | AU70: =COUNTIF('Certification Preparation'!$B$32:$B$420,AB70) -> 0 | AV70: =COUNTIF('Certification Preparation'!$B$32:$B$420,AC70) -> 0 | AW70: =COUNTIF('Certification Preparation'!$B$32:$B$420,AD70) -> 0 | AX70: =COUNTIF('Certification Preparation'!$B$32:$B$420,AE70) -> 0 | AZ70: =COUNTIF('Certification Preparation'!$B$32:$B$420,AF70) -> 0 | BA70: =COUNTIF('Certification Preparation'!$B$32:$B$420,AG70) -> 0 | BB70: =COUNTIF('Certification Preparation'!$B$32:$B$420,AH70) -> 0
A71: 70 | B71: Bronze | C71: =INDEX('Certification Preparation'!G:G,MATCH(Table1[[#This Row],[C2C_Level]],'Certification Preparation'!H:H,0)) -> 1 | D71: 8.5 Monitor and Verify Performance | E71: =IF(Table1[[#This Row],[Column1]]<'Certification Preparation'!$G$10,"GAP","Covered") -> GAP | F71: =IF(AND('Certification Preparation'!$B$27="Yes",M71="Y",SUM(AI71:BB71)=0),"Covered","GAP") -> GAP | G71: =IF(AND('Certification Preparation'!$B$28="Yes",N71="Y",SUM(AI71:BB71)=0),"Covered","GAP") -> GAP | H71: =IF(AND('Certification Preparation'!$B$29="Yes",O71="Y",SUM(AI71:BB71)=0),"Covered","GAP") -> GAP | I71: 8.05.040 | K71: 1 | L71: Performance data to be generated and verified must cover all items listed in the human rights policy (See Section 8.3). Issues required in the policy but not in #2 below include the following: | M71: N | N71: N | O71: N | AI71: =COUNTIF('Certification Preparation'!$B$32:$B$420,P71) -> 0 | AJ71: =COUNTIF('Certification Preparation'!$B$32:$B$420,Q71) -> 0 | AK71: =COUNTIF('Certification Preparation'!$B$32:$B$420,R71) -> 0 | AL71: =COUNTIF('Certification Preparation'!$B$32:$B$420,S71) -> 0 | AM71: =COUNTIF('Certification Preparation'!$B$32:$B$420,T71) -> 0 | AN71: =COUNTIF('Certification Preparation'!$B$32:$B$420,U71) -> 0 | AO71: =COUNTIF('Certification Preparation'!$B$32:$B$420,V71) -> 0 | AP71: =COUNTIF('Certification Preparation'!$B$32:$B$420,W71) -> 0 | AQ71: =COUNTIF('Certification Preparation'!$B$32:$B$420,X71) -> 0 | AR71: =COUNTIF('Certification Preparation'!$B$32:$B$420,Y71) -> 0 | AS71: =COUNTIF('Certification Preparation'!$B$32:$B$420,Z71) -> 0 | AT71: =COUNTIF('Certification Preparation'!$B$32:$B$420,AA71) -> 0 | AU71: =COUNTIF('Certification Preparation'!$B$32:$B$420,AB71) -> 0 | AV71: =COUNTIF('Certification Preparation'!$B$32:$B$420,AC71) -> 0 | AW71: =COUNTIF('Certification Preparation'!$B$32:$B$420,AD71) -> 0 | AX71: =COUNTIF('Certification Preparation'!$B$32:$B$420,AE71) -> 0 | AZ71: =COUNTIF('Certification Preparation'!$B$32:$B$420,AF71) -> 0 | BA71: =COUNTIF('Certification Preparation'!$B$32:$B$420,AG71) -> 0 | BB71: =COUNTIF('Certification Preparation'!$B$32:$B$420,AH71) -> 0
A72: 71 | B72: Bronze | C72: =INDEX('Certification Preparation'!G:G,MATCH(Table1[[#This Row],[C2C_Level]],'Certification Preparation'!H:H,0)) -> 1 | D72: 8.5 Monitor and Verify Performance | E72: =IF(Table1[[#This Row],[Column1]]<'Certification Preparation'!$G$10,"GAP","Covered") -> GAP | F72: =IF(AND('Certification Preparation'!$B$27="Yes",M72="Y",SUM(AI72:BB72)=0),"Covered","GAP") -> GAP | G72: =IF(AND('Certification Preparation'!$B$28="Yes",N72="Y",SUM(AI72:BB72)=0),"Covered","GAP") -> GAP | H72: =IF(AND('Certification Preparation'!$B$29="Yes",O72="Y",SUM(AI72:BB72)=0),"Covered","GAP") -> GAP | I72: 8.05.041 | K72: 0 | L72: a. Discrimination | M72: N | N72: N | O72: N | AI72: =COUNTIF('Certification Preparation'!$B$32:$B$420,P72) -> 0 | AJ72: =COUNTIF('Certification Preparation'!$B$32:$B$420,Q72) -> 0 | AK72: =COUNTIF('Certification Preparation'!$B$32:$B$420,R72) -> 0 | AL72: =COUNTIF('Certification Preparation'!$B$32:$B$420,S72) -> 0 | AM72: =COUNTIF('Certification Preparation'!$B$32:$B$420,T72) -> 0 | AN72: =COUNTIF('Certification Preparation'!$B$32:$B$420,U72) -> 0 | AO72: =COUNTIF('Certification Preparation'!$B$32:$B$420,V72) -> 0 | AP72: =COUNTIF('Certification Preparation'!$B$32:$B$420,W72) -> 0 | AQ72: =COUNTIF('Certification Preparation'!$B$32:$B$420,X72) -> 0 | AR72: =COUNTIF('Certification Preparation'!$B$32:$B$420,Y72) -> 0 | AS72: =COUNTIF('Certification Preparation'!$B$32:$B$420,Z72) -> 0 | AT72: =COUNTIF('Certification Preparation'!$B$32:$B$420,AA72) -> 0 | AU72: =COUNTIF('Certification Preparation'!$B$32:$B$420,AB72) -> 0 | AV72: =COUNTIF('Certification Preparation'!$B$32:$B$420,AC72) -> 0 | AW72: =COUNTIF('Certification Preparation'!$B$32:$B$420,AD72) -> 0 | AX72: =COUNTIF('Certification Preparation'!$B$32:$B$420,AE72) -> 0 | AZ72: =COUNTIF('Certification Preparation'!$B$32:$B$420,AF72) -> 0 | BA72: =COUNTIF('Certification Preparation'!$B$32:$B$420,AG72) -> 0 | BB72: =COUNTIF('Certification Preparation'!$B$32:$B$420,AH72) -> 0
A73: 72 | B73: Bronze | C73: =INDEX('Certification Preparation'!G:G,MATCH(Table1[[#This Row],[C2C_Level]],'Certification Preparation'!H:H,0)) -> 1 | D73: 8.5 Monitor and Verify Performance | E73: =IF(Table1[[#This Row],[Column1]]<'Certification Preparation'!$G$10,"GAP","Covered") -> GAP | F73: =IF(AND('Certification Preparation'!$B$27="Yes",M73="Y",SUM(AI73:BB73)=0),"Covered","GAP") -> GAP | G73: =IF(AND('Certification Preparation'!$B$28="Yes",N73="Y",SUM(AI73:BB73)=0),"Covered","GAP") -> GAP | H73: =IF(AND('Certification Preparation'!$B$29="Yes",O73="Y",SUM(AI73:BB73)=0),"Covered","GAP") -> GAP | I73: 8.05.042 | K73: 0 | L73: b. Harassment and abuse | M73: N | N73: N | O73: N | AI73: =COUNTIF('Certification Preparation'!$B$32:$B$420,P73) -> 0 | AJ73: =COUNTIF('Certification Preparation'!$B$32:$B$420,Q73) -> 0 | AK73: =COUNTIF('Certification Preparation'!$B$32:$B$420,R73) -> 0 | AL73: =COUNTIF('Certification Preparation'!$B$32:$B$420,S73) -> 0 | AM73: =COUNTIF('Certification Preparation'!$B$32:$B$420,T73) -> 0 | AN73: =COUNTIF('Certification Preparation'!$B$32:$B$420,U73) -> 0 | AO73: =COUNTIF('Certification Preparation'!$B$32:$B$420,V73) -> 0 | AP73: =COUNTIF('Certification Preparation'!$B$32:$B$420,W73) -> 0 | AQ73: =COUNTIF('Certification Preparation'!$B$32:$B$420,X73) -> 0 | AR73: =COUNTIF('Certification Preparation'!$B$32:$B$420,Y73) -> 0 | AS73: =COUNTIF('Certification Preparation'!$B$32:$B$420,Z73) -> 0 | AT73: =COUNTIF('Certification Preparation'!$B$32:$B$420,AA73) -> 0 | AU73: =COUNTIF('Certification Preparation'!$B$32:$B$420,AB73) -> 0 | AV73: =COUNTIF('Certification Preparation'!$B$32:$B$420,AC73) -> 0 | AW73: =COUNTIF('Certification Preparation'!$B$32:$B$420,AD73) -> 0 | AX73: =COUNTIF('Certification Preparation'!$B$32:$B$420,AE73) -> 0 | AZ73: =COUNTIF('Certification Preparation'!$B$32:$B$420,AF73) -> 0 | BA73: =COUNTIF('Certification Preparation'!$B$32:$B$420,AG73) -> 0 | BB73: =COUNTIF('Certification Preparation'!$B$32:$B$420,AH73) -> 0
A74: 73 | B74: Bronze | C74: =INDEX('Certification Preparation'!G:G,MATCH(Table1[[#This Row],[C2C_Level]],'Certification Preparation'!H:H,0)) -> 1 | D74: 8.5 Monitor and Verify Performance | E74: =IF(Table1[[#This Row],[Column1]]<'Certification Preparation'!$G$10,"GAP","Covered") -> GAP | F74: =IF(AND('Certification Preparation'!$B$27="Yes",M74="Y",SUM(AI74:BB74)=0),"Covered","GAP") -> GAP | G74: =IF(AND('Certification Preparation'!$B$28="Yes",N74="Y",SUM(AI74:BB74)=0),"Covered","GAP") -> GAP | H74: =IF(AND('Certification Preparation'!$B$29="Yes",O74="Y",SUM(AI74:BB74)=0),"Covered","GAP") -> GAP | I74: 8.05.043 | K74: 0 | L74: c. Excessive working hours | M74: N | N74: N | O74: N | AI74: =COUNTIF('Certification Preparation'!$B$32:$B$420,P74) -> 0 | AJ74: =COUNTIF('Certification Preparation'!$B$32:$B$420,Q74) -> 0 | AK74: =COUNTIF('Certification Preparation'!$B$32:$B$420,R74) -> 0 | AL74: =COUNTIF('Certification Preparation'!$B$32:$B$420,S74) -> 0 | AM74: =COUNTIF('Certification Preparation'!$B$32:$B$420,T74) -> 0 | AN74: =COUNTIF('Certification Preparation'!$B$32:$B$420,U74) -> 0 | AO74: =COUNTIF('Certification Preparation'!$B$32:$B$420,V74) -> 0 | AP74: =COUNTIF('Certification Preparation'!$B$32:$B$420,W74) -> 0 | AQ74: =COUNTIF('Certification Preparation'!$B$32:$B$420,X74) -> 0 | AR74: =COUNTIF('Certification Preparation'!$B$32:$B$420,Y74) -> 0 | AS74: =COUNTIF('Certification Preparation'!$B$32:$B$420,Z74) -> 0 | AT74: =COUNTIF('Certification Preparation'!$B$32:$B$420,AA74) -> 0 | AU74: =COUNTIF('Certification Preparation'!$B$32:$B$420,AB74) -> 0 | AV74: =COUNTIF('Certification Preparation'!$B$32:$B$420,AC74) -> 0 | AW74: =COUNTIF('Certification Preparation'!$B$32:$B$420,AD74) -> 0 | AX74: =COUNTIF('Certification Preparation'!$B$32:$B$420,AE74) -> 0 | AZ74: =COUNTIF('Certification Preparation'!$B$32:$B$420,AF74) -> 0 | BA74: =COUNTIF('Certification Preparation'!$B$32:$B$420,AG74) -> 0 | BB74: =COUNTIF('Certification Preparation'!$B$32:$B$420,AH74) -> 0
A75: 74 | B75: Bronze | C75: =INDEX('Certification Preparation'!G:G,MATCH(Table1[[#This Row],[C2C_Level]],'Certification Preparation'!H:H,0)) -> 1 | D75: 8.5 Monitor and Verify Performance | E75: =IF(Table1[[#This Row],[Column1]]<'Certification Preparation'!$G$10,"GAP","Covered") -> GAP | F75: =IF(AND('Certification Preparation'!$B$27="Yes",M75="Y",SUM(AI75:BB75)=0),"Covered","GAP") -> GAP | G75: =IF(AND('Certification Preparation'!$B$28="Yes",N75="Y",SUM(AI75:BB75)=0),"Covered","GAP") -> GAP | H75: =IF(AND('Certification Preparation'!$B$29="Yes",O75="Y",SUM(AI75:BB75)=0),"Covered","GAP") -> GAP | I75: 8.05.044 | K75: 0 | L75: d. Freedom of association and collective bargaining, | M75: N | N75: N | O75: N | AI75: =COUNTIF('Certification Preparation'!$B$32:$B$420,P75) -> 0 | AJ75: =COUNTIF('Certification Preparation'!$B$32:$B$420,Q75) -> 0 | AK75: =COUNTIF('Certification Preparation'!$B$32:$B$420,R75) -> 0 | AL75: =COUNTIF('Certification Preparation'!$B$32:$B$420,S75) -> 0 | AM75: =COUNTIF('Certification Preparation'!$B$32:$B$420,T75) -> 0 | AN75: =COUNTIF('Certification Preparation'!$B$32:$B$420,U75) -> 0 | AO75: =COUNTIF('Certification Preparation'!$B$32:$B$420,V75) -> 0 | AP75: =COUNTIF('Certification Preparation'!$B$32:$B$420,W75) -> 0 | AQ75: =COUNTIF('Certification Preparation'!$B$32:$B$420,X75) -> 0 | AR75: =COUNTIF('Certification Preparation'!$B$32:$B$420,Y75) -> 0 | AS75: =COUNTIF('Certification Preparation'!$B$32:$B$420,Z75) -> 0 | AT75: =COUNTIF('Certification Preparation'!$B$32:$B$420,AA75) -> 0 | AU75: =COUNTIF('Certification Preparation'!$B$32:$B$420,AB75) -> 0 | AV75: =COUNTIF('Certification Preparation'!$B$32:$B$420,AC75) -> 0 | AW75: =COUNTIF('Certification Preparation'!$B$32:$B$420,AD75) -> 0 | AX75: =COUNTIF('Certification Preparation'!$B$32:$B$420,AE75) -> 0 | AZ75: =COUNTIF('Certification Preparation'!$B$32:$B$420,AF75) -> 0 | BA75: =COUNTIF('Certification Preparation'!$B$32:$B$420,AG75) -> 0 | BB75: =COUNTIF('Certification Preparation'!$B$32:$B$420,AH75) -> 0
A76: 75 | B76: Bronze | C76: =INDEX('Certification Preparation'!G:G,MATCH(Table1[[#This Row],[C2C_Level]],'Certification Preparation'!H:H,0)) -> 1 | D76: 8.5 Monitor and Verify Performance | E76: =IF(Table1[[#This Row],[Column1]]<'Certification Preparation'!$G$10,"GAP","Covered") -> GAP | F76: =IF(AND('Certification Preparation'!$B$27="Yes",M76="Y",SUM(AI76:BB76)=0),"Covered","GAP") -> GAP | G76: =IF(AND('Certification Preparation'!$B$28="Yes",N76="Y",SUM(AI76:BB76)=0),"Covered","GAP") -> GAP | H76: =IF(AND('Certification Preparation'!$B$29="Yes",O76="Y",SUM(AI76:BB76)=0),"Covered","GAP") -> GAP | I76: 8.05.045 | K76: 0 | L76: e. Legal minimum wage and all legally mandated benefits including employer contributions for social security benefits and services, | M76: N | N76: N | O76: N | AI76: =COUNTIF('Certification Preparation'!$B$32:$B$420,P76) -> 0 | AJ76: =COUNTIF('Certification Preparation'!$B$32:$B$420,Q76) -> 0 | AK76: =COUNTIF('Certification Preparation'!$B$32:$B$420,R76) -> 0 | AL76: =COUNTIF('Certification Preparation'!$B$32:$B$420,S76) -> 0 | AM76: =COUNTIF('Certification Preparation'!$B$32:$B$420,T76) -> 0 | AN76: =COUNTIF('Certification Preparation'!$B$32:$B$420,U76) -> 0 | AO76: =COUNTIF('Certification Preparation'!$B$32:$B$420,V76) -> 0 | AP76: =COUNTIF('Certification Preparation'!$B$32:$B$420,W76) -> 0 | AQ76: =COUNTIF('Certification Preparation'!$B$32:$B$420,X76) -> 0 | AR76: =COUNTIF('Certification Preparation'!$B$32:$B$420,Y76) -> 0 | AS76: =COUNTIF('Certification Preparation'!$B$32:$B$420,Z76) -> 0 | AT76: =COUNTIF('Certification Preparation'!$B$32:$B$420,AA76) -> 0 | AU76: =COUNTIF('Certification Preparation'!$B$32:$B$420,AB76) -> 0 | AV76: =COUNTIF('Certification Preparation'!$B$32:$B$420,AC76) -> 0 | AW76: =COUNTIF('Certification Preparation'!$B$32:$B$420,AD76) -> 0 | AX76: =COUNTIF('Certification Preparation'!$B$32:$B$420,AE76) -> 0 | AZ76: =COUNTIF('Certification Preparation'!$B$32:$B$420,AF76) -> 0 | BA76: =COUNTIF('Certification Preparation'!$B$32:$B$420,AG76) -> 0 | BB76: =COUNTIF('Certification Preparation'!$B$32:$B$420,AH76) -> 0
A77: 76 | B77: Bronze | C77: =INDEX('Certification Preparation'!G:G,MATCH(Table1[[#This Row],[C2C_Level]],'Certification Preparation'!H:H,0)) -> 1 | D77: 8.5 Monitor and Verify Performance | E77: =IF(Table1[[#This Row],[Column1]]<'Certification Preparation'!$G$10,"GAP","Covered") -> GAP | F77: =IF(AND('Certification Preparation'!$B$27="Yes",M77="Y",SUM(AI77:BB77)=0),"Covered","GAP") -> GAP | G77: =IF(AND('Certification Preparation'!$B$28="Yes",N77="Y",SUM(AI77:BB77)=0),"Covered","GAP") -> GAP | H77: =IF(AND('Certification Preparation'!$B$29="Yes",O77="Y",SUM(AI77:BB77)=0),"Covered","GAP") -> GAP | I77: 8.05.046 | K77: 0 | L77: f. Health & Safety, including the following: | M77: N | N77: N | O77: N | AI77: =COUNTIF('Certification Preparation'!$B$32:$B$420,P77) -> 0 | AJ77: =COUNTIF('Certification Preparation'!$B$32:$B$420,Q77) -> 0 | AK77: =COUNTIF('Certification Preparation'!$B$32:$B$420,R77) -> 0 | AL77: =COUNTIF('Certification Preparation'!$B$32:$B$420,S77) -> 0 | AM77: =COUNTIF('Certification Preparation'!$B$32:$B$420,T77) -> 0 | AN77: =COUNTIF('Certification Preparation'!$B$32:$B$420,U77) -> 0 | AO77: =COUNTIF('Certification Preparation'!$B$32:$B$420,V77) -> 0 | AP77: =COUNTIF('Certification Preparation'!$B$32:$B$420,W77) -> 0 | AQ77: =COUNTIF('Certification Preparation'!$B$32:$B$420,X77) -> 0 | AR77: =COUNTIF('Certification Preparation'!$B$32:$B$420,Y77) -> 0 | AS77: =COUNTIF('Certification Preparation'!$B$32:$B$420,Z77) -> 0 | AT77: =COUNTIF('Certification Preparation'!$B$32:$B$420,AA77) -> 0 | AU77: =COUNTIF('Certification Preparation'!$B$32:$B$420,AB77) -> 0 | AV77: =COUNTIF('Certification Preparation'!$B$32:$B$420,AC77) -> 0 | AW77: =COUNTIF('Certification Preparation'!$B$32:$B$420,AD77) -> 0 | AX77: =COUNTIF('Certification Preparation'!$B$32:$B$420,AE77) -> 0 | AZ77: =COUNTIF('Certification Preparation'!$B$32:$B$420,AF77) -> 0 | BA77: =COUNTIF('Certification Preparation'!$B$32:$B$420,AG77) -> 0 | BB77: =COUNTIF('Certification Preparation'!$B$32:$B$420,AH77) -> 0
A78: 77 | B78: Bronze | C78: =INDEX('Certification Preparation'!G:G,MATCH(Table1[[#This Row],[C2C_Level]],'Certification Preparation'!H:H,0)) -> 1 | D78: 8.5 Monitor and Verify Performance | E78: =IF(Table1[[#This Row],[Column1]]<'Certification Preparation'!$G$10,"GAP","Covered") -> GAP | F78: =IF(AND('Certification Preparation'!$B$27="Yes",M78="Y",SUM(AI78:BB78)=0),"Covered","GAP") -> GAP | G78: =IF(AND('Certification Preparation'!$B$28="Yes",N78="Y",SUM(AI78:BB78)=0),"Covered","GAP") -> GAP | H78: =IF(AND('Certification Preparation'!$B$29="Yes",O78="Y",SUM(AI78:BB78)=0),"Covered","GAP") -> GAP | I78: 8.05.048 | K78: 0 | L78: i. Access to water, sanitation, and hygiene (WASH), | M78: N | N78: N | O78: N | AI78: =COUNTIF('Certification Preparation'!$B$32:$B$420,P78) -> 0 | AJ78: =COUNTIF('Certification Preparation'!$B$32:$B$420,Q78) -> 0 | AK78: =COUNTIF('Certification Preparation'!$B$32:$B$420,R78) -> 0 | AL78: =COUNTIF('Certification Preparation'!$B$32:$B$420,S78) -> 0 | AM78: =COUNTIF('Certification Preparation'!$B$32:$B$420,T78) -> 0 | AN78: =COUNTIF('Certification Preparation'!$B$32:$B$420,U78) -> 0 | AO78: =COUNTIF('Certification Preparation'!$B$32:$B$420,V78) -> 0 | AP78: =COUNTIF('Certification Preparation'!$B$32:$B$420,W78) -> 0 | AQ78: =COUNTIF('Certification Preparation'!$B$32:$B$420,X78) -> 0 | AR78: =COUNTIF('Certification Preparation'!$B$32:$B$420,Y78) -> 0 | AS78: =COUNTIF('Certification Preparation'!$B$32:$B$420,Z78) -> 0 | AT78: =COUNTIF('Certification Preparation'!$B$32:$B$420,AA78) -> 0 | AU78: =COUNTIF('Certification Preparation'!$B$32:$B$420,AB78) -> 0 | AV78: =COUNTIF('Certification Preparation'!$B$32:$B$420,AC78) -> 0 | AW78: =COUNTIF('Certification Preparation'!$B$32:$B$420,AD78) -> 0 | AX78: =COUNTIF('Certification Preparation'!$B$32:$B$420,AE78) -> 0 | AZ78: =COUNTIF('Certification Preparation'!$B$32:$B$420,AF78) -> 0 | BA78: =COUNTIF('Certification Preparation'!$B$32:$B$420,AG78) -> 0 | BB78: =COUNTIF('Certification Preparation'!$B$32:$B$420,AH78) -> 0
A79: 78 | B79: Bronze | C79: =INDEX('Certification Preparation'!G:G,MATCH(Table1[[#This Row],[C2C_Level]],'Certification Preparation'!H:H,0)) -> 1 | D79: 8.5 Monitor and Verify Performance | E79: =IF(Table1[[#This Row],[Column1]]<'Certification Preparation'!$G$10,"GAP","Covered") -> GAP | F79: =IF(AND('Certification Preparation'!$B$27="Yes",M79="Y",SUM(AI79:BB79)=0),"Covered","GAP") -> GAP | G79: =IF(AND('Certification Preparation'!$B$28="Yes",N79="Y",SUM(AI79:BB79)=0),"Covered","GAP") -> GAP | H79: =IF(AND('Certification Preparation'!$B$29="Yes",O79="Y",SUM(AI79:BB79)=0),"Covered","GAP") -> GAP | I79: 8.05.049 | K79: 0 | L79: ii. Emergency preparation and response, | M79: N | N79: N | O79: N | AI79: =COUNTIF('Certification Preparation'!$B$32:$B$420,P79) -> 0 | AJ79: =COUNTIF('Certification Preparation'!$B$32:$B$420,Q79) -> 0 | AK79: =COUNTIF('Certification Preparation'!$B$32:$B$420,R79) -> 0 | AL79: =COUNTIF('Certification Preparation'!$B$32:$B$420,S79) -> 0 | AM79: =COUNTIF('Certification Preparation'!$B$32:$B$420,T79) -> 0 | AN79: =COUNTIF('Certification Preparation'!$B$32:$B$420,U79) -> 0 | AO79: =COUNTIF('Certification Preparation'!$B$32:$B$420,V79) -> 0 | AP79: =COUNTIF('Certification Preparation'!$B$32:$B$420,W79) -> 0 | AQ79: =COUNTIF('Certification Preparation'!$B$32:$B$420,X79) -> 0 | AR79: =COUNTIF('Certification Preparation'!$B$32:$B$420,Y79) -> 0 | AS79: =COUNTIF('Certification Preparation'!$B$32:$B$420,Z79) -> 0 | AT79: =COUNTIF('Certification Preparation'!$B$32:$B$420,AA79) -> 0 | AU79: =COUNTIF('Certification Preparation'!$B$32:$B$420,AB79) -> 0 | AV79: =COUNTIF('Certification Preparation'!$B$32:$B$420,AC79) -> 0 | AW79: =COUNTIF('Certification Preparation'!$B$32:$B$420,AD79) -> 0 | AX79: =COUNTIF('Certification Preparation'!$B$32:$B$420,AE79) -> 0 | AZ79: =COUNTIF('Certification Preparation'!$B$32:$B$420,AF79) -> 0 | BA79: =COUNTIF('Certification Preparation'!$B$32:$B$420,AG79) -> 0 | BB79: =COUNTIF('Certification Preparation'!$B$32:$B$420,AH79) -> 0
A80: 79 | B80: Bronze | C80: =INDEX('Certification Preparation'!G:G,MATCH(Table1[[#This Row],[C2C_Level]],'Certification Preparation'!H:H,0)) -> 1 | D80: 8.5 Monitor and Verify Performance | E80: =IF(Table1[[#This Row],[Column1]]<'Certification Preparation'!$G$10,"GAP","Covered") -> GAP | F80: =IF(AND('Certification Preparation'!$B$27="Yes",M80="Y",SUM(AI80:BB80)=0),"Covered","GAP") -> GAP | G80: =IF(AND('Certification Preparation'!$B$28="Yes",N80="Y",SUM(AI80:BB80)=0),"Covered","GAP") -> GAP | H80: =IF(AND('Certification Preparation'!$B$29="Yes",O80="Y",SUM(AI80:BB80)=0),"Covered","GAP") -> GAP | I80: 8.05.050 | K80: 0 | L80: iii. Hazardous materials handling procedures, | M80: N | N80: N | O80: N | AI80: =COUNTIF('Certification Preparation'!$B$32:$B$420,P80) -> 0 | AJ80: =COUNTIF('Certification Preparation'!$B$32:$B$420,Q80) -> 0 | AK80: =COUNTIF('Certification Preparation'!$B$32:$B$420,R80) -> 0 | AL80: =COUNTIF('Certification Preparation'!$B$32:$B$420,S80) -> 0 | AM80: =COUNTIF('Certification Preparation'!$B$32:$B$420,T80) -> 0 | AN80: =COUNTIF('Certification Preparation'!$B$32:$B$420,U80) -> 0 | AO80: =COUNTIF('Certification Preparation'!$B$32:$B$420,V80) -> 0 | AP80: =COUNTIF('Certification Preparation'!$B$32:$B$420,W80) -> 0 | AQ80: =COUNTIF('Certification Preparation'!$B$32:$B$420,X80) -> 0 | AR80: =COUNTIF('Certification Preparation'!$B$32:$B$420,Y80) -> 0 | AS80: =COUNTIF('Certification Preparation'!$B$32:$B$420,Z80) -> 0 | AT80: =COUNTIF('Certification Preparation'!$B$32:$B$420,AA80) -> 0 | AU80: =COUNTIF('Certification Preparation'!$B$32:$B$420,AB80) -> 0 | AV80: =COUNTIF('Certification Preparation'!$B$32:$B$420,AC80) -> 0 | AW80: =COUNTIF('Certification Preparation'!$B$32:$B$420,AD80) -> 0 | AX80: =COUNTIF('Certification Preparation'!$B$32:$B$420,AE80) -> 0 | AZ80: =COUNTIF('Certification Preparation'!$B$32:$B$420,AF80) -> 0 | BA80: =COUNTIF('Certification Preparation'!$B$32:$B$420,AG80) -> 0 | BB80: =COUNTIF('Certification Preparation'!$B$32:$B$420,AH80) -> 0
A81: 80 | B81: Bronze | C81: =INDEX('Certification Preparation'!G:G,MATCH(Table1[[#This Row],[C2C_Level]],'Certification Preparation'!H:H,0)) -> 1 | D81: 8.5 Monitor and Verify Performance | E81: =IF(Table1[[#This Row],[Column1]]<'Certification Preparation'!$G$10,"GAP","Covered") -> GAP | F81: =IF(AND('Certification Preparation'!$B$27="Yes",M81="Y",SUM(AI81:BB81)=0),"Covered","GAP") -> GAP | G81: =IF(AND('Certification Preparation'!$B$28="Yes",N81="Y",SUM(AI81:BB81)=0),"Covered","GAP") -> GAP | H81: =IF(AND('Certification Preparation'!$B$29="Yes",O81="Y",SUM(AI81:BB81)=0),"Covered","GAP") -> GAP | I81: 8.05.051 | K81: 0 | L81: iv. Management systems that address health and safety risks, and | M81: N | N81: N | O81: N | AI81: =COUNTIF('Certification Preparation'!$B$32:$B$420,P81) -> 0 | AJ81: =COUNTIF('Certification Preparation'!$B$32:$B$420,Q81) -> 0 | AK81: =COUNTIF('Certification Preparation'!$B$32:$B$420,R81) -> 0 | AL81: =COUNTIF('Certification Preparation'!$B$32:$B$420,S81) -> 0 | AM81: =COUNTIF('Certification Preparation'!$B$32:$B$420,T81) -> 0 | AN81: =COUNTIF('Certification Preparation'!$B$32:$B$420,U81) -> 0 | AO81: =COUNTIF('Certification Preparation'!$B$32:$B$420,V81) -> 0 | AP81: =COUNTIF('Certification Preparation'!$B$32:$B$420,W81) -> 0 | AQ81: =COUNTIF('Certification Preparation'!$B$32:$B$420,X81) -> 0 | AR81: =COUNTIF('Certification Preparation'!$B$32:$B$420,Y81) -> 0 | AS81: =COUNTIF('Certification Preparation'!$B$32:$B$420,Z81) -> 0 | AT81: =COUNTIF('Certification Preparation'!$B$32:$B$420,AA81) -> 0 | AU81: =COUNTIF('Certification Preparation'!$B$32:$B$420,AB81) -> 0 | AV81: =COUNTIF('Certification Preparation'!$B$32:$B$420,AC81) -> 0 | AW81: =COUNTIF('Certification Preparation'!$B$32:$B$420,AD81) -> 0 | AX81: =COUNTIF('Certification Preparation'!$B$32:$B$420,AE81) -> 0 | AZ81: =COUNTIF('Certification Preparation'!$B$32:$B$420,AF81) -> 0 | BA81: =COUNTIF('Certification Preparation'!$B$32:$B$420,AG81) -> 0 | BB81: =COUNTIF('Certification Preparation'!$B$32:$B$420,AH81) -> 0
A82: 81 | B82: Bronze | C82: =INDEX('Certification Preparation'!G:G,MATCH(Table1[[#This Row],[C2C_Level]],'Certification Preparation'!H:H,0)) -> 1 | D82: 8.5 Monitor and Verify Performance | E82: =IF(Table1[[#This Row],[Column1]]<'Certification Preparation'!$G$10,"GAP","Covered") -> GAP | F82: =IF(AND('Certification Preparation'!$B$27="Yes",M82="Y",SUM(AI82:BB82)=0),"Covered","GAP") -> GAP | G82: =IF(AND('Certification Preparation'!$B$28="Yes",N82="Y",SUM(AI82:BB82)=0),"Covered","GAP") -> GAP | H82: =IF(AND('Certification Preparation'!$B$29="Yes",O82="Y",SUM(AI82:BB82)=0),"Covered","GAP") -> GAP | I82: 8.05.052 | K82: 0 | L82: v. Appropriate building construction, electrical, and fire safety. | M82: N | N82: N | O82: N | AI82: =COUNTIF('Certification Preparation'!$B$32:$B$420,P82) -> 0 | AJ82: =COUNTIF('Certification Preparation'!$B$32:$B$420,Q82) -> 0 | AK82: =COUNTIF('Certification Preparation'!$B$32:$B$420,R82) -> 0 | AL82: =COUNTIF('Certification Preparation'!$B$32:$B$420,S82) -> 0 | AM82: =COUNTIF('Certification Preparation'!$B$32:$B$420,T82) -> 0 | AN82: =COUNTIF('Certification Preparation'!$B$32:$B$420,U82) -> 0 | AO82: =COUNTIF('Certification Preparation'!$B$32:$B$420,V82) -> 0 | AP82: =COUNTIF('Certification Preparation'!$B$32:$B$420,W82) -> 0 | AQ82: =COUNTIF('Certification Preparation'!$B$32:$B$420,X82) -> 0 | AR82: =COUNTIF('Certification Preparation'!$B$32:$B$420,Y82) -> 0 | AS82: =COUNTIF('Certification Preparation'!$B$32:$B$420,Z82) -> 0 | AT82: =COUNTIF('Certification Preparation'!$B$32:$B$420,AA82) -> 0 | AU82: =COUNTIF('Certification Preparation'!$B$32:$B$420,AB82) -> 0 | AV82: =COUNTIF('Certification Preparation'!$B$32:$B$420,AC82) -> 0 | AW82: =COUNTIF('Certification Preparation'!$B$32:$B$420,AD82) -> 0 | AX82: =COUNTIF('Certification Preparation'!$B$32:$B$420,AE82) -> 0 | AZ82: =COUNTIF('Certification Preparation'!$B$32:$B$420,AF82) -> 0 | BA82: =COUNTIF('Certification Preparation'!$B$32:$B$420,AG82) -> 0 | BB82: =COUNTIF('Certification Preparation'!$B$32:$B$420,AH82) -> 0
A83: 82 | B83: Bronze | C83: =INDEX('Certification Preparation'!G:G,MATCH(Table1[[#This Row],[C2C_Level]],'Certification Preparation'!H:H,0)) -> 1 | D83: 8.5 Monitor and Verify Performance | E83: =IF(Table1[[#This Row],[Column1]]<'Certification Preparation'!$G$10,"GAP","Covered") -> GAP | F83: =IF(AND('Certification Preparation'!$B$27="Yes",M83="Y",SUM(AI83:BB83)=0),"Covered","GAP") -> GAP | G83: =IF(AND('Certification Preparation'!$B$28="Yes",N83="Y",SUM(AI83:BB83)=0),"Covered","GAP") -> GAP | H83: =IF(AND('Certification Preparation'!$B$29="Yes",O83="Y",SUM(AI83:BB83)=0),"Covered","GAP") -> GAP | I83: 8.05.047 | K83: 0 | L83: g. Additional priority issues identified in the risk assessment | M83: N | N83: N | O83: N | AI83: =COUNTIF('Certification Preparation'!$B$32:$B$420,P83) -> 0 | AJ83: =COUNTIF('Certification Preparation'!$B$32:$B$420,Q83) -> 0 | AK83: =COUNTIF('Certification Preparation'!$B$32:$B$420,R83) -> 0 | AL83: =COUNTIF('Certification Preparation'!$B$32:$B$420,S83) -> 0 | AM83: =COUNTIF('Certification Preparation'!$B$32:$B$420,T83) -> 0 | AN83: =COUNTIF('Certification Preparation'!$B$32:$B$420,U83) -> 0 | AO83: =COUNTIF('Certification Preparation'!$B$32:$B$420,V83) -> 0 | AP83: =COUNTIF('Certification Preparation'!$B$32:$B$420,W83) -> 0 | AQ83: =COUNTIF('Certification Preparation'!$B$32:$B$420,X83) -> 0 | AR83: =COUNTIF('Certification Preparation'!$B$32:$B$420,Y83) -> 0 | AS83: =COUNTIF('Certification Preparation'!$B$32:$B$420,Z83) -> 0 | AT83: =COUNTIF('Certification Preparation'!$B$32:$B$420,AA83) -> 0 | AU83: =COUNTIF('Certification Preparation'!$B$32:$B$420,AB83) -> 0 | AV83: =COUNTIF('Certification Preparation'!$B$32:$B$420,AC83) -> 0 | AW83: =COUNTIF('Certification Preparation'!$B$32:$B$420,AD83) -> 0 | AX83: =COUNTIF('Certification Preparation'!$B$32:$B$420,AE83) -> 0 | AZ83: =COUNTIF('Certification Preparation'!$B$32:$B$420,AF83) -> 0 | BA83: =COUNTIF('Certification Preparation'!$B$32:$B$420,AG83) -> 0 | BB83: =COUNTIF('Certification Preparation'!$B$32:$B$420,AH83) -> 0
A84: 83 | B84: Bronze | C84: =INDEX('Certification Preparation'!G:G,MATCH(Table1[[#This Row],[C2C_Level]],'Certification Preparation'!H:H,0)) -> 1 | D84: 8.5 Monitor and Verify Performance | E84: =IF(Table1[[#This Row],[Column1]]<'Certification Preparation'!$G$10,"GAP","Covered") -> GAP | F84: =IF(AND('Certification Preparation'!$B$27="Yes",M84="Y",SUM(AI84:BB84)=0),"Covered","GAP") -> GAP | G84: =IF(AND('Certification Preparation'!$B$28="Yes",N84="Y",SUM(AI84:BB84)=0),"Covered","GAP") -> GAP | H84: =IF(AND('Certification Preparation'!$B$29="Yes",O84="Y",SUM(AI84:BB84)=0),"Covered","GAP") -> GAP | I84: 8.05.004 | J84: FAC_8.5.2 | K84: 0 | L84: 2. If identified, the following issues of high concern must be resolved prior to certification or recertification, | M84: N | N84: Y | O84: Y | AB84: SA8000.9.8.1 | AC84: SA8000.9.4.2 | AD84: SA8000.9.10.1d | AF84: SLCP.MS-7 | AI84: =COUNTIF('Certification Preparation'!$B$32:$B$420,P84) -> 0 | AJ84: =COUNTIF('Certification Preparation'!$B$32:$B$420,Q84) -> 0 | AK84: =COUNTIF('Certification Preparation'!$B$32:$B$420,R84) -> 0 | AL84: =COUNTIF('Certification Preparation'!$B$32:$B$420,S84) -> 0 | AM84: =COUNTIF('Certification Preparation'!$B$32:$B$420,T84) -> 0 | AN84: =COUNTIF('Certification Preparation'!$B$32:$B$420,U84) -> 0 | AO84: =COUNTIF('Certification Preparation'!$B$32:$B$420,V84) -> 0 | AP84: =COUNTIF('Certification Preparation'!$B$32:$B$420,W84) -> 0 | AQ84: =COUNTIF('Certification Preparation'!$B$32:$B$420,X84) -> 0 | AR84: =COUNTIF('Certification Preparation'!$B$32:$B$420,Y84) -> 0 | AS84: =COUNTIF('Certification Preparation'!$B$32:$B$420,Z84) -> 0 | AT84: =COUNTIF('Certification Preparation'!$B$32:$B$420,AA84) -> 0 | AU84: =COUNTIF('Certification Preparation'!$B$32:$B$420,AB84) -> 0 | AV84: =COUNTIF('Certification Preparation'!$B$32:$B$420,AC84) -> 0 | AW84: =COUNTIF('Certification Preparation'!$B$32:$B$420,AD84) -> 0 | AX84: =COUNTIF('Certification Preparation'!$B$32:$B$420,AE84) -> 0 | AZ84: =COUNTIF('Certification Preparation'!$B$32:$B$420,AF84) -> 0 | BA84: =COUNTIF('Certification Preparation'!$B$32:$B$420,AG84) -> 0 | BB84: =COUNTIF('Certification Preparation'!$B$32:$B$420,AH84) -> 0
A85: 84 | B85: Bronze | C85: =INDEX('Certification Preparation'!G:G,MATCH(Table1[[#This Row],[C2C_Level]],'Certification Preparation'!H:H,0)) -> 1 | D85: 8.5 Monitor and Verify Performance | E85: =IF(Table1[[#This Row],[Column1]]<'Certification Preparation'!$G$10,"GAP","Covered") -> GAP | F85: =IF(AND('Certification Preparation'!$B$27="Yes",M85="Y",SUM(AI85:BB85)=0),"Covered","GAP") -> GAP | G85: =IF(AND('Certification Preparation'!$B$28="Yes",N85="Y",SUM(AI85:BB85)=0),"Covered","GAP") -> GAP | H85: =IF(AND('Certification Preparation'!$B$29="Yes",O85="Y",SUM(AI85:BB85)=0),"Covered","GAP") -> GAP | I85: 8.05.005 | J85: FAC_8.5.2a | K85: 0 | L85: a. Child labor, | M85: Y | N85: Y | O85: Y | P85: SMETA.4.02 | Q85: SMETA.4.03 | R85: SMETA.4.04 | S85: SMETA.4.05 | T85: SMETA.4.06 | AB85: SA8000.1.1 | AC85: SA8000.1.2 | AF85: SLCP.CL-1.3 | AG85: SLCP.CL-1.3 | AI85: =COUNTIF('Certification Preparation'!$B$32:$B$420,P85) -> 0 | AJ85: =COUNTIF('Certification Preparation'!$B$32:$B$420,Q85) -> 0 | AK85: =COUNTIF('Certification Preparation'!$B$32:$B$420,R85) -> 0 | AL85: =COUNTIF('Certification Preparation'!$B$32:$B$420,S85) -> 0 | AM85: =COUNTIF('Certification Preparation'!$B$32:$B$420,T85) -> 0 | AN85: =COUNTIF('Certification Preparation'!$B$32:$B$420,U85) -> 0 | AO85: =COUNTIF('Certification Preparation'!$B$32:$B$420,V85) -> 0 | AP85: =COUNTIF('Certification Preparation'!$B$32:$B$420,W85) -> 0 | AQ85: =COUNTIF('Certification Preparation'!$B$32:$B$420,X85) -> 0 | AR85: =COUNTIF('Certification Preparation'!$B$32:$B$420,Y85) -> 0 | AS85: =COUNTIF('Certification Preparation'!$B$32:$B$420,Z85) -> 0 | AT85: =COUNTIF('Certification Preparation'!$B$32:$B$420,AA85) -> 0 | AU85: =COUNTIF('Certification Preparation'!$B$32:$B$420,AB85) -> 0 | AV85: =COUNTIF('Certification Preparation'!$B$32:$B$420,AC85) -> 0 | AW85: =COUNTIF('Certification Preparation'!$B$32:$B$420,AD85) -> 0 | AX85: =COUNTIF('Certification Preparation'!$B$32:$B$420,AE85) -> 0 | AZ85: =COUNTIF('Certification Preparation'!$B$32:$B$420,AF85) -> 0 | BA85: =COUNTIF('Certification Preparation'!$B$32:$B$420,AG85) -> 0 | BB85: =COUNTIF('Certification Preparation'!$B$32:$B$420,AH85) -> 0
A86: 85 | B86: Bronze | C86: =INDEX('Certification Preparation'!G:G,MATCH(Table1[[#This Row],[C2C_Level]],'Certification Preparation'!H:H,0)) -> 1 | D86: 8.5 Monitor and Verify Performance | E86: =IF(Table1[[#This Row],[Column1]]<'Certification Preparation'!$G$10,"GAP","Covered") -> GAP | F86: =IF(AND('Certification Preparation'!$B$27="Yes",M86="Y",SUM(AI86:BB86)=0),"Covered","GAP") -> GAP | G86: =IF(AND('Certification Preparation'!$B$28="Yes",N86="Y",SUM(AI86:BB86)=0),"Covered","GAP") -> GAP | H86: =IF(AND('Certification Preparation'!$B$29="Yes",O86="Y",SUM(AI86:BB86)=0),"Covered","GAP") -> GAP | I86: 8.05.006 | J86: FAC_8.5.2b | K86: 0 | L86: b. Forced labor, | M86: Y | N86: Y | O86: Y | P86: SMETA.1.17 | Q86: SMETA.1.18 | R86: SMETA.1.19 | S86: SMETA.1.2 | T86: SMETA.1.21 | U86: SMETA.1.23 | V86: SMETA.1.24 | W86: SMETA.1.25 | X86: SMETA.1.26 | Y86: SMETA.1.27 | Z86: SMETA.1.29 | AA86: SMETA.1.3 | AB86: SA8000.2.1 | AI86: =COUNTIF('Certification Preparation'!$B$32:$B$420,P86) -> 0 | AJ86: =COUNTIF('Certification Preparation'!$B$32:$B$420,Q86) -> 0 | AK86: =COUNTIF('Certification Preparation'!$B$32:$B$420,R86) -> 0 | AL86: =COUNTIF('Certification Preparation'!$B$32:$B$420,S86) -> 0 | AM86: =COUNTIF('Certification Preparation'!$B$32:$B$420,T86) -> 0 | AN86: =COUNTIF('Certification Preparation'!$B$32:$B$420,U86) -> 0 | AO86: =COUNTIF('Certification Preparation'!$B$32:$B$420,V86) -> 0 | AP86: =COUNTIF('Certification Preparation'!$B$32:$B$420,W86) -> 0 | AQ86: =COUNTIF('Certification Preparation'!$B$32:$B$420,X86) -> 0 | AR86: =COUNTIF('Certification Preparation'!$B$32:$B$420,Y86) -> 0 | AS86: =COUNTIF('Certification Preparation'!$B$32:$B$420,Z86) -> 0 | AT86: =COUNTIF('Certification Preparation'!$B$32:$B$420,AA86) -> 0 | AU86: =COUNTIF('Certification Preparation'!$B$32:$B$420,AB86) -> 0 | AV86: =COUNTIF('Certification Preparation'!$B$32:$B$420,AC86) -> 0 | AW86: =COUNTIF('Certification Preparation'!$B$32:$B$420,AD86) -> 0 | AX86: =COUNTIF('Certification Preparation'!$B$32:$B$420,AE86) -> 0 | AZ86: =COUNTIF('Certification Preparation'!$B$32:$B$420,AF86) -> 0 | BA86: =COUNTIF('Certification Preparation'!$B$32:$B$420,AG86) -> 0 | BB86: =COUNTIF('Certification Preparation'!$B$32:$B$420,AH86) -> 0
A87: 86 | B87: Bronze | C87: =INDEX('Certification Preparation'!G:G,MATCH(Table1[[#This Row],[C2C_Level]],'Certification Preparation'!H:H,0)) -> 1 | D87: 8.5 Monitor and Verify Performance | E87: =IF(Table1[[#This Row],[Column1]]<'Certification Preparation'!$G$10,"GAP","Covered") -> GAP | F87: =IF(AND('Certification Preparation'!$B$27="Yes",M87="Y",SUM(AI87:BB87)=0),"Covered","GAP") -> GAP | G87: =IF(AND('Certification Preparation'!$B$28="Yes",N87="Y",SUM(AI87:BB87)=0),"Covered","GAP") -> GAP | H87: =IF(AND('Certification Preparation'!$B$29="Yes",O87="Y",SUM(AI87:BB87)=0),"Covered","GAP") -> GAP | I87: 8.05.007 | J87: FAC_8.5.2c | K87: 0 | L87: c. Corruption/bribery, | M87: Y | N87: N | O87: Y | P87: SMETA.10C.05 | Q87: SMETA.10C.07 | AF87: SLCP.MS-6.2 | AI87: =COUNTIF('Certification Preparation'!$B$32:$B$420,P87) -> 0 | AJ87: =COUNTIF('Certification Preparation'!$B$32:$B$420,Q87) -> 0 | AK87: =COUNTIF('Certification Preparation'!$B$32:$B$420,R87) -> 0 | AL87: =COUNTIF('Certification Preparation'!$B$32:$B$420,S87) -> 0 | AM87: =COUNTIF('Certification Preparation'!$B$32:$B$420,T87) -> 0 | AN87: =COUNTIF('Certification Preparation'!$B$32:$B$420,U87) -> 0 | AO87: =COUNTIF('Certification Preparation'!$B$32:$B$420,V87) -> 0 | AP87: =COUNTIF('Certification Preparation'!$B$32:$B$420,W87) -> 0 | AQ87: =COUNTIF('Certification Preparation'!$B$32:$B$420,X87) -> 0 | AR87: =COUNTIF('Certification Preparation'!$B$32:$B$420,Y87) -> 0 | AS87: =COUNTIF('Certification Preparation'!$B$32:$B$420,Z87) -> 0 | AT87: =COUNTIF('Certification Preparation'!$B$32:$B$420,AA87) -> 0 | AU87: =COUNTIF('Certification Preparation'!$B$32:$B$420,AB87) -> 0 | AV87: =COUNTIF('Certification Preparation'!$B$32:$B$420,AC87) -> 0 | AW87: =COUNTIF('Certification Preparation'!$B$32:$B$420,AD87) -> 0 | AX87: =COUNTIF('Certification Preparation'!$B$32:$B$420,AE87) -> 0 | AZ87: =COUNTIF('Certification Preparation'!$B$32:$B$420,AF87) -> 0 | BA87: =COUNTIF('Certification Preparation'!$B$32:$B$420,AG87) -> 0 | BB87: =COUNTIF('Certification Preparation'!$B$32:$B$420,AH87) -> 0
A88: 87 | B88: Bronze | C88: =INDEX('Certification Preparation'!G:G,MATCH(Table1[[#This Row],[C2C_Level]],'Certification Preparation'!H:H,0)) -> 1 | D88: 8.5 Monitor and Verify Performance | E88: =IF(Table1[[#This Row],[Column1]]<'Certification Preparation'!$G$10,"GAP","Covered") -> GAP | F88: =IF(AND('Certification Preparation'!$B$27="Yes",M88="Y",SUM(AI88:BB88)=0),"Covered","GAP") -> GAP | G88: =IF(AND('Certification Preparation'!$B$28="Yes",N88="Y",SUM(AI88:BB88)=0),"Covered","GAP") -> GAP | H88: =IF(AND('Certification Preparation'!$B$29="Yes",O88="Y",SUM(AI88:BB88)=0),"Covered","GAP") -> GAP | I88: 8.05.008 | J88: FAC_8.5.2d | K88: 0 | L88: d. Unauthorized subcontracting, | M88: Y | N88: Y | O88: Y | P88: SMETA.8A.1.02 | Q88: SMETA.8A.1.03 | AB88: SA8000.9.10.2 | AF88: SLCP.MS-6.2 | AI88: =COUNTIF('Certification Preparation'!$B$32:$B$420,P88) -> 0 | AJ88: =COUNTIF('Certification Preparation'!$B$32:$B$420,Q88) -> 0 | AK88: =COUNTIF('Certification Preparation'!$B$32:$B$420,R88) -> 0 | AL88: =COUNTIF('Certification Preparation'!$B$32:$B$420,S88) -> 0 | AM88: =COUNTIF('Certification Preparation'!$B$32:$B$420,T88) -> 0 | AN88: =COUNTIF('Certification Preparation'!$B$32:$B$420,U88) -> 0 | AO88: =COUNTIF('Certification Preparation'!$B$32:$B$420,V88) -> 0 | AP88: =COUNTIF('Certification Preparation'!$B$32:$B$420,W88) -> 0 | AQ88: =COUNTIF('Certification Preparation'!$B$32:$B$420,X88) -> 0 | AR88: =COUNTIF('Certification Preparation'!$B$32:$B$420,Y88) -> 0 | AS88: =COUNTIF('Certification Preparation'!$B$32:$B$420,Z88) -> 0 | AT88: =COUNTIF('Certification Preparation'!$B$32:$B$420,AA88) -> 0 | AU88: =COUNTIF('Certification Preparation'!$B$32:$B$420,AB88) -> 0 | AV88: =COUNTIF('Certification Preparation'!$B$32:$B$420,AC88) -> 0 | AW88: =COUNTIF('Certification Preparation'!$B$32:$B$420,AD88) -> 0 | AX88: =COUNTIF('Certification Preparation'!$B$32:$B$420,AE88) -> 0 | AZ88: =COUNTIF('Certification Preparation'!$B$32:$B$420,AF88) -> 0 | BA88: =COUNTIF('Certification Preparation'!$B$32:$B$420,AG88) -> 0 | BB88: =COUNTIF('Certification Preparation'!$B$32:$B$420,AH88) -> 0
A89: 88 | B89: Bronze | C89: =INDEX('Certification Preparation'!G:G,MATCH(Table1[[#This Row],[C2C_Level]],'Certification Preparation'!H:H,0)) -> 1 | D89: 8.5 Monitor and Verify Performance | E89: =IF(Table1[[#This Row],[Column1]]<'Certification Preparation'!$G$10,"GAP","Covered") -> GAP | F89: =IF(AND('Certification Preparation'!$B$27="Yes",M89="Y",SUM(AI89:BB89)=0),"Covered","GAP") -> GAP | G89: =IF(AND('Certification Preparation'!$B$28="Yes",N89="Y",SUM(AI89:BB89)=0),"Covered","GAP") -> GAP | H89: =IF(AND('Certification Preparation'!$B$29="Yes",O89="Y",SUM(AI89:BB89)=0),"Covered","GAP") -> GAP | I89: 8.05.009 | J89: FAC_8.5.2d | K89: 0 | L89: e. Missing or deficient permits (i.e. business license, building permit, and environmental permit(s) if required by local regulations), | M89: Y | N89: Y | O89: Y | P89: SMETA.8A.1.02 | Q89: SMETA.8A.1.03 | AB89: SA8000.9.10.2 | AF89: SLCP.MS-6.2 | AI89: =COUNTIF('Certification Preparation'!$B$32:$B$420,P89) -> 0 | AJ89: =COUNTIF('Certification Preparation'!$B$32:$B$420,Q89) -> 0 | AK89: =COUNTIF('Certification Preparation'!$B$32:$B$420,R89) -> 0 | AL89: =COUNTIF('Certification Preparation'!$B$32:$B$420,S89) -> 0 | AM89: =COUNTIF('Certification Preparation'!$B$32:$B$420,T89) -> 0 | AN89: =COUNTIF('Certification Preparation'!$B$32:$B$420,U89) -> 0 | AO89: =COUNTIF('Certification Preparation'!$B$32:$B$420,V89) -> 0 | AP89: =COUNTIF('Certification Preparation'!$B$32:$B$420,W89) -> 0 | AQ89: =COUNTIF('Certification Preparation'!$B$32:$B$420,X89) -> 0 | AR89: =COUNTIF('Certification Preparation'!$B$32:$B$420,Y89) -> 0 | AS89: =COUNTIF('Certification Preparation'!$B$32:$B$420,Z89) -> 0 | AT89: =COUNTIF('Certification Preparation'!$B$32:$B$420,AA89) -> 0 | AU89: =COUNTIF('Certification Preparation'!$B$32:$B$420,AB89) -> 0 | AV89: =COUNTIF('Certification Preparation'!$B$32:$B$420,AC89) -> 0 | AW89: =COUNTIF('Certification Preparation'!$B$32:$B$420,AD89) -> 0 | AX89: =COUNTIF('Certification Preparation'!$B$32:$B$420,AE89) -> 0 | AZ89: =COUNTIF('Certification Preparation'!$B$32:$B$420,AF89) -> 0 | BA89: =COUNTIF('Certification Preparation'!$B$32:$B$420,AG89) -> 0 | BB89: =COUNTIF('Certification Preparation'!$B$32:$B$420,AH89) -> 0
A90: 89 | B90: Bronze | C90: =INDEX('Certification Preparation'!G:G,MATCH(Table1[[#This Row],[C2C_Level]],'Certification Preparation'!H:H,0)) -> 1 | D90: 8.5 Monitor and Verify Performance | E90: =IF(Table1[[#This Row],[Column1]]<'Certification Preparation'!$G$10,"GAP","Covered") -> GAP | F90: =IF(AND('Certification Preparation'!$B$27="Yes",M90="Y",SUM(AI90:BB90)=0),"Covered","GAP") -> GAP | G90: =IF(AND('Certification Preparation'!$B$28="Yes",N90="Y",SUM(AI90:BB90)=0),"Covered","GAP") -> GAP | H90: =IF(AND('Certification Preparation'!$B$29="Yes",O90="Y",SUM(AI90:BB90)=0),"Covered","GAP") -> GAP | I90: 8.05.010 | J90: FAC_8.5.2e | K90: 0 | L90: f. Any immediate threat to life or safety (e.g. poor fire safety, structural safety hazard), and | M90: Y | N90: Y | O90: Y | AB90: SA8000.9.10.2 | AI90: =COUNTIF('Certification Preparation'!$B$32:$B$420,P90) -> 0 | AJ90: =COUNTIF('Certification Preparation'!$B$32:$B$420,Q90) -> 0 | AK90: =COUNTIF('Certification Preparation'!$B$32:$B$420,R90) -> 0 | AL90: =COUNTIF('Certification Preparation'!$B$32:$B$420,S90) -> 0 | AM90: =COUNTIF('Certification Preparation'!$B$32:$B$420,T90) -> 0 | AN90: =COUNTIF('Certification Preparation'!$B$32:$B$420,U90) -> 0 | AO90: =COUNTIF('Certification Preparation'!$B$32:$B$420,V90) -> 0 | AP90: =COUNTIF('Certification Preparation'!$B$32:$B$420,W90) -> 0 | AQ90: =COUNTIF('Certification Preparation'!$B$32:$B$420,X90) -> 0 | AR90: =COUNTIF('Certification Preparation'!$B$32:$B$420,Y90) -> 0 | AS90: =COUNTIF('Certification Preparation'!$B$32:$B$420,Z90) -> 0 | AT90: =COUNTIF('Certification Preparation'!$B$32:$B$420,AA90) -> 0 | AU90: =COUNTIF('Certification Preparation'!$B$32:$B$420,AB90) -> 0 | AV90: =COUNTIF('Certification Preparation'!$B$32:$B$420,AC90) -> 0 | AW90: =COUNTIF('Certification Preparation'!$B$32:$B$420,AD90) -> 0 | AX90: =COUNTIF('Certification Preparation'!$B$32:$B$420,AE90) -> 0 | AY90: =SUM(BH:BH) -> 0 | AZ90: =COUNTIF('Certification Preparation'!$B$32:$B$420,AF90) -> 0 | BA90: =COUNTIF('Certification Preparation'!$B$32:$B$420,AG90) -> 0 | BB90: =COUNTIF('Certification Preparation'!$B$32:$B$420,AH90) -> 0
A91: 90 | B91: Bronze | C91: =INDEX('Certification Preparation'!G:G,MATCH(Table1[[#This Row],[C2C_Level]],'Certification Preparation'!H:H,0)) -> 1 | D91: 8.5 Monitor and Verify Performance | E91: =IF(Table1[[#This Row],[Column1]]<'Certification Preparation'!$G$10,"GAP","Covered") -> GAP | F91: =IF(AND('Certification Preparation'!$B$27="Yes",M91="Y",SUM(AI91:BB91)=0),"Covered","GAP") -> GAP | G91: =IF(AND('Certification Preparation'!$B$28="Yes",N91="Y",SUM(AI91:BB91)=0),"Covered","GAP") -> GAP | H91: =IF(AND('Certification Preparation'!$B$29="Yes",O91="Y",SUM(AI91:BB91)=0),"Covered","GAP") -> GAP | I91: 8.05.011 | J91: FAC_8.5.2f | K91: 0 | L91: g. Denial of access to the facility, workers, or files. | M91: Y | N91: Y | O91: N | P91: SMETA.0.01 | Q91: SMETA.0.02 | R91: SMETA.0.03 | AB91: SA8000.9.7.1 | AI91: =COUNTIF('Certification Preparation'!$B$32:$B$420,P91) -> 0 | AJ91: =COUNTIF('Certification Preparation'!$B$32:$B$420,Q91) -> 0 | AK91: =COUNTIF('Certification Preparation'!$B$32:$B$420,R91) -> 0 | AL91: =COUNTIF('Certification Preparation'!$B$32:$B$420,S91) -> 0 | AM91: =COUNTIF('Certification Preparation'!$B$32:$B$420,T91) -> 0 | AN91: =COUNTIF('Certification Preparation'!$B$32:$B$420,U91) -> 0 | AO91: =COUNTIF('Certification Preparation'!$B$32:$B$420,V91) -> 0 | AP91: =COUNTIF('Certification Preparation'!$B$32:$B$420,W91) -> 0 | AQ91: =COUNTIF('Certification Preparation'!$B$32:$B$420,X91) -> 0 | AR91: =COUNTIF('Certification Preparation'!$B$32:$B$420,Y91) -> 0 | AS91: =COUNTIF('Certification Preparation'!$B$32:$B$420,Z91) -> 0 | AT91: =COUNTIF('Certification Preparation'!$B$32:$B$420,AA91) -> 0 | AU91: =COUNTIF('Certification Preparation'!$B$32:$B$420,AB91) -> 0 | AV91: =COUNTIF('Certification Preparation'!$B$32:$B$420,AC91) -> 0 | AW91: =COUNTIF('Certification Preparation'!$B$32:$B$420,AD91) -> 0 | AX91: =COUNTIF('Certification Preparation'!$B$32:$B$420,AE91) -> 0 | AZ91: =COUNTIF('Certification Preparation'!$B$32:$B$420,AF91) -> 0 | BA91: =COUNTIF('Certification Preparation'!$B$32:$B$420,AG91) -> 0 | BB91: =COUNTIF('Certification Preparation'!$B$32:$B$420,AH91) -> 0
A92: 91 | B92: Bronze | C92: =INDEX('Certification Preparation'!G:G,MATCH(Table1[[#This Row],[C2C_Level]],'Certification Preparation'!H:H,0)) -> 1 | D92: 8.5 Monitor and Verify Performance | E92: =IF(Table1[[#This Row],[Column1]]<'Certification Preparation'!$G$10,"GAP","Covered") -> GAP | F92: =IF(AND('Certification Preparation'!$B$27="Yes",M92="Y",SUM(AI92:BB92)=0),"Covered","GAP") -> GAP | G92: =IF(AND('Certification Preparation'!$B$28="Yes",N92="Y",SUM(AI92:BB92)=0),"Covered","GAP") -> GAP | H92: =IF(AND('Certification Preparation'!$B$29="Yes",O92="Y",SUM(AI92:BB92)=0),"Covered","GAP") -> GAP | I92: 8.05.012 | J92: FAC_8.5.3 | K92: 0 | L92: 3. For any other poor performance issues, plan corrective actions for addressing the issues. | M92: Y | N92: Y | O92: Y | P92: SMETA.0.09 | AB92: SA8000.9.10.1c | AC92: SA8000.9.10.1d | AF92: SLCP.MS-7 | AI92: =COUNTIF('Certification Preparation'!$B$32:$B$420,P92) -> 0 | AJ92: =COUNTIF('Certification Preparation'!$B$32:$B$420,Q92) -> 0 | AK92: =COUNTIF('Certification Preparation'!$B$32:$B$420,R92) -> 0 | AL92: =COUNTIF('Certification Preparation'!$B$32:$B$420,S92) -> 0 | AM92: =COUNTIF('Certification Preparation'!$B$32:$B$420,T92) -> 0 | AN92: =COUNTIF('Certification Preparation'!$B$32:$B$420,U92) -> 0 | AO92: =COUNTIF('Certification Preparation'!$B$32:$B$420,V92) -> 0 | AP92: =COUNTIF('Certification Preparation'!$B$32:$B$420,W92) -> 0 | AQ92: =COUNTIF('Certification Preparation'!$B$32:$B$420,X92) -> 0 | AR92: =COUNTIF('Certification Preparation'!$B$32:$B$420,Y92) -> 0 | AS92: =COUNTIF('Certification Preparation'!$B$32:$B$420,Z92) -> 0 | AT92: =COUNTIF('Certification Preparation'!$B$32:$B$420,AA92) -> 0 | AU92: =COUNTIF('Certification Preparation'!$B$32:$B$420,AB92) -> 0 | AV92: =COUNTIF('Certification Preparation'!$B$32:$B$420,AC92) -> 0 | AW92: =COUNTIF('Certification Preparation'!$B$32:$B$420,AD92) -> 0 | AX92: =COUNTIF('Certification Preparation'!$B$32:$B$420,AE92) -> 0 | AZ92: =COUNTIF('Certification Preparation'!$B$32:$B$420,AF92) -> 0 | BA92: =COUNTIF('Certification Preparation'!$B$32:$B$420,AG92) -> 0 | BB92: =COUNTIF('Certification Preparation'!$B$32:$B$420,AH92) -> 0
A93: 92 | B93: Bronze | C93: =INDEX('Certification Preparation'!G:G,MATCH(Table1[[#This Row],[C2C_Level]],'Certification Preparation'!H:H,0)) -> 1 | D93: 8.5 Monitor and Verify Performance | E93: =IF(Table1[[#This Row],[Column1]]<'Certification Preparation'!$G$10,"GAP","Covered") -> GAP | F93: =IF(AND('Certification Preparation'!$B$27="Yes",M93="Y",SUM(AI93:BB93)=0),"Covered","GAP") -> GAP | G93: =IF(AND('Certification Preparation'!$B$28="Yes",N93="Y",SUM(AI93:BB93)=0),"Covered","GAP") -> GAP | H93: =IF(AND('Certification Preparation'!$B$29="Yes",O93="Y",SUM(AI93:BB93)=0),"Covered","GAP") -> GAP | I93: 8.05.013 | J93: FAC_8.5a | K93: 0 | L93: 4. At recertification, demonstrate progress on addressing other poor performance issues. | M93: N | N93: Y | O93: Y | AB93: SA8000.9.10.1c | AC93: SA8000.9.10.1d | AF93: SLCP.MS-7 | AI93: =COUNTIF('Certification Preparation'!$B$32:$B$420,P93) -> 0 | AJ93: =COUNTIF('Certification Preparation'!$B$32:$B$420,Q93) -> 0 | AK93: =COUNTIF('Certification Preparation'!$B$32:$B$420,R93) -> 0 | AL93: =COUNTIF('Certification Preparation'!$B$32:$B$420,S93) -> 0 | AM93: =COUNTIF('Certification Preparation'!$B$32:$B$420,T93) -> 0 | AN93: =COUNTIF('Certification Preparation'!$B$32:$B$420,U93) -> 0 | AO93: =COUNTIF('Certification Preparation'!$B$32:$B$420,V93) -> 0 | AP93: =COUNTIF('Certification Preparation'!$B$32:$B$420,W93) -> 0 | AQ93: =COUNTIF('Certification Preparation'!$B$32:$B$420,X93) -> 0 | AR93: =COUNTIF('Certification Preparation'!$B$32:$B$420,Y93) -> 0 | AS93: =COUNTIF('Certification Preparation'!$B$32:$B$420,Z93) -> 0 | AT93: =COUNTIF('Certification Preparation'!$B$32:$B$420,AA93) -> 0 | AU93: =COUNTIF('Certification Preparation'!$B$32:$B$420,AB93) -> 0 | AV93: =COUNTIF('Certification Preparation'!$B$32:$B$420,AC93) -> 0 | AW93: =COUNTIF('Certification Preparation'!$B$32:$B$420,AD93) -> 0 | AX93: =COUNTIF('Certification Preparation'!$B$32:$B$420,AE93) -> 0 | AZ93: =COUNTIF('Certification Preparation'!$B$32:$B$420,AF93) -> 0 | BA93: =COUNTIF('Certification Preparation'!$B$32:$B$420,AG93) -> 0 | BB93: =COUNTIF('Certification Preparation'!$B$32:$B$420,AH93) -> 0
A94: 93 | B94: Silver | C94: =INDEX('Certification Preparation'!G:G,MATCH(Table1[[#This Row],[C2C_Level]],'Certification Preparation'!H:H,0)) -> 2 | D94: 8.5 Monitor and Verify Performance | E94: =IF(Table1[[#This Row],[Column1]]<'Certification Preparation'!$G$10,"GAP","Covered") -> GAP | F94: =IF(AND('Certification Preparation'!$B$27="Yes",M94="Y",SUM(AI94:BB94)=0),"Covered","GAP") -> GAP | G94: =IF(AND('Certification Preparation'!$B$28="Yes",N94="Y",SUM(AI94:BB94)=0),"Covered","GAP") -> GAP | H94: =IF(AND('Certification Preparation'!$B$29="Yes",O94="Y",SUM(AI94:BB94)=0),"Covered","GAP") -> GAP | I94: 8.05.014 | J94: FAC_8.5ba | K94: 0 | L94: Request data measuring performance against the human rights policy from all high-risk tier 1 suppliers. At recertification, demonstrate continued efforts to obtain performance data and evidence of tracking corrective actions that may be necessary at tier 1 supplier locations. | M94: N | N94: Y | O94: Y | AB94: SA8000.9.10.1d | AF94: SLCP.MS-7 | AI94: =COUNTIF('Certification Preparation'!$B$32:$B$420,P94) -> 0 | AJ94: =COUNTIF('Certification Preparation'!$B$32:$B$420,Q94) -> 0 | AK94: =COUNTIF('Certification Preparation'!$B$32:$B$420,R94) -> 0 | AL94: =COUNTIF('Certification Preparation'!$B$32:$B$420,S94) -> 0 | AM94: =COUNTIF('Certification Preparation'!$B$32:$B$420,T94) -> 0 | AN94: =COUNTIF('Certification Preparation'!$B$32:$B$420,U94) -> 0 | AO94: =COUNTIF('Certification Preparation'!$B$32:$B$420,V94) -> 0 | AP94: =COUNTIF('Certification Preparation'!$B$32:$B$420,W94) -> 0 | AQ94: =COUNTIF('Certification Preparation'!$B$32:$B$420,X94) -> 0 | AR94: =COUNTIF('Certification Preparation'!$B$32:$B$420,Y94) -> 0 | AS94: =COUNTIF('Certification Preparation'!$B$32:$B$420,Z94) -> 0 | AT94: =COUNTIF('Certification Preparation'!$B$32:$B$420,AA94) -> 0 | AU94: =COUNTIF('Certification Preparation'!$B$32:$B$420,AB94) -> 0 | AV94: =COUNTIF('Certification Preparation'!$B$32:$B$420,AC94) -> 0 | AW94: =COUNTIF('Certification Preparation'!$B$32:$B$420,AD94) -> 0 | AX94: =COUNTIF('Certification Preparation'!$B$32:$B$420,AE94) -> 0 | AY94: =SUM(BE:BE)+SUM(BG:BG) -> 0 | AZ94: =COUNTIF('Certification Preparation'!$B$32:$B$420,AF94) -> 0 | BA94: =COUNTIF('Certification Preparation'!$B$32:$B$420,AG94) -> 0 | BB94: =COUNTIF('Certification Preparation'!$B$32:$B$420,AH94) -> 0
A95: 94 | B95: Silver | C95: =INDEX('Certification Preparation'!G:G,MATCH(Table1[[#This Row],[C2C_Level]],'Certification Preparation'!H:H,0)) -> 2 | D95: 8.5 Monitor and Verify Performance | E95: =IF(Table1[[#This Row],[Column1]]<'Certification Preparation'!$G$10,"GAP","Covered") -> GAP | F95: =IF(AND('Certification Preparation'!$B$27="Yes",M95="Y",SUM(AI95:BB95)=0),"Covered","GAP") -> GAP | G95: =IF(AND('Certification Preparation'!$B$28="Yes",N95="Y",SUM(AI95:BB95)=0),"Covered","GAP") -> GAP | H95: =IF(AND('Certification Preparation'!$B$29="Yes",O95="Y",SUM(AI95:BB95)=0),"Covered","GAP") -> GAP | I95: 8.05.015 | J95: FAC_8.5.4a | K95: 0 | L95: 1. Social audit performance data must be requested from all high-risk tier 1 suppliers, including de facto high-risk suppliers (as defined in Section 8.3). | M95: N | N95: Y | O95: Y | AB95: SA8000.9.10.1d | AF95: SLCP.MS-6 | AI95: =COUNTIF('Certification Preparation'!$B$32:$B$420,P95) -> 0 | AJ95: =COUNTIF('Certification Preparation'!$B$32:$B$420,Q95) -> 0 | AK95: =COUNTIF('Certification Preparation'!$B$32:$B$420,R95) -> 0 | AL95: =COUNTIF('Certification Preparation'!$B$32:$B$420,S95) -> 0 | AM95: =COUNTIF('Certification Preparation'!$B$32:$B$420,T95) -> 0 | AN95: =COUNTIF('Certification Preparation'!$B$32:$B$420,U95) -> 0 | AO95: =COUNTIF('Certification Preparation'!$B$32:$B$420,V95) -> 0 | AP95: =COUNTIF('Certification Preparation'!$B$32:$B$420,W95) -> 0 | AQ95: =COUNTIF('Certification Preparation'!$B$32:$B$420,X95) -> 0 | AR95: =COUNTIF('Certification Preparation'!$B$32:$B$420,Y95) -> 0 | AS95: =COUNTIF('Certification Preparation'!$B$32:$B$420,Z95) -> 0 | AT95: =COUNTIF('Certification Preparation'!$B$32:$B$420,AA95) -> 0 | AU95: =COUNTIF('Certification Preparation'!$B$32:$B$420,AB95) -> 0 | AV95: =COUNTIF('Certification Preparation'!$B$32:$B$420,AC95) -> 0 | AW95: =COUNTIF('Certification Preparation'!$B$32:$B$420,AD95) -> 0 | AX95: =COUNTIF('Certification Preparation'!$B$32:$B$420,AE95) -> 0 | AZ95: =COUNTIF('Certification Preparation'!$B$32:$B$420,AF95) -> 0 | BA95: =COUNTIF('Certification Preparation'!$B$32:$B$420,AG95) -> 0 | BB95: =COUNTIF('Certification Preparation'!$B$32:$B$420,AH95) -> 0
A96: 95 | B96: Silver | C96: =INDEX('Certification Preparation'!G:G,MATCH(Table1[[#This Row],[C2C_Level]],'Certification Preparation'!H:H,0)) -> 2 | D96: 8.5 Monitor and Verify Performance | E96: =IF(Table1[[#This Row],[Column1]]<'Certification Preparation'!$G$10,"GAP","Covered") -> GAP | F96: =IF(AND('Certification Preparation'!$B$27="Yes",M96="Y",SUM(AI96:BB96)=0),"Covered","GAP") -> GAP | G96: =IF(AND('Certification Preparation'!$B$28="Yes",N96="Y",SUM(AI96:BB96)=0),"Covered","GAP") -> GAP | H96: =IF(AND('Certification Preparation'!$B$29="Yes",O96="Y",SUM(AI96:BB96)=0),"Covered","GAP") -> GAP | I96: 8.05.053 | K96: 0 | L96: a. Discrimination | M96: N | N96: N | O96: N | AI96: =COUNTIF('Certification Preparation'!$B$32:$B$420,P96) -> 0 | AJ96: =COUNTIF('Certification Preparation'!$B$32:$B$420,Q96) -> 0 | AK96: =COUNTIF('Certification Preparation'!$B$32:$B$420,R96) -> 0 | AL96: =COUNTIF('Certification Preparation'!$B$32:$B$420,S96) -> 0 | AM96: =COUNTIF('Certification Preparation'!$B$32:$B$420,T96) -> 0 | AN96: =COUNTIF('Certification Preparation'!$B$32:$B$420,U96) -> 0 | AO96: =COUNTIF('Certification Preparation'!$B$32:$B$420,V96) -> 0 | AP96: =COUNTIF('Certification Preparation'!$B$32:$B$420,W96) -> 0 | AQ96: =COUNTIF('Certification Preparation'!$B$32:$B$420,X96) -> 0 | AR96: =COUNTIF('Certification Preparation'!$B$32:$B$420,Y96) -> 0 | AS96: =COUNTIF('Certification Preparation'!$B$32:$B$420,Z96) -> 0 | AT96: =COUNTIF('Certification Preparation'!$B$32:$B$420,AA96) -> 0 | AU96: =COUNTIF('Certification Preparation'!$B$32:$B$420,AB96) -> 0 | AV96: =COUNTIF('Certification Preparation'!$B$32:$B$420,AC96) -> 0 | AW96: =COUNTIF('Certification Preparation'!$B$32:$B$420,AD96) -> 0 | AX96: =COUNTIF('Certification Preparation'!$B$32:$B$420,AE96) -> 0 | AZ96: =COUNTIF('Certification Preparation'!$B$32:$B$420,AF96) -> 0 | BA96: =COUNTIF('Certification Preparation'!$B$32:$B$420,AG96) -> 0 | BB96: =COUNTIF('Certification Preparation'!$B$32:$B$420,AH96) -> 0
A97: 96 | B97: Silver | C97: =INDEX('Certification Preparation'!G:G,MATCH(Table1[[#This Row],[C2C_Level]],'Certification Preparation'!H:H,0)) -> 2 | D97: 8.5 Monitor and Verify Performance | E97: =IF(Table1[[#This Row],[Column1]]<'Certification Preparation'!$G$10,"GAP","Covered") -> GAP | F97: =IF(AND('Certification Preparation'!$B$27="Yes",M97="Y",SUM(AI97:BB97)=0),"Covered","GAP") -> GAP | G97: =IF(AND('Certification Preparation'!$B$28="Yes",N97="Y",SUM(AI97:BB97)=0),"Covered","GAP") -> GAP | H97: =IF(AND('Certification Preparation'!$B$29="Yes",O97="Y",SUM(AI97:BB97)=0),"Covered","GAP") -> GAP | I97: 8.05.054 | K97: 0 | L97: b. Harassment and abuse | M97: N | N97: N | O97: N | AI97: =COUNTIF('Certification Preparation'!$B$32:$B$420,P97) -> 0 | AJ97: =COUNTIF('Certification Preparation'!$B$32:$B$420,Q97) -> 0 | AK97: =COUNTIF('Certification Preparation'!$B$32:$B$420,R97) -> 0 | AL97: =COUNTIF('Certification Preparation'!$B$32:$B$420,S97) -> 0 | AM97: =COUNTIF('Certification Preparation'!$B$32:$B$420,T97) -> 0 | AN97: =COUNTIF('Certification Preparation'!$B$32:$B$420,U97) -> 0 | AO97: =COUNTIF('Certification Preparation'!$B$32:$B$420,V97) -> 0 | AP97: =COUNTIF('Certification Preparation'!$B$32:$B$420,W97) -> 0 | AQ97: =COUNTIF('Certification Preparation'!$B$32:$B$420,X97) -> 0 | AR97: =COUNTIF('Certification Preparation'!$B$32:$B$420,Y97) -> 0 | AS97: =COUNTIF('Certification Preparation'!$B$32:$B$420,Z97) -> 0 | AT97: =COUNTIF('Certification Preparation'!$B$32:$B$420,AA97) -> 0 | AU97: =COUNTIF('Certification Preparation'!$B$32:$B$420,AB97) -> 0 | AV97: =COUNTIF('Certification Preparation'!$B$32:$B$420,AC97) -> 0 | AW97: =COUNTIF('Certification Preparation'!$B$32:$B$420,AD97) -> 0 | AX97: =COUNTIF('Certification Preparation'!$B$32:$B$420,AE97) -> 0 | AZ97: =COUNTIF('Certification Preparation'!$B$32:$B$420,AF97) -> 0 | BA97: =COUNTIF('Certification Preparation'!$B$32:$B$420,AG97) -> 0 | BB97: =COUNTIF('Certification Preparation'!$B$32:$B$420,AH97) -> 0
A98: 97 | B98: Silver | C98: =INDEX('Certification Preparation'!G:G,MATCH(Table1[[#This Row],[C2C_Level]],'Certification Preparation'!H:H,0)) -> 2 | D98: 8.5 Monitor and Verify Performance | E98: =IF(Table1[[#This Row],[Column1]]<'Certification Preparation'!$G$10,"GAP","Covered") -> GAP | F98: =IF(AND('Certification Preparation'!$B$27="Yes",M98="Y",SUM(AI98:BB98)=0),"Covered","GAP") -> GAP | G98: =IF(AND('Certification Preparation'!$B$28="Yes",N98="Y",SUM(AI98:BB98)=0),"Covered","GAP") -> GAP | H98: =IF(AND('Certification Preparation'!$B$29="Yes",O98="Y",SUM(AI98:BB98)=0),"Covered","GAP") -> GAP | I98: 8.05.055 | K98: 0 | L98: c. Excessive working hours | M98: N | N98: N | O98: N | AI98: =COUNTIF('Certification Preparation'!$B$32:$B$420,P98) -> 0 | AJ98: =COUNTIF('Certification Preparation'!$B$32:$B$420,Q98) -> 0 | AK98: =COUNTIF('Certification Preparation'!$B$32:$B$420,R98) -> 0 | AL98: =COUNTIF('Certification Preparation'!$B$32:$B$420,S98) -> 0 | AM98: =COUNTIF('Certification Preparation'!$B$32:$B$420,T98) -> 0 | AN98: =COUNTIF('Certification Preparation'!$B$32:$B$420,U98) -> 0 | AO98: =COUNTIF('Certification Preparation'!$B$32:$B$420,V98) -> 0 | AP98: =COUNTIF('Certification Preparation'!$B$32:$B$420,W98) -> 0 | AQ98: =COUNTIF('Certification Preparation'!$B$32:$B$420,X98) -> 0 | AR98: =COUNTIF('Certification Preparation'!$B$32:$B$420,Y98) -> 0 | AS98: =COUNTIF('Certification Preparation'!$B$32:$B$420,Z98) -> 0 | AT98: =COUNTIF('Certification Preparation'!$B$32:$B$420,AA98) -> 0 | AU98: =COUNTIF('Certification Preparation'!$B$32:$B$420,AB98) -> 0 | AV98: =COUNTIF('Certification Preparation'!$B$32:$B$420,AC98) -> 0 | AW98: =COUNTIF('Certification Preparation'!$B$32:$B$420,AD98) -> 0 | AX98: =COUNTIF('Certification Preparation'!$B$32:$B$420,AE98) -> 0 | AZ98: =COUNTIF('Certification Preparation'!$B$32:$B$420,AF98) -> 0 | BA98: =COUNTIF('Certification Preparation'!$B$32:$B$420,AG98) -> 0 | BB98: =COUNTIF('Certification Preparation'!$B$32:$B$420,AH98) -> 0
A99: 98 | B99: Silver | C99: =INDEX('Certification Preparation'!G:G,MATCH(Table1[[#This Row],[C2C_Level]],'Certification Preparation'!H:H,0)) -> 2 | D99: 8.5 Monitor and Verify Performance | E99: =IF(Table1[[#This Row],[Column1]]<'Certification Preparation'!$G$10,"GAP","Covered") -> GAP | F99: =IF(AND('Certification Preparation'!$B$27="Yes",M99="Y",SUM(AI99:BB99)=0),"Covered","GAP") -> GAP | G99: =IF(AND('Certification Preparation'!$B$28="Yes",N99="Y",SUM(AI99:BB99)=0),"Covered","GAP") -> GAP | H99: =IF(AND('Certification Preparation'!$B$29="Yes",O99="Y",SUM(AI99:BB99)=0),"Covered","GAP") -> GAP | I99: 8.05.056 | K99: 0 | L99: d. Freedom of association and collective bargaining, | M99: N | N99: N | O99: N | AI99: =COUNTIF('Certification Preparation'!$B$32:$B$420,P99) -> 0 | AJ99: =COUNTIF('Certification Preparation'!$B$32:$B$420,Q99) -> 0 | AK99: =COUNTIF('Certification Preparation'!$B$32:$B$420,R99) -> 0 | AL99: =COUNTIF('Certification Preparation'!$B$32:$B$420,S99) -> 0 | AM99: =COUNTIF('Certification Preparation'!$B$32:$B$420,T99) -> 0 | AN99: =COUNTIF('Certification Preparation'!$B$32:$B$420,U99) -> 0 | AO99: =COUNTIF('Certification Preparation'!$B$32:$B$420,V99) -> 0 | AP99: =COUNTIF('Certification Preparation'!$B$32:$B$420,W99) -> 0 | AQ99: =COUNTIF('Certification Preparation'!$B$32:$B$420,X99) -> 0 | AR99: =COUNTIF('Certification Preparation'!$B$32:$B$420,Y99) -> 0 | AS99: =COUNTIF('Certification Preparation'!$B$32:$B$420,Z99) -> 0 | AT99: =COUNTIF('Certification Preparation'!$B$32:$B$420,AA99) -> 0 | AU99: =COUNTIF('Certification Preparation'!$B$32:$B$420,AB99) -> 0 | AV99: =COUNTIF('Certification Preparation'!$B$32:$B$420,AC99) -> 0 | AW99: =COUNTIF('Certification Preparation'!$B$32:$B$420,AD99) -> 0 | AX99: =COUNTIF('Certification Preparation'!$B$32:$B$420,AE99) -> 0 | AZ99: =COUNTIF('Certification Preparation'!$B$32:$B$420,AF99) -> 0 | BA99: =COUNTIF('Certification Preparation'!$B$32:$B$420,AG99) -> 0 | BB99: =COUNTIF('Certification Preparation'!$B$32:$B$420,AH99) -> 0
A100: 99 | B100: Silver | C100: =INDEX('Certification Preparation'!G:G,MATCH(Table1[[#This Row],[C2C_Level]],'Certification Preparation'!H:H,0)) -> 2 | D100: 8.5 Monitor and Verify Performance | E100: =IF(Table1[[#This Row],[Column1]]<'Certification Preparation'!$G$10,"GAP","Covered") -> GAP | F100: =IF(AND('Certification Preparation'!$B$27="Yes",M100="Y",SUM(AI100:BB100)=0),"Covered","GAP") -> GAP | G100: =IF(AND('Certification Preparation'!$B$28="Yes",N100="Y",SUM(AI100:BB100)=0),"Covered","GAP") -> GAP | H100: =IF(AND('Certification Preparation'!$B$29="Yes",O100="Y",SUM(AI100:BB100)=0),"Covered","GAP") -> GAP | I100: 8.05.057 | K100: 0 | L100: e. Legal minimum wage and all legally mandated benefits including employer contributions for social security benefits and services, | M100: N | N100: N | O100: N | AI100: =COUNTIF('Certification Preparation'!$B$32:$B$420,P100) -> 0 | AJ100: =COUNTIF('Certification Preparation'!$B$32:$B$420,Q100) -> 0 | AK100: =COUNTIF('Certification Preparation'!$B$32:$B$420,R100) -> 0 | AL100: =COUNTIF('Certification Preparation'!$B$32:$B$420,S100) -> 0 | AM100: =COUNTIF('Certification Preparation'!$B$32:$B$420,T100) -> 0 | AN100: =COUNTIF('Certification Preparation'!$B$32:$B$420,U100) -> 0 | AO100: =COUNTIF('Certification Preparation'!$B$32:$B$420,V100) -> 0 | AP100: =COUNTIF('Certification Preparation'!$B$32:$B$420,W100) -> 0 | AQ100: =COUNTIF('Certification Preparation'!$B$32:$B$420,X100) -> 0 | AR100: =COUNTIF('Certification Preparation'!$B$32:$B$420,Y100) -> 0 | AS100: =COUNTIF('Certification Preparation'!$B$32:$B$420,Z100) -> 0 | AT100: =COUNTIF('Certification Preparation'!$B$32:$B$420,AA100) -> 0 | AU100: =COUNTIF('Certification Preparation'!$B$32:$B$420,AB100) -> 0 | AV100: =COUNTIF('Certification Preparation'!$B$32:$B$420,AC100) -> 0 | AW100: =COUNTIF('Certification Preparation'!$B$32:$B$420,AD100) -> 0 | AX100: =COUNTIF('Certification Preparation'!$B$32:$B$420,AE100) -> 0 | AZ100: =COUNTIF('Certification Preparation'!$B$32:$B$420,AF100) -> 0 | BA100: =COUNTIF('Certification Preparation'!$B$32:$B$420,AG100) -> 0 | BB100: =COUNTIF('Certification Preparation'!$B$32:$B$420,AH100) -> 0
A101: 100 | B101: Silver | C101: =INDEX('Certification Preparation'!G:G,MATCH(Table1[[#This Row],[C2C_Level]],'Certification Preparation'!H:H,0)) -> 2 | D101: 8.5 Monitor and Verify Performance | E101: =IF(Table1[[#This Row],[Column1]]<'Certification Preparation'!$G$10,"GAP","Covered") -> GAP | F101: =IF(AND('Certification Preparation'!$B$27="Yes",M101="Y",SUM(AI101:BB101)=0),"Covered","GAP") -> GAP | G101: =IF(AND('Certification Preparation'!$B$28="Yes",N101="Y",SUM(AI101:BB101)=0),"Covered","GAP") -> GAP | H101: =IF(AND('Certification Preparation'!$B$29="Yes",O101="Y",SUM(AI101:BB101)=0),"Covered","GAP") -> GAP | I101: 8.05.058 | K101: 0 | L101: f. Health & Safety, including the following: | M101: N | N101: N | O101: N | AI101: =COUNTIF('Certification Preparation'!$B$32:$B$420,P101) -> 0 | AJ101: =COUNTIF('Certification Preparation'!$B$32:$B$420,Q101) -> 0 | AK101: =COUNTIF('Certification Preparation'!$B$32:$B$420,R101) -> 0 | AL101: =COUNTIF('Certification Preparation'!$B$32:$B$420,S101) -> 0 | AM101: =COUNTIF('Certification Preparation'!$B$32:$B$420,T101) -> 0 | AN101: =COUNTIF('Certification Preparation'!$B$32:$B$420,U101) -> 0 | AO101: =COUNTIF('Certification Preparation'!$B$32:$B$420,V101) -> 0 | AP101: =COUNTIF('Certification Preparation'!$B$32:$B$420,W101) -> 0 | AQ101: =COUNTIF('Certification Preparation'!$B$32:$B$420,X101) -> 0 | AR101: =COUNTIF('Certification Preparation'!$B$32:$B$420,Y101) -> 0 | AS101: =COUNTIF('Certification Preparation'!$B$32:$B$420,Z101) -> 0 | AT101: =COUNTIF('Certification Preparation'!$B$32:$B$420,AA101) -> 0 | AU101: =COUNTIF('Certification Preparation'!$B$32:$B$420,AB101) -> 0 | AV101: =COUNTIF('Certification Preparation'!$B$32:$B$420,AC101) -> 0 | AW101: =COUNTIF('Certification Preparation'!$B$32:$B$420,AD101) -> 0 | AX101: =COUNTIF('Certification Preparation'!$B$32:$B$420,AE101) -> 0 | AZ101: =COUNTIF('Certification Preparation'!$B$32:$B$420,AF101) -> 0 | BA101: =COUNTIF('Certification Preparation'!$B$32:$B$420,AG101) -> 0 | BB101: =COUNTIF('Certification Preparation'!$B$32:$B$420,AH101) -> 0
A102: 101 | B102: Silver | C102: =INDEX('Certification Preparation'!G:G,MATCH(Table1[[#This Row],[C2C_Level]],'Certification Preparation'!H:H,0)) -> 2 | D102: 8.5 Monitor and Verify Performance | E102: =IF(Table1[[#This Row],[Column1]]<'Certification Preparation'!$G$10,"GAP","Covered") -> GAP | F102: =IF(AND('Certification Preparation'!$B$27="Yes",M102="Y",SUM(AI102:BB102)=0),"Covered","GAP") -> GAP | G102: =IF(AND('Certification Preparation'!$B$28="Yes",N102="Y",SUM(AI102:BB102)=0),"Covered","GAP") -> GAP | H102: =IF(AND('Certification Preparation'!$B$29="Yes",O102="Y",SUM(AI102:BB102)=0),"Covered","GAP") -> GAP | I102: 8.05.059 | K102: 0 | L102: i. Access to water, sanitation, and hygiene (WASH), | M102: N | N102: N | O102: N | AI102: =COUNTIF('Certification Preparation'!$B$32:$B$420,P102) -> 0 | AJ102: =COUNTIF('Certification Preparation'!$B$32:$B$420,Q102) -> 0 | AK102: =COUNTIF('Certification Preparation'!$B$32:$B$420,R102) -> 0 | AL102: =COUNTIF('Certification Preparation'!$B$32:$B$420,S102) -> 0 | AM102: =COUNTIF('Certification Preparation'!$B$32:$B$420,T102) -> 0 | AN102: =COUNTIF('Certification Preparation'!$B$32:$B$420,U102) -> 0 | AO102: =COUNTIF('Certification Preparation'!$B$32:$B$420,V102) -> 0 | AP102: =COUNTIF('Certification Preparation'!$B$32:$B$420,W102) -> 0 | AQ102: =COUNTIF('Certification Preparation'!$B$32:$B$420,X102) -> 0 | AR102: =COUNTIF('Certification Preparation'!$B$32:$B$420,Y102) -> 0 | AS102: =COUNTIF('Certification Preparation'!$B$32:$B$420,Z102) -> 0 | AT102: =COUNTIF('Certification Preparation'!$B$32:$B$420,AA102) -> 0 | AU102: =COUNTIF('Certification Preparation'!$B$32:$B$420,AB102) -> 0 | AV102: =COUNTIF('Certification Preparation'!$B$32:$B$420,AC102) -> 0 | AW102: =COUNTIF('Certification Preparation'!$B$32:$B$420,AD102) -> 0 | AX102: =COUNTIF('Certification Preparation'!$B$32:$B$420,AE102) -> 0 | AZ102: =COUNTIF('Certification Preparation'!$B$32:$B$420,AF102) -> 0 | BA102: =COUNTIF('Certification Preparation'!$B$32:$B$420,AG102) -> 0 | BB102: =COUNTIF('Certification Preparation'!$B$32:$B$420,AH102) -> 0
A103: 102 | B103: Silver | C103: =INDEX('Certification Preparation'!G:G,MATCH(Table1[[#This Row],[C2C_Level]],'Certification Preparation'!H:H,0)) -> 2 | D103: 8.5 Monitor and Verify Performance | E103: =IF(Table1[[#This Row],[Column1]]<'Certification Preparation'!$G$10,"GAP","Covered") -> GAP | F103: =IF(AND('Certification Preparation'!$B$27="Yes",M103="Y",SUM(AI103:BB103)=0),"Covered","GAP") -> GAP | G103: =IF(AND('Certification Preparation'!$B$28="Yes",N103="Y",SUM(AI103:BB103)=0),"Covered","GAP") -> GAP | H103: =IF(AND('Certification Preparation'!$B$29="Yes",O103="Y",SUM(AI103:BB103)=0),"Covered","GAP") -> GAP | I103: 8.05.060 | K103: 0 | L103: ii. Emergency preparation and response, | M103: N | N103: N | O103: N | AI103: =COUNTIF('Certification Preparation'!$B$32:$B$420,P103) -> 0 | AJ103: =COUNTIF('Certification Preparation'!$B$32:$B$420,Q103) -> 0 | AK103: =COUNTIF('Certification Preparation'!$B$32:$B$420,R103) -> 0 | AL103: =COUNTIF('Certification Preparation'!$B$32:$B$420,S103) -> 0 | AM103: =COUNTIF('Certification Preparation'!$B$32:$B$420,T103) -> 0 | AN103: =COUNTIF('Certification Preparation'!$B$32:$B$420,U103) -> 0 | AO103: =COUNTIF('Certification Preparation'!$B$32:$B$420,V103) -> 0 | AP103: =COUNTIF('Certification Preparation'!$B$32:$B$420,W103) -> 0 | AQ103: =COUNTIF('Certification Preparation'!$B$32:$B$420,X103) -> 0 | AR103: =COUNTIF('Certification Preparation'!$B$32:$B$420,Y103) -> 0 | AS103: =COUNTIF('Certification Preparation'!$B$32:$B$420,Z103) -> 0 | AT103: =COUNTIF('Certification Preparation'!$B$32:$B$420,AA103) -> 0 | AU103: =COUNTIF('Certification Preparation'!$B$32:$B$420,AB103) -> 0 | AV103: =COUNTIF('Certification Preparation'!$B$32:$B$420,AC103) -> 0 | AW103: =COUNTIF('Certification Preparation'!$B$32:$B$420,AD103) -> 0 | AX103: =COUNTIF('Certification Preparation'!$B$32:$B$420,AE103) -> 0 | AZ103: =COUNTIF('Certification Preparation'!$B$32:$B$420,AF103) -> 0 | BA103: =COUNTIF('Certification Preparation'!$B$32:$B$420,AG103) -> 0 | BB103: =COUNTIF('Certification Preparation'!$B$32:$B$420,AH103) -> 0
A104: 103 | B104: Silver | C104: =INDEX('Certification Preparation'!G:G,MATCH(Table1[[#This Row],[C2C_Level]],'Certification Preparation'!H:H,0)) -> 2 | D104: 8.5 Monitor and Verify Performance | E104: =IF(Table1[[#This Row],[Column1]]<'Certification Preparation'!$G$10,"GAP","Covered") -> GAP | F104: =IF(AND('Certification Preparation'!$B$27="Yes",M104="Y",SUM(AI104:BB104)=0),"Covered","GAP") -> GAP | G104: =IF(AND('Certification Preparation'!$B$28="Yes",N104="Y",SUM(AI104:BB104)=0),"Covered","GAP") -> GAP | H104: =IF(AND('Certification Preparation'!$B$29="Yes",O104="Y",SUM(AI104:BB104)=0),"Covered","GAP") -> GAP | I104: 8.05.061 | K104: 0 | L104: iii. Hazardous materials handling procedures, | M104: N | N104: N | O104: N | AI104: =COUNTIF('Certification Preparation'!$B$32:$B$420,P104) -> 0 | AJ104: =COUNTIF('Certification Preparation'!$B$32:$B$420,Q104) -> 0 | AK104: =COUNTIF('Certification Preparation'!$B$32:$B$420,R104) -> 0 | AL104: =COUNTIF('Certification Preparation'!$B$32:$B$420,S104) -> 0 | AM104: =COUNTIF('Certification Preparation'!$B$32:$B$420,T104) -> 0 | AN104: =COUNTIF('Certification Preparation'!$B$32:$B$420,U104) -> 0 | AO104: =COUNTIF('Certification Preparation'!$B$32:$B$420,V104) -> 0 | AP104: =COUNTIF('Certification Preparation'!$B$32:$B$420,W104) -> 0 | AQ104: =COUNTIF('Certification Preparation'!$B$32:$B$420,X104) -> 0 | AR104: =COUNTIF('Certification Preparation'!$B$32:$B$420,Y104) -> 0 | AS104: =COUNTIF('Certification Preparation'!$B$32:$B$420,Z104) -> 0 | AT104: =COUNTIF('Certification Preparation'!$B$32:$B$420,AA104) -> 0 | AU104: =COUNTIF('Certification Preparation'!$B$32:$B$420,AB104) -> 0 | AV104: =COUNTIF('Certification Preparation'!$B$32:$B$420,AC104) -> 0 | AW104: =COUNTIF('Certification Preparation'!$B$32:$B$420,AD104) -> 0 | AX104: =COUNTIF('Certification Preparation'!$B$32:$B$420,AE104) -> 0 | AZ104: =COUNTIF('Certification Preparation'!$B$32:$B$420,AF104) -> 0 | BA104: =COUNTIF('Certification Preparation'!$B$32:$B$420,AG104) -> 0 | BB104: =COUNTIF('Certification Preparation'!$B$32:$B$420,AH104) -> 0
A105: 104 | B105: Silver | C105: =INDEX('Certification Preparation'!G:G,MATCH(Table1[[#This Row],[C2C_Level]],'Certification Preparation'!H:H,0)) -> 2 | D105: 8.5 Monitor and Verify Performance | E105: =IF(Table1[[#This Row],[Column1]]<'Certification Preparation'!$G$10,"GAP","Covered") -> GAP | F105: =IF(AND('Certification Preparation'!$B$27="Yes",M105="Y",SUM(AI105:BB105)=0),"Covered","GAP") -> GAP | G105: =IF(AND('Certification Preparation'!$B$28="Yes",N105="Y",SUM(AI105:BB105)=0),"Covered","GAP") -> GAP | H105: =IF(AND('Certification Preparation'!$B$29="Yes",O105="Y",SUM(AI105:BB105)=0),"Covered","GAP") -> GAP | I105: 8.05.062 | K105: 0 | L105: iv. Management systems that address health and safety risks, and | M105: N | N105: N | O105: N | AI105: =COUNTIF('Certification Preparation'!$B$32:$B$420,P105) -> 0 | AJ105: =COUNTIF('Certification Preparation'!$B$32:$B$420,Q105) -> 0 | AK105: =COUNTIF('Certification Preparation'!$B$32:$B$420,R105) -> 0 | AL105: =COUNTIF('Certification Preparation'!$B$32:$B$420,S105) -> 0 | AM105: =COUNTIF('Certification Preparation'!$B$32:$B$420,T105) -> 0 | AN105: =COUNTIF('Certification Preparation'!$B$32:$B$420,U105) -> 0 | AO105: =COUNTIF('Certification Preparation'!$B$32:$B$420,V105) -> 0 | AP105: =COUNTIF('Certification Preparation'!$B$32:$B$420,W105) -> 0 | AQ105: =COUNTIF('Certification Preparation'!$B$32:$B$420,X105) -> 0 | AR105: =COUNTIF('Certification Preparation'!$B$32:$B$420,Y105) -> 0 | AS105: =COUNTIF('Certification Preparation'!$B$32:$B$420,Z105) -> 0 | AT105: =COUNTIF('Certification Preparation'!$B$32:$B$420,AA105) -> 0 | AU105: =COUNTIF('Certification Preparation'!$B$32:$B$420,AB105) -> 0 | AV105: =COUNTIF('Certification Preparation'!$B$32:$B$420,AC105) -> 0 | AW105: =COUNTIF('Certification Preparation'!$B$32:$B$420,AD105) -> 0 | AX105: =COUNTIF('Certification Preparation'!$B$32:$B$420,AE105) -> 0 | AZ105: =COUNTIF('Certification Preparation'!$B$32:$B$420,AF105) -> 0 | BA105: =COUNTIF('Certification Preparation'!$B$32:$B$420,AG105) -> 0 | BB105: =COUNTIF('Certification Preparation'!$B$32:$B$420,AH105) -> 0
A106: 105 | B106: Silver | C106: =INDEX('Certification Preparation'!G:G,MATCH(Table1[[#This Row],[C2C_Level]],'Certification Preparation'!H:H,0)) -> 2 | D106: 8.5 Monitor and Verify Performance | E106: =IF(Table1[[#This Row],[Column1]]<'Certification Preparation'!$G$10,"GAP","Covered") -> GAP | F106: =IF(AND('Certification Preparation'!$B$27="Yes",M106="Y",SUM(AI106:BB106)=0),"Covered","GAP") -> GAP | G106: =IF(AND('Certification Preparation'!$B$28="Yes",N106="Y",SUM(AI106:BB106)=0),"Covered","GAP") -> GAP | H106: =IF(AND('Certification Preparation'!$B$29="Yes",O106="Y",SUM(AI106:BB106)=0),"Covered","GAP") -> GAP | I106: 8.05.063 | K106: 0 | L106: v. Appropriate building construction, electrical, and fire safety. | M106: N | N106: N | O106: N | AI106: =COUNTIF('Certification Preparation'!$B$32:$B$420,P106) -> 0 | AJ106: =COUNTIF('Certification Preparation'!$B$32:$B$420,Q106) -> 0 | AK106: =COUNTIF('Certification Preparation'!$B$32:$B$420,R106) -> 0 | AL106: =COUNTIF('Certification Preparation'!$B$32:$B$420,S106) -> 0 | AM106: =COUNTIF('Certification Preparation'!$B$32:$B$420,T106) -> 0 | AN106: =COUNTIF('Certification Preparation'!$B$32:$B$420,U106) -> 0 | AO106: =COUNTIF('Certification Preparation'!$B$32:$B$420,V106) -> 0 | AP106: =COUNTIF('Certification Preparation'!$B$32:$B$420,W106) -> 0 | AQ106: =COUNTIF('Certification Preparation'!$B$32:$B$420,X106) -> 0 | AR106: =COUNTIF('Certification Preparation'!$B$32:$B$420,Y106) -> 0 | AS106: =COUNTIF('Certification Preparation'!$B$32:$B$420,Z106) -> 0 | AT106: =COUNTIF('Certification Preparation'!$B$32:$B$420,AA106) -> 0 | AU106: =COUNTIF('Certification Preparation'!$B$32:$B$420,AB106) -> 0 | AV106: =COUNTIF('Certification Preparation'!$B$32:$B$420,AC106) -> 0 | AW106: =COUNTIF('Certification Preparation'!$B$32:$B$420,AD106) -> 0 | AX106: =COUNTIF('Certification Preparation'!$B$32:$B$420,AE106) -> 0 | AZ106: =COUNTIF('Certification Preparation'!$B$32:$B$420,AF106) -> 0 | BA106: =COUNTIF('Certification Preparation'!$B$32:$B$420,AG106) -> 0 | BB106: =COUNTIF('Certification Preparation'!$B$32:$B$420,AH106) -> 0
A107: 106 | B107: Silver | C107: =INDEX('Certification Preparation'!G:G,MATCH(Table1[[#This Row],[C2C_Level]],'Certification Preparation'!H:H,0)) -> 2 | D107: 8.5 Monitor and Verify Performance | E107: =IF(Table1[[#This Row],[Column1]]<'Certification Preparation'!$G$10,"GAP","Covered") -> GAP | F107: =IF(AND('Certification Preparation'!$B$27="Yes",M107="Y",SUM(AI107:BB107)=0),"Covered","GAP") -> GAP | G107: =IF(AND('Certification Preparation'!$B$28="Yes",N107="Y",SUM(AI107:BB107)=0),"Covered","GAP") -> GAP | H107: =IF(AND('Certification Preparation'!$B$29="Yes",O107="Y",SUM(AI107:BB107)=0),"Covered","GAP") -> GAP | I107: 8.05.064 | K107: 0 | L107: g. Additional priority issues identified in the risk assessment | M107: N | N107: N | O107: N | AI107: =COUNTIF('Certification Preparation'!$B$32:$B$420,P107) -> 0 | AJ107: =COUNTIF('Certification Preparation'!$B$32:$B$420,Q107) -> 0 | AK107: =COUNTIF('Certification Preparation'!$B$32:$B$420,R107) -> 0 | AL107: =COUNTIF('Certification Preparation'!$B$32:$B$420,S107) -> 0 | AM107: =COUNTIF('Certification Preparation'!$B$32:$B$420,T107) -> 0 | AN107: =COUNTIF('Certification Preparation'!$B$32:$B$420,U107) -> 0 | AO107: =COUNTIF('Certification Preparation'!$B$32:$B$420,V107) -> 0 | AP107: =COUNTIF('Certification Preparation'!$B$32:$B$420,W107) -> 0 | AQ107: =COUNTIF('Certification Preparation'!$B$32:$B$420,X107) -> 0 | AR107: =COUNTIF('Certification Preparation'!$B$32:$B$420,Y107) -> 0 | AS107: =COUNTIF('Certification Preparation'!$B$32:$B$420,Z107) -> 0 | AT107: =COUNTIF('Certification Preparation'!$B$32:$B$420,AA107) -> 0 | AU107: =COUNTIF('Certification Preparation'!$B$32:$B$420,AB107) -> 0 | AV107: =COUNTIF('Certification Preparation'!$B$32:$B$420,AC107) -> 0 | AW107: =COUNTIF('Certification Preparation'!$B$32:$B$420,AD107) -> 0 | AX107: =COUNTIF('Certification Preparation'!$B$32:$B$420,AE107) -> 0 | AZ107: =COUNTIF('Certification Preparation'!$B$32:$B$420,AF107) -> 0 | BA107: =COUNTIF('Certification Preparation'!$B$32:$B$420,AG107) -> 0 | BB107: =COUNTIF('Certification Preparation'!$B$32:$B$420,AH107) -> 0
A108: 107 | B108: Silver | C108: =INDEX('Certification Preparation'!G:G,MATCH(Table1[[#This Row],[C2C_Level]],'Certification Preparation'!H:H,0)) -> 2 | D108: 8.5 Monitor and Verify Performance | E108: =IF(Table1[[#This Row],[Column1]]<'Certification Preparation'!$G$10,"GAP","Covered") -> GAP | F108: =IF(AND('Certification Preparation'!$B$27="Yes",M108="Y",SUM(AI108:BB108)=0),"Covered","GAP") -> GAP | G108: =IF(AND('Certification Preparation'!$B$28="Yes",N108="Y",SUM(AI108:BB108)=0),"Covered","GAP") -> GAP | H108: =IF(AND('Certification Preparation'!$B$29="Yes",O108="Y",SUM(AI108:BB108)=0),"Covered","GAP") -> GAP | I108: 8.05.019 | J108: FAC_8.5.2 | K108: 0 | L108: 2. If identified, the following issues must be resolved prior to certification or recertification, | M108: N | N108: Y | O108: Y | AB108: SA8000.9.8.1 | AC108: SA8000.9.4.2 | AD108: SA8000.9.10.1d | AF108: SLCP.MS-7 | AI108: =COUNTIF('Certification Preparation'!$B$32:$B$420,P108) -> 0 | AJ108: =COUNTIF('Certification Preparation'!$B$32:$B$420,Q108) -> 0 | AK108: =COUNTIF('Certification Preparation'!$B$32:$B$420,R108) -> 0 | AL108: =COUNTIF('Certification Preparation'!$B$32:$B$420,S108) -> 0 | AM108: =COUNTIF('Certification Preparation'!$B$32:$B$420,T108) -> 0 | AN108: =COUNTIF('Certification Preparation'!$B$32:$B$420,U108) -> 0 | AO108: =COUNTIF('Certification Preparation'!$B$32:$B$420,V108) -> 0 | AP108: =COUNTIF('Certification Preparation'!$B$32:$B$420,W108) -> 0 | AQ108: =COUNTIF('Certification Preparation'!$B$32:$B$420,X108) -> 0 | AR108: =COUNTIF('Certification Preparation'!$B$32:$B$420,Y108) -> 0 | AS108: =COUNTIF('Certification Preparation'!$B$32:$B$420,Z108) -> 0 | AT108: =COUNTIF('Certification Preparation'!$B$32:$B$420,AA108) -> 0 | AU108: =COUNTIF('Certification Preparation'!$B$32:$B$420,AB108) -> 0 | AV108: =COUNTIF('Certification Preparation'!$B$32:$B$420,AC108) -> 0 | AW108: =COUNTIF('Certification Preparation'!$B$32:$B$420,AD108) -> 0 | AX108: =COUNTIF('Certification Preparation'!$B$32:$B$420,AE108) -> 0 | AZ108: =COUNTIF('Certification Preparation'!$B$32:$B$420,AF108) -> 0 | BA108: =COUNTIF('Certification Preparation'!$B$32:$B$420,AG108) -> 0 | BB108: =COUNTIF('Certification Preparation'!$B$32:$B$420,AH108) -> 0
A109: 108 | B109: Silver | C109: =INDEX('Certification Preparation'!G:G,MATCH(Table1[[#This Row],[C2C_Level]],'Certification Preparation'!H:H,0)) -> 2 | D109: 8.5 Monitor and Verify Performance | E109: =IF(Table1[[#This Row],[Column1]]<'Certification Preparation'!$G$10,"GAP","Covered") -> GAP | F109: =IF(AND('Certification Preparation'!$B$27="Yes",M109="Y",SUM(AI109:BB109)=0),"Covered","GAP") -> GAP | G109: =IF(AND('Certification Preparation'!$B$28="Yes",N109="Y",SUM(AI109:BB109)=0),"Covered","GAP") -> GAP | H109: =IF(AND('Certification Preparation'!$B$29="Yes",O109="Y",SUM(AI109:BB109)=0),"Covered","GAP") -> GAP | I109: 8.05.020 | J109: FAC_8.5.2a | K109: 0 | L109: a. Child labor, | M109: Y | N109: Y | O109: Y | P109: SMETA.4.02 | Q109: SMETA.4.03 | R109: SMETA.4.04 | S109: SMETA.4.05 | T109: SMETA.4.06 | AB109: SA8000.1.1 | AC109: SA8000.1.2 | AF109: SLCP.CL-1.3 | AG109: SLCP.CL-1.3 | AI109: =COUNTIF('Certification Preparation'!$B$32:$B$420,P109) -> 0 | AJ109: =COUNTIF('Certification Preparation'!$B$32:$B$420,Q109) -> 0 | AK109: =COUNTIF('Certification Preparation'!$B$32:$B$420,R109) -> 0 | AL109: =COUNTIF('Certification Preparation'!$B$32:$B$420,S109) -> 0 | AM109: =COUNTIF('Certification Preparation'!$B$32:$B$420,T109) -> 0 | AN109: =COUNTIF('Certification Preparation'!$B$32:$B$420,U109) -> 0 | AO109: =COUNTIF('Certification Preparation'!$B$32:$B$420,V109) -> 0 | AP109: =COUNTIF('Certification Preparation'!$B$32:$B$420,W109) -> 0 | AQ109: =COUNTIF('Certification Preparation'!$B$32:$B$420,X109) -> 0 | AR109: =COUNTIF('Certification Preparation'!$B$32:$B$420,Y109) -> 0 | AS109: =COUNTIF('Certification Preparation'!$B$32:$B$420,Z109) -> 0 | AT109: =COUNTIF('Certification Preparation'!$B$32:$B$420,AA109) -> 0 | AU109: =COUNTIF('Certification Preparation'!$B$32:$B$420,AB109) -> 0 | AV109: =COUNTIF('Certification Preparation'!$B$32:$B$420,AC109) -> 0 | AW109: =COUNTIF('Certification Preparation'!$B$32:$B$420,AD109) -> 0 | AX109: =COUNTIF('Certification Preparation'!$B$32:$B$420,AE109) -> 0 | AZ109: =COUNTIF('Certification Preparation'!$B$32:$B$420,AF109) -> 0 | BA109: =COUNTIF('Certification Preparation'!$B$32:$B$420,AG109) -> 0 | BB109: =COUNTIF('Certification Preparation'!$B$32:$B$420,AH109) -> 0
A110: 109 | B110: Silver | C110: =INDEX('Certification Preparation'!G:G,MATCH(Table1[[#This Row],[C2C_Level]],'Certification Preparation'!H:H,0)) -> 2 | D110: 8.5 Monitor and Verify Performance | E110: =IF(Table1[[#This Row],[Column1]]<'Certification Preparation'!$G$10,"GAP","Covered") -> GAP | F110: =IF(AND('Certification Preparation'!$B$27="Yes",M110="Y",SUM(AI110:BB110)=0),"Covered","GAP") -> GAP | G110: =IF(AND('Certification Preparation'!$B$28="Yes",N110="Y",SUM(AI110:BB110)=0),"Covered","GAP") -> GAP | H110: =IF(AND('Certification Preparation'!$B$29="Yes",O110="Y",SUM(AI110:BB110)=0),"Covered","GAP") -> GAP | I110: 8.05.021 | J110: FAC_8.5.2b | K110: 0 | L110: b. Forced labor, | M110: Y | N110: Y | O110: Y | P110: SMETA.1.17 | Q110: SMETA.1.18 | R110: SMETA.1.19 | S110: SMETA.1.2 | T110: SMETA.1.21 | U110: SMETA.1.23 | V110: SMETA.1.24 | W110: SMETA.1.25 | X110: SMETA.1.26 | Y110: SMETA.1.27 | Z110: SMETA.1.29 | AA110: SMETA.1.3 | AB110: SA8000.2.1 | AI110: =COUNTIF('Certification Preparation'!$B$32:$B$420,P110) -> 0 | AJ110: =COUNTIF('Certification Preparation'!$B$32:$B$420,Q110) -> 0 | AK110: =COUNTIF('Certification Preparation'!$B$32:$B$420,R110) -> 0 | AL110: =COUNTIF('Certification Preparation'!$B$32:$B$420,S110) -> 0 | AM110: =COUNTIF('Certification Preparation'!$B$32:$B$420,T110) -> 0 | AN110: =COUNTIF('Certification Preparation'!$B$32:$B$420,U110) -> 0 | AO110: =COUNTIF('Certification Preparation'!$B$32:$B$420,V110) -> 0 | AP110: =COUNTIF('Certification Preparation'!$B$32:$B$420,W110) -> 0 | AQ110: =COUNTIF('Certification Preparation'!$B$32:$B$420,X110) -> 0 | AR110: =COUNTIF('Certification Preparation'!$B$32:$B$420,Y110) -> 0 | AS110: =COUNTIF('Certification Preparation'!$B$32:$B$420,Z110) -> 0 | AT110: =COUNTIF('Certification Preparation'!$B$32:$B$420,AA110) -> 0 | AU110: =COUNTIF('Certification Preparation'!$B$32:$B$420,AB110) -> 0 | AV110: =COUNTIF('Certification Preparation'!$B$32:$B$420,AC110) -> 0 | AW110: =COUNTIF('Certification Preparation'!$B$32:$B$420,AD110) -> 0 | AX110: =COUNTIF('Certification Preparation'!$B$32:$B$420,AE110) -> 0 | AZ110: =COUNTIF('Certification Preparation'!$B$32:$B$420,AF110) -> 0 | BA110: =COUNTIF('Certification Preparation'!$B$32:$B$420,AG110) -> 0 | BB110: =COUNTIF('Certification Preparation'!$B$32:$B$420,AH110) -> 0
A111: 110 | B111: Silver | C111: =INDEX('Certification Preparation'!G:G,MATCH(Table1[[#This Row],[C2C_Level]],'Certification Preparation'!H:H,0)) -> 2 | D111: 8.5 Monitor and Verify Performance | E111: =IF(Table1[[#This Row],[Column1]]<'Certification Preparation'!$G$10,"GAP","Covered") -> GAP | F111: =IF(AND('Certification Preparation'!$B$27="Yes",M111="Y",SUM(AI111:BB111)=0),"Covered","GAP") -> GAP | G111: =IF(AND('Certification Preparation'!$B$28="Yes",N111="Y",SUM(AI111:BB111)=0),"Covered","GAP") -> GAP | H111: =IF(AND('Certification Preparation'!$B$29="Yes",O111="Y",SUM(AI111:BB111)=0),"Covered","GAP") -> GAP | I111: 8.05.022 | J111: FAC_8.5.2c | K111: 0 | L111: c. Corruption/bribery, | M111: Y | N111: N | O111: Y | P111: SMETA.10C.05 | Q111: SMETA.10C.07 | AF111: SLCP.MS-6.2 | AI111: =COUNTIF('Certification Preparation'!$B$32:$B$420,P111) -> 0 | AJ111: =COUNTIF('Certification Preparation'!$B$32:$B$420,Q111) -> 0 | AK111: =COUNTIF('Certification Preparation'!$B$32:$B$420,R111) -> 0 | AL111: =COUNTIF('Certification Preparation'!$B$32:$B$420,S111) -> 0 | AM111: =COUNTIF('Certification Preparation'!$B$32:$B$420,T111) -> 0 | AN111: =COUNTIF('Certification Preparation'!$B$32:$B$420,U111) -> 0 | AO111: =COUNTIF('Certification Preparation'!$B$32:$B$420,V111) -> 0 | AP111: =COUNTIF('Certification Preparation'!$B$32:$B$420,W111) -> 0 | AQ111: =COUNTIF('Certification Preparation'!$B$32:$B$420,X111) -> 0 | AR111: =COUNTIF('Certification Preparation'!$B$32:$B$420,Y111) -> 0 | AS111: =COUNTIF('Certification Preparation'!$B$32:$B$420,Z111) -> 0 | AT111: =COUNTIF('Certification Preparation'!$B$32:$B$420,AA111) -> 0 | AU111: =COUNTIF('Certification Preparation'!$B$32:$B$420,AB111) -> 0 | AV111: =COUNTIF('Certification Preparation'!$B$32:$B$420,AC111) -> 0 | AW111: =COUNTIF('Certification Preparation'!$B$32:$B$420,AD111) -> 0 | AX111: =COUNTIF('Certification Preparation'!$B$32:$B$420,AE111) -> 0 | AZ111: =COUNTIF('Certification Preparation'!$B$32:$B$420,AF111) -> 0 | BA111: =COUNTIF('Certification Preparation'!$B$32:$B$420,AG111) -> 0 | BB111: =COUNTIF('Certification Preparation'!$B$32:$B$420,AH111) -> 0
A112: 111 | B112: Silver | C112: =INDEX('Certification Preparation'!G:G,MATCH(Table1[[#This Row],[C2C_Level]],'Certification Preparation'!H:H,0)) -> 2 | D112: 8.5 Monitor and Verify Performance | E112: =IF(Table1[[#This Row],[Column1]]<'Certification Preparation'!$G$10,"GAP","Covered") -> GAP | F112: =IF(AND('Certification Preparation'!$B$27="Yes",M112="Y",SUM(AI112:BB112)=0),"Covered","GAP") -> GAP | G112: =IF(AND('Certification Preparation'!$B$28="Yes",N112="Y",SUM(AI112:BB112)=0),"Covered","GAP") -> GAP | H112: =IF(AND('Certification Preparation'!$B$29="Yes",O112="Y",SUM(AI112:BB112)=0),"Covered","GAP") -> GAP | I112: 8.05.023 | J112: FAC_8.5.2d | K112: 0 | L112: d. Unauthorized subcontracting, | M112: Y | N112: Y | O112: Y | P112: SMETA.8A.1.02 | Q112: SMETA.8A.1.03 | AB112: SA8000.9.10.2 | AF112: SLCP.MS-6.2 | AI112: =COUNTIF('Certification Preparation'!$B$32:$B$420,P112) -> 0 | AJ112: =COUNTIF('Certification Preparation'!$B$32:$B$420,Q112) -> 0 | AK112: =COUNTIF('Certification Preparation'!$B$32:$B$420,R112) -> 0 | AL112: =COUNTIF('Certification Preparation'!$B$32:$B$420,S112) -> 0 | AM112: =COUNTIF('Certification Preparation'!$B$32:$B$420,T112) -> 0 | AN112: =COUNTIF('Certification Preparation'!$B$32:$B$420,U112) -> 0 | AO112: =COUNTIF('Certification Preparation'!$B$32:$B$420,V112) -> 0 | AP112: =COUNTIF('Certification Preparation'!$B$32:$B$420,W112) -> 0 | AQ112: =COUNTIF('Certification Preparation'!$B$32:$B$420,X112) -> 0 | AR112: =COUNTIF('Certification Preparation'!$B$32:$B$420,Y112) -> 0 | AS112: =COUNTIF('Certification Preparation'!$B$32:$B$420,Z112) -> 0 | AT112: =COUNTIF('Certification Preparation'!$B$32:$B$420,AA112) -> 0 | AU112: =COUNTIF('Certification Preparation'!$B$32:$B$420,AB112) -> 0 | AV112: =COUNTIF('Certification Preparation'!$B$32:$B$420,AC112) -> 0 | AW112: =COUNTIF('Certification Preparation'!$B$32:$B$420,AD112) -> 0 | AX112: =COUNTIF('Certification Preparation'!$B$32:$B$420,AE112) -> 0 | AZ112: =COUNTIF('Certification Preparation'!$B$32:$B$420,AF112) -> 0 | BA112: =COUNTIF('Certification Preparation'!$B$32:$B$420,AG112) -> 0 | BB112: =COUNTIF('Certification Preparation'!$B$32:$B$420,AH112) -> 0
A113: 112 | B113: Silver | C113: =INDEX('Certification Preparation'!G:G,MATCH(Table1[[#This Row],[C2C_Level]],'Certification Preparation'!H:H,0)) -> 2 | D113: 8.5 Monitor and Verify Performance | E113: =IF(Table1[[#This Row],[Column1]]<'Certification Preparation'!$G$10,"GAP","Covered") -> GAP | F113: =IF(AND('Certification Preparation'!$B$27="Yes",M113="Y",SUM(AI113:BB113)=0),"Covered","GAP") -> GAP | G113: =IF(AND('Certification Preparation'!$B$28="Yes",N113="Y",SUM(AI113:BB113)=0),"Covered","GAP") -> GAP | H113: =IF(AND('Certification Preparation'!$B$29="Yes",O113="Y",SUM(AI113:BB113)=0),"Covered","GAP") -> GAP | I113: 8.05.024 | J113: FAC_8.5.2d | K113: 0 | L113: e. Missing or deficient permits (i.e. business license, building permit, and environmental permit(s) if required by local regulations), | M113: Y | N113: Y | O113: Y | P113: SMETA.8A.1.02 | Q113: SMETA.8A.1.03 | AB113: SA8000.9.10.2 | AF113: SLCP.MS-6.2 | AI113: =COUNTIF('Certification Preparation'!$B$32:$B$420,P113) -> 0 | AJ113: =COUNTIF('Certification Preparation'!$B$32:$B$420,Q113) -> 0 | AK113: =COUNTIF('Certification Preparation'!$B$32:$B$420,R113) -> 0 | AL113: =COUNTIF('Certification Preparation'!$B$32:$B$420,S113) -> 0 | AM113: =COUNTIF('Certification Preparation'!$B$32:$B$420,T113) -> 0 | AN113: =COUNTIF('Certification Preparation'!$B$32:$B$420,U113) -> 0 | AO113: =COUNTIF('Certification Preparation'!$B$32:$B$420,V113) -> 0 | AP113: =COUNTIF('Certification Preparation'!$B$32:$B$420,W113) -> 0 | AQ113: =COUNTIF('Certification Preparation'!$B$32:$B$420,X113) -> 0 | AR113: =COUNTIF('Certification Preparation'!$B$32:$B$420,Y113) -> 0 | AS113: =COUNTIF('Certification Preparation'!$B$32:$B$420,Z113) -> 0 | AT113: =COUNTIF('Certification Preparation'!$B$32:$B$420,AA113) -> 0 | AU113: =COUNTIF('Certification Preparation'!$B$32:$B$420,AB113) -> 0 | AV113: =COUNTIF('Certification Preparation'!$B$32:$B$420,AC113) -> 0 | AW113: =COUNTIF('Certification Preparation'!$B$32:$B$420,AD113) -> 0 | AX113: =COUNTIF('Certification Preparation'!$B$32:$B$420,AE113) -> 0 | AZ113: =COUNTIF('Certification Preparation'!$B$32:$B$420,AF113) -> 0 | BA113: =COUNTIF('Certification Preparation'!$B$32:$B$420,AG113) -> 0 | BB113: =COUNTIF('Certification Preparation'!$B$32:$B$420,AH113) -> 0
A114: 113 | B114: Silver | C114: =INDEX('Certification Preparation'!G:G,MATCH(Table1[[#This Row],[C2C_Level]],'Certification Preparation'!H:H,0)) -> 2 | D114: 8.5 Monitor and Verify Performance | E114: =IF(Table1[[#This Row],[Column1]]<'Certification Preparation'!$G$10,"GAP","Covered") -> GAP | F114: =IF(AND('Certification Preparation'!$B$27="Yes",M114="Y",SUM(AI114:BB114)=0),"Covered","GAP") -> GAP | G114: =IF(AND('Certification Preparation'!$B$28="Yes",N114="Y",SUM(AI114:BB114)=0),"Covered","GAP") -> GAP | H114: =IF(AND('Certification Preparation'!$B$29="Yes",O114="Y",SUM(AI114:BB114)=0),"Covered","GAP") -> GAP | I114: 8.05.025 | J114: FAC_8.5.2e | K114: 0 | L114: f. Any immediate threat to life or safety (e.g. poor fire safety, structural safety hazard), and | M114: Y | N114: Y | O114: Y | AB114: SA8000.9.10.2 | AI114: =COUNTIF('Certification Preparation'!$B$32:$B$420,P114) -> 0 | AJ114: =COUNTIF('Certification Preparation'!$B$32:$B$420,Q114) -> 0 | AK114: =COUNTIF('Certification Preparation'!$B$32:$B$420,R114) -> 0 | AL114: =COUNTIF('Certification Preparation'!$B$32:$B$420,S114) -> 0 | AM114: =COUNTIF('Certification Preparation'!$B$32:$B$420,T114) -> 0 | AN114: =COUNTIF('Certification Preparation'!$B$32:$B$420,U114) -> 0 | AO114: =COUNTIF('Certification Preparation'!$B$32:$B$420,V114) -> 0 | AP114: =COUNTIF('Certification Preparation'!$B$32:$B$420,W114) -> 0 | AQ114: =COUNTIF('Certification Preparation'!$B$32:$B$420,X114) -> 0 | AR114: =COUNTIF('Certification Preparation'!$B$32:$B$420,Y114) -> 0 | AS114: =COUNTIF('Certification Preparation'!$B$32:$B$420,Z114) -> 0 | AT114: =COUNTIF('Certification Preparation'!$B$32:$B$420,AA114) -> 0 | AU114: =COUNTIF('Certification Preparation'!$B$32:$B$420,AB114) -> 0 | AV114: =COUNTIF('Certification Preparation'!$B$32:$B$420,AC114) -> 0 | AW114: =COUNTIF('Certification Preparation'!$B$32:$B$420,AD114) -> 0 | AX114: =COUNTIF('Certification Preparation'!$B$32:$B$420,AE114) -> 0 | AZ114: =COUNTIF('Certification Preparation'!$B$32:$B$420,AF114) -> 0 | BA114: =COUNTIF('Certification Preparation'!$B$32:$B$420,AG114) -> 0 | BB114: =COUNTIF('Certification Preparation'!$B$32:$B$420,AH114) -> 0
A115: 114 | B115: Silver | C115: =INDEX('Certification Preparation'!G:G,MATCH(Table1[[#This Row],[C2C_Level]],'Certification Preparation'!H:H,0)) -> 2 | D115: 8.5 Monitor and Verify Performance | E115: =IF(Table1[[#This Row],[Column1]]<'Certification Preparation'!$G$10,"GAP","Covered") -> GAP | F115: =IF(AND('Certification Preparation'!$B$27="Yes",M115="Y",SUM(AI115:BB115)=0),"Covered","GAP") -> GAP | G115: =IF(AND('Certification Preparation'!$B$28="Yes",N115="Y",SUM(AI115:BB115)=0),"Covered","GAP") -> GAP | H115: =IF(AND('Certification Preparation'!$B$29="Yes",O115="Y",SUM(AI115:BB115)=0),"Covered","GAP") -> GAP | I115: 8.05.026 | J115: FAC_8.5.2f | K115: 0 | L115: g. Denial of access to the facility, workers, or files. | M115: Y | N115: Y | O115: N | P115: SMETA.0.01 | Q115: SMETA.0.02 | R115: SMETA.0.03 | AB115: SA8000.9.7.1 | AI115: =COUNTIF('Certification Preparation'!$B$32:$B$420,P115) -> 0 | AJ115: =COUNTIF('Certification Preparation'!$B$32:$B$420,Q115) -> 0 | AK115: =COUNTIF('Certification Preparation'!$B$32:$B$420,R115) -> 0 | AL115: =COUNTIF('Certification Preparation'!$B$32:$B$420,S115) -> 0 | AM115: =COUNTIF('Certification Preparation'!$B$32:$B$420,T115) -> 0 | AN115: =COUNTIF('Certification Preparation'!$B$32:$B$420,U115) -> 0 | AO115: =COUNTIF('Certification Preparation'!$B$32:$B$420,V115) -> 0 | AP115: =COUNTIF('Certification Preparation'!$B$32:$B$420,W115) -> 0 | AQ115: =COUNTIF('Certification Preparation'!$B$32:$B$420,X115) -> 0 | AR115: =COUNTIF('Certification Preparation'!$B$32:$B$420,Y115) -> 0 | AS115: =COUNTIF('Certification Preparation'!$B$32:$B$420,Z115) -> 0 | AT115: =COUNTIF('Certification Preparation'!$B$32:$B$420,AA115) -> 0 | AU115: =COUNTIF('Certification Preparation'!$B$32:$B$420,AB115) -> 0 | AV115: =COUNTIF('Certification Preparation'!$B$32:$B$420,AC115) -> 0 | AW115: =COUNTIF('Certification Preparation'!$B$32:$B$420,AD115) -> 0 | AX115: =COUNTIF('Certification Preparation'!$B$32:$B$420,AE115) -> 0 | AZ115: =COUNTIF('Certification Preparation'!$B$32:$B$420,AF115) -> 0 | BA115: =COUNTIF('Certification Preparation'!$B$32:$B$420,AG115) -> 0 | BB115: =COUNTIF('Certification Preparation'!$B$32:$B$420,AH115) -> 0
A116: 115 | B116: Silver | C116: =INDEX('Certification Preparation'!G:G,MATCH(Table1[[#This Row],[C2C_Level]],'Certification Preparation'!H:H,0)) -> 2 | D116: 8.5 Monitor and Verify Performance | E116: =IF(Table1[[#This Row],[Column1]]<'Certification Preparation'!$G$10,"GAP","Covered") -> GAP | F116: =IF(AND('Certification Preparation'!$B$27="Yes",M116="Y",SUM(AI116:BB116)=0),"Covered","GAP") -> GAP | G116: =IF(AND('Certification Preparation'!$B$28="Yes",N116="Y",SUM(AI116:BB116)=0),"Covered","GAP") -> GAP | H116: =IF(AND('Certification Preparation'!$B$29="Yes",O116="Y",SUM(AI116:BB116)=0),"Covered","GAP") -> GAP | I116: 8.05.016 | J116: FAC_8.5.4ai | K116: 0 | L116: 3. If data are outdated or not available, the Applicant must arrange for a social audit to be conducted. | M116: N | N116: N | O116: N | AI116: =COUNTIF('Certification Preparation'!$B$32:$B$420,P116) -> 0 | AJ116: =COUNTIF('Certification Preparation'!$B$32:$B$420,Q116) -> 0 | AK116: =COUNTIF('Certification Preparation'!$B$32:$B$420,R116) -> 0 | AL116: =COUNTIF('Certification Preparation'!$B$32:$B$420,S116) -> 0 | AM116: =COUNTIF('Certification Preparation'!$B$32:$B$420,T116) -> 0 | AN116: =COUNTIF('Certification Preparation'!$B$32:$B$420,U116) -> 0 | AO116: =COUNTIF('Certification Preparation'!$B$32:$B$420,V116) -> 0 | AP116: =COUNTIF('Certification Preparation'!$B$32:$B$420,W116) -> 0 | AQ116: =COUNTIF('Certification Preparation'!$B$32:$B$420,X116) -> 0 | AR116: =COUNTIF('Certification Preparation'!$B$32:$B$420,Y116) -> 0 | AS116: =COUNTIF('Certification Preparation'!$B$32:$B$420,Z116) -> 0 | AT116: =COUNTIF('Certification Preparation'!$B$32:$B$420,AA116) -> 0 | AU116: =COUNTIF('Certification Preparation'!$B$32:$B$420,AB116) -> 0 | AV116: =COUNTIF('Certification Preparation'!$B$32:$B$420,AC116) -> 0 | AW116: =COUNTIF('Certification Preparation'!$B$32:$B$420,AD116) -> 0 | AX116: =COUNTIF('Certification Preparation'!$B$32:$B$420,AE116) -> 0 | AZ116: =COUNTIF('Certification Preparation'!$B$32:$B$420,AF116) -> 0 | BA116: =COUNTIF('Certification Preparation'!$B$32:$B$420,AG116) -> 0 | BB116: =COUNTIF('Certification Preparation'!$B$32:$B$420,AH116) -> 0
A117: 116 | B117: Silver | C117: =INDEX('Certification Preparation'!G:G,MATCH(Table1[[#This Row],[C2C_Level]],'Certification Preparation'!H:H,0)) -> 2 | D117: 8.5 Monitor and Verify Performance | E117: =IF(Table1[[#This Row],[Column1]]<'Certification Preparation'!$G$10,"GAP","Covered") -> GAP | F117: =IF(AND('Certification Preparation'!$B$27="Yes",M117="Y",SUM(AI117:BB117)=0),"Covered","GAP") -> GAP | G117: =IF(AND('Certification Preparation'!$B$28="Yes",N117="Y",SUM(AI117:BB117)=0),"Covered","GAP") -> GAP | H117: =IF(AND('Certification Preparation'!$B$29="Yes",O117="Y",SUM(AI117:BB117)=0),"Covered","GAP") -> GAP | I117: 8.05.017 | J117: FAC_8.5.5 | K117: 0 | L117: 4. Audits must be performed by qualified personnel with a social audit credential and no conflicts of interest related to the supplier. | M117: Y | N117: N | O117: N | P117: SMETA.0.09 | AI117: =COUNTIF('Certification Preparation'!$B$32:$B$420,P117) -> 0 | AJ117: =COUNTIF('Certification Preparation'!$B$32:$B$420,Q117) -> 0 | AK117: =COUNTIF('Certification Preparation'!$B$32:$B$420,R117) -> 0 | AL117: =COUNTIF('Certification Preparation'!$B$32:$B$420,S117) -> 0 | AM117: =COUNTIF('Certification Preparation'!$B$32:$B$420,T117) -> 0 | AN117: =COUNTIF('Certification Preparation'!$B$32:$B$420,U117) -> 0 | AO117: =COUNTIF('Certification Preparation'!$B$32:$B$420,V117) -> 0 | AP117: =COUNTIF('Certification Preparation'!$B$32:$B$420,W117) -> 0 | AQ117: =COUNTIF('Certification Preparation'!$B$32:$B$420,X117) -> 0 | AR117: =COUNTIF('Certification Preparation'!$B$32:$B$420,Y117) -> 0 | AS117: =COUNTIF('Certification Preparation'!$B$32:$B$420,Z117) -> 0 | AT117: =COUNTIF('Certification Preparation'!$B$32:$B$420,AA117) -> 0 | AU117: =COUNTIF('Certification Preparation'!$B$32:$B$420,AB117) -> 0 | AV117: =COUNTIF('Certification Preparation'!$B$32:$B$420,AC117) -> 0 | AW117: =COUNTIF('Certification Preparation'!$B$32:$B$420,AD117) -> 0 | AX117: =COUNTIF('Certification Preparation'!$B$32:$B$420,AE117) -> 0 | AZ117: =COUNTIF('Certification Preparation'!$B$32:$B$420,AF117) -> 0 | BA117: =COUNTIF('Certification Preparation'!$B$32:$B$420,AG117) -> 0 | BB117: =COUNTIF('Certification Preparation'!$B$32:$B$420,AH117) -> 0
A118: 117 | B118: Silver | C118: =INDEX('Certification Preparation'!G:G,MATCH(Table1[[#This Row],[C2C_Level]],'Certification Preparation'!H:H,0)) -> 2 | D118: 8.5 Monitor and Verify Performance | E118: =IF(Table1[[#This Row],[Column1]]<'Certification Preparation'!$G$10,"GAP","Covered") -> GAP | F118: =IF(AND('Certification Preparation'!$B$27="Yes",M118="Y",SUM(AI118:BB118)=0),"Covered","GAP") -> GAP | G118: =IF(AND('Certification Preparation'!$B$28="Yes",N118="Y",SUM(AI118:BB118)=0),"Covered","GAP") -> GAP | H118: =IF(AND('Certification Preparation'!$B$29="Yes",O118="Y",SUM(AI118:BB118)=0),"Covered","GAP") -> GAP | I118: 8.05.018 | J118: FAC_8.5.6 | K118: 0 | L118: 5. Data must be generated within the past 24 months. | M118: N | N118: N | O118: N | AI118: =COUNTIF('Certification Preparation'!$B$32:$B$420,P118) -> 0 | AJ118: =COUNTIF('Certification Preparation'!$B$32:$B$420,Q118) -> 0 | AK118: =COUNTIF('Certification Preparation'!$B$32:$B$420,R118) -> 0 | AL118: =COUNTIF('Certification Preparation'!$B$32:$B$420,S118) -> 0 | AM118: =COUNTIF('Certification Preparation'!$B$32:$B$420,T118) -> 0 | AN118: =COUNTIF('Certification Preparation'!$B$32:$B$420,U118) -> 0 | AO118: =COUNTIF('Certification Preparation'!$B$32:$B$420,V118) -> 0 | AP118: =COUNTIF('Certification Preparation'!$B$32:$B$420,W118) -> 0 | AQ118: =COUNTIF('Certification Preparation'!$B$32:$B$420,X118) -> 0 | AR118: =COUNTIF('Certification Preparation'!$B$32:$B$420,Y118) -> 0 | AS118: =COUNTIF('Certification Preparation'!$B$32:$B$420,Z118) -> 0 | AT118: =COUNTIF('Certification Preparation'!$B$32:$B$420,AA118) -> 0 | AU118: =COUNTIF('Certification Preparation'!$B$32:$B$420,AB118) -> 0 | AV118: =COUNTIF('Certification Preparation'!$B$32:$B$420,AC118) -> 0 | AW118: =COUNTIF('Certification Preparation'!$B$32:$B$420,AD118) -> 0 | AX118: =COUNTIF('Certification Preparation'!$B$32:$B$420,AE118) -> 0 | AZ118: =COUNTIF('Certification Preparation'!$B$32:$B$420,AF118) -> 0 | BA118: =COUNTIF('Certification Preparation'!$B$32:$B$420,AG118) -> 0 | BB118: =COUNTIF('Certification Preparation'!$B$32:$B$420,AH118) -> 0
A119: 118 | B119: Silver | C119: =INDEX('Certification Preparation'!G:G,MATCH(Table1[[#This Row],[C2C_Level]],'Certification Preparation'!H:H,0)) -> 2 | D119: 8.5 Monitor and Verify Performance | E119: =IF(Table1[[#This Row],[Column1]]<'Certification Preparation'!$G$10,"GAP","Covered") -> GAP | F119: =IF(AND('Certification Preparation'!$B$27="Yes",M119="Y",SUM(AI119:BB119)=0),"Covered","GAP") -> GAP | G119: =IF(AND('Certification Preparation'!$B$28="Yes",N119="Y",SUM(AI119:BB119)=0),"Covered","GAP") -> GAP | H119: =IF(AND('Certification Preparation'!$B$29="Yes",O119="Y",SUM(AI119:BB119)=0),"Covered","GAP") -> GAP | I119: 8.05.027 | J119: FAC_8.5.3 | K119: 0 | L119: 6. Corrective actions must be planned for any other poor performance issues identified. | M119: Y | N119: Y | O119: Y | P119: SMETA.0.09 | AB119: SA8000.9.10.1c | AC119: SA8000.9.10.1d | AF119: SLCP.MS-7 | AI119: =COUNTIF('Certification Preparation'!$B$32:$B$420,P119) -> 0 | AJ119: =COUNTIF('Certification Preparation'!$B$32:$B$420,Q119) -> 0 | AK119: =COUNTIF('Certification Preparation'!$B$32:$B$420,R119) -> 0 | AL119: =COUNTIF('Certification Preparation'!$B$32:$B$420,S119) -> 0 | AM119: =COUNTIF('Certification Preparation'!$B$32:$B$420,T119) -> 0 | AN119: =COUNTIF('Certification Preparation'!$B$32:$B$420,U119) -> 0 | AO119: =COUNTIF('Certification Preparation'!$B$32:$B$420,V119) -> 0 | AP119: =COUNTIF('Certification Preparation'!$B$32:$B$420,W119) -> 0 | AQ119: =COUNTIF('Certification Preparation'!$B$32:$B$420,X119) -> 0 | AR119: =COUNTIF('Certification Preparation'!$B$32:$B$420,Y119) -> 0 | AS119: =COUNTIF('Certification Preparation'!$B$32:$B$420,Z119) -> 0 | AT119: =COUNTIF('Certification Preparation'!$B$32:$B$420,AA119) -> 0 | AU119: =COUNTIF('Certification Preparation'!$B$32:$B$420,AB119) -> 0 | AV119: =COUNTIF('Certification Preparation'!$B$32:$B$420,AC119) -> 0 | AW119: =COUNTIF('Certification Preparation'!$B$32:$B$420,AD119) -> 0 | AX119: =COUNTIF('Certification Preparation'!$B$32:$B$420,AE119) -> 0 | AZ119: =COUNTIF('Certification Preparation'!$B$32:$B$420,AF119) -> 0 | BA119: =COUNTIF('Certification Preparation'!$B$32:$B$420,AG119) -> 0 | BB119: =COUNTIF('Certification Preparation'!$B$32:$B$420,AH119) -> 0
A120: 119 | B120: Silver | C120: =INDEX('Certification Preparation'!G:G,MATCH(Table1[[#This Row],[C2C_Level]],'Certification Preparation'!H:H,0)) -> 2 | D120: 8.5 Monitor and Verify Performance | E120: =IF(Table1[[#This Row],[Column1]]<'Certification Preparation'!$G$10,"GAP","Covered") -> GAP | F120: =IF(AND('Certification Preparation'!$B$27="Yes",M120="Y",SUM(AI120:BB120)=0),"Covered","GAP") -> GAP | G120: =IF(AND('Certification Preparation'!$B$28="Yes",N120="Y",SUM(AI120:BB120)=0),"Covered","GAP") -> GAP | H120: =IF(AND('Certification Preparation'!$B$29="Yes",O120="Y",SUM(AI120:BB120)=0),"Covered","GAP") -> GAP | I120: 8.05.028 | J120: FAC_8.5.8 | K120: 0 | L120: 7. At recertification, progress must be demonstrated on requesting social audit data from additional high-risk suppliers, if any, identified through the supplier risk assessment. For suppliers that continually fail to provide data, the Applicant must take remedial actions (i.e. steps to suspend or terminate the relationship) after a maximum of two years. | M120: N | N120: Y | O120: N | AB120: SA8000.9.10.1c | AC120: SA8000.9.10.1d | AI120: =COUNTIF('Certification Preparation'!$B$32:$B$420,P120) -> 0 | AJ120: =COUNTIF('Certification Preparation'!$B$32:$B$420,Q120) -> 0 | AK120: =COUNTIF('Certification Preparation'!$B$32:$B$420,R120) -> 0 | AL120: =COUNTIF('Certification Preparation'!$B$32:$B$420,S120) -> 0 | AM120: =COUNTIF('Certification Preparation'!$B$32:$B$420,T120) -> 0 | AN120: =COUNTIF('Certification Preparation'!$B$32:$B$420,U120) -> 0 | AO120: =COUNTIF('Certification Preparation'!$B$32:$B$420,V120) -> 0 | AP120: =COUNTIF('Certification Preparation'!$B$32:$B$420,W120) -> 0 | AQ120: =COUNTIF('Certification Preparation'!$B$32:$B$420,X120) -> 0 | AR120: =COUNTIF('Certification Preparation'!$B$32:$B$420,Y120) -> 0 | AS120: =COUNTIF('Certification Preparation'!$B$32:$B$420,Z120) -> 0 | AT120: =COUNTIF('Certification Preparation'!$B$32:$B$420,AA120) -> 0 | AU120: =COUNTIF('Certification Preparation'!$B$32:$B$420,AB120) -> 0 | AV120: =COUNTIF('Certification Preparation'!$B$32:$B$420,AC120) -> 0 | AW120: =COUNTIF('Certification Preparation'!$B$32:$B$420,AD120) -> 0 | AX120: =COUNTIF('Certification Preparation'!$B$32:$B$420,AE120) -> 0 | AZ120: =COUNTIF('Certification Preparation'!$B$32:$B$420,AF120) -> 0 | BA120: =COUNTIF('Certification Preparation'!$B$32:$B$420,AG120) -> 0 | BB120: =COUNTIF('Certification Preparation'!$B$32:$B$420,AH120) -> 0
A121: 120 | B121: Silver | C121: =INDEX('Certification Preparation'!G:G,MATCH(Table1[[#This Row],[C2C_Level]],'Certification Preparation'!H:H,0)) -> 2 | D121: 8.5 Monitor and Verify Performance | E121: =IF(Table1[[#This Row],[Column1]]<'Certification Preparation'!$G$10,"GAP","Covered") -> GAP | F121: =IF(AND('Certification Preparation'!$B$27="Yes",M121="Y",SUM(AI121:BB121)=0),"Covered","GAP") -> GAP | G121: =IF(AND('Certification Preparation'!$B$28="Yes",N121="Y",SUM(AI121:BB121)=0),"Covered","GAP") -> GAP | H121: =IF(AND('Certification Preparation'!$B$29="Yes",O121="Y",SUM(AI121:BB121)=0),"Covered","GAP") -> GAP | I121: 8.05.029 | J121: FAC_8.5.7 | K121: 0 | L121: 8. At recertification, the Applicant must demonstrate progress on: | M121: N | N121: Y | O121: Y | AB121: SA8000.9.10.1c | AC121: SA8000.9.10.1d | AD121: SA8000.9.8.1 | AF121: SLCP.MS-7 | AI121: =COUNTIF('Certification Preparation'!$B$32:$B$420,P121) -> 0 | AJ121: =COUNTIF('Certification Preparation'!$B$32:$B$420,Q121) -> 0 | AK121: =COUNTIF('Certification Preparation'!$B$32:$B$420,R121) -> 0 | AL121: =COUNTIF('Certification Preparation'!$B$32:$B$420,S121) -> 0 | AM121: =COUNTIF('Certification Preparation'!$B$32:$B$420,T121) -> 0 | AN121: =COUNTIF('Certification Preparation'!$B$32:$B$420,U121) -> 0 | AO121: =COUNTIF('Certification Preparation'!$B$32:$B$420,V121) -> 0 | AP121: =COUNTIF('Certification Preparation'!$B$32:$B$420,W121) -> 0 | AQ121: =COUNTIF('Certification Preparation'!$B$32:$B$420,X121) -> 0 | AR121: =COUNTIF('Certification Preparation'!$B$32:$B$420,Y121) -> 0 | AS121: =COUNTIF('Certification Preparation'!$B$32:$B$420,Z121) -> 0 | AT121: =COUNTIF('Certification Preparation'!$B$32:$B$420,AA121) -> 0 | AU121: =COUNTIF('Certification Preparation'!$B$32:$B$420,AB121) -> 0 | AV121: =COUNTIF('Certification Preparation'!$B$32:$B$420,AC121) -> 0 | AW121: =COUNTIF('Certification Preparation'!$B$32:$B$420,AD121) -> 0 | AX121: =COUNTIF('Certification Preparation'!$B$32:$B$420,AE121) -> 0 | AZ121: =COUNTIF('Certification Preparation'!$B$32:$B$420,AF121) -> 0 | BA121: =COUNTIF('Certification Preparation'!$B$32:$B$420,AG121) -> 0 | BB121: =COUNTIF('Certification Preparation'!$B$32:$B$420,AH121) -> 0
A122: 121 | B122: Silver | C122: =INDEX('Certification Preparation'!G:G,MATCH(Table1[[#This Row],[C2C_Level]],'Certification Preparation'!H:H,0)) -> 2 | D122: 8.5 Monitor and Verify Performance | E122: =IF(Table1[[#This Row],[Column1]]<'Certification Preparation'!$G$10,"GAP","Covered") -> GAP | F122: =IF(AND('Certification Preparation'!$B$27="Yes",M122="Y",SUM(AI122:BB122)=0),"Covered","GAP") -> GAP | G122: =IF(AND('Certification Preparation'!$B$28="Yes",N122="Y",SUM(AI122:BB122)=0),"Covered","GAP") -> GAP | H122: =IF(AND('Certification Preparation'!$B$29="Yes",O122="Y",SUM(AI122:BB122)=0),"Covered","GAP") -> GAP | I122: 8.05.030 | J122: FAC_8.5.7a | K122: 0 | L122: a. Encouraging suppliers to complete corrective actions, | M122: N | N122: Y | O122: Y | AB122: SA8000.9.10.1c | AC122: SA8000.9.10.1d | AF122: SLCP.MS-7 | AG122: SLCP.MS-1.15 | AI122: =COUNTIF('Certification Preparation'!$B$32:$B$420,P122) -> 0 | AJ122: =COUNTIF('Certification Preparation'!$B$32:$B$420,Q122) -> 0 | AK122: =COUNTIF('Certification Preparation'!$B$32:$B$420,R122) -> 0 | AL122: =COUNTIF('Certification Preparation'!$B$32:$B$420,S122) -> 0 | AM122: =COUNTIF('Certification Preparation'!$B$32:$B$420,T122) -> 0 | AN122: =COUNTIF('Certification Preparation'!$B$32:$B$420,U122) -> 0 | AO122: =COUNTIF('Certification Preparation'!$B$32:$B$420,V122) -> 0 | AP122: =COUNTIF('Certification Preparation'!$B$32:$B$420,W122) -> 0 | AQ122: =COUNTIF('Certification Preparation'!$B$32:$B$420,X122) -> 0 | AR122: =COUNTIF('Certification Preparation'!$B$32:$B$420,Y122) -> 0 | AS122: =COUNTIF('Certification Preparation'!$B$32:$B$420,Z122) -> 0 | AT122: =COUNTIF('Certification Preparation'!$B$32:$B$420,AA122) -> 0 | AU122: =COUNTIF('Certification Preparation'!$B$32:$B$420,AB122) -> 0 | AV122: =COUNTIF('Certification Preparation'!$B$32:$B$420,AC122) -> 0 | AW122: =COUNTIF('Certification Preparation'!$B$32:$B$420,AD122) -> 0 | AX122: =COUNTIF('Certification Preparation'!$B$32:$B$420,AE122) -> 0 | AZ122: =COUNTIF('Certification Preparation'!$B$32:$B$420,AF122) -> 0 | BA122: =COUNTIF('Certification Preparation'!$B$32:$B$420,AG122) -> 0 | BB122: =COUNTIF('Certification Preparation'!$B$32:$B$420,AH122) -> 0
A123: 122 | B123: Silver | C123: =INDEX('Certification Preparation'!G:G,MATCH(Table1[[#This Row],[C2C_Level]],'Certification Preparation'!H:H,0)) -> 2 | D123: 8.5 Monitor and Verify Performance | E123: =IF(Table1[[#This Row],[Column1]]<'Certification Preparation'!$G$10,"GAP","Covered") -> GAP | F123: =IF(AND('Certification Preparation'!$B$27="Yes",M123="Y",SUM(AI123:BB123)=0),"Covered","GAP") -> GAP | G123: =IF(AND('Certification Preparation'!$B$28="Yes",N123="Y",SUM(AI123:BB123)=0),"Covered","GAP") -> GAP | H123: =IF(AND('Certification Preparation'!$B$29="Yes",O123="Y",SUM(AI123:BB123)=0),"Covered","GAP") -> GAP | I123: 8.05.031 | J123: FAC_8.5.7b | K123: 0 | L123: b. Tracking whether timelines are adhered to, and | M123: N | N123: Y | O123: N | AB123: SA8000.9.8.2 | AI123: =COUNTIF('Certification Preparation'!$B$32:$B$420,P123) -> 0 | AJ123: =COUNTIF('Certification Preparation'!$B$32:$B$420,Q123) -> 0 | AK123: =COUNTIF('Certification Preparation'!$B$32:$B$420,R123) -> 0 | AL123: =COUNTIF('Certification Preparation'!$B$32:$B$420,S123) -> 0 | AM123: =COUNTIF('Certification Preparation'!$B$32:$B$420,T123) -> 0 | AN123: =COUNTIF('Certification Preparation'!$B$32:$B$420,U123) -> 0 | AO123: =COUNTIF('Certification Preparation'!$B$32:$B$420,V123) -> 0 | AP123: =COUNTIF('Certification Preparation'!$B$32:$B$420,W123) -> 0 | AQ123: =COUNTIF('Certification Preparation'!$B$32:$B$420,X123) -> 0 | AR123: =COUNTIF('Certification Preparation'!$B$32:$B$420,Y123) -> 0 | AS123: =COUNTIF('Certification Preparation'!$B$32:$B$420,Z123) -> 0 | AT123: =COUNTIF('Certification Preparation'!$B$32:$B$420,AA123) -> 0 | AU123: =COUNTIF('Certification Preparation'!$B$32:$B$420,AB123) -> 0 | AV123: =COUNTIF('Certification Preparation'!$B$32:$B$420,AC123) -> 0 | AW123: =COUNTIF('Certification Preparation'!$B$32:$B$420,AD123) -> 0 | AX123: =COUNTIF('Certification Preparation'!$B$32:$B$420,AE123) -> 0 | AZ123: =COUNTIF('Certification Preparation'!$B$32:$B$420,AF123) -> 0 | BA123: =COUNTIF('Certification Preparation'!$B$32:$B$420,AG123) -> 0 | BB123: =COUNTIF('Certification Preparation'!$B$32:$B$420,AH123) -> 0
A124: 123 | B124: Silver | C124: =INDEX('Certification Preparation'!G:G,MATCH(Table1[[#This Row],[C2C_Level]],'Certification Preparation'!H:H,0)) -> 2 | D124: 8.5 Monitor and Verify Performance | E124: =IF(Table1[[#This Row],[Column1]]<'Certification Preparation'!$G$10,"GAP","Covered") -> GAP | F124: =IF(AND('Certification Preparation'!$B$27="Yes",M124="Y",SUM(AI124:BB124)=0),"Covered","GAP") -> GAP | G124: =IF(AND('Certification Preparation'!$B$28="Yes",N124="Y",SUM(AI124:BB124)=0),"Covered","GAP") -> GAP | H124: =IF(AND('Certification Preparation'!$B$29="Yes",O124="Y",SUM(AI124:BB124)=0),"Covered","GAP") -> GAP | I124: 8.05.032 | J124: FAC_8.5.7c | K124: 0 | L124: c. Taking steps to suspend or terminate relationships with suppliers that fail to make progress on remediation. | M124: N | N124: N | O124: N | AI124: =COUNTIF('Certification Preparation'!$B$32:$B$420,P124) -> 0 | AJ124: =COUNTIF('Certification Preparation'!$B$32:$B$420,Q124) -> 0 | AK124: =COUNTIF('Certification Preparation'!$B$32:$B$420,R124) -> 0 | AL124: =COUNTIF('Certification Preparation'!$B$32:$B$420,S124) -> 0 | AM124: =COUNTIF('Certification Preparation'!$B$32:$B$420,T124) -> 0 | AN124: =COUNTIF('Certification Preparation'!$B$32:$B$420,U124) -> 0 | AO124: =COUNTIF('Certification Preparation'!$B$32:$B$420,V124) -> 0 | AP124: =COUNTIF('Certification Preparation'!$B$32:$B$420,W124) -> 0 | AQ124: =COUNTIF('Certification Preparation'!$B$32:$B$420,X124) -> 0 | AR124: =COUNTIF('Certification Preparation'!$B$32:$B$420,Y124) -> 0 | AS124: =COUNTIF('Certification Preparation'!$B$32:$B$420,Z124) -> 0 | AT124: =COUNTIF('Certification Preparation'!$B$32:$B$420,AA124) -> 0 | AU124: =COUNTIF('Certification Preparation'!$B$32:$B$420,AB124) -> 0 | AV124: =COUNTIF('Certification Preparation'!$B$32:$B$420,AC124) -> 0 | AW124: =COUNTIF('Certification Preparation'!$B$32:$B$420,AD124) -> 0 | AX124: =COUNTIF('Certification Preparation'!$B$32:$B$420,AE124) -> 0 | AZ124: =COUNTIF('Certification Preparation'!$B$32:$B$420,AF124) -> 0 | BA124: =COUNTIF('Certification Preparation'!$B$32:$B$420,AG124) -> 0 | BB124: =COUNTIF('Certification Preparation'!$B$32:$B$420,AH124) -> 0
A125: 124 | B125: Gold | C125: =INDEX('Certification Preparation'!G:G,MATCH(Table1[[#This Row],[C2C_Level]],'Certification Preparation'!H:H,0)) -> 3 | D125: 8.5 Monitor and Verify Performance | E125: =IF(Table1[[#This Row],[Column1]]<'Certification Preparation'!$G$10,"GAP","Covered") -> GAP | F125: =IF(AND('Certification Preparation'!$B$27="Yes",M125="Y",SUM(AI125:BB125)=0),"Covered","GAP") -> GAP | G125: =IF(AND('Certification Preparation'!$B$28="Yes",N125="Y",SUM(AI125:BB125)=0),"Covered","GAP") -> GAP | H125: =IF(AND('Certification Preparation'!$B$29="Yes",O125="Y",SUM(AI125:BB125)=0),"Covered","GAP") -> GAP | I125: 8.05.033 | J125: FAC_8.5c | K125: 0 | L125: For components and raw materials associated with high-risk of child labor, forced labor, or support of conflict, the Applicant must specify or certify to a C2CPII-recognized certification (if available) or equivalent, that includes performance requirements aligned with the human rights policy. | M125: N | N125: N | O125: N | AI125: =COUNTIF('Certification Preparation'!$B$32:$B$420,P125) -> 0 | AJ125: =COUNTIF('Certification Preparation'!$B$32:$B$420,Q125) -> 0 | AK125: =COUNTIF('Certification Preparation'!$B$32:$B$420,R125) -> 0 | AL125: =COUNTIF('Certification Preparation'!$B$32:$B$420,S125) -> 0 | AM125: =COUNTIF('Certification Preparation'!$B$32:$B$420,T125) -> 0 | AN125: =COUNTIF('Certification Preparation'!$B$32:$B$420,U125) -> 0 | AO125: =COUNTIF('Certification Preparation'!$B$32:$B$420,V125) -> 0 | AP125: =COUNTIF('Certification Preparation'!$B$32:$B$420,W125) -> 0 | AQ125: =COUNTIF('Certification Preparation'!$B$32:$B$420,X125) -> 0 | AR125: =COUNTIF('Certification Preparation'!$B$32:$B$420,Y125) -> 0 | AS125: =COUNTIF('Certification Preparation'!$B$32:$B$420,Z125) -> 0 | AT125: =COUNTIF('Certification Preparation'!$B$32:$B$420,AA125) -> 0 | AU125: =COUNTIF('Certification Preparation'!$B$32:$B$420,AB125) -> 0 | AV125: =COUNTIF('Certification Preparation'!$B$32:$B$420,AC125) -> 0 | AW125: =COUNTIF('Certification Preparation'!$B$32:$B$420,AD125) -> 0 | AX125: =COUNTIF('Certification Preparation'!$B$32:$B$420,AE125) -> 0 | AZ125: =COUNTIF('Certification Preparation'!$B$32:$B$420,AF125) -> 0 | BA125: =COUNTIF('Certification Preparation'!$B$32:$B$420,AG125) -> 0 | BB125: =COUNTIF('Certification Preparation'!$B$32:$B$420,AH125) -> 0
A126: 125 | B126: Gold | C126: =INDEX('Certification Preparation'!G:G,MATCH(Table1[[#This Row],[C2C_Level]],'Certification Preparation'!H:H,0)) -> 3 | D126: 8.5 Monitor and Verify Performance | E126: =IF(Table1[[#This Row],[Column1]]<'Certification Preparation'!$G$10,"GAP","Covered") -> GAP | F126: =IF(AND('Certification Preparation'!$B$27="Yes",M126="Y",SUM(AI126:BB126)=0),"Covered","GAP") -> GAP | G126: =IF(AND('Certification Preparation'!$B$28="Yes",N126="Y",SUM(AI126:BB126)=0),"Covered","GAP") -> GAP | H126: =IF(AND('Certification Preparation'!$B$29="Yes",O126="Y",SUM(AI126:BB126)=0),"Covered","GAP") -> GAP | I126: 8.05.034 | J126: DC_8.5.9 | K126: 1 | L126: For the Gold level: | M126: N | N126: N | O126: N | AI126: =COUNTIF('Certification Preparation'!$B$32:$B$420,P126) -> 0 | AJ126: =COUNTIF('Certification Preparation'!$B$32:$B$420,Q126) -> 0 | AK126: =COUNTIF('Certification Preparation'!$B$32:$B$420,R126) -> 0 | AL126: =COUNTIF('Certification Preparation'!$B$32:$B$420,S126) -> 0 | AM126: =COUNTIF('Certification Preparation'!$B$32:$B$420,T126) -> 0 | AN126: =COUNTIF('Certification Preparation'!$B$32:$B$420,U126) -> 0 | AO126: =COUNTIF('Certification Preparation'!$B$32:$B$420,V126) -> 0 | AP126: =COUNTIF('Certification Preparation'!$B$32:$B$420,W126) -> 0 | AQ126: =COUNTIF('Certification Preparation'!$B$32:$B$420,X126) -> 0 | AR126: =COUNTIF('Certification Preparation'!$B$32:$B$420,Y126) -> 0 | AS126: =COUNTIF('Certification Preparation'!$B$32:$B$420,Z126) -> 0 | AT126: =COUNTIF('Certification Preparation'!$B$32:$B$420,AA126) -> 0 | AU126: =COUNTIF('Certification Preparation'!$B$32:$B$420,AB126) -> 0 | AV126: =COUNTIF('Certification Preparation'!$B$32:$B$420,AC126) -> 0 | AW126: =COUNTIF('Certification Preparation'!$B$32:$B$420,AD126) -> 0 | AX126: =COUNTIF('Certification Preparation'!$B$32:$B$420,AE126) -> 0 | AZ126: =COUNTIF('Certification Preparation'!$B$32:$B$420,AF126) -> 0 | BA126: =COUNTIF('Certification Preparation'!$B$32:$B$420,AG126) -> 0 | BB126: =COUNTIF('Certification Preparation'!$B$32:$B$420,AH126) -> 0
A127: 126 | B127: Gold | C127: =INDEX('Certification Preparation'!G:G,MATCH(Table1[[#This Row],[C2C_Level]],'Certification Preparation'!H:H,0)) -> 3 | D127: 8.5 Monitor and Verify Performance | E127: =IF(Table1[[#This Row],[Column1]]<'Certification Preparation'!$G$10,"GAP","Covered") -> GAP | F127: =IF(AND('Certification Preparation'!$B$27="Yes",M127="Y",SUM(AI127:BB127)=0),"Covered","GAP") -> GAP | G127: =IF(AND('Certification Preparation'!$B$28="Yes",N127="Y",SUM(AI127:BB127)=0),"Covered","GAP") -> GAP | H127: =IF(AND('Certification Preparation'!$B$29="Yes",O127="Y",SUM(AI127:BB127)=0),"Covered","GAP") -> GAP | I127: 8.05.035 | J127: FAC_8.5.9 | K127: 0 | L127: 1. A C2CPII-recognized certification or an equivalent alternative to certification is required for all de facto high-risk components and raw materials subject to review (as defined for Material Health), if a C2CPII-recognized certification exists. | M127: N | N127: N | O127: N | AI127: =COUNTIF('Certification Preparation'!$B$32:$B$420,P127) -> 0 | AJ127: =COUNTIF('Certification Preparation'!$B$32:$B$420,Q127) -> 0 | AK127: =COUNTIF('Certification Preparation'!$B$32:$B$420,R127) -> 0 | AL127: =COUNTIF('Certification Preparation'!$B$32:$B$420,S127) -> 0 | AM127: =COUNTIF('Certification Preparation'!$B$32:$B$420,T127) -> 0 | AN127: =COUNTIF('Certification Preparation'!$B$32:$B$420,U127) -> 0 | AO127: =COUNTIF('Certification Preparation'!$B$32:$B$420,V127) -> 0 | AP127: =COUNTIF('Certification Preparation'!$B$32:$B$420,W127) -> 0 | AQ127: =COUNTIF('Certification Preparation'!$B$32:$B$420,X127) -> 0 | AR127: =COUNTIF('Certification Preparation'!$B$32:$B$420,Y127) -> 0 | AS127: =COUNTIF('Certification Preparation'!$B$32:$B$420,Z127) -> 0 | AT127: =COUNTIF('Certification Preparation'!$B$32:$B$420,AA127) -> 0 | AU127: =COUNTIF('Certification Preparation'!$B$32:$B$420,AB127) -> 0 | AV127: =COUNTIF('Certification Preparation'!$B$32:$B$420,AC127) -> 0 | AW127: =COUNTIF('Certification Preparation'!$B$32:$B$420,AD127) -> 0 | AX127: =COUNTIF('Certification Preparation'!$B$32:$B$420,AE127) -> 0 | AZ127: =COUNTIF('Certification Preparation'!$B$32:$B$420,AF127) -> 0 | BA127: =COUNTIF('Certification Preparation'!$B$32:$B$420,AG127) -> 0 | BB127: =COUNTIF('Certification Preparation'!$B$32:$B$420,AH127) -> 0
A128: 127 | B128: Gold | C128: =INDEX('Certification Preparation'!G:G,MATCH(Table1[[#This Row],[C2C_Level]],'Certification Preparation'!H:H,0)) -> 3 | D128: 8.5 Monitor and Verify Performance | E128: =IF(Table1[[#This Row],[Column1]]<'Certification Preparation'!$G$10,"GAP","Covered") -> GAP | F128: =IF(AND('Certification Preparation'!$B$27="Yes",M128="Y",SUM(AI128:BB128)=0),"Covered","GAP") -> GAP | G128: =IF(AND('Certification Preparation'!$B$28="Yes",N128="Y",SUM(AI128:BB128)=0),"Covered","GAP") -> GAP | H128: =IF(AND('Certification Preparation'!$B$29="Yes",O128="Y",SUM(AI128:BB128)=0),"Covered","GAP") -> GAP | I128: 8.05.036 | J128: FAC_8.5.10 | K128: 0 | L128: 2. At recertification: If a C2CPII-recognized certification does not exist and the Applicant has not been able to institute an alternative, the Applicant must: | M128: N | N128: N | O128: N | AI128: =COUNTIF('Certification Preparation'!$B$32:$B$420,P128) -> 0 | AJ128: =COUNTIF('Certification Preparation'!$B$32:$B$420,Q128) -> 0 | AK128: =COUNTIF('Certification Preparation'!$B$32:$B$420,R128) -> 0 | AL128: =COUNTIF('Certification Preparation'!$B$32:$B$420,S128) -> 0 | AM128: =COUNTIF('Certification Preparation'!$B$32:$B$420,T128) -> 0 | AN128: =COUNTIF('Certification Preparation'!$B$32:$B$420,U128) -> 0 | AO128: =COUNTIF('Certification Preparation'!$B$32:$B$420,V128) -> 0 | AP128: =COUNTIF('Certification Preparation'!$B$32:$B$420,W128) -> 0 | AQ128: =COUNTIF('Certification Preparation'!$B$32:$B$420,X128) -> 0 | AR128: =COUNTIF('Certification Preparation'!$B$32:$B$420,Y128) -> 0 | AS128: =COUNTIF('Certification Preparation'!$B$32:$B$420,Z128) -> 0 | AT128: =COUNTIF('Certification Preparation'!$B$32:$B$420,AA128) -> 0 | AU128: =COUNTIF('Certification Preparation'!$B$32:$B$420,AB128) -> 0 | AV128: =COUNTIF('Certification Preparation'!$B$32:$B$420,AC128) -> 0 | AW128: =COUNTIF('Certification Preparation'!$B$32:$B$420,AD128) -> 0 | AX128: =COUNTIF('Certification Preparation'!$B$32:$B$420,AE128) -> 0 | AZ128: =COUNTIF('Certification Preparation'!$B$32:$B$420,AF128) -> 0 | BA128: =COUNTIF('Certification Preparation'!$B$32:$B$420,AG128) -> 0 | BB128: =COUNTIF('Certification Preparation'!$B$32:$B$420,AH128) -> 0
A129: 128 | B129: Gold | C129: =INDEX('Certification Preparation'!G:G,MATCH(Table1[[#This Row],[C2C_Level]],'Certification Preparation'!H:H,0)) -> 3 | D129: 8.5 Monitor and Verify Performance | E129: =IF(Table1[[#This Row],[Column1]]<'Certification Preparation'!$G$10,"GAP","Covered") -> GAP | F129: =IF(AND('Certification Preparation'!$B$27="Yes",M129="Y",SUM(AI129:BB129)=0),"Covered","GAP") -> GAP | G129: =IF(AND('Certification Preparation'!$B$28="Yes",N129="Y",SUM(AI129:BB129)=0),"Covered","GAP") -> GAP | H129: =IF(AND('Certification Preparation'!$B$29="Yes",O129="Y",SUM(AI129:BB129)=0),"Covered","GAP") -> GAP | I129: 8.05.037 | J129: FAC_8.5.10a | K129: 0 | L129: a. Undertake a traceability exercise with the goal of tracking the material from the direct supplier through all stages of processing to initial production or extraction, | M129: N | N129: N | O129: N | AI129: =COUNTIF('Certification Preparation'!$B$32:$B$420,P129) -> 0 | AJ129: =COUNTIF('Certification Preparation'!$B$32:$B$420,Q129) -> 0 | AK129: =COUNTIF('Certification Preparation'!$B$32:$B$420,R129) -> 0 | AL129: =COUNTIF('Certification Preparation'!$B$32:$B$420,S129) -> 0 | AM129: =COUNTIF('Certification Preparation'!$B$32:$B$420,T129) -> 0 | AN129: =COUNTIF('Certification Preparation'!$B$32:$B$420,U129) -> 0 | AO129: =COUNTIF('Certification Preparation'!$B$32:$B$420,V129) -> 0 | AP129: =COUNTIF('Certification Preparation'!$B$32:$B$420,W129) -> 0 | AQ129: =COUNTIF('Certification Preparation'!$B$32:$B$420,X129) -> 0 | AR129: =COUNTIF('Certification Preparation'!$B$32:$B$420,Y129) -> 0 | AS129: =COUNTIF('Certification Preparation'!$B$32:$B$420,Z129) -> 0 | AT129: =COUNTIF('Certification Preparation'!$B$32:$B$420,AA129) -> 0 | AU129: =COUNTIF('Certification Preparation'!$B$32:$B$420,AB129) -> 0 | AV129: =COUNTIF('Certification Preparation'!$B$32:$B$420,AC129) -> 0 | AW129: =COUNTIF('Certification Preparation'!$B$32:$B$420,AD129) -> 0 | AX129: =COUNTIF('Certification Preparation'!$B$32:$B$420,AE129) -> 0 | AZ129: =COUNTIF('Certification Preparation'!$B$32:$B$420,AF129) -> 0 | BA129: =COUNTIF('Certification Preparation'!$B$32:$B$420,AG129) -> 0 | BB129: =COUNTIF('Certification Preparation'!$B$32:$B$420,AH129) -> 0
A130: 129 | B130: Gold | C130: =INDEX('Certification Preparation'!G:G,MATCH(Table1[[#This Row],[C2C_Level]],'Certification Preparation'!H:H,0)) -> 3 | D130: 8.5 Monitor and Verify Performance | E130: =IF(Table1[[#This Row],[Column1]]<'Certification Preparation'!$G$10,"GAP","Covered") -> GAP | F130: =IF(AND('Certification Preparation'!$B$27="Yes",M130="Y",SUM(AI130:BB130)=0),"Covered","GAP") -> GAP | G130: =IF(AND('Certification Preparation'!$B$28="Yes",N130="Y",SUM(AI130:BB130)=0),"Covered","GAP") -> GAP | H130: =IF(AND('Certification Preparation'!$B$29="Yes",O130="Y",SUM(AI130:BB130)=0),"Covered","GAP") -> GAP | I130: 8.05.038 | J130: FAC_8.5.10b | K130: 0 | L130: b. Establish how to mitigate the negative human rights impacts, and | M130: N | N130: N | O130: N | AI130: =COUNTIF('Certification Preparation'!$B$32:$B$420,P130) -> 0 | AJ130: =COUNTIF('Certification Preparation'!$B$32:$B$420,Q130) -> 0 | AK130: =COUNTIF('Certification Preparation'!$B$32:$B$420,R130) -> 0 | AL130: =COUNTIF('Certification Preparation'!$B$32:$B$420,S130) -> 0 | AM130: =COUNTIF('Certification Preparation'!$B$32:$B$420,T130) -> 0 | AN130: =COUNTIF('Certification Preparation'!$B$32:$B$420,U130) -> 0 | AO130: =COUNTIF('Certification Preparation'!$B$32:$B$420,V130) -> 0 | AP130: =COUNTIF('Certification Preparation'!$B$32:$B$420,W130) -> 0 | AQ130: =COUNTIF('Certification Preparation'!$B$32:$B$420,X130) -> 0 | AR130: =COUNTIF('Certification Preparation'!$B$32:$B$420,Y130) -> 0 | AS130: =COUNTIF('Certification Preparation'!$B$32:$B$420,Z130) -> 0 | AT130: =COUNTIF('Certification Preparation'!$B$32:$B$420,AA130) -> 0 | AU130: =COUNTIF('Certification Preparation'!$B$32:$B$420,AB130) -> 0 | AV130: =COUNTIF('Certification Preparation'!$B$32:$B$420,AC130) -> 0 | AW130: =COUNTIF('Certification Preparation'!$B$32:$B$420,AD130) -> 0 | AX130: =COUNTIF('Certification Preparation'!$B$32:$B$420,AE130) -> 0 | AZ130: =COUNTIF('Certification Preparation'!$B$32:$B$420,AF130) -> 0 | BA130: =COUNTIF('Certification Preparation'!$B$32:$B$420,AG130) -> 0 | BB130: =COUNTIF('Certification Preparation'!$B$32:$B$420,AH130) -> 0
A131: 130 | B131: Gold | C131: =INDEX('Certification Preparation'!G:G,MATCH(Table1[[#This Row],[C2C_Level]],'Certification Preparation'!H:H,0)) -> 3 | D131: 8.5 Monitor and Verify Performance | E131: =IF(Table1[[#This Row],[Column1]]<'Certification Preparation'!$G$10,"GAP","Covered") -> GAP | F131: =IF(AND('Certification Preparation'!$B$27="Yes",M131="Y",SUM(AI131:BB131)=0),"Covered","GAP") -> GAP | G131: =IF(AND('Certification Preparation'!$B$28="Yes",N131="Y",SUM(AI131:BB131)=0),"Covered","GAP") -> GAP | H131: =IF(AND('Certification Preparation'!$B$29="Yes",O131="Y",SUM(AI131:BB131)=0),"Covered","GAP") -> GAP | I131: 8.05.039 | J131: FAC_8.5.11c | K131: 0 | L131: c. Participate in a stakeholder initiative actively working to address the issues. | M131: N | N131: Y | O131: N | AB131: SA8000.9.7.2 | AI131: =COUNTIF('Certification Preparation'!$B$32:$B$420,P131) -> 0 | AJ131: =COUNTIF('Certification Preparation'!$B$32:$B$420,Q131) -> 0 | AK131: =COUNTIF('Certification Preparation'!$B$32:$B$420,R131) -> 0 | AL131: =COUNTIF('Certification Preparation'!$B$32:$B$420,S131) -> 0 | AM131: =COUNTIF('Certification Preparation'!$B$32:$B$420,T131) -> 0 | AN131: =COUNTIF('Certification Preparation'!$B$32:$B$420,U131) -> 0 | AO131: =COUNTIF('Certification Preparation'!$B$32:$B$420,V131) -> 0 | AP131: =COUNTIF('Certification Preparation'!$B$32:$B$420,W131) -> 0 | AQ131: =COUNTIF('Certification Preparation'!$B$32:$B$420,X131) -> 0 | AR131: =COUNTIF('Certification Preparation'!$B$32:$B$420,Y131) -> 0 | AS131: =COUNTIF('Certification Preparation'!$B$32:$B$420,Z131) -> 0 | AT131: =COUNTIF('Certification Preparation'!$B$32:$B$420,AA131) -> 0 | AU131: =COUNTIF('Certification Preparation'!$B$32:$B$420,AB131) -> 0 | AV131: =COUNTIF('Certification Preparation'!$B$32:$B$420,AC131) -> 0 | AW131: =COUNTIF('Certification Preparation'!$B$32:$B$420,AD131) -> 0 | AX131: =COUNTIF('Certification Preparation'!$B$32:$B$420,AE131) -> 0 | AZ131: =COUNTIF('Certification Preparation'!$B$32:$B$420,AF131) -> 0 | BA131: =COUNTIF('Certification Preparation'!$B$32:$B$420,AG131) -> 0 | BB131: =COUNTIF('Certification Preparation'!$B$32:$B$420,AH131) -> 0
A132: 131 | B132: Bronze | C132: =INDEX('Certification Preparation'!G:G,MATCH(Table1[[#This Row],[C2C_Level]],'Certification Preparation'!H:H,0)) -> 1 | D132: 8.6 Strategy & Implementation | E132: =IF(Table1[[#This Row],[Column1]]<'Certification Preparation'!$G$10,"GAP","Covered") -> GAP | F132: =IF(AND('Certification Preparation'!$B$27="Yes",M132="Y",SUM(AI132:BB132)=0),"Covered","GAP") -> GAP | G132: =IF(AND('Certification Preparation'!$B$28="Yes",N132="Y",SUM(AI132:BB132)=0),"Covered","GAP") -> GAP | H132: =IF(AND('Certification Preparation'!$B$29="Yes",O132="Y",SUM(AI132:BB132)=0),"Covered","GAP") -> GAP | I132: 8.06.001 | J132: FAC_8.6 | K132: 0 | L132: Develop a strategy for implementing the human rights policy and report on implementation progress at each recertification. | M132: N | N132: Y | O132: Y | AB132: SA8000.9.1.6 | AF132: SLCP.MS-2 | AI132: =COUNTIF('Certification Preparation'!$B$32:$B$420,P132) -> 0 | AJ132: =COUNTIF('Certification Preparation'!$B$32:$B$420,Q132) -> 0 | AK132: =COUNTIF('Certification Preparation'!$B$32:$B$420,R132) -> 0 | AL132: =COUNTIF('Certification Preparation'!$B$32:$B$420,S132) -> 0 | AM132: =COUNTIF('Certification Preparation'!$B$32:$B$420,T132) -> 0 | AN132: =COUNTIF('Certification Preparation'!$B$32:$B$420,U132) -> 0 | AO132: =COUNTIF('Certification Preparation'!$B$32:$B$420,V132) -> 0 | AP132: =COUNTIF('Certification Preparation'!$B$32:$B$420,W132) -> 0 | AQ132: =COUNTIF('Certification Preparation'!$B$32:$B$420,X132) -> 0 | AR132: =COUNTIF('Certification Preparation'!$B$32:$B$420,Y132) -> 0 | AS132: =COUNTIF('Certification Preparation'!$B$32:$B$420,Z132) -> 0 | AT132: =COUNTIF('Certification Preparation'!$B$32:$B$420,AA132) -> 0 | AU132: =COUNTIF('Certification Preparation'!$B$32:$B$420,AB132) -> 0 | AV132: =COUNTIF('Certification Preparation'!$B$32:$B$420,AC132) -> 0 | AW132: =COUNTIF('Certification Preparation'!$B$32:$B$420,AD132) -> 0 | AX132: =COUNTIF('Certification Preparation'!$B$32:$B$420,AE132) -> 0 | AZ132: =COUNTIF('Certification Preparation'!$B$32:$B$420,AF132) -> 0 | BA132: =COUNTIF('Certification Preparation'!$B$32:$B$420,AG132) -> 0 | BB132: =COUNTIF('Certification Preparation'!$B$32:$B$420,AH132) -> 0
A133: 132 | B133: Bronze | C133: =INDEX('Certification Preparation'!G:G,MATCH(Table1[[#This Row],[C2C_Level]],'Certification Preparation'!H:H,0)) -> 1 | D133: 8.6 Strategy & Implementation | E133: =IF(Table1[[#This Row],[Column1]]<'Certification Preparation'!$G$10,"GAP","Covered") -> GAP | F133: =IF(AND('Certification Preparation'!$B$27="Yes",M133="Y",SUM(AI133:BB133)=0),"Covered","GAP") -> GAP | G133: =IF(AND('Certification Preparation'!$B$28="Yes",N133="Y",SUM(AI133:BB133)=0),"Covered","GAP") -> GAP | H133: =IF(AND('Certification Preparation'!$B$29="Yes",O133="Y",SUM(AI133:BB133)=0),"Covered","GAP") -> GAP | I133: 8.06.002 | J133: DC_8.6.a | K133: 1 | L133: For the Bronze level, the strategy must: | M133: N | N133: N | O133: N | AI133: =COUNTIF('Certification Preparation'!$B$32:$B$420,P133) -> 0 | AJ133: =COUNTIF('Certification Preparation'!$B$32:$B$420,Q133) -> 0 | AK133: =COUNTIF('Certification Preparation'!$B$32:$B$420,R133) -> 0 | AL133: =COUNTIF('Certification Preparation'!$B$32:$B$420,S133) -> 0 | AM133: =COUNTIF('Certification Preparation'!$B$32:$B$420,T133) -> 0 | AN133: =COUNTIF('Certification Preparation'!$B$32:$B$420,U133) -> 0 | AO133: =COUNTIF('Certification Preparation'!$B$32:$B$420,V133) -> 0 | AP133: =COUNTIF('Certification Preparation'!$B$32:$B$420,W133) -> 0 | AQ133: =COUNTIF('Certification Preparation'!$B$32:$B$420,X133) -> 0 | AR133: =COUNTIF('Certification Preparation'!$B$32:$B$420,Y133) -> 0 | AS133: =COUNTIF('Certification Preparation'!$B$32:$B$420,Z133) -> 0 | AT133: =COUNTIF('Certification Preparation'!$B$32:$B$420,AA133) -> 0 | AU133: =COUNTIF('Certification Preparation'!$B$32:$B$420,AB133) -> 0 | AV133: =COUNTIF('Certification Preparation'!$B$32:$B$420,AC133) -> 0 | AW133: =COUNTIF('Certification Preparation'!$B$32:$B$420,AD133) -> 0 | AX133: =COUNTIF('Certification Preparation'!$B$32:$B$420,AE133) -> 0 | AZ133: =COUNTIF('Certification Preparation'!$B$32:$B$420,AF133) -> 0 | BA133: =COUNTIF('Certification Preparation'!$B$32:$B$420,AG133) -> 0 | BB133: =COUNTIF('Certification Preparation'!$B$32:$B$420,AH133) -> 0
